Workbook

Sheet Data (hidden)
A1: 1 | B1: 2 | C1: 3 | D1: 4 | E1: 5 | F1: 6 | G1: 7 | H1: 8 | I1: 9 | J1: 10 | K1: 11 | L1: 12 | M1: 13 | N1: 14 | O1: 15 | P1: 16 | Q1: 17 | R1: 18 | S1: 19 | T1: 20 | U1: 21 | V1: 22 | W1: 23 | X1: 24 | Y1: 25 | Z1: 26 | AA1: 27 | AB1: 28 | AC1: 29 | AD1: 30 | AE1: 31 | AF1: 32 | AG1: 33 | AH1: 34 | AI1: 35 | AJ1: 36 | AK1: 37 | AL1: 38 | AM1: 39 | AN1: 40 | AO1: 41 | AP1: 42 | AQ1: 43 | AR1: 44 | AS1: 45 | AT1: 46 | AU1: 47 | AV1: 48 | AW1: 49 | AX1: 50 | AY1: 51 | AZ1: 52 | BA1: 53 | BB1: 54 | BC1: 55 | BD1: 56 | BE1: 57 | BF1: 58 | BG1: 59 | BH1: 60 | BI1: 61 | BJ1: 62 | BK1: 63 | BL1: 64 | BM1: 65 | BN1: 66 | BO1: 67 | BP1: 68 | BQ1: 69 | BR1: 70 | BS1: 71 | BT1: 72 | BU1: 73 | BV1: 74 | BW1: 75 | BX1: 76 | BY1: 77 | BZ1: 78 | CA1: 79 | CB1: 80
A2: final list | B2: School Name | C2: Phase | D2: F1 - Pri | E2: F1 -KS3 | F2: F1 - KS4 | G2: F2 - FSM Pri | H2: F2 - FSM Sec | I2: F2 - E6FSM Pri | J2: F2 - E6FSM Sec | K2: F2 - IDACI F - Pri | L2: F2 - IDACI E - Pri | M2: F2 - IDACI D - Pri | N2: F2 - IDACI C - Pri | O2: F2 - IDACI B - Pri | P2: F2 - IDACI A - Pri | Q2: F2 - IDACI F - Sec | R2: F2 - IDACI E - Sec | S2: F2 - IDACI D - Sec | T2: F2 - IDACI C - Sec | U2: F2 - IDACI B - Sec | V2: F2 - IDACI A - Sec | W2: F4 - EAL Pri | X2: F4 - EAL Sec | Y2: F6 - EYFS Pri | Z2: F6 - EYFS Sec | AA2: F7 - Lump Sum 19/20 | AB2: F8 - Sparsity Pri | AC2: F8 - Sparsity Sec | AD2: F9 - ACA | AE2: F10 - Split Site | AF2: F11 - Rates | AG2: F12 - PFI | AH2: F13 - Exceptional Circumstances | AJ2: SBS - 2018/19 | AK2: Lump Sum - 2018-19 | AL2: Sparsity - 2018-19 | AM2: Split Site - 2018-19 | AN2: Rates - 2018-19 | AO2: Pupils - Oct 17 | AP2: PFI Funding - Future Year? | AR2: Early Years - Base Rate | AS2: Early Years - QTS | AT2: Early Years - Disadvantage | AV2: SRP Des1 Pre | AW2: SRP Des2 Pre | AX2: SRP Des1 Post | AY2: SRP Des2 Post | AZ2: SRP Places Apr - Aug PRE | BA2: SRP Places Apr - Aug POST | BB2: SRP Places Sep - Mar PRE | BC2: SRP Places Sep - Mar Post | BD2: SRP actuals PRE (OCT) | BE2: SRP actuals POST (OCT) | BF2: Teachers Pay Grant (Apr - Aug 2019)
A3: 1001 | B3: Northfleet Nursery | C3: 6 | D3: 0 | E3: 0 | F3: 0 | G3: 0 | H3: 0 | I3: 0 | J3: 0 | K3: 0 | L3: 0 | M3: 0 | N3: 0 | O3: 0 | P3: 0 | Q3: 0 | R3: 0 | S3: 0 | T3: 0 | U3: 0 | V3: 0 | W3: 0 | X3: 0 | Y3: 0 | Z3: 0 | AA3: 0 | AB3: 0 | AC3: 0 | AD3: 0 | AE3: 0 | AF3: 0 | AG3: 0 | AH3: 0 | AJ3: 0 | AK3: 0 | AL3: 0 | AM3: 0 | AN3: 0 | AO3: 0 | AP3: 0 | AR3: 4 | AS3: 0.9 | AT3: 0.16 | AV3: 0 | AX3: 0 | AZ3: 0 | BA3: 0 | BB3: 0 | BC3: 0 | BD3: 0 | BE3: 0 | BF3: 1269
A4: 2000 | B4: St Johns C of E Primary School | C4: 1 | D4: 318 | E4: 0 | F4: 0 | G4: 129 | H4: 0 | I4: 187.8043478 | J4: 0 | K4: 5 | L4: 2 | M4: 28 | N4: 101 | O4: 74 | P4: 1 | Q4: 0 | R4: 0 | S4: 0 | T4: 0 | U4: 0 | V4: 0 | W4: 55.76865672 | X4: 0 | Y4: 123.1404255 | Z4: 0 | AA4: 120082.8 | AB4: 0 | AC4: 0 | AD4: 1 | AE4: 0 | AF4: 24182 | AG4: 0 | AH4: 0 | AJ4: 1162675.997 | AK4: 120082.8 | AL4: 0 | AM4: 0 | AN4: 23640 | AO4: 272 | AP4: 0 | AR4: 4 | AS4: 0.9 | AT4: 0.19 | AV4: 0 | AX4: 0 | AZ4: 0 | BA4: 0 | BB4: 0 | BC4: 0 | BD4: 0 | BE4: 0 | BF4: 3895
A5: 2002 | B5: Repton Manor Primary School | C5: 1 | D5: 481 | E5: 0 | F5: 0 | G5: 31 | H5: 0 | I5: 62.41163311 | J5: 0 | K5: 33.06875 | L5: 12.025 | M5: 7.014583333 | N5: 14.02916667 | O5: 16.03333333 | P5: 0 | Q5: 0 | R5: 0 | S5: 0 | T5: 0 | U5: 0 | V5: 0 | W5: 43.51904762 | X5: 0 | Y5: 105.1818182 | Z5: 0 | AA5: 120082.8 | AB5: 0 | AC5: 0 | AD5: 1 | AE5: 0 | AF5: 14234 | AG5: 0 | AH5: 0 | AJ5: 1556923.636 | AK5: 120082.8 | AL5: 0 | AM5: 0 | AN5: 14506 | AO5: 449 | AP5: 0 | AV5: 0 | AX5: 0 | AZ5: 0 | BA5: 0 | BB5: 0 | BC5: 0 | BD5: 0 | BE5: 0 | BF5: 5811
A6: 2062 | B6: Darenth Community Primary School | C6: 1 | D6: 194 | E6: 0 | F6: 0 | G6: 41 | H6: 0 | I6: 53.88888889 | J6: 0 | K6: 22.11398964 | L6: 105.5440415 | M6: 3.015544041 | N6: 7.03626943 | O6: 4.020725389 | P6: 0 | Q6: 0 | R6: 0 | S6: 0 | T6: 0 | U6: 0 | V6: 0 | W6: 11.68674699 | X6: 0 | Y6: 78.12080537 | Z6: 0 | AA6: 120082.8 | AB6: 0 | AC6: 0 | AD6: 1.0364 | AE6: 0 | AF6: 13409 | AG6: 0 | AH6: 0 | AJ6: 781497.2665 | AK6: 124453.8139 | AL6: 0 | AM6: 0 | AN6: 10923 | AO6: 185 | AP6: 0 | AV6: 0 | AX6: 0 | AZ6: 0 | BA6: 0 | BB6: 0 | BC6: 0 | BD6: 0 | BE6: 0 | BF6: 2417
A7: 2065 | B7: Discovery School, The | C7: 1 | D7: 621 | E7: 0 | F7: 0 | G7: 20 | H7: 0 | I7: 31.34384858 | J7: 0 | K7: 6 | L7: 7 | M7: 0 | N7: 0 | O7: 2 | P7: 0 | Q7: 0 | R7: 0 | S7: 0 | T7: 0 | U7: 0 | V7: 0 | W7: 36.59668508 | X7: 0 | Y7: 128.1613508 | Z7: 0 | AA7: 120082.8 | AB7: 0 | AC7: 0 | AD7: 1 | AE7: 0 | AF7: 77461 | AG7: 0 | AH7: 0 | AJ7: 2089457 | AK7: 120082.8 | AL7: 0 | AM7: 0 | AN7: 73457 | AO7: 630 | AP7: 0 | AV7: 0 | AX7: 0 | AZ7: 0 | BA7: 0 | BB7: 0 | BC7: 0 | BD7: 0 | BE7: 0 | BF7: 7992
A8: 2066 | B8: Maypole Primary School | C8: 1 | D8: 406 | E8: 0 | F8: 0 | G8: 56 | H8: 0 | I8: 66.18491484 | J8: 0 | K8: 35 | L8: 17 | M8: 4 | N8: 12 | O8: 6 | P8: 0 | Q8: 0 | R8: 0 | S8: 0 | T8: 0 | U8: 0 | V8: 0 | W8: 18.35028249 | X8: 0 | Y8: 122.2748538 | Z8: 0 | AA8: 120082.8 | AB8: 0 | AC8: 0 | AD8: 1.0364 | AE8: 0 | AF8: 40919 | AG8: 0 | AH8: 0 | AJ8: 1482986.514 | AK8: 124453.8139 | AL8: 0 | AM8: 0 | AN8: 48815 | AO8: 410 | AP8: 0 | AV8: 0 | AX8: 0 | AZ8: 0 | BA8: 0 | BB8: 0 | BC8: 0 | BD8: 0 | BE8: 0 | BF8: 5396
A9: 2074 | B9: Sunny Bank Primary School | C9: 1 | D9: 268 | E9: 0 | F9: 0 | G9: 112 | H9: 0 | I9: 127.9090909 | J9: 0 | K9: 54.20224719 | L9: 47.17602996 | M9: 65.24344569 | N9: 9.033707865 | O9: 66.24719101 | P9: 2.007490637 | Q9: 0 | R9: 0 | S9: 0 | T9: 0 | U9: 0 | V9: 0 | W9: 38.77446809 | X9: 0 | Y9: 124.6511628 | Z9: 0 | AA9: 120082.8 | AB9: 0 | AC9: 0 | AD9: 1 | AE9: 0 | AF9: 23814 | AG9: 0 | AH9: 17750 | AJ9: 1151223.243 | AK9: 120082.8 | AL9: 0 | AM9: 0 | AN9: 19661 | AO9: 273 | AP9: 0 | AR9: 4 | AS9: 0.9 | AT9: 0.04 | AV9: 0 | AX9: 0 | AZ9: 0 | BA9: 0 | BB9: 0 | BC9: 0 | BD9: 0 | BE9: 0 | BF9: 3895
A10: 2079 | B10: Woodlands Primary School | C10: 1 | D10: 644 | E10: 0 | F10: 0 | G10: 50 | H10: 0 | I10: 73.09202454 | J10: 0 | K10: 78 | L10: 8 | M10: 0 | N10: 31 | O10: 0 | P10: 0 | Q10: 0 | R10: 0 | S10: 0 | T10: 0 | U10: 0 | V10: 0 | W10: 18.49910233 | X10: 0 | Y10: 146.7941176 | Z10: 0 | AA10: 120082.8 | AB10: 0 | AC10: 0 | AD10: 1 | AE10: 0 | AF10: 60325 | AG10: 0 | AH10: 0 | AJ10: 2145309 | AK10: 120082.8 | AL10: 0 | AM10: 0 | AN10: 55709 | AO10: 653 | AP10: 0 | AV10: 0 | AX10: 0 | AZ10: 0 | BA10: 0 | BB10: 0 | BC10: 0 | BD10: 0 | BE10: 0 | BF10: 8329
A11: 2088 | B11: Crockenhill Primary School | C11: 1 | D11: 202 | E11: 0 | F11: 0 | G11: 10 | H11: 0 | I11: 28.99521531 | J11: 0 | K11: 0 | L11: 6 | M11: 8 | N11: 8 | O11: 15 | P11: 0 | Q11: 0 | R11: 0 | S11: 0 | T11: 0 | U11: 0 | V11: 0 | W11: 2.348837209 | X11: 0 | Y11: 35.85798817 | Z11: 0 | AA11: 120082.8 | AB11: 0 | AC11: 0 | AD11: 1.0364 | AE11: 0 | AF11: 23730 | AG11: 0 | AH11: 0 | AJ11: 801251.4008 | AK11: 124453.8139 | AL11: 0 | AM11: 0 | AN11: 23918 | AO11: 207 | AP11: 0 | AV11: 0 | AX11: 0 | AZ11: 0 | BA11: 0 | BB11: 0 | BC11: 0 | BD11: 0 | BE11: 0 | BF11: 2716
A12: 2089 | B12: Anthony Roper Primary School, The | C12: 1 | D12: 304 | E12: 0 | F12: 0 | G12: 17 | H12: 0 | I12: 21.29936306 | J12: 0 | K12: 1 | L12: 4 | M12: 2 | N12: 0 | O12: 1 | P12: 0 | Q12: 0 | R12: 0 | S12: 0 | T12: 0 | U12: 0 | V12: 0 | W12: 4.676923077 | X12: 0 | Y12: 78.07003891 | Z12: 0 | AA12: 120082.8 | AB12: 0 | AC12: 0 | AD12: 1.0364 | AE12: 0 | AF12: 6552 | AG12: 0 | AH12: 0 | AJ12: 1087455.846 | AK12: 124453.8139 | AL12: 0 | AM12: 0 | AN12: 6409 | AO12: 314 | AP12: 0 | AV12: 0 | AX12: 0 | AZ12: 0 | BA12: 0 | BB12: 0 | BC12: 0 | BD12: 0 | BE12: 0 | BF12: 4141
A13: 2094 | B13: Cobham Primary School | C13: 1 | D13: 220 | E13: 0 | F13: 0 | G13: 7 | H13: 0 | I13: 11.10091743 | J13: 0 | K13: 13 | L13: 2 | M13: 3 | N13: 0 | O13: 1 | P13: 0 | Q13: 0 | R13: 0 | S13: 0 | T13: 0 | U13: 0 | V13: 0 | W13: 2.315789474 | X13: 0 | Y13: 36.27659574 | Z13: 0 | AA13: 120082.8 | AB13: 0 | AC13: 0 | AD13: 1 | AE13: 0 | AF13: 16940 | AG13: 0 | AH13: 0 | AJ13: 770861.4953 | AK13: 120082.8 | AL13: 0 | AM13: 0 | AN13: 16560 | AO13: 218 | AP13: 0 | AV13: 0 | AX13: 0 | AZ13: 0 | BA13: 0 | BB13: 0 | BC13: 0 | BD13: 0 | BE13: 0 | BF13: 2766
A14: 2095 | B14: Cecil Road Primary and Nursery School | C14: 1 | D14: 381 | E14: 0 | F14: 0 | G14: 44 | H14: 0 | I14: 47.74934726 | J14: 0 | K14: 192.0079156 | L14: 21.11081794 | M14: 6.031662269 | N14: 2.01055409 | O14: 2.01055409 | P14: 0 | Q14: 0 | R14: 0 | S14: 0 | T14: 0 | U14: 0 | V14: 0 | W14: 109.5229358 | X14: 0 | Y14: 104.4485981 | Z14: 0 | AA14: 120082.8 | AB14: 0 | AC14: 0 | AD14: 1 | AE14: 0 | AF14: 33516 | AG14: 0 | AH14: 0 | AJ14: 1417417.8 | AK14: 120082.8 | AL14: 0 | AM14: 0 | AN14: 32785 | AO14: 382 | AP14: 0 | AR14: 4 | AS14: 0.9 | AT14: 0 | AV14: 0 | AX14: 0 | AZ14: 0 | BA14: 0 | BB14: 0 | BC14: 0 | BD14: 0 | BE14: 0 | BF14: 5671
A15: 2109 | B15: Higham Primary School | C15: 1 | D15: 211 | E15: 0 | F15: 0 | G15: 17 | H15: 0 | I15: 17 | J15: 0 | K15: 3 | L15: 4 | M15: 1 | N15: 0 | O15: 2 | P15: 0 | Q15: 0 | R15: 0 | S15: 0 | T15: 0 | U15: 0 | V15: 0 | W15: 1.165745856 | X15: 0 | Y15: 50.35227273 | Z15: 0 | AA15: 120082.8 | AB15: 0 | AC15: 0 | AD15: 1 | AE15: 0 | AF15: 21972 | AG15: 0 | AH15: 0 | AJ15: 775562.6362 | AK15: 120082.8 | AL15: 0 | AM15: 0 | AN15: 18148 | AO15: 216 | AP15: 0 | AV15: 0 | AX15: 0 | AZ15: 0 | BA15: 0 | BB15: 0 | BC15: 0 | BD15: 0 | BE15: 0 | BF15: 2741
A16: 2116 | B16: Lawn Primary School | C16: 1 | D16: 195 | E16: 0 | F16: 0 | G16: 90 | H16: 0 | I16: 115.270936 | J16: 0 | K16: 2 | L16: 4 | M16: 9 | N16: 30 | O16: 142 | P16: 0 | Q16: 0 | R16: 0 | S16: 0 | T16: 0 | U16: 0 | V16: 0 | W16: 37.31481481 | X16: 0 | Y16: 96.2 | Z16: 0 | AA16: 120082.8 | AB16: 0 | AC16: 0 | AD16: 1 | AE16: 0 | AF16: 20377 | AG16: 0 | AH16: 0 | AJ16: 906017.1238 | AK16: 120082.8 | AL16: 0 | AM16: 0 | AN16: 17812 | AO16: 200 | AP16: 0 | AR16: 4 | AS16: 0.9 | AT16: 0.53 | AV16: 0 | AX16: 0 | AZ16: 0 | BA16: 0 | BB16: 0 | BC16: 0 | BD16: 0 | BE16: 0 | BF16: 3096
A17: 2119 | B17: Shears Green Infant School | C17: 1 | D17: 359 | E17: 0 | F17: 0 | G17: 37 | H17: 0 | I17: 37 | J17: 0 | K17: 85 | L17: 76 | M17: 6 | N17: 3 | O17: 16 | P17: 0 | Q17: 0 | R17: 0 | S17: 0 | T17: 0 | U17: 0 | V17: 0 | W17: 55.34583333 | X17: 0 | Y17: 67.59414226 | Z17: 0 | AA17: 120082.8 | AB17: 0 | AC17: 0 | AD17: 1 | AE17: 0 | AF17: 21420 | AG17: 0 | AH17: 0 | AJ17: 1296938.592 | AK17: 120082.8 | AL17: 0 | AM17: 0 | AN17: 20953 | AO17: 359 | AP17: 0 | AV17: 0 | AX17: 0 | AZ17: 0 | BA17: 0 | BB17: 0 | BC17: 0 | BD17: 0 | BE17: 0 | BF17: 5166
A18: 2120 | B18: Bean Primary School | C18: 1 | D18: 197 | E18: 0 | F18: 0 | G18: 21 | H18: 0 | I18: 33.14903846 | J18: 0 | K18: 120 | L18: 13 | M18: 0 | N18: 0 | O18: 3 | P18: 0 | Q18: 0 | R18: 0 | S18: 0 | T18: 0 | U18: 0 | V18: 0 | W18: 6.952941176 | X18: 0 | Y18: 61.26219512 | Z18: 0 | AA18: 120082.8 | AB18: 0 | AC18: 0 | AD18: 1.0364 | AE18: 0 | AF18: 14028 | AG18: 0 | AH18: 0 | AJ18: 814536.9364 | AK18: 124453.8139 | AL18: 0 | AM18: 0 | AN18: 11427 | AO18: 204 | AP18: 0 | AV18: 0 | AX18: 0 | AZ18: 0 | BA18: 0 | BB18: 0 | BC18: 0 | BD18: 0 | BE18: 0 | BF18: 2776
A19: 2127 | B19: Paddock Wood Primary School | C19: 1 | D19: 617 | E19: 0 | F19: 0 | G19: 80 | H19: 0 | I19: 96.11557789 | J19: 0 | K19: 95 | L19: 6 | M19: 2 | N19: 0 | O19: 1 | P19: 0 | Q19: 0 | R19: 0 | S19: 0 | T19: 0 | U19: 0 | V19: 0 | W19: 6.919626168 | X19: 0 | Y19: 143.9273423 | Z19: 0 | AA19: 120082.8 | AB19: 0 | AC19: 0 | AD19: 1 | AE19: 0 | AF19: 59472 | AG19: 0 | AH19: 0 | AJ19: 1994174 | AK19: 120082.8 | AL19: 0 | AM19: 0 | AN19: 58174 | AO19: 605 | AP19: 0 | AV19: 0 | AX19: 0 | AZ19: 0 | BA19: 0 | BB19: 0 | BC19: 0 | BD19: 0 | BE19: 0 | BF19: 7675
A20: 2128 | B20: Capel Primary School | C20: 1 | D20: 209 | E20: 0 | F20: 0 | G20: 17 | H20: 0 | I20: 21.79146919 | J20: 0 | K20: 7 | L20: 6 | M20: 1 | N20: 2 | O20: 0 | P20: 0 | Q20: 0 | R20: 0 | S20: 0 | T20: 0 | U20: 0 | V20: 0 | W20: 0 | X20: 0 | Y20: 37.8956044 | Z20: 0 | AA20: 120082.8 | AB20: 0 | AC20: 0 | AD20: 1 | AE20: 0 | AF20: 20422 | AG20: 0 | AH20: 0 | AJ20: 754767.9776 | AK20: 120082.8 | AL20: 0 | AM20: 0 | AN20: 16636 | AO20: 212 | AP20: 0 | AV20: 0 | AX20: 0 | AZ20: 0 | BA20: 0 | BB20: 0 | BC20: 0 | BD20: 0 | BE20: 0 | BF20: 2690
A21: 2130 | B21: Dunton Green Primary School | C21: 1 | D21: 168 | E21: 0 | F21: 0 | G21: 40 | H21: 0 | I21: 40 | J21: 0 | K21: 1 | L21: 0 | M21: 0 | N21: 0 | O21: 0 | P21: 0 | Q21: 0 | R21: 0 | S21: 0 | T21: 0 | U21: 0 | V21: 0 | W21: 14.75675676 | X21: 0 | Y21: 55.21678322 | Z21: 0 | AA21: 120082.8 | AB21: 0 | AC21: 0 | AD21: 1.0364 | AE21: 0 | AF21: 24182 | AG21: 0 | AH21: 0 | AJ21: 663412.2367 | AK21: 124453.8139 | AL21: 0 | AM21: 0 | AN21: 23640 | AO21: 162 | AP21: 0 | AV21: 0 | AX21: 0 | AZ21: 0 | BA21: 0 | BB21: 0 | BC21: 0 | BD21: 0 | BE21: 0 | BF21: 2116
A22: 2132 | B22: Hadlow School | C22: 1 | D22: 202 | E22: 0 | F22: 0 | G22: 36 | H22: 0 | I22: 53.93203883 | J22: 0 | K22: 2.009950249 | L22: 95.47263682 | M22: 1.004975124 | N22: 0 | O22: 0 | P22: 0 | Q22: 0 | R22: 0 | S22: 0 | T22: 0 | U22: 0 | V22: 0 | W22: 6.696132597 | X22: 0 | Y22: 47.66292135 | Z22: 0 | AA22: 120082.8 | AB22: 0 | AC22: 0 | AD22: 1 | AE22: 0 | AF22: 25237 | AG22: 0 | AH22: 0 | AJ22: 785899.656 | AK22: 120082.8 | AL22: 0 | AM22: 0 | AN22: 17812 | AO22: 205 | AP22: 0 | AV22: 0 | AX22: 0 | AZ22: 0 | BA22: 0 | BB22: 0 | BC22: 0 | BD22: 0 | BE22: 0 | BF22: 2601
A23: 2133 | B23: Halstead Community Primary School | C23: 1 | D23: 83 | E23: 0 | F23: 0 | G23: 15 | H23: 0 | I23: 24.24719101 | J23: 0 | K23: 0 | L23: 3 | M23: 4 | N23: 0 | O23: 0 | P23: 0 | Q23: 0 | R23: 0 | S23: 0 | T23: 0 | U23: 0 | V23: 0 | W23: 4.486486486 | X23: 0 | Y23: 28.42465753 | Z23: 0 | AA23: 120082.8 | AB23: 0 | AC23: 0 | AD23: 1.0364 | AE23: 0 | AF23: 9329 | AG23: 0 | AH23: 0 | AJ23: 433529.1309 | AK23: 124453.8139 | AL23: 0 | AM23: 0 | AN23: 8466 | AO23: 91 | AP23: 0 | AV23: 0 | AX23: 0 | AZ23: 0 | BA23: 0 | BB23: 0 | BC23: 0 | BD23: 0 | BE23: 0 | BF23: 1306
A24: 2134 | B24: Four Elms Primary School | C24: 1 | D24: 110 | E24: 0 | F24: 0 | G24: 8 | H24: 0 | I24: 11.89189189 | J24: 0 | K24: 18 | L24: 12 | M24: 0 | N24: 0 | O24: 0 | P24: 0 | Q24: 0 | R24: 0 | S24: 0 | T24: 0 | U24: 0 | V24: 0 | W24: 2.315789474 | X24: 0 | Y24: 31.26315789 | Z24: 0 | AA24: 120082.8 | AB24: 0 | AC24: 0 | AD24: 1.0364 | AE24: 0 | AF24: 13134 | AG24: 0 | AH24: 0 | AJ24: 487293.1889 | AK24: 124453.8139 | AL24: 0 | AM24: 0 | AN24: 12840 | AO24: 110 | AP24: 0 | AV24: 0 | AX24: 0 | AZ24: 0 | BA24: 0 | BB24: 0 | BC24: 0 | BD24: 0 | BE24: 0 | BF24: 1461
A25: 2135 | B25: Horsmonden Primary School | C25: 1 | D25: 180 | E25: 0 | F25: 0 | G25: 10 | H25: 0 | I25: 21.34020619 | J25: 0 | K25: 1.011235955 | L25: 0 | M25: 3.033707865 | N25: 0 | O25: 0 | P25: 0 | Q25: 0 | R25: 0 | S25: 0 | T25: 0 | U25: 0 | V25: 0 | W25: 0 | X25: 0 | Y25: 33.75 | Z25: 0 | AA25: 120082.8 | AB25: 0 | AC25: 0 | AD25: 1 | AE25: 0 | AF25: 18413 | AG25: 0 | AH25: 0 | AJ25: 705293.6604 | AK25: 120082.8 | AL25: 0 | AM25: 0 | AN25: 16804 | AO25: 192 | AP25: 0 | AV25: 0 | AX25: 0 | AZ25: 0 | BA25: 0 | BB25: 0 | BC25: 0 | BD25: 0 | BE25: 0 | BF25: 2436
A26: 2136 | B26: Kemsing Primary School | C26: 1 | D26: 198 | E26: 0 | F26: 0 | G26: 13 | H26: 0 | I26: 22.2244898 | J26: 0 | K26: 1.010204082 | L26: 0 | M26: 0 | N26: 0 | O26: 0 | P26: 0 | Q26: 0 | R26: 0 | S26: 0 | T26: 0 | U26: 0 | V26: 0 | W26: 2.329411765 | X26: 0 | Y26: 62.89411765 | Z26: 0 | AA26: 120082.8 | AB26: 0 | AC26: 0 | AD26: 1.0364 | AE26: 0 | AF26: 21604 | AG26: 0 | AH26: 0 | AJ26: 766219.7908 | AK26: 124453.8139 | AL26: 0 | AM26: 0 | AN26: 18148 | AO26: 200 | AP26: 0 | AV26: 0 | AX26: 0 | AZ26: 0 | BA26: 0 | BB26: 0 | BC26: 0 | BD26: 0 | BE26: 0 | BF26: 2620
A27: 2137 | B27: Leigh Primary School | C27: 1 | D27: 172 | E27: 0 | F27: 0 | G27: 11 | H27: 0 | I27: 15.73170732 | J27: 0 | K27: 0 | L27: 3.01754386 | M27: 0 | N27: 0 | O27: 0 | P27: 0 | Q27: 0 | R27: 0 | S27: 0 | T27: 0 | U27: 0 | V27: 0 | W27: 0 | X27: 0 | Y27: 37.54929577 | Z27: 0 | AA27: 120082.8 | AB27: 0 | AC27: 0 | AD27: 1.0364 | AE27: 0 | AF27: 12005 | AG27: 0 | AH27: 0 | AJ27: 624693.0618 | AK27: 124453.8139 | AL27: 0 | AM27: 0 | AN27: 11736 | AO27: 161 | AP27: 0 | AV27: 0 | AX27: 0 | AZ27: 0 | BA27: 0 | BB27: 0 | BC27: 0 | BD27: 0 | BE27: 0 | BF27: 2104
A28: 2138 | B28: Otford Primary School | C28: 1 | D28: 390 | E28: 0 | F28: 0 | G28: 18 | H28: 0 | I28: 32.7480916 | J28: 0 | K28: 3 | L28: 0 | M28: 1 | N28: 1 | O28: 0 | P28: 0 | Q28: 0 | R28: 0 | S28: 0 | T28: 0 | U28: 0 | V28: 0 | W28: 9.512195122 | X28: 0 | Y28: 79.69040248 | Z28: 0 | AA28: 120082.8 | AB28: 0 | AC28: 0 | AD28: 1.0364 | AE28: 0 | AF28: 28980 | AG28: 0 | AH28: 0 | AJ28: 1354334.225 | AK28: 124453.8139 | AL28: 0 | AM28: 0 | AN28: 28348 | AO28: 395 | AP28: 0 | AV28: 0 | AX28: 0 | AZ28: 0 | BA28: 0 | BB28: 0 | BC28: 0 | BD28: 0 | BE28: 0 | BF28: 5167
A29: 2139 | B29: Pembury School | C29: 1 | D29: 442 | E29: 0 | F29: 0 | G29: 18 | H29: 0 | I29: 34.2851153 | J29: 0 | K29: 14 | L29: 2 | M29: 1 | N29: 1 | O29: 0 | P29: 0 | Q29: 0 | R29: 0 | S29: 0 | T29: 0 | U29: 0 | V29: 0 | W29: 29.31632653 | X29: 0 | Y29: 94.54545455 | Z29: 0 | AA29: 120082.8 | AB29: 0 | AC29: 0 | AD29: 1 | AE29: 0 | AF29: 41832 | AG29: 0 | AH29: 0 | AJ29: 1560919 | AK29: 120082.8 | AL29: 0 | AM29: 0 | AN29: 40919 | AO29: 475 | AP29: 0 | AV29: 0 | AX29: 0 | AZ29: 0 | BA29: 0 | BB29: 0 | BC29: 0 | BD29: 0 | BE29: 0 | BF29: 6045
A30: 2142 | B30: Sandhurst Primary School | C30: 1 | D30: 143 | E30: 0 | F30: 0 | G30: 17 | H30: 0 | I30: 24.34042553 | J30: 0 | K30: 26 | L30: 2 | M30: 0 | N30: 0 | O30: 1 | P30: 0 | Q30: 0 | R30: 0 | S30: 0 | T30: 0 | U30: 0 | V30: 0 | W30: 3.3 | X30: 0 | Y30: 36.31746032 | Z30: 0 | AA30: 120082.8 | AB30: 0 | AC30: 0 | AD30: 1 | AE30: 0 | AF30: 21236 | AG30: 0 | AH30: 0 | AJ30: 559162.0332 | AK30: 120082.8 | AL30: 0 | AM30: 0 | AN30: 20760 | AO30: 138 | AP30: 0 | AV30: 0 | AX30: 0 | AZ30: 0 | BA30: 0 | BB30: 0 | BC30: 0 | BD30: 0 | BE30: 0 | BF30: 1781
A31: 2147 | B31: Weald Community Primary School | C31: 1 | D31: 170 | E31: 0 | F31: 0 | G31: 7 | H31: 0 | I31: 7.4375 | J31: 0 | K31: 0 | L31: 2 | M31: 2 | N31: 0 | O31: 0 | P31: 0 | Q31: 0 | R31: 0 | S31: 0 | T31: 0 | U31: 0 | V31: 0 | W31: 11.40939597 | X31: 0 | Y31: 39.62406015 | Z31: 0 | AA31: 120082.8 | AB31: 0 | AC31: 0 | AD31: 1.0364 | AE31: 0 | AF31: 14976 | AG31: 0 | AH31: 0 | AJ31: 619830.8145 | AK31: 124453.8139 | AL31: 0 | AM31: 0 | AN31: 13920 | AO31: 158 | AP31: 0 | AV31: 0 | AX31: 0 | AZ31: 0 | BA31: 0 | BB31: 0 | BC31: 0 | BD31: 0 | BE31: 0 | BF31: 2064
A32: 2148 | B32: Shoreham Village School | C32: 1 | D32: 94 | E32: 0 | F32: 0 | G32: 13 | H32: 0 | I32: 24.79120879 | J32: 0 | K32: 1 | L32: 0 | M32: 0 | N32: 1 | O32: 0 | P32: 0 | Q32: 0 | R32: 0 | S32: 0 | T32: 0 | U32: 0 | V32: 0 | W32: 3.481481481 | X32: 0 | Y32: 27.21052632 | Z32: 0 | AA32: 120082.8 | AB32: 0 | AC32: 0 | AD32: 1.0364 | AE32: 0 | AF32: 13871 | AG32: 0 | AH32: 0 | AJ32: 423746.1109 | AK32: 124453.8139 | AL32: 0 | AM32: 0 | AN32: 14280 | AO32: 89 | AP32: 0 | AV32: 0 | AX32: 0 | AZ32: 0 | BA32: 0 | BB32: 0 | BC32: 0 | BD32: 0 | BE32: 0 | BF32: 1306
A33: 2155 | B33: Slade Primary School | C33: 1 | D33: 389 | E33: 0 | F33: 0 | G33: 19 | H33: 0 | I33: 37.24468085 | J33: 0 | K33: 5 | L33: 9 | M33: 0 | N33: 3 | O33: 0 | P33: 0 | Q33: 0 | R33: 0 | S33: 0 | T33: 0 | U33: 0 | V33: 0 | W33: 34.2887538 | X33: 0 | Y33: 120.8074534 | Z33: 0 | AA33: 120082.8 | AB33: 0 | AC33: 0 | AD33: 1 | AE33: 0 | AF33: 32857 | AG33: 0 | AH33: 0 | AJ33: 1294851.93 | AK33: 120082.8 | AL33: 0 | AM33: 0 | AN33: 24454 | AO33: 379 | AP33: 0 | AV33: 985.7400876 | AX33: 985.7400876 | AZ33: 5 | BA33: 0 | BB33: 5 | BC33: 0 | BD33: 7 | BE33: 0 | BF33: 4885
A34: 2156 | B34: Sussex Road Community Primary School | C34: 1 | D34: 448 | E34: 0 | F34: 0 | G34: 38 | H34: 0 | I34: 54.12080537 | J34: 0 | K34: 1 | L34: 16 | M34: 0 | N34: 2 | O34: 0 | P34: 0 | Q34: 0 | R34: 0 | S34: 0 | T34: 0 | U34: 0 | V34: 0 | W34: 48.37017995 | X34: 0 | Y34: 74.86472149 | Z34: 0 | AA34: 120082.8 | AB34: 0 | AC34: 0 | AD34: 1 | AE34: 0 | AF34: 47221 | AG34: 0 | AH34: 0 | AJ34: 1477907.968 | AK34: 120082.8 | AL34: 0 | AM34: 0 | AN34: 42891 | AO34: 442 | AP34: 0 | AV34: 0 | AX34: 0 | AZ34: 0 | BA34: 0 | BB34: 0 | BC34: 0 | BD34: 0 | BE34: 0 | BF34: 5607
A35: 2161 | B35: Boughton Monchelsea Primary School | C35: 1 | D35: 208 | E35: 0 | F35: 0 | G35: 10 | H35: 0 | I35: 20.7014218 | J35: 0 | K35: 7.067961165 | L35: 0 | M35: 3.029126214 | N35: 5.048543689 | O35: 5.048543689 | P35: 0 | Q35: 0 | R35: 0 | S35: 0 | T35: 0 | U35: 0 | V35: 0 | W35: 5.810055866 | X35: 0 | Y35: 64.63276836 | Z35: 0 | AA35: 120082.8 | AB35: 0 | AC35: 0 | AD35: 1 | AE35: 0 | AF35: 24140 | AG35: 0 | AH35: 0 | AJ35: 780082.1893 | AK35: 120082.8 | AL35: 0 | AM35: 0 | AN35: 21720 | AO35: 211 | AP35: 0 | AV35: 0 | AX35: 0 | AZ35: 0 | BA35: 0 | BB35: 0 | BC35: 0 | BD35: 0 | BE35: 0 | BF35: 2730
A36: 2163 | B36: East Farleigh Primary School | C36: 1 | D36: 200 | E36: 0 | F36: 0 | G36: 4 | H36: 0 | I36: 15.7635468 | J36: 0 | K36: 23 | L36: 0 | M36: 2 | N36: 7 | O36: 2 | P36: 0 | Q36: 0 | R36: 0 | S36: 0 | T36: 0 | U36: 0 | V36: 0 | W36: 7.058823529 | X36: 0 | Y36: 36.68639053 | Z36: 0 | AA36: 120082.8 | AB36: 0 | AC36: 0 | AD36: 1 | AE36: 0 | AF36: 18371 | AG36: 0 | AH36: 0 | AJ36: 737294.9124 | AK36: 120082.8 | AL36: 0 | AM36: 0 | AN36: 16080 | AO36: 203 | AP36: 0 | AV36: 0 | AX36: 0 | AZ36: 0 | BA36: 0 | BB36: 0 | BC36: 0 | BD36: 0 | BE36: 0 | BF36: 2613
A37: 2164 | B37: East Peckham Primary School | C37: 1 | D37: 158 | E37: 0 | F37: 0 | G37: 10 | H37: 0 | I37: 18.92215569 | J37: 0 | K37: 6.038216561 | L37: 8.050955414 | M37: 0 | N37: 0 | O37: 0 | P37: 0 | Q37: 0 | R37: 0 | S37: 0 | T37: 0 | U37: 0 | V37: 0 | W37: 1.144927536 | X37: 0 | Y37: 47.87878788 | Z37: 0 | AA37: 120082.8 | AB37: 0 | AC37: 0 | AD37: 1 | AE37: 0 | AF37: 23750 | AG37: 0 | AH37: 0 | AJ37: 626979.5705 | AK37: 120082.8 | AL37: 0 | AM37: 0 | AN37: 16804 | AO37: 165 | AP37: 0 | AV37: 0 | AX37: 0 | AZ37: 0 | BA37: 0 | BB37: 0 | BC37: 0 | BD37: 0 | BE37: 0 | BF37: 2121
A38: 2165 | B38: Headcorn Primary School | C38: 1 | D38: 254 | E38: 0 | F38: 0 | G38: 17 | H38: 0 | I38: 28.96491228 | J38: 0 | K38: 2 | L38: 0 | M38: 1 | N38: 0 | O38: 0 | P38: 0 | Q38: 0 | R38: 0 | S38: 0 | T38: 0 | U38: 0 | V38: 0 | W38: 3.868020305 | X38: 0 | Y38: 26.18556701 | Z38: 0 | AA38: 120082.8 | AB38: 0 | AC38: 0 | AD38: 1 | AE38: 0 | AF38: 42184 | AG38: 0 | AH38: 0 | AJ38: 782474.1242 | AK38: 120082.8 | AL38: 0 | AM38: 0 | AN38: 17140 | AO38: 225 | AP38: 0 | AV38: 0 | AX38: 0 | AZ38: 0 | BA38: 0 | BB38: 0 | BC38: 0 | BD38: 0 | BE38: 0 | BF38: 2952
A39: 2166 | B39: Hollingbourne Primary School | C39: 1 | D39: 99 | E39: 0 | F39: 0 | G39: 4 | H39: 0 | I39: 9.801980198 | J39: 0 | K39: 0 | L39: 0 | M39: 0 | N39: 0 | O39: 1 | P39: 0 | Q39: 0 | R39: 0 | S39: 0 | T39: 0 | U39: 0 | V39: 0 | W39: 0 | X39: 0 | Y39: 22 | Z39: 0 | AA39: 120082.8 | AB39: 0 | AC39: 0 | AD39: 1 | AE39: 0 | AF39: 15425 | AG39: 0 | AH39: 0 | AJ39: 426974.5825 | AK39: 120082.8 | AL39: 0 | AM39: 0 | AN39: 13440 | AO39: 100 | AP39: 0 | AV39: 0 | AX39: 0 | AZ39: 0 | BA39: 0 | BB39: 0 | BC39: 0 | BD39: 0 | BE39: 0 | BF39: 1269
A40: 2167 | B40: Ightham Primary School | C40: 1 | D40: 201 | E40: 0 | F40: 0 | G40: 1 | H40: 0 | I40: 3.015 | J40: 0 | K40: 6 | L40: 0 | M40: 0 | N40: 0 | O40: 0 | P40: 0 | Q40: 0 | R40: 0 | S40: 0 | T40: 0 | U40: 0 | V40: 0 | W40: 3.526315789 | X40: 0 | Y40: 37.9245283 | Z40: 0 | AA40: 120082.8 | AB40: 0 | AC40: 0 | AD40: 1 | AE40: 0 | AF40: 24486 | AG40: 0 | AH40: 0 | AJ40: 730092.3634 | AK40: 120082.8 | AL40: 0 | AM40: 0 | AN40: 20640 | AO40: 205 | AP40: 0 | AV40: 0 | AX40: 0 | AZ40: 0 | BA40: 0 | BB40: 0 | BC40: 0 | BD40: 0 | BE40: 0 | BF40: 2648
A41: 2168 | B41: Lenham Primary School | C41: 1 | D41: 205 | E41: 0 | F41: 0 | G41: 26 | H41: 0 | I41: 28.44497608 | J41: 0 | K41: 0 | L41: 0 | M41: 0 | N41: 0 | O41: 1 | P41: 0 | Q41: 0 | R41: 0 | S41: 0 | T41: 0 | U41: 0 | V41: 0 | W41: 4.685714286 | X41: 0 | Y41: 50.05813953 | Z41: 0 | AA41: 120082.8 | AB41: 0 | AC41: 0 | AD41: 1 | AE41: 0 | AF41: 20457 | AG41: 0 | AH41: 0 | AJ41: 750808.2219 | AK41: 120082.8 | AL41: 0 | AM41: 0 | AN41: 17980 | AO41: 208 | AP41: 0 | AV41: 0 | AX41: 0 | AZ41: 0 | BA41: 0 | BB41: 0 | BC41: 0 | BD41: 0 | BE41: 0 | BF41: 2694
A42: 2169 | B42: Platts Heath Primary School | C42: 1 | D42: 68 | E42: 0 | F42: 0 | G42: 8 | H42: 0 | I42: 13.07692308 | J42: 0 | K42: 4 | L42: 0 | M42: 1 | N42: 1 | O42: 1 | P42: 0 | Q42: 0 | R42: 0 | S42: 0 | T42: 0 | U42: 0 | V42: 0 | W42: 0 | X42: 0 | Y42: 21.85714286 | Z42: 0 | AA42: 120082.8 | AB42: 0 | AC42: 0 | AD42: 1 | AE42: 0 | AF42: 4230 | AG42: 0 | AH42: 0 | AJ42: 360535.9232 | AK42: 120082.8 | AL42: 0 | AM42: 0 | AN42: 2181 | AO42: 77 | AP42: 0 | AV42: 0 | AX42: 0 | AZ42: 0 | BA42: 0 | BB42: 0 | BC42: 0 | BD42: 0 | BE42: 0 | BF42: 1269
A43: 2171 | B43: Brunswick House Primary School | C43: 1 | D43: 419 | E43: 0 | F43: 0 | G43: 47 | H43: 0 | I43: 59.85714286 | J43: 0 | K43: 58.27817746 | L43: 0 | M43: 6.028776978 | N43: 4.019184652 | O43: 0 | P43: 0 | Q43: 0 | R43: 0 | S43: 0 | T43: 0 | U43: 0 | V43: 0 | W43: 43.06388889 | X43: 0 | Y43: 97.52586207 | Z43: 0 | AA43: 120082.8 | AB43: 0 | AC43: 0 | AD43: 1 | AE43: 0 | AF43: 66938 | AG43: 0 | AH43: 0 | AJ43: 1460327.078 | AK43: 120082.8 | AL43: 0 | AM43: 0 | AN43: 63597 | AO43: 420 | AP43: 0 | AV43: 0 | AX43: 0 | AZ43: 0 | BA43: 0 | BB43: 0 | BC43: 0 | BD43: 0 | BE43: 0 | BF43: 5329
A44: 2175 | B44: North Borough Junior School | C44: 1 | D44: 336 | E44: 0 | F44: 0 | G44: 47 | H44: 0 | I44: 90.6993865 | J44: 0 | K44: 86.51497006 | L44: 1.005988024 | M44: 2.011976048 | N44: 2.011976048 | O44: 1.005988024 | P44: 0 | Q44: 0 | R44: 0 | S44: 0 | T44: 0 | U44: 0 | V44: 0 | W44: 51 | X44: 0 | Y44: 115.2 | Z44: 0 | AA44: 120082.8 | AB44: 0 | AC44: 0 | AD44: 1 | AE44: 0 | AF44: 24200 | AG44: 0 | AH44: 0 | AJ44: 1208529.826 | AK44: 120082.8 | AL44: 0 | AM44: 0 | AN44: 18148 | AO44: 329 | AP44: 0 | AV44: 0 | AX44: 0 | AZ44: 0 | BA44: 0 | BB44: 0 | BC44: 0 | BD44: 0 | BE44: 0 | BF44: 4174
A45: 2176 | B45: Park Way Primary School | C45: 1 | D45: 310 | E45: 0 | F45: 0 | G45: 58 | H45: 0 | I45: 87.03470032 | J45: 0 | K45: 96 | L45: 52 | M45: 4 | N45: 25 | O45: 7 | P45: 0 | Q45: 0 | R45: 0 | S45: 0 | T45: 0 | U45: 0 | V45: 0 | W45: 47.96226415 | X45: 0 | Y45: 117.2268908 | Z45: 0 | AA45: 120082.8 | AB45: 0 | AC45: 0 | AD45: 1 | AE45: 0 | AF45: 29894 | AG45: 0 | AH45: 0 | AJ45: 1190986.098 | AK45: 120082.8 | AL45: 0 | AM45: 0 | AN45: 27362 | AO45: 312 | AP45: 0 | AV45: 0 | AX45: 0 | AZ45: 0 | BA45: 0 | BB45: 0 | BC45: 0 | BD45: 0 | BE45: 0 | BF45: 4030
A46: 2183 | B46: Marden Primary School | C46: 1 | D46: 283 | E46: 0 | F46: 0 | G46: 48 | H46: 0 | I46: 62.17424242 | J46: 0 | K46: 3.021352313 | L46: 1.007117438 | M46: 115.8185053 | N46: 0 | O46: 2.014234875 | P46: 0 | Q46: 0 | R46: 0 | S46: 0 | T46: 0 | U46: 0 | V46: 0 | W46: 10.39591837 | X46: 0 | Y46: 81.19831224 | Z46: 0 | AA46: 120082.8 | AB46: 0 | AC46: 0 | AD46: 1 | AE46: 0 | AF46: 28130 | AG46: 0 | AH46: 0 | AJ46: 970639.1662 | AK46: 120082.8 | AL46: 0 | AM46: 0 | AN46: 25636 | AO46: 257 | AP46: 0 | AV46: 0 | AX46: 0 | AZ46: 0 | BA46: 0 | BB46: 0 | BC46: 0 | BD46: 0 | BE46: 0 | BF46: 3261
A47: 2185 | B47: Mereworth Community Primary School | C47: 1 | D47: 209 | E47: 0 | F47: 0 | G47: 21 | H47: 0 | I47: 29.5754717 | J47: 0 | K47: 4.019230769 | L47: 8.038461538 | M47: 2.009615385 | N47: 1.004807692 | O47: 2.009615385 | P47: 0 | Q47: 0 | R47: 0 | S47: 0 | T47: 0 | U47: 0 | V47: 0 | W47: 4.593406593 | X47: 0 | Y47: 52.83707865 | Z47: 0 | AA47: 120082.8 | AB47: 0 | AC47: 0 | AD47: 1 | AE47: 0 | AF47: 29329 | AG47: 0 | AH47: 0 | AJ47: 780483.9183 | AK47: 120082.8 | AL47: 0 | AM47: 0 | AN47: 25390 | AO47: 213 | AP47: 0 | AV47: 0 | AX47: 0 | AZ47: 0 | BA47: 0 | BB47: 0 | BC47: 0 | BD47: 0 | BE47: 0 | BF47: 2753
A48: 2187 | B48: Offham Primary School | C48: 1 | D48: 210 | E48: 0 | F48: 0 | G48: 2 | H48: 0 | I48: 3.014354067 | J48: 0 | K48: 25 | L48: 3 | M48: 0 | N48: 0 | O48: 0 | P48: 0 | Q48: 0 | R48: 0 | S48: 0 | T48: 0 | U48: 0 | V48: 0 | W48: 2.333333333 | X48: 0 | Y48: 36.77966102 | Z48: 0 | AA48: 120082.8 | AB48: 0 | AC48: 0 | AD48: 1 | AE48: 0 | AF48: 26818 | AG48: 0 | AH48: 0 | AJ48: 745671.3026 | AK48: 120082.8 | AL48: 0 | AM48: 0 | AN48: 22920 | AO48: 208 | AP48: 0 | AV48: 0 | AX48: 0 | AZ48: 0 | BA48: 0 | BB48: 0 | BC48: 0 | BD48: 0 | BE48: 0 | BF48: 2639
A49: 2188 | B49: Plaxtol Primary School | C49: 1 | D49: 92 | E49: 0 | F49: 0 | G49: 4 | H49: 0 | I49: 4.893617021 | J49: 0 | K49: 3 | L49: 3 | M49: 0 | N49: 2 | O49: 0 | P49: 0 | Q49: 0 | R49: 0 | S49: 0 | T49: 0 | U49: 0 | V49: 0 | W49: 0 | X49: 0 | Y49: 15.94666667 | Z49: 0 | AA49: 120082.8 | AB49: 0 | AC49: 0 | AD49: 1 | AE49: 0 | AF49: 16998 | AG49: 0 | AH49: 0 | AJ49: 404143.7096 | AK49: 120082.8 | AL49: 0 | AM49: 0 | AN49: 13320 | AO49: 93 | AP49: 0 | AV49: 0 | AX49: 0 | AZ49: 0 | BA49: 0 | BB49: 0 | BC49: 0 | BD49: 0 | BE49: 0 | BF49: 1269
A50: 2189 | B50: Ryarsh Primary School | C50: 1 | D50: 209 | E50: 0 | F50: 0 | G50: 1 | H50: 0 | I50: 8.957142857 | J50: 0 | K50: 3 | L50: 6 | M50: 0 | N50: 0 | O50: 0 | P50: 0 | Q50: 0 | R50: 0 | S50: 0 | T50: 0 | U50: 0 | V50: 0 | W50: 0 | X50: 0 | Y50: 39.92134831 | Z50: 0 | AA50: 120082.8 | AB50: 0 | AC50: 0 | AD50: 1 | AE50: 0 | AF50: 21049 | AG50: 0 | AH50: 0 | AJ50: 745758.0664 | AK50: 120082.8 | AL50: 0 | AM50: 0 | AN50: 16804 | AO50: 210 | AP50: 0 | AV50: 0 | AX50: 0 | AZ50: 0 | BA50: 0 | BB50: 0 | BC50: 0 | BD50: 0 | BE50: 0 | BF50: 2694
A51: 2190 | B51: Shipbourne School | C51: 1 | D51: 55 | E51: 0 | F51: 0 | G51: 9 | H51: 0 | I51: 11.2037037 | J51: 0 | K51: 3 | L51: 6 | M51: 2 | N51: 0 | O51: 0 | P51: 0 | Q51: 0 | R51: 0 | S51: 0 | T51: 0 | U51: 0 | V51: 0 | W51: 7.173913043 | X51: 0 | Y51: 9.390243902 | Z51: 0 | AA51: 120082.8 | AB51: 0 | AC51: 0 | AD51: 1 | AE51: 0 | AF51: 9993 | AG51: 0 | AH51: 0 | AJ51: 281211.049 | AK51: 120082.8 | AL51: 0 | AM51: 0 | AN51: 5883 | AO51: 51 | AP51: 0 | AV51: 0 | AX51: 0 | AZ51: 0 | BA51: 0 | BB51: 0 | BC51: 0 | BD51: 0 | BE51: 0 | BF51: 1269
A52: 2191 | B52: St Katherine's School | C52: 1 | D52: 581 | E52: 0 | F52: 0 | G52: 82 | H52: 0 | I52: 104.9165247 | J52: 0 | K52: 11 | L52: 309 | M52: 5 | N52: 1 | O52: 1 | P52: 0 | Q52: 0 | R52: 0 | S52: 0 | T52: 0 | U52: 0 | V52: 0 | W52: 7 | X52: 0 | Y52: 153.5162602 | Z52: 0 | AA52: 120082.8 | AB52: 0 | AC52: 0 | AD52: 1 | AE52: 0 | AF52: 72925 | AG52: 0 | AH52: 0 | AJ52: 1999633.171 | AK52: 120082.8 | AL52: 0 | AM52: 0 | AN52: 68034 | AO52: 580 | AP52: 0 | AR52: 4 | AS52: 0.9 | AT52: 0 | AV52: 0 | AX52: 0 | AZ52: 0 | BA52: 0 | BB52: 0 | BC52: 0 | BD52: 0 | BE52: 0 | BF52: 7853
A53: 2192 | B53: Staplehurst School | C53: 1 | D53: 386 | E53: 0 | F53: 0 | G53: 49 | H53: 0 | I53: 66.58275058 | J53: 0 | K53: 0 | L53: 0 | M53: 1 | N53: 0 | O53: 2 | P53: 0 | Q53: 0 | R53: 0 | S53: 0 | T53: 0 | U53: 0 | V53: 0 | W53: 6.954954955 | X53: 0 | Y53: 96.20307692 | Z53: 0 | AA53: 120082.8 | AB53: 0 | AC53: 0 | AD53: 1 | AE53: 0 | AF53: 38966 | AG53: 0 | AH53: 0 | AJ53: 1430811.829 | AK53: 120082.8 | AL53: 0 | AM53: 0 | AN53: 36236 | AO53: 426 | AP53: 0 | AV53: 0 | AX53: 0 | AZ53: 0 | BA53: 0 | BB53: 0 | BC53: 0 | BD53: 0 | BE53: 0 | BF53: 5459
A54: 2193 | B54: Sutton Valence Primary School | C54: 1 | D54: 183 | E54: 0 | F54: 0 | G54: 16 | H54: 0 | I54: 34.11864407 | J54: 0 | K54: 2 | L54: 0 | M54: 3 | N54: 6 | O54: 3 | P54: 0 | Q54: 0 | R54: 0 | S54: 0 | T54: 0 | U54: 0 | V54: 0 | W54: 6.535714286 | X54: 0 | Y54: 44.57692308 | Z54: 0 | AA54: 120082.8 | AB54: 0 | AC54: 0 | AD54: 1 | AE54: 0 | AF54: 21439 | AG54: 0 | AH54: 0 | AJ54: 666320.8464 | AK54: 120082.8 | AL54: 0 | AM54: 0 | AN54: 17476 | AO54: 174 | AP54: 0 | AV54: 0 | AX54: 0 | AZ54: 0 | BA54: 0 | BB54: 0 | BC54: 0 | BD54: 0 | BE54: 0 | BF54: 2208
A55: 2226 | B55: Eastling Primary School | C55: 1 | D55: 90 | E55: 0 | F55: 0 | G55: 10 | H55: 0 | I55: 13.23529412 | J55: 0 | K55: 4 | L55: 4 | M55: 4 | N55: 3 | O55: 2 | P55: 0 | Q55: 0 | R55: 0 | S55: 0 | T55: 0 | U55: 0 | V55: 0 | W55: 1.139240506 | X55: 0 | Y55: 25.38461538 | Z55: 0 | AA55: 120082.8 | AB55: 19973.71896 | AC55: 0 | AD55: 1 | AE55: 0 | AF55: 12080 | AG55: 0 | AH55: 0 | AJ55: 463322.7166 | AK55: 120082.8 | AL55: 14963.58879 | AM55: 0 | AN55: 9183 | AO55: 105 | AP55: 0 | AV55: 0 | AX55: 0 | AZ55: 0 | BA55: 0 | BB55: 0 | BC55: 0 | BD55: 0 | BE55: 0 | BF55: 1332
A56: 2227 | B56: Ethelbert Road Primary School | C56: 1 | D56: 209 | E56: 0 | F56: 0 | G56: 6 | H56: 0 | I56: 17.91428571 | J56: 0 | K56: 11 | L56: 4 | M56: 7 | N56: 2 | O56: 2 | P56: 0 | Q56: 0 | R56: 0 | S56: 0 | T56: 0 | U56: 0 | V56: 0 | W56: 2.348314607 | X56: 0 | Y56: 54.87709497 | Z56: 0 | AA56: 120082.8 | AB56: 0 | AC56: 0 | AD56: 1 | AE56: 0 | AF56: 11293 | AG56: 0 | AH56: 0 | AJ56: 761922.9834 | AK56: 120082.8 | AL56: 0 | AM56: 0 | AN56: 11040 | AO56: 210 | AP56: 0 | AV56: 0 | AX56: 0 | AZ56: 0 | BA56: 0 | BB56: 0 | BC56: 0 | BD56: 0 | BE56: 0 | BF56: 2718
A57: 2228 | B57: Davington Primary School | C57: 1 | D57: 409 | E57: 0 | F57: 0 | G57: 48 | H57: 0 | I57: 74.72115385 | J57: 0 | K57: 36 | L57: 32 | M57: 28 | N57: 37 | O57: 108 | P57: 0 | Q57: 0 | R57: 0 | S57: 0 | T57: 0 | U57: 0 | V57: 0 | W57: 8.064788732 | X57: 0 | Y57: 126.5673352 | Z57: 0 | AA57: 120082.8 | AB57: 0 | AC57: 0 | AD57: 1 | AE57: 0 | AF57: 38808 | AG57: 0 | AH57: 0 | AJ57: 1509959.319 | AK57: 120082.8 | AL57: 0 | AM57: 0 | AN57: 35256 | AO57: 417 | AP57: 0 | AV57: 0 | AX57: 0 | AZ57: 0 | BA57: 0 | BB57: 0 | BC57: 0 | BD57: 0 | BE57: 0 | BF57: 5330
A58: 2231 | B58: Lower Halstow School | C58: 1 | D58: 149 | E58: 0 | F58: 0 | G58: 11 | H58: 0 | I58: 24.03225806 | J58: 0 | K58: 18 | L58: 2 | M58: 5 | N58: 2 | O58: 0 | P58: 0 | Q58: 0 | R58: 0 | S58: 0 | T58: 0 | U58: 0 | V58: 0 | W58: 1.095588235 | X58: 0 | Y58: 35.19685039 | Z58: 0 | AA58: 120082.8 | AB58: 0 | AC58: 0 | AD58: 1 | AE58: 0 | AF58: 20499 | AG58: 0 | AH58: 0 | AJ58: 614138.0727 | AK58: 120082.8 | AL58: 0 | AM58: 0 | AN58: 20040 | AO58: 156 | AP58: 0 | AV58: 0 | AX58: 0 | AZ58: 0 | BA58: 0 | BB58: 0 | BC58: 0 | BD58: 0 | BE58: 0 | BF58: 2050
A59: 2237 | B59: Queenborough School and Nursery | C59: 1 | D59: 431 | E59: 0 | F59: 0 | G59: 123 | H59: 0 | I59: 171.5731415 | J59: 0 | K59: 64 | L59: 11 | M59: 0 | N59: 24 | O59: 162 | P59: 124 | Q59: 0 | R59: 0 | S59: 0 | T59: 0 | U59: 0 | V59: 0 | W59: 6.951612903 | X59: 0 | Y59: 121.441989 | Z59: 0 | AA59: 120082.8 | AB59: 0 | AC59: 0 | AD59: 1 | AE59: 0 | AF59: 33516 | AG59: 0 | AH59: 0 | AJ59: 1618411.387 | AK59: 120082.8 | AL59: 0 | AM59: 0 | AN59: 29827 | AO59: 418 | AP59: 0 | AR59: 4 | AS59: 0.9 | AT59: 0.24 | AV59: 0 | AX59: 0 | AZ59: 0 | BA59: 0 | BB59: 0 | BC59: 0 | BD59: 0 | BE59: 0 | BF59: 6191
A60: 2239 | B60: Rodmersham School | C60: 1 | D60: 100 | E60: 0 | F60: 0 | G60: 0 | H60: 0 | I60: 4.04040404 | J60: 0 | K60: 4 | L60: 3 | M60: 8 | N60: 5 | O60: 0 | P60: 0 | Q60: 0 | R60: 0 | S60: 0 | T60: 0 | U60: 0 | V60: 0 | W60: 1.149425287 | X60: 0 | Y60: 11.9047619 | Z60: 0 | AA60: 120082.8 | AB60: 0 | AC60: 0 | AD60: 1 | AE60: 0 | AF60: 5769 | AG60: 0 | AH60: 6027 | AJ60: 407112.5181 | AK60: 120082.8 | AL60: 0 | AM60: 0 | AN60: 4936 | AO60: 99 | AP60: 0 | AV60: 0 | AX60: 0 | AZ60: 0 | BA60: 0 | BB60: 0 | BC60: 0 | BD60: 0 | BE60: 0 | BF60: 1269
A61: 2245 | B61: Rose Street School | C61: 1 | D61: 350 | E61: 0 | F61: 0 | G61: 130 | H61: 0 | I61: 168.3544304 | J61: 0 | K61: 7 | L61: 4 | M61: 3 | N61: 89 | O61: 149 | P61: 93 | Q61: 0 | R61: 0 | S61: 0 | T61: 0 | U61: 0 | V61: 0 | W61: 21.72413793 | X61: 0 | Y61: 104.6263345 | Z61: 0 | AA61: 120082.8 | AB61: 0 | AC61: 0 | AD61: 1 | AE61: 0 | AF61: 78624 | AG61: 0 | AH61: 0 | AJ61: 1378570.85 | AK61: 120082.8 | AL61: 0 | AM61: 0 | AN61: 30813 | AO61: 322 | AP61: 0 | AR61: 4 | AS61: 0.9 | AT61: 0.46 | AV61: 0 | AX61: 0 | AZ61: 0 | BA61: 0 | BB61: 0 | BC61: 0 | BD61: 0 | BE61: 0 | BF61: 4791
A62: 2254 | B62: Canterbury Road Primary School | C62: 1 | D62: 210 | E62: 0 | F62: 0 | G62: 26 | H62: 0 | I62: 49.76303318 | J62: 0 | K62: 29 | L62: 84 | M62: 10 | N62: 27 | O62: 25 | P62: 6 | Q62: 0 | R62: 0 | S62: 0 | T62: 0 | U62: 0 | V62: 0 | W62: 16.33333333 | X62: 0 | Y62: 88.29545455 | Z62: 0 | AA62: 120082.8 | AB62: 0 | AC62: 0 | AD62: 1 | AE62: 0 | AF62: 29484 | AG62: 0 | AH62: 0 | AJ62: 856808.7246 | AK62: 120082.8 | AL62: 0 | AM62: 0 | AN62: 28841 | AO62: 209 | AP62: 0 | AV62: 0 | AX62: 0 | AZ62: 0 | BA62: 0 | BB62: 0 | BC62: 0 | BD62: 0 | BE62: 0 | BF62: 2694
A63: 2258 | B63: Blean Primary School | C63: 1 | D63: 433 | E63: 0 | F63: 0 | G63: 19 | H63: 0 | I63: 31.85287356 | J63: 0 | K63: 9 | L63: 1 | M63: 34 | N63: 21 | O63: 8 | P63: 0 | Q63: 0 | R63: 0 | S63: 0 | T63: 0 | U63: 0 | V63: 0 | W63: 75.45576408 | X63: 0 | Y63: 78.06197183 | Z63: 0 | AA63: 120082.8 | AB63: 0 | AC63: 0 | AD63: 1 | AE63: 0 | AF63: 37044 | AG63: 0 | AH63: 0 | AJ63: 1480385.325 | AK63: 120082.8 | AL63: 0 | AM63: 0 | AN63: 34900 | AO63: 435 | AP63: 0 | AV63: 0 | AX63: 0 | AZ63: 0 | BA63: 0 | BB63: 0 | BC63: 0 | BD63: 0 | BE63: 0 | BF63: 5519
A64: 2259 | B64: Chartham Primary School | C64: 1 | D64: 346 | E64: 0 | F64: 0 | G64: 57 | H64: 0 | I64: 70.18857143 | J64: 0 | K64: 0 | L64: 0 | M64: 1 | N64: 6 | O64: 2 | P64: 0 | Q64: 0 | R64: 0 | S64: 0 | T64: 0 | U64: 0 | V64: 0 | W64: 12.81481481 | X64: 0 | Y64: 92.5915493 | Z64: 0 | AA64: 120082.8 | AB64: 0 | AC64: 0 | AD64: 1 | AE64: 0 | AF64: 28450 | AG64: 0 | AH64: 0 | AJ64: 1201193.079 | AK64: 120082.8 | AL64: 0 | AM64: 0 | AN64: 22503 | AO64: 350 | AP64: 0 | AV64: 0 | AX64: 0 | AZ64: 0 | BA64: 0 | BB64: 0 | BC64: 0 | BD64: 0 | BE64: 0 | BF64: 4569
A65: 2263 | B65: Herne Bay Infant School | C65: 1 | D65: 350 | E65: 0 | F65: 0 | G65: 59 | H65: 0 | I65: 59 | J65: 0 | K65: 57 | L65: 31 | M65: 98 | N65: 0 | O65: 1 | P65: 0 | Q65: 0 | R65: 0 | S65: 0 | T65: 0 | U65: 0 | V65: 0 | W65: 14.83050847 | X65: 0 | Y65: 105.2966102 | Z65: 0 | AA65: 120082.8 | AB65: 0 | AC65: 0 | AD65: 1 | AE65: 0 | AF65: 15712 | AG65: 0 | AH65: 0 | AJ65: 1257287.703 | AK65: 120082.8 | AL65: 0 | AM65: 0 | AN65: 15360 | AO65: 345 | AP65: 0 | AR65: 4 | AS65: 0.9 | AT65: 0 | AV65: 0 | AX65: 0 | AZ65: 0 | BA65: 0 | BB65: 0 | BC65: 0 | BD65: 0 | BE65: 0 | BF65: 5412
A66: 2265 | B66: Hoath Primary School | C66: 1 | D66: 88 | E66: 0 | F66: 0 | G66: 8 | H66: 0 | I66: 8.186046512 | J66: 0 | K66: 13 | L66: 21 | M66: 3 | N66: 0 | O66: 0 | P66: 0 | Q66: 0 | R66: 0 | S66: 0 | T66: 0 | U66: 0 | V66: 0 | W66: 1.205479452 | X66: 0 | Y66: 19.83098592 | Z66: 0 | AA66: 120082.8 | AB66: 0 | AC66: 0 | AD66: 1 | AE66: 0 | AF66: 14116 | AG66: 0 | AH66: 0 | AJ66: 398328.2057 | AK66: 120082.8 | AL66: 0 | AM66: 0 | AN66: 13800 | AO66: 86 | AP66: 0 | AV66: 0 | AX66: 0 | AZ66: 0 | BA66: 0 | BB66: 0 | BC66: 0 | BD66: 0 | BE66: 0 | BF66: 1269
A67: 2268 | B67: Westmeads Community Infant School | C67: 1 | D67: 177 | E67: 0 | F67: 0 | G67: 16 | H67: 0 | I67: 19.66666667 | J67: 0 | K67: 0 | L67: 0 | M67: 3 | N67: 0 | O67: 7 | P67: 0 | Q67: 0 | R67: 0 | S67: 0 | T67: 0 | U67: 0 | V67: 0 | W67: 7.564102564 | X67: 0 | Y67: 45.77586207 | Z67: 0 | AA67: 120082.8 | AB67: 0 | AC67: 0 | AD67: 1 | AE67: 0 | AF67: 19395 | AG67: 0 | AH67: 0 | AJ67: 676228.9838 | AK67: 120082.8 | AL67: 0 | AM67: 0 | AN67: 18960 | AO67: 179 | AP67: 0 | AV67: 0 | AX67: 0 | AZ67: 0 | BA67: 0 | BB67: 0 | BC67: 0 | BD67: 0 | BE67: 0 | BF67: 2542
A68: 2269 | B68: Whitstable Junior School | C68: 1 | D68: 276 | E68: 0 | F68: 0 | G68: 28 | H68: 0 | I68: 66.69144981 | J68: 0 | K68: 6.021818182 | L68: 0 | M68: 15.05454545 | N68: 1.003636364 | O68: 38.13818182 | P68: 0 | Q68: 0 | R68: 0 | S68: 0 | T68: 0 | U68: 0 | V68: 0 | W68: 3 | X68: 0 | Y68: 92 | Z68: 0 | AA68: 120082.8 | AB68: 0 | AC68: 0 | AD68: 1 | AE68: 0 | AF68: 18535 | AG68: 0 | AH68: 0 | AJ68: 982890.7517 | AK68: 120082.8 | AL68: 0 | AM68: 0 | AN68: 18120 | AO68: 268 | AP68: 0 | AV68: 0 | AX68: 0 | AZ68: 0 | BA68: 0 | BB68: 0 | BC68: 0 | BD68: 0 | BE68: 0 | BF68: 3400
A69: 2270 | B69: Aldington Primary School | C69: 1 | D69: 197 | E69: 0 | F69: 0 | G69: 4 | H69: 0 | I69: 18.43842365 | J69: 0 | K69: 6 | L69: 4 | M69: 6 | N69: 3 | O69: 2 | P69: 0 | Q69: 0 | R69: 0 | S69: 0 | T69: 0 | U69: 0 | V69: 0 | W69: 0 | X69: 0 | Y69: 42.5617284 | Z69: 0 | AA69: 120082.8 | AB69: 0 | AC69: 0 | AD69: 1 | AE69: 0 | AF69: 29484 | AG69: 0 | AH69: 0 | AJ69: 756078.6655 | AK69: 120082.8 | AL69: 0 | AM69: 0 | AN69: 28841 | AO69: 206 | AP69: 0 | AV69: 0 | AX69: 0 | AZ69: 0 | BA69: 0 | BB69: 0 | BC69: 0 | BD69: 0 | BE69: 0 | BF69: 2636
A70: 2272 | B70: East Stour Primary School | C70: 1 | D70: 415 | E70: 0 | F70: 0 | G70: 74 | H70: 0 | I70: 142 | J70: 0 | K70: 16 | L70: 79 | M70: 0 | N70: 97 | O70: 10 | P70: 0 | Q70: 0 | R70: 0 | S70: 0 | T70: 0 | U70: 0 | V70: 0 | W70: 38.25418994 | X70: 0 | Y70: 135.4341317 | Z70: 0 | AA70: 120082.8 | AB70: 0 | AC70: 0 | AD70: 1 | AE70: 0 | AF70: 52920 | AG70: 0 | AH70: 0 | AJ70: 1530564.119 | AK70: 120082.8 | AL70: 0 | AM70: 0 | AN70: 51765 | AO70: 408 | AP70: 0 | AR70: 4 | AS70: 0.9 | AT70: 0.16 | AV70: 0 | AX70: 0 | AZ70: 0 | BA70: 0 | BB70: 0 | BC70: 0 | BD70: 0 | BE70: 0 | BF70: 5659
A71: 2275 | B71: Victoria Road Primary School | C71: 1 | D71: 211 | E71: 0 | F71: 0 | G71: 27 | H71: 0 | I71: 52.75 | J71: 0 | K71: 111 | L71: 15 | M71: 0 | N71: 9 | O71: 7 | P71: 0 | Q71: 0 | R71: 0 | S71: 0 | T71: 0 | U71: 0 | V71: 0 | W71: 20.98342541 | X71: 0 | Y71: 56.34659091 | Z71: 0 | AA71: 120082.8 | AB71: 0 | AC71: 0 | AD71: 1 | AE71: 0 | AF71: 14853 | AG71: 0 | AH71: 0 | AJ71: 829783.9627 | AK71: 120082.8 | AL71: 0 | AM71: 0 | AN71: 14520 | AO71: 210 | AP71: 0 | AV71: 0 | AX71: 0 | AZ71: 0 | BA71: 0 | BB71: 0 | BC71: 0 | BD71: 0 | BE71: 0 | BF71: 2706
A72: 2276 | B72: Willesborough Infant School | C72: 1 | D72: 367 | E72: 0 | F72: 0 | G72: 32 | H72: 0 | I72: 51.74412533 | J72: 0 | K72: 1 | L72: 51 | M72: 0 | N72: 52 | O72: 2 | P72: 0 | Q72: 0 | R72: 0 | S72: 0 | T72: 0 | U72: 0 | V72: 0 | W72: 76.22307692 | X72: 0 | Y72: 77.71764706 | Z72: 0 | AA72: 120082.8 | AB72: 0 | AC72: 0 | AD72: 1 | AE72: 0 | AF72: 22709 | AG72: 0 | AH72: 0 | AJ72: 1361129.148 | AK72: 120082.8 | AL72: 0 | AM72: 0 | AN72: 20669 | AO72: 379 | AP72: 0 | AV72: 0 | AX72: 0 | AZ72: 0 | BA72: 0 | BB72: 0 | BC72: 0 | BD72: 0 | BE72: 0 | BF72: 5307
A73: 2278 | B73: Bethersden Primary School | C73: 1 | D73: 129 | E73: 0 | F73: 0 | G73: 22 | H73: 0 | I73: 23.36220472 | J73: 0 | K73: 3 | L73: 2 | M73: 1 | N73: 3 | O73: 7 | P73: 0 | Q73: 0 | R73: 0 | S73: 0 | T73: 0 | U73: 0 | V73: 0 | W73: 1.14159292 | X73: 0 | Y73: 38.7 | Z73: 0 | AA73: 120082.8 | AB73: 6947.380507 | AC73: 0 | AD73: 1 | AE73: 0 | AF73: 10802 | AG73: 0 | AH73: 0 | AJ73: 526062.2578 | AK73: 120082.8 | AL73: 8283.41522 | AM73: 0 | AN73: 10250 | AO73: 125 | AP73: 0 | AV73: 0 | AX73: 0 | AZ73: 0 | BA73: 0 | BB73: 0 | BC73: 0 | BD73: 0 | BE73: 0 | BF73: 1586
A74: 2279 | B74: Brook Community Primary School | C74: 1 | D74: 97 | E74: 0 | F74: 0 | G74: 11 | H74: 0 | I74: 19.4 | J74: 0 | K74: 1 | L74: 6 | M74: 0 | N74: 3 | O74: 6 | P74: 0 | Q74: 0 | R74: 0 | S74: 0 | T74: 0 | U74: 0 | V74: 0 | W74: 5.705882353 | X74: 0 | Y74: 20.15584416 | Z74: 0 | AA74: 120082.8 | AB74: 0 | AC74: 0 | AD74: 1 | AE74: 0 | AF74: 8470 | AG74: 0 | AH74: 0 | AJ74: 399759.928 | AK74: 120082.8 | AL74: 0 | AM74: 0 | AN74: 7605 | AO74: 88 | AP74: 0 | AV74: 0 | AX74: 0 | AZ74: 0 | BA74: 0 | BB74: 0 | BC74: 0 | BD74: 0 | BE74: 0 | BF74: 1269
A75: 2280 | B75: Challock Primary School | C75: 1 | D75: 212 | E75: 0 | F75: 0 | G75: 5 | H75: 0 | I75: 11.0521327 | J75: 0 | K75: 0 | L75: 11 | M75: 0 | N75: 0 | O75: 0 | P75: 0 | Q75: 0 | R75: 0 | S75: 0 | T75: 0 | U75: 0 | V75: 0 | W75: 3.494505495 | X75: 0 | Y75: 53.29608939 | Z75: 0 | AA75: 120082.8 | AB75: 0 | AC75: 0 | AD75: 1 | AE75: 0 | AF75: 19395 | AG75: 0 | AH75: 0 | AJ75: 757268.7021 | AK75: 120082.8 | AL75: 0 | AM75: 0 | AN75: 18960 | AO75: 211 | AP75: 0 | AV75: 0 | AX75: 0 | AZ75: 0 | BA75: 0 | BB75: 0 | BC75: 0 | BD75: 0 | BE75: 0 | BF75: 2706
A76: 2282 | B76: Great Chart Primary School | C76: 1 | D76: 483 | E76: 0 | F76: 0 | G76: 47 | H76: 0 | I76: 76.31600832 | J76: 0 | K76: 33 | L76: 22 | M76: 2 | N76: 11 | O76: 20 | P76: 0 | Q76: 0 | R76: 0 | S76: 0 | T76: 0 | U76: 0 | V76: 0 | W76: 35.39716312 | X76: 0 | Y76: 85.30310263 | Z76: 0 | AA76: 120082.8 | AB76: 0 | AC76: 0 | AD76: 1 | AE76: 0 | AF76: 38052 | AG76: 0 | AH76: 0 | AJ76: 1614775.303 | AK76: 120082.8 | AL76: 0 | AM76: 0 | AN76: 37222 | AO76: 483 | AP76: 0 | AV76: 0 | AX76: 0 | AZ76: 0 | BA76: 0 | BB76: 0 | BC76: 0 | BD76: 0 | BE76: 0 | BF76: 6128
A77: 2285 | B77: Mersham Primary School | C77: 1 | D77: 196 | E77: 0 | F77: 0 | G77: 8 | H77: 0 | I77: 21.24137931 | J77: 0 | K77: 1 | L77: 13 | M77: 0 | N77: 13 | O77: 6 | P77: 0 | Q77: 0 | R77: 0 | S77: 0 | T77: 0 | U77: 0 | V77: 0 | W77: 2.279069767 | X77: 0 | Y77: 38.96385542 | Z77: 0 | AA77: 120082.8 | AB77: 0 | AC77: 0 | AD77: 1 | AE77: 0 | AF77: 7105 | AG77: 0 | AH77: 0 | AJ77: 713366.8216 | AK77: 120082.8 | AL77: 0 | AM77: 0 | AN77: 6314 | AO77: 199 | AP77: 0 | AV77: 0 | AX77: 0 | AZ77: 0 | BA77: 0 | BB77: 0 | BC77: 0 | BD77: 0 | BE77: 0 | BF77: 2525
A78: 2287 | B78: Rolvenden Primary School | C78: 1 | D78: 104 | E78: 0 | F78: 0 | G78: 8 | H78: 0 | I78: 22.43137255 | J78: 0 | K78: 51.49514563 | L78: 1.009708738 | M78: 0 | N78: 0 | O78: 0 | P78: 0 | Q78: 0 | R78: 0 | S78: 0 | T78: 0 | U78: 0 | V78: 0 | W78: 3.428571429 | X78: 0 | Y78: 34.66666667 | Z78: 0 | AA78: 120082.8 | AB78: 15297.59746 | AC78: 0 | AD78: 1 | AE78: 0 | AF78: 11552 | AG78: 0 | AH78: 0 | AJ78: 478889.5931 | AK78: 120082.8 | AL78: 14629.58011 | AM78: 0 | AN78: 9410 | AO78: 106 | AP78: 0 | AV78: 0 | AX78: 0 | AZ78: 0 | BA78: 0 | BB78: 0 | BC78: 0 | BD78: 0 | BE78: 0 | BF78: 1371
A79: 2289 | B79: Smeeth Community Primary School | C79: 1 | D79: 132 | E79: 0 | F79: 0 | G79: 3 | H79: 0 | I79: 14.14285714 | J79: 0 | K79: 4 | L79: 4 | M79: 1 | N79: 4 | O79: 0 | P79: 0 | Q79: 0 | R79: 0 | S79: 0 | T79: 0 | U79: 0 | V79: 0 | W79: 0 | X79: 0 | Y79: 36.53571429 | Z79: 0 | AA79: 120082.8 | AB79: 0 | AC79: 0 | AD79: 1 | AE79: 0 | AF79: 14607 | AG79: 0 | AH79: 0 | AJ79: 542164.6219 | AK79: 120082.8 | AL79: 0 | AM79: 0 | AN79: 13611 | AO79: 138 | AP79: 0 | AV79: 0 | AX79: 0 | AZ79: 0 | BA79: 0 | BB79: 0 | BC79: 0 | BD79: 0 | BE79: 0 | BF79: 1751
A80: 2296 | B80: Mundella Primary School | C80: 1 | D80: 207 | E80: 0 | F80: 0 | G80: 69 | H80: 0 | I80: 96.52849741 | J80: 0 | K80: 10.14705882 | L80: 10.14705882 | M80: 37.54411765 | N80: 27.39705882 | O80: 64.94117647 | P80: 49.72058824 | Q80: 0 | R80: 0 | S80: 0 | T80: 0 | U80: 0 | V80: 0 | W80: 19.88135593 | X80: 0 | Y80: 80.5 | Z80: 0 | AA80: 120082.8 | AB80: 0 | AC80: 0 | AD80: 1 | AE80: 0 | AF80: 16744 | AG80: 0 | AH80: 0 | AJ80: 853050.1294 | AK80: 120082.8 | AL80: 0 | AM80: 0 | AN80: 13228 | AO80: 194 | AP80: 0 | AV80: 0 | AX80: 0 | AZ80: 0 | BA80: 0 | BB80: 0 | BC80: 0 | BD80: 0 | BE80: 0 | BF80: 2472
A81: 2298 | B81: Hawkinge Primary School | C81: 1 | D81: 382 | E81: 0 | F81: 0 | G81: 46 | H81: 0 | I81: 74.33513514 | J81: 0 | K81: 134.351706 | L81: 6.015748031 | M81: 2.005249344 | N81: 2.005249344 | O81: 15.03937008 | P81: 4.010498688 | Q81: 0 | R81: 0 | S81: 0 | T81: 0 | U81: 0 | V81: 0 | W81: 12.85015291 | X81: 0 | Y81: 120.56875 | Z81: 0 | AA81: 120082.8 | AB81: 0 | AC81: 0 | AD81: 1 | AE81: 0 | AF81: 8114 | AG81: 0 | AH81: 0 | AJ81: 1305614.174 | AK81: 120082.8 | AL81: 0 | AM81: 0 | AN81: 7740 | AO81: 371 | AP81: 0 | AV81: 0 | AX81: 0 | AZ81: 0 | BA81: 0 | BB81: 0 | BC81: 0 | BD81: 0 | BE81: 0 | BF81: 4706
A82: 2300 | B82: Sellindge Primary School | C82: 1 | D82: 103 | E82: 0 | F82: 0 | G82: 3 | H82: 0 | I82: 11.44444444 | J82: 0 | K82: 1 | L82: 0 | M82: 0 | N82: 0 | O82: 0 | P82: 0 | Q82: 0 | R82: 0 | S82: 0 | T82: 0 | U82: 0 | V82: 0 | W82: 0 | X82: 0 | Y82: 27.7752809 | Z82: 0 | AA82: 120082.8 | AB82: 0 | AC82: 0 | AD82: 1 | AE82: 0 | AF82: 16940 | AG82: 0 | AH82: 0 | AJ82: 462916.036 | AK82: 120082.8 | AL82: 0 | AM82: 0 | AN82: 16560 | AO82: 111 | AP82: 0 | AV82: 0 | AX82: 0 | AZ82: 0 | BA82: 0 | BB82: 0 | BC82: 0 | BD82: 0 | BE82: 0 | BF82: 1409
A83: 2312 | B83: River Primary School | C83: 1 | D83: 426 | E83: 0 | F83: 0 | G83: 37 | H83: 0 | I83: 46.78037383 | J83: 0 | K83: 32.07529412 | L83: 51.12 | M83: 56.13176471 | N83: 16.03764706 | O83: 40.09411765 | P83: 0 | Q83: 0 | R83: 0 | S83: 0 | T83: 0 | U83: 0 | V83: 0 | W83: 6.983606557 | X83: 0 | Y83: 105.6198347 | Z83: 0 | AA83: 120082.8 | AB83: 0 | AC83: 0 | AD83: 1 | AE83: 0 | AF83: 40320 | AG83: 0 | AH83: 0 | AJ83: 1481678.081 | AK83: 120082.8 | AL83: 0 | AM83: 0 | AN83: 39440 | AO83: 428 | AP83: 0 | AV83: 262.7579814 | AX83: 262.7579814 | AZ83: 12 | BA83: 0 | BB83: 12 | BC83: 0 | BD83: 9 | BE83: 0 | BF83: 5459
A84: 2318 | B84: Langdon Primary School | C84: 1 | D84: 84 | E84: 0 | F84: 0 | G84: 10 | H84: 0 | I84: 10 | J84: 0 | K84: 10 | L84: 3 | M84: 7 | N84: 4 | O84: 4 | P84: 0 | Q84: 0 | R84: 0 | S84: 0 | T84: 0 | U84: 0 | V84: 0 | W84: 6.086956522 | X84: 0 | Y84: 20.36363636 | Z84: 0 | AA84: 120082.8 | AB84: 0 | AC84: 0 | AD84: 1 | AE84: 0 | AF84: 4910 | AG84: 0 | AH84: 0 | AJ84: 374758.053 | AK84: 120082.8 | AL84: 0 | AM84: 0 | AN84: 4419 | AO84: 82 | AP84: 0 | AV84: 0 | AX84: 0 | AZ84: 0 | BA84: 0 | BB84: 0 | BC84: 0 | BD84: 0 | BE84: 0 | BF84: 1269
A85: 2320 | B85: Eythorne Elvington Community Primary School | C85: 1 | D85: 111 | E85: 0 | F85: 0 | G85: 46 | H85: 0 | I85: 62.97115385 | J85: 0 | K85: 4 | L85: 63 | M85: 1 | N85: 0 | O85: 2 | P85: 0 | Q85: 0 | R85: 0 | S85: 0 | T85: 0 | U85: 0 | V85: 0 | W85: 3.659340659 | X85: 0 | Y85: 35.31818182 | Z85: 0 | AA85: 120082.8 | AB85: 0 | AC85: 0 | AD85: 1 | AE85: 0 | AF85: 17062 | AG85: 0 | AH85: 0 | AJ85: 494751.6605 | AK85: 120082.8 | AL85: 0 | AM85: 0 | AN85: 15124 | AO85: 103 | AP85: 0 | AV85: 0 | AX85: 0 | AZ85: 0 | BA85: 0 | BB85: 0 | BC85: 0 | BD85: 0 | BE85: 0 | BF85: 1307
A86: 2321 | B86: Lydden Primary School | C86: 1 | D86: 86 | E86: 0 | F86: 0 | G86: 11 | H86: 0 | I86: 17.76086957 | J86: 0 | K86: 7.082352941 | L86: 12.14117647 | M86: 5.058823529 | N86: 4.047058824 | O86: 0 | P86: 0 | Q86: 0 | R86: 0 | S86: 0 | T86: 0 | U86: 0 | V86: 0 | W86: 0 | X86: 0 | Y86: 4.712328767 | Z86: 0 | AA86: 120082.8 | AB86: 0 | AC86: 0 | AD86: 1 | AE86: 0 | AF86: 5167 | AG86: 0 | AH86: 0 | AJ86: 392724.1409 | AK86: 120082.8 | AL86: 0 | AM86: 0 | AN86: 4592 | AO86: 90 | AP86: 0 | AV86: 0 | AX86: 0 | AZ86: 0 | BA86: 0 | BB86: 0 | BC86: 0 | BD86: 0 | BE86: 0 | BF86: 1269
A87: 2322 | B87: Preston Primary School | C87: 1 | D87: 126 | E87: 0 | F87: 0 | G87: 6 | H87: 0 | I87: 19.152 | J87: 0 | K87: 10.08 | L87: 11.088 | M87: 1.008 | N87: 0 | O87: 0 | P87: 0 | Q87: 0 | R87: 0 | S87: 0 | T87: 0 | U87: 0 | V87: 0 | W87: 1.166666667 | X87: 0 | Y87: 27.33962264 | Z87: 0 | AA87: 120082.8 | AB87: 7949.406542 | AC87: 0 | AD87: 1 | AE87: 0 | AF87: 10314 | AG87: 0 | AH87: 0 | AJ87: 502365.5781 | AK87: 120082.8 | AL87: 9619.449933 | AM87: 0 | AN87: 8402 | AO87: 121 | AP87: 0 | AV87: 0 | AX87: 0 | AZ87: 0 | BA87: 0 | BB87: 0 | BC87: 0 | BD87: 0 | BE87: 0 | BF87: 1535
A88: 2326 | B88: Wingham Primary School | C88: 1 | D88: 211 | E88: 0 | F88: 0 | G88: 17 | H88: 0 | I88: 27.92647059 | J88: 0 | K88: 12 | L88: 1 | M88: 0 | N88: 0 | O88: 0 | P88: 0 | Q88: 0 | R88: 0 | S88: 0 | T88: 0 | U88: 0 | V88: 0 | W88: 2.318681319 | X88: 0 | Y88: 56.02824859 | Z88: 0 | AA88: 120082.8 | AB88: 0 | AC88: 0 | AD88: 1 | AE88: 0 | AF88: 30744 | AG88: 0 | AH88: 0 | AJ88: 742642.5866 | AK88: 120082.8 | AL88: 0 | AM88: 0 | AN88: 30073 | AO88: 198 | AP88: 0 | AV88: 0 | AX88: 0 | AZ88: 0 | BA88: 0 | BB88: 0 | BC88: 0 | BD88: 0 | BE88: 0 | BF88: 2554
A89: 2327 | B89: Worth Primary School | C89: 1 | D89: 62 | E89: 0 | F89: 0 | G89: 10 | H89: 0 | I89: 13.47826087 | J89: 0 | K89: 10 | L89: 5 | M89: 0 | N89: 0 | O89: 3 | P89: 0 | Q89: 0 | R89: 0 | S89: 0 | T89: 0 | U89: 0 | V89: 0 | W89: 3.381818182 | X89: 0 | Y89: 13.11538462 | Z89: 0 | AA89: 120082.8 | AB89: 0 | AC89: 0 | AD89: 1 | AE89: 0 | AF89: 3100 | AG89: 0 | AH89: 0 | AJ89: 328657.2307 | AK89: 120082.8 | AL89: 0 | AM89: 0 | AN89: 2755 | AO89: 66 | AP89: 0 | AV89: 0 | AX89: 0 | AZ89: 0 | BA89: 0 | BB89: 0 | BC89: 0 | BD89: 0 | BE89: 0 | BF89: 1269
A90: 2328 | B90: St Mildred's Primary Infant School | C90: 1 | D90: 270 | E90: 0 | F90: 0 | G90: 28 | H90: 0 | I90: 28 | J90: 0 | K90: 42 | L90: 7 | M90: 1 | N90: 3 | O90: 6 | P90: 2 | Q90: 0 | R90: 0 | S90: 0 | T90: 0 | U90: 0 | V90: 0 | W90: 18 | X90: 0 | Y90: 73.5 | Z90: 0 | AA90: 120082.8 | AB90: 0 | AC90: 0 | AD90: 1 | AE90: 0 | AF90: 24550 | AG90: 0 | AH90: 0 | AJ90: 979746.31 | AK90: 120082.8 | AL90: 0 | AM90: 0 | AN90: 22181 | AO90: 270 | AP90: 0 | AV90: 0 | AX90: 0 | AZ90: 0 | BA90: 0 | BB90: 0 | BC90: 0 | BD90: 0 | BE90: 0 | BF90: 3843
A91: 2329 | B91: Callis Grange Nursery & Infant School | C91: 1 | D91: 270 | E91: 0 | F91: 0 | G91: 35 | H91: 0 | I91: 36.40449438 | J91: 0 | K91: 38 | L91: 102 | M91: 7 | N91: 8 | O91: 5 | P91: 6 | Q91: 0 | R91: 0 | S91: 0 | T91: 0 | U91: 0 | V91: 0 | W91: 13.5 | X91: 0 | Y91: 53.08988764 | Z91: 0 | AA91: 120082.8 | AB91: 0 | AC91: 0 | AD91: 1 | AE91: 0 | AF91: 42840 | AG91: 0 | AH91: 0 | AJ91: 1007092.793 | AK91: 120082.8 | AL91: 0 | AM91: 0 | AN91: 41905 | AO91: 267 | AP91: 0 | AR91: 4 | AS91: 0.9 | AT91: 0.07 | AV91: 0 | AX91: 0 | AZ91: 0 | BA91: 0 | BB91: 0 | BC91: 0 | BD91: 0 | BE91: 0 | BF91: 4124
A92: 2337 | B92: St Crispin's Community Primary Infant School | C92: 1 | D92: 269 | E92: 0 | F92: 0 | G92: 23 | H92: 0 | I92: 24.17977528 | J92: 0 | K92: 3 | L92: 63 | M92: 8 | N92: 1 | O92: 3 | P92: 1 | Q92: 0 | R92: 0 | S92: 0 | T92: 0 | U92: 0 | V92: 0 | W92: 7.51396648 | X92: 0 | Y92: 43.8258427 | Z92: 0 | AA92: 120082.8 | AB92: 0 | AC92: 0 | AD92: 1 | AE92: 0 | AF92: 19763 | AG92: 0 | AH92: 0 | AJ92: 970964.7652 | AK92: 120082.8 | AL92: 0 | AM92: 0 | AN92: 19320 | AO92: 268 | AP92: 0 | AV92: 0 | AX92: 0 | AZ92: 0 | BA92: 0 | BB92: 0 | BC92: 0 | BD92: 0 | BE92: 0 | BF92: 3714
A93: 2340 | B93: Ellington Infant School | C93: 1 | D93: 175 | E93: 0 | F93: 0 | G93: 52 | H93: 0 | I93: 57.4754902 | J93: 0 | K93: 60 | L93: 2 | M93: 7 | N93: 34 | O93: 33 | P93: 3 | Q93: 0 | R93: 0 | S93: 0 | T93: 0 | U93: 0 | V93: 0 | W93: 11.93181818 | X93: 0 | Y93: 57.421875 | Z93: 0 | AA93: 120082.8 | AB93: 0 | AC93: 0 | AD93: 1 | AE93: 0 | AF93: 26460 | AG93: 0 | AH93: 0 | AJ93: 838346.5824 | AK93: 120082.8 | AL93: 0 | AM93: 0 | AN93: 25883 | AO93: 203 | AP93: 0 | AV93: 0 | AX93: 0 | AZ93: 0 | BA93: 0 | BB93: 0 | BC93: 0 | BD93: 0 | BE93: 0 | BF93: 2835
A94: 2345 | B94: Priory Infant School | C94: 1 | D94: 177 | E94: 0 | F94: 0 | G94: 30 | H94: 0 | I94: 42.75842697 | J94: 0 | K94: 96 | L94: 1 | M94: 4 | N94: 33 | O94: 26 | P94: 1 | Q94: 0 | R94: 0 | S94: 0 | T94: 0 | U94: 0 | V94: 0 | W94: 13.61538462 | X94: 0 | Y94: 54.46153846 | Z94: 0 | AA94: 120082.8 | AB94: 0 | AC94: 0 | AD94: 1 | AE94: 0 | AF94: 30492 | AG94: 0 | AH94: 0 | AJ94: 756093.8433 | AK94: 120082.8 | AL94: 0 | AM94: 0 | AN94: 29827 | AO94: 179 | AP94: 0 | AV94: 0 | AX94: 0 | AZ94: 0 | BA94: 0 | BB94: 0 | BC94: 0 | BD94: 0 | BE94: 0 | BF94: 2577
A95: 2431 | B95: Shears Green Junior School | C95: 1 | D95: 479 | E95: 0 | F95: 0 | G95: 61 | H95: 0 | I95: 103.2154812 | J95: 0 | K95: 103 | L95: 93 | M95: 7 | N95: 5 | O95: 14 | P95: 2 | Q95: 0 | R95: 0 | S95: 0 | T95: 0 | U95: 0 | V95: 0 | W95: 17 | X95: 0 | Y95: 143.3882863 | Z95: 0 | AA95: 120082.8 | AB95: 0 | AC95: 0 | AD95: 1 | AE95: 0 | AF95: 21420 | AG95: 0 | AH95: 0 | AJ95: 1657042.242 | AK95: 120082.8 | AL95: 0 | AM95: 0 | AN95: 20953 | AO95: 479 | AP95: 0 | AV95: 0 | AX95: 0 | AZ95: 0 | BA95: 0 | BB95: 0 | BC95: 0 | BD95: 0 | BE95: 0 | BF95: 6077
A96: 2434 | B96: West Minster Primary School | C96: 1 | D96: 454 | E96: 0 | F96: 0 | G96: 172 | H96: 0 | I96: 221.4387528 | J96: 0 | K96: 6 | L96: 4 | M96: 1 | N96: 177 | O96: 97 | P96: 146 | Q96: 0 | R96: 0 | S96: 0 | T96: 0 | U96: 0 | V96: 0 | W96: 10.53092784 | X96: 0 | Y96: 112.3052632 | Z96: 0 | AA96: 120082.8 | AB96: 0 | AC96: 0 | AD96: 1 | AE96: 0 | AF96: 79128 | AG96: 0 | AH96: 0 | AJ96: 1767235.037 | AK96: 120082.8 | AL96: 0 | AM96: 0 | AN96: 51765 | AO96: 441 | AP96: 0 | AR96: 4 | AS96: 0.9 | AT96: 0.64 | AV96: 257.4549511 | AX96: 257.4549511 | AZ96: 12 | BA96: 0 | BB96: 15 | BC96: 0 | BD96: 15 | BE96: 0 | BF96: 6279
A97: 2454 | B97: Aycliffe Community Primary School | C97: 1 | D97: 116 | E97: 0 | F97: 0 | G97: 38 | H97: 0 | I97: 54.69918699 | J97: 0 | K97: 5.087719298 | L97: 3.052631579 | M97: 6.105263158 | N97: 92.59649123 | O97: 6.105263158 | P97: 0 | Q97: 0 | R97: 0 | S97: 0 | T97: 0 | U97: 0 | V97: 0 | W97: 8.838095238 | X97: 0 | Y97: 44.08 | Z97: 0 | AA97: 120082.8 | AB97: 0 | AC97: 0 | AD97: 1 | AE97: 0 | AF97: 22463 | AG97: 0 | AH97: 0 | AJ97: 603400.7303 | AK97: 120082.8 | AL97: 0 | AM97: 0 | AN97: 21960 | AO97: 127 | AP97: 0 | AV97: 0 | AX97: 0 | AZ97: 0 | BA97: 0 | BB97: 0 | BC97: 0 | BD97: 0 | BE97: 0 | BF97: 1611
A98: 2459 | B98: Riverhead Infant School | C98: 1 | D98: 269 | E98: 0 | F98: 0 | G98: 5 | H98: 0 | I98: 7.052434457 | J98: 0 | K98: 1.003731343 | L98: 0 | M98: 0 | N98: 0 | O98: 0 | P98: 0 | Q98: 0 | R98: 0 | S98: 0 | T98: 0 | U98: 0 | V98: 0 | W98: 28.39444444 | X98: 0 | Y98: 33.24719101 | Z98: 0 | AA98: 120082.8 | AB98: 0 | AC98: 0 | AD98: 1.0364 | AE98: 0 | AF98: 38304 | AG98: 0 | AH98: 0 | AJ98: 956727.6653 | AK98: 124453.8139 | AL98: 0 | AM98: 0 | AN98: 37468 | AO98: 265 | AP98: 0 | AV98: 0 | AX98: 0 | AZ98: 0 | BA98: 0 | BB98: 0 | BC98: 0 | BD98: 0 | BE98: 0 | BF98: 3887
A99: 2465 | B99: Claremont Primary School | C99: 1 | D99: 465 | E99: 0 | F99: 0 | G99: 8 | H99: 0 | I99: 18.6746988 | J99: 0 | K99: 3 | L99: 0 | M99: 0 | N99: 0 | O99: 0 | P99: 0 | Q99: 0 | R99: 0 | S99: 0 | T99: 0 | U99: 0 | V99: 0 | W99: 36.65024631 | X99: 0 | Y99: 86.81585678 | Z99: 0 | AA99: 120082.8 | AB99: 0 | AC99: 0 | AD99: 1 | AE99: 0 | AF99: 38052 | AG99: 0 | AH99: 0 | AJ99: 1632734 | AK99: 120082.8 | AL99: 0 | AM99: 0 | AN99: 35934 | AO99: 499 | AP99: 0 | AV99: 0 | AX99: 0 | AZ99: 0 | BA99: 0 | BB99: 0 | BC99: 0 | BD99: 0 | BE99: 0 | BF99: 6331
A100: 2471 | B100: Whitfield Aspen School | C100: 1 | D100: 484 | E100: 0 | F100: 0 | G100: 104 | H100: 0 | I100: 132.1848739 | J100: 0 | K100: 145.300207 | L100: 55.11387164 | M100: 32.06625259 | N100: 8.016563147 | O100: 42.08695652 | P100: 0 | Q100: 0 | R100: 0 | S100: 0 | T100: 0 | U100: 0 | V100: 0 | W100: 10.37142857 | X100: 0 | Y100: 211.6038647 | Z100: 0 | AA100: 120082.8 | AB100: 0 | AC100: 0 | AD100: 1 | AE100: 0 | AF100: 64008 | AG100: 0 | AH100: 0 | AJ100: 1751478.277 | AK100: 120082.8 | AL100: 0 | AM100: 0 | AN100: 62611 | AO100: 474 | AP100: 0 | AV100: 1322.565694 | AX100: 1322.565694 | AZ100: 103 | BA100: 0 | BB100: 112 | BC100: 0 | BD100: 104 | BE100: 0 | BF100: 6091
A101: 2474 | B101: St Paul's Infant School | C101: 1 | D101: 262 | E101: 0 | F101: 0 | G101: 47 | H101: 0 | I101: 49.67286245 | J101: 0 | K101: 83 | L101: 0 | M101: 1 | N101: 3 | O101: 0 | P101: 0 | Q101: 0 | R101: 0 | S101: 0 | T101: 0 | U101: 0 | V101: 0 | W101: 88.34883721 | X101: 0 | Y101: 97.45121951 | Z101: 0 | AA101: 120082.8 | AB101: 0 | AC101: 0 | AD101: 1 | AE101: 0 | AF101: 12970 | AG101: 0 | AH101: 0 | AJ101: 1059525.249 | AK101: 120082.8 | AL101: 0 | AM101: 0 | AN101: 10800 | AO101: 270 | AP101: 0 | AV101: 0 | AX101: 0 | AZ101: 0 | BA101: 0 | BB101: 0 | BC101: 0 | BD101: 0 | BE101: 0 | BF101: 3889
A102: 2482 | B102: Langton Green Primary School | C102: 1 | D102: 389 | E102: 0 | F102: 0 | G102: 12 | H102: 0 | I102: 14.88520408 | J102: 0 | K102: 19 | L102: 1 | M102: 1 | N102: 4 | O102: 0 | P102: 0 | Q102: 0 | R102: 0 | S102: 0 | T102: 0 | U102: 0 | V102: 0 | W102: 4.743902439 | X102: 0 | Y102: 68.28840125 | Z102: 0 | AA102: 120082.8 | AB102: 0 | AC102: 0 | AD102: 1 | AE102: 0 | AF102: 38556 | AG102: 0 | AH102: 0 | AJ102: 1288915 | AK102: 120082.8 | AL102: 0 | AM102: 0 | AN102: 37715 | AO102: 391 | AP102: 0 | AV102: 0 | AX102: 0 | AZ102: 0 | BA102: 0 | BB102: 0 | BC102: 0 | BD102: 0 | BE102: 0 | BF102: 5073
A103: 2490 | B103: Bishops Down Primary School | C103: 1 | D103: 267 | E103: 0 | F103: 0 | G103: 17 | H103: 0 | I103: 21.7220339 | J103: 0 | K103: 45.16917293 | L103: 3.011278195 | M103: 3.011278195 | N103: 5.018796992 | O103: 0 | P103: 0 | Q103: 0 | R103: 0 | S103: 0 | T103: 0 | U103: 0 | V103: 0 | W103: 15.83898305 | X103: 0 | Y103: 69.17727273 | Z103: 0 | AA103: 120082.8 | AB103: 0 | AC103: 0 | AD103: 1 | AE103: 0 | AF103: 30744 | AG103: 0 | AH103: 0 | AJ103: 1040070.19 | AK103: 120082.8 | AL103: 0 | AM103: 0 | AN103: 29696 | AO103: 298 | AP103: 0 | AR103: 4 | AS103: 0.9 | AT103: 0 | AV103: 868.2192604 | AX103: 868.2192604 | AZ103: 7 | BA103: 0 | BB103: 7 | BC103: 0 | BD103: 6 | BE103: 0 | BF103: 4212
A104: 2509 | B104: Singlewell Primary School | C104: 1 | D104: 294 | E104: 0 | F104: 0 | G104: 34 | H104: 0 | I104: 47.31034483 | J104: 0 | K104: 84 | L104: 19 | M104: 6 | N104: 2 | O104: 26 | P104: 0 | Q104: 0 | R104: 0 | S104: 0 | T104: 0 | U104: 0 | V104: 0 | W104: 31.41025641 | X104: 0 | Y104: 77.63636364 | Z104: 0 | AA104: 120082.8 | AB104: 0 | AC104: 0 | AD104: 1 | AE104: 0 | AF104: 50904 | AG104: 0 | AH104: 0 | AJ104: 980995.5413 | AK104: 120082.8 | AL104: 0 | AM104: 0 | AN104: 49793 | AO104: 257 | AP104: 0 | AV104: 0 | AX104: 0 | AZ104: 0 | BA104: 0 | BB104: 0 | BC104: 0 | BD104: 0 | BE104: 0 | BF104: 3433
A105: 2510 | B105: Cheriton Primary School | C105: 1 | D105: 452 | E105: 0 | F105: 0 | G105: 81 | H105: 0 | I105: 109.2416851 | J105: 0 | K105: 64.28444444 | L105: 32.14222222 | M105: 13.05777778 | N105: 19.08444444 | O105: 3.013333333 | P105: 7.031111111 | Q105: 0 | R105: 0 | S105: 0 | T105: 0 | U105: 0 | V105: 0 | W105: 78.75757576 | X105: 0 | Y105: 145.1955307 | Z105: 0 | AA105: 120082.8 | AB105: 0 | AC105: 0 | AD105: 1 | AE105: 0 | AF105: 6197 | AG105: 0 | AH105: 0 | AJ105: 1599544.41 | AK105: 120082.8 | AL105: 0 | AM105: 0 | AN105: 4864 | AO105: 453 | AP105: 0 | AV105: 0 | AX105: 0 | AZ105: 0 | BA105: 0 | BB105: 0 | BC105: 0 | BD105: 0 | BE105: 0 | BF105: 5822
A106: 2514 | B106: Brookfield Infant School | C106: 1 | D106: 177 | E106: 0 | F106: 0 | G106: 34 | H106: 0 | I106: 39 | J106: 0 | K106: 0 | L106: 18 | M106: 1 | N106: 0 | O106: 18 | P106: 0 | Q106: 0 | R106: 0 | S106: 0 | T106: 0 | U106: 0 | V106: 0 | W106: 11.8 | X106: 0 | Y106: 43.13445378 | Z106: 0 | AA106: 120082.8 | AB106: 0 | AC106: 0 | AD106: 1 | AE106: 0 | AF106: 23177 | AG106: 0 | AH106: 0 | AJ106: 689773.2633 | AK106: 120082.8 | AL106: 0 | AM106: 0 | AN106: 16132 | AO106: 178 | AP106: 0 | AV106: 0 | AX106: 0 | AZ106: 0 | BA106: 0 | BB106: 0 | BC106: 0 | BD106: 0 | BE106: 0 | BF106: 2507
A107: 2519 | B107: Vigo Village School | C107: 1 | D107: 188 | E107: 0 | F107: 0 | G107: 13 | H107: 0 | I107: 22.52083333 | J107: 0 | K107: 9 | L107: 4 | M107: 0 | N107: 0 | O107: 1 | P107: 0 | Q107: 0 | R107: 0 | S107: 0 | T107: 0 | U107: 0 | V107: 0 | W107: 3.43902439 | X107: 0 | Y107: 55.29411765 | Z107: 0 | AA107: 120082.8 | AB107: 0 | AC107: 0 | AD107: 1 | AE107: 0 | AF107: 21727 | AG107: 0 | AH107: 0 | AJ107: 726781.8957 | AK107: 120082.8 | AL107: 0 | AM107: 0 | AN107: 18148 | AO107: 195 | AP107: 0 | AV107: 0 | AX107: 0 | AZ107: 0 | BA107: 0 | BB107: 0 | BC107: 0 | BD107: 0 | BE107: 0 | BF107: 2474
A108: 2520 | B108: Madginford Primary School | C108: 1 | D108: 642 | E108: 0 | F108: 0 | G108: 17 | H108: 0 | I108: 41 | J108: 0 | K108: 80 | L108: 12 | M108: 16 | N108: 32 | O108: 12 | P108: 0 | Q108: 0 | R108: 0 | S108: 0 | T108: 0 | U108: 0 | V108: 0 | W108: 38.38043478 | X108: 0 | Y108: 128.8686131 | Z108: 0 | AA108: 120082.8 | AB108: 0 | AC108: 0 | AD108: 1 | AE108: 0 | AF108: 59882 | AG108: 0 | AH108: 0 | AJ108: 2098295 | AK108: 120082.8 | AL108: 0 | AM108: 0 | AN108: 56695 | AO108: 638 | AP108: 0 | AV108: 0 | AX108: 0 | AZ108: 0 | BA108: 0 | BB108: 0 | BC108: 0 | BD108: 0 | BE108: 0 | BF108: 8095
A109: 2524 | B109: Palmarsh Primary School | C109: 1 | D109: 147 | E109: 0 | F109: 0 | G109: 32 | H109: 0 | I109: 44.41726619 | J109: 0 | K109: 1 | L109: 41 | M109: 9 | N109: 0 | O109: 3 | P109: 1 | Q109: 0 | R109: 0 | S109: 0 | T109: 0 | U109: 0 | V109: 0 | W109: 3.5 | X109: 0 | Y109: 53.11764706 | Z109: 0 | AA109: 120082.8 | AB109: 0 | AC109: 0 | AD109: 1 | AE109: 0 | AF109: 12171 | AG109: 0 | AH109: 0 | AJ109: 562451.1342 | AK109: 120082.8 | AL109: 0 | AM109: 0 | AN109: 8466 | AO109: 133 | AP109: 0 | AV109: 0 | AX109: 0 | AZ109: 0 | BA109: 0 | BB109: 0 | BC109: 0 | BD109: 0 | BE109: 0 | BF109: 1688
A110: 2525 | B110: Painters Ash Primary School | C110: 1 | D110: 407 | E110: 0 | F110: 0 | G110: 60 | H110: 0 | I110: 108.401937 | J110: 0 | K110: 29 | L110: 98 | M110: 9 | N110: 20 | O110: 14 | P110: 0 | Q110: 0 | R110: 0 | S110: 0 | T110: 0 | U110: 0 | V110: 0 | W110: 36.36023055 | X110: 0 | Y110: 124.8613569 | Z110: 0 | AA110: 120082.8 | AB110: 0 | AC110: 0 | AD110: 1 | AE110: 0 | AF110: 40730 | AG110: 0 | AH110: 0 | AJ110: 1488033.934 | AK110: 120082.8 | AL110: 0 | AM110: 0 | AN110: 32315 | AO110: 415 | AP110: 0 | AV110: 0 | AX110: 0 | AZ110: 0 | BA110: 0 | BB110: 0 | BC110: 0 | BD110: 0 | BE110: 0 | BF110: 5330
A111: 2530 | B111: Tunbury Primary School | C111: 1 | D111: 593 | E111: 0 | F111: 0 | G111: 10 | H111: 0 | I111: 18.65397351 | J111: 0 | K111: 15.02533784 | L111: 46.0777027 | M111: 16.02702703 | N111: 2.003378378 | O111: 5.008445946 | P111: 0 | Q111: 0 | R111: 0 | S111: 0 | T111: 0 | U111: 0 | V111: 0 | W111: 3.481409002 | X111: 0 | Y111: 105.4743083 | Z111: 0 | AA111: 120082.8 | AB111: 0 | AC111: 0 | AD111: 1 | AE111: 0 | AF111: 48985 | AG111: 0 | AH111: 0 | AJ111: 1986770 | AK111: 120082.8 | AL111: 0 | AM111: 0 | AN111: 41170 | AO111: 608 | AP111: 0 | AV111: 0 | AX111: 0 | AZ111: 0 | BA111: 0 | BB111: 0 | BC111: 0 | BD111: 0 | BE111: 0 | BF111: 7767
A112: 2532 | B112: St Margaret's-at-Cliffe Primary School | C112: 1 | D112: 194 | E112: 0 | F112: 0 | G112: 10 | H112: 0 | I112: 14 | J112: 0 | K112: 17 | L112: 10 | M112: 5 | N112: 4 | O112: 6 | P112: 0 | Q112: 0 | R112: 0 | S112: 0 | T112: 0 | U112: 0 | V112: 0 | W112: 4.646706587 | X112: 0 | Y112: 41.74683544 | Z112: 0 | AA112: 120082.8 | AB112: 0 | AC112: 0 | AD112: 1 | AE112: 0 | AF112: 16503 | AG112: 0 | AH112: 0 | AJ112: 693412.4725 | AK112: 120082.8 | AL112: 0 | AM112: 0 | AN112: 13443 | AO112: 190 | AP112: 0 | AV112: 0 | AX112: 0 | AZ112: 0 | BA112: 0 | BB112: 0 | BC112: 0 | BD112: 0 | BE112: 0 | BF112: 2484
A113: 2534 | B113: Bysing Wood Primary School | C113: 1 | D113: 157 | E113: 0 | F113: 0 | G113: 68 | H113: 0 | I113: 90.73376623 | J113: 0 | K113: 13 | L113: 8 | M113: 49 | N113: 46 | O113: 9 | P113: 0 | Q113: 0 | R113: 0 | S113: 0 | T113: 0 | U113: 0 | V113: 0 | W113: 6.776978417 | X113: 0 | Y113: 77.32835821 | Z113: 0 | AA113: 120082.8 | AB113: 0 | AC113: 0 | AD113: 1 | AE113: 0 | AF113: 42963 | AG113: 0 | AH113: 0 | AJ113: 725137.356 | AK113: 120082.8 | AL113: 0 | AM113: 0 | AN113: 14451 | AO113: 155 | AP113: 0 | AV113: 0 | AX113: 0 | AZ113: 0 | BA113: 0 | BB113: 0 | BC113: 0 | BD113: 0 | BE113: 0 | BF113: 1966
A114: 2539 | B114: Stocks Green Primary School | C114: 1 | D114: 217 | E114: 0 | F114: 0 | G114: 2 | H114: 0 | I114: 5.945205479 | J114: 0 | K114: 1 | L114: 1 | M114: 0 | N114: 1 | O114: 0 | P114: 0 | Q114: 0 | R114: 0 | S114: 0 | T114: 0 | U114: 0 | V114: 0 | W114: 5.802139037 | X114: 0 | Y114: 27.88268156 | Z114: 0 | AA114: 120082.8 | AB114: 0 | AC114: 0 | AD114: 1 | AE114: 0 | AF114: 25445 | AG114: 0 | AH114: 0 | AJ114: 757308.7114 | AK114: 120082.8 | AL114: 0 | AM114: 0 | AN114: 17980 | AO114: 218 | AP114: 0 | AV114: 0 | AX114: 0 | AZ114: 0 | BA114: 0 | BB114: 0 | BC114: 0 | BD114: 0 | BE114: 0 | BF114: 2776
A115: 2545 | B115: Sandgate Primary School | C115: 1 | D115: 426 | E115: 0 | F115: 0 | G115: 34 | H115: 0 | I115: 48.22641509 | J115: 0 | K115: 37 | L115: 13 | M115: 14 | N115: 9 | O115: 12 | P115: 1 | Q115: 0 | R115: 0 | S115: 0 | T115: 0 | U115: 0 | V115: 0 | W115: 12.80327869 | X115: 0 | Y115: 69.81666667 | Z115: 0 | AA115: 120082.8 | AB115: 0 | AC115: 0 | AD115: 1 | AE115: 0 | AF115: 45864 | AG115: 0 | AH115: 0 | AJ115: 1413122.37 | AK115: 120082.8 | AL115: 0 | AM115: 0 | AN115: 43656 | AO115: 422 | AP115: 0 | AV115: 0 | AX115: 0 | AZ115: 0 | BA115: 0 | BB115: 0 | BC115: 0 | BD115: 0 | BE115: 0 | BF115: 5436
A116: 2552 | B116: Sandling Primary School | C116: 1 | D116: 423 | E116: 0 | F116: 0 | G116: 18 | H116: 0 | I116: 31.9245283 | J116: 0 | K116: 19 | L116: 2 | M116: 1 | N116: 1 | O116: 2 | P116: 0 | Q116: 0 | R116: 0 | S116: 0 | T116: 0 | U116: 0 | V116: 0 | W116: 13.98347107 | X116: 0 | Y116: 83.89106145 | Z116: 0 | AA116: 120082.8 | AB116: 0 | AC116: 0 | AD116: 1 | AE116: 0 | AF116: 32162 | AG116: 0 | AH116: 0 | AJ116: 1379450.714 | AK116: 120082.8 | AL116: 0 | AM116: 0 | AN116: 24402 | AO116: 421 | AP116: 0 | AV116: 0 | AX116: 0 | AZ116: 0 | BA116: 0 | BB116: 0 | BC116: 0 | BD116: 0 | BE116: 0 | BF116: 5389
A117: 2559 | B117: Capel-le-Ferne Primary School | C117: 1 | D117: 208 | E117: 0 | F117: 0 | G117: 12 | H117: 0 | I117: 28.4097561 | J117: 0 | K117: 9 | L117: 6 | M117: 22 | N117: 11 | O117: 34 | P117: 1 | Q117: 0 | R117: 0 | S117: 0 | T117: 0 | U117: 0 | V117: 0 | W117: 0 | X117: 0 | Y117: 55.86285714 | Z117: 0 | AA117: 120082.8 | AB117: 0 | AC117: 0 | AD117: 1 | AE117: 0 | AF117: 19026 | AG117: 0 | AH117: 0 | AJ117: 775161.0349 | AK117: 120082.8 | AL117: 0 | AM117: 0 | AN117: 16636 | AO117: 206 | AP117: 0 | AV117: 0 | AX117: 0 | AZ117: 0 | BA117: 0 | BB117: 0 | BC117: 0 | BD117: 0 | BE117: 0 | BF117: 2636
A118: 2562 | B118: Lunsford Primary School | C118: 1 | D118: 207 | E118: 0 | F118: 0 | G118: 20 | H118: 0 | I118: 20 | J118: 0 | K118: 2 | L118: 8 | M118: 1 | N118: 0 | O118: 4 | P118: 0 | Q118: 0 | R118: 0 | S118: 0 | T118: 0 | U118: 0 | V118: 0 | W118: 4.651685393 | X118: 0 | Y118: 50.00561798 | Z118: 0 | AA118: 120082.8 | AB118: 0 | AC118: 0 | AD118: 1 | AE118: 0 | AF118: 22154 | AG118: 0 | AH118: 0 | AJ118: 761662.2182 | AK118: 120082.8 | AL118: 0 | AM118: 0 | AN118: 15964 | AO118: 210 | AP118: 0 | AV118: 0 | AX118: 0 | AZ118: 0 | BA118: 0 | BB118: 0 | BC118: 0 | BD118: 0 | BE118: 0 | BF118: 2730
A119: 2569 | B119: Briary Primary School | C119: 1 | D119: 365 | E119: 0 | F119: 0 | G119: 70 | H119: 0 | I119: 97.33333333 | J119: 0 | K119: 106 | L119: 17 | M119: 11 | N119: 0 | O119: 5 | P119: 0 | Q119: 0 | R119: 0 | S119: 0 | T119: 0 | U119: 0 | V119: 0 | W119: 6.656534954 | X119: 0 | Y119: 122.4223602 | Z119: 0 | AA119: 120082.8 | AB119: 0 | AC119: 0 | AD119: 1 | AE119: 0 | AF119: 13098 | AG119: 0 | AH119: 0 | AJ119: 1381857.327 | AK119: 120082.8 | AL119: 0 | AM119: 0 | AN119: 41067 | AO119: 384 | AP119: 0 | AV119: 0 | AX119: 0 | AZ119: 0 | BA119: 0 | BB119: 0 | BC119: 0 | BD119: 0 | BE119: 0 | BF119: 4871
A120: 2574 | B120: Downs View Infant School | C120: 1 | D120: 258 | E120: 0 | F120: 0 | G120: 30 | H120: 0 | I120: 40.68461538 | J120: 0 | K120: 3 | L120: 32 | M120: 13 | N120: 21 | O120: 1 | P120: 0 | Q120: 0 | R120: 0 | S120: 0 | T120: 0 | U120: 0 | V120: 0 | W120: 14.9132948 | X120: 0 | Y120: 57.16167665 | Z120: 0 | AA120: 120082.8 | AB120: 0 | AC120: 0 | AD120: 1 | AE120: 0 | AF120: 27216 | AG120: 0 | AH120: 0 | AJ120: 971837.8764 | AK120: 120082.8 | AL120: 0 | AM120: 0 | AN120: 26622 | AO120: 262 | AP120: 0 | AV120: 0 | AX120: 0 | AZ120: 0 | BA120: 0 | BB120: 0 | BC120: 0 | BD120: 0 | BE120: 0 | BF120: 3726
A121: 2578 | B121: Kingswood Primary School | C121: 1 | D121: 110 | E121: 0 | F121: 0 | G121: 5 | H121: 0 | I121: 13.27586207 | J121: 0 | K121: 3.027522936 | L121: 3.027522936 | M121: 1.009174312 | N121: 0 | O121: 6.055045872 | P121: 0 | Q121: 0 | R121: 0 | S121: 0 | T121: 0 | U121: 0 | V121: 0 | W121: 2.471910112 | X121: 0 | Y121: 12.22222222 | Z121: 0 | AA121: 120082.8 | AB121: 0 | AC121: 0 | AD121: 1 | AE121: 0 | AF121: 11205 | AG121: 0 | AH121: 0 | AJ121: 476286.5347 | AK121: 120082.8 | AL121: 0 | AM121: 0 | AN121: 7562 | AO121: 119 | AP121: 0 | AV121: 0 | AX121: 0 | AZ121: 0 | BA121: 0 | BB121: 0 | BC121: 0 | BD121: 0 | BE121: 0 | BF121: 1510
A122: 2586 | B122: Senacre Wood Primary School | C122: 1 | D122: 206 | E122: 0 | F122: 0 | G122: 33 | H122: 0 | I122: 48.76328502 | J122: 0 | K122: 11 | L122: 2 | M122: 72 | N122: 25 | O122: 22 | P122: 0 | Q122: 0 | R122: 0 | S122: 0 | T122: 0 | U122: 0 | V122: 0 | W122: 17.35955056 | X122: 0 | Y122: 73.3220339 | Z122: 0 | AA122: 120082.8 | AB122: 0 | AC122: 0 | AD122: 1 | AE122: 0 | AF122: 19868 | AG122: 0 | AH122: 0 | AJ122: 828158.8228 | AK122: 120082.8 | AL122: 0 | AM122: 0 | AN122: 16972 | AO122: 207 | AP122: 0 | AV122: 0 | AX122: 0 | AZ122: 0 | BA122: 0 | BB122: 0 | BC122: 0 | BD122: 0 | BE122: 0 | BF122: 2626
A123: 2603 | B123: Bromstone Primary School, Broadstairs | C123: 1 | D123: 484 | E123: 0 | F123: 0 | G123: 108 | H123: 0 | I123: 154.0451745 | J123: 0 | K123: 87 | L123: 14 | M123: 78 | N123: 72 | O123: 49 | P123: 5 | Q123: 0 | R123: 0 | S123: 0 | T123: 0 | U123: 0 | V123: 0 | W123: 23.97169811 | X123: 0 | Y123: 166.7759036 | Z123: 0 | AA123: 120082.8 | AB123: 0 | AC123: 0 | AD123: 1 | AE123: 0 | AF123: 41024 | AG123: 0 | AH123: 0 | AJ123: 1806692.795 | AK123: 120082.8 | AL123: 0 | AM123: 0 | AN123: 29580 | AO123: 492 | AP123: 0 | AV123: 521.8373205 | AX123: 521.8373205 | AZ123: 16 | BA123: 0 | BB123: 16 | BC123: 0 | BD123: 24 | BE123: 0 | BF123: 6241
A124: 2607 | B124: Parkside Community Primary School | C124: 1 | D124: 95 | E124: 0 | F124: 0 | G124: 57 | H124: 0 | I124: 63.92523364 | J124: 0 | K124: 1 | L124: 0 | M124: 4 | N124: 5 | O124: 66 | P124: 1 | Q124: 0 | R124: 0 | S124: 0 | T124: 0 | U124: 0 | V124: 0 | W124: 5.397727273 | X124: 0 | Y124: 57.44186047 | Z124: 0 | AA124: 120082.8 | AB124: 0 | AC124: 0 | AD124: 1 | AE124: 0 | AF124: 18154 | AG124: 0 | AH124: 0 | AJ124: 622883.2277 | AK124: 120082.8 | AL124: 0 | AM124: 0 | AN124: 14788 | AO124: 110 | AP124: 0 | AR124: 4 | AS124: 0.9 | AT124: 0 | AV124: 0 | AX124: 0 | AZ124: 0 | BA124: 0 | BB124: 0 | BC124: 0 | BD124: 0 | BE124: 0 | BF124: 1396
A125: 2611 | B125: St Stephen's Infant School | C125: 1 | D125: 267 | E125: 0 | F125: 0 | G125: 42 | H125: 0 | I125: 42 | J125: 0 | K125: 24.09022556 | L125: 4.015037594 | M125: 24.09022556 | N125: 58.21804511 | O125: 68.2556391 | P125: 0 | Q125: 0 | R125: 0 | S125: 0 | T125: 0 | U125: 0 | V125: 0 | W125: 54.61363636 | X125: 0 | Y125: 72.95930233 | Z125: 0 | AA125: 120082.8 | AB125: 0 | AC125: 0 | AD125: 1 | AE125: 0 | AF125: 24550 | AG125: 0 | AH125: 0 | AJ125: 1065867.823 | AK125: 120082.8 | AL125: 0 | AM125: 0 | AN125: 24000 | AO125: 270 | AP125: 0 | AV125: 0 | AX125: 0 | AZ125: 0 | BA125: 0 | BB125: 0 | BC125: 0 | BD125: 0 | BE125: 0 | BF125: 3831
A126: 2615 | B126: High Firs Primary School | C126: 1 | D126: 207 | E126: 0 | F126: 0 | G126: 14 | H126: 0 | I126: 31.45588235 | J126: 0 | K126: 0 | L126: 21 | M126: 15 | N126: 19 | O126: 17 | P126: 0 | Q126: 0 | R126: 0 | S126: 0 | T126: 0 | U126: 0 | V126: 0 | W126: 10.52542373 | X126: 0 | Y126: 67.81034483 | Z126: 0 | AA126: 120082.8 | AB126: 0 | AC126: 0 | AD126: 1.0364 | AE126: 0 | AF126: 24550 | AG126: 0 | AH126: 0 | AJ126: 811673.3478 | AK126: 124453.8139 | AL126: 0 | AM126: 0 | AN126: 24000 | AO126: 204 | AP126: 0 | AV126: 0 | AX126: 0 | AZ126: 0 | BA126: 0 | BB126: 0 | BC126: 0 | BD126: 0 | BE126: 0 | BF126: 2692
A127: 2626 | B127: Sandwich Infant School | C127: 1 | D127: 131 | E127: 0 | F127: 0 | G127: 15 | H127: 0 | I127: 15 | J127: 0 | K127: 8 | L127: 47 | M127: 2 | N127: 0 | O127: 2 | P127: 0 | Q127: 0 | R127: 0 | S127: 0 | T127: 0 | U127: 0 | V127: 0 | W127: 4.366666667 | X127: 0 | Y127: 39.74157303 | Z127: 0 | AA127: 120082.8 | AB127: 0 | AC127: 0 | AD127: 1 | AE127: 0 | AF127: 13871 | AG127: 0 | AH127: 0 | AJ127: 569489.1919 | AK127: 120082.8 | AL127: 0 | AM127: 0 | AN127: 12099 | AO127: 140 | AP127: 0 | AV127: 0 | AX127: 0 | AZ127: 0 | BA127: 0 | BB127: 0 | BC127: 0 | BD127: 0 | BE127: 0 | BF127: 2097
A128: 2627 | B128: Sandwich Junior School | C128: 1 | D128: 221 | E128: 0 | F128: 0 | G128: 33 | H128: 0 | I128: 51.53363229 | J128: 0 | K128: 14 | L128: 63 | M128: 4 | N128: 6 | O128: 0 | P128: 0 | Q128: 0 | R128: 0 | S128: 0 | T128: 0 | U128: 0 | V128: 0 | W128: 5 | X128: 0 | Y128: 47.5046729 | Z128: 0 | AA128: 120082.8 | AB128: 0 | AC128: 0 | AD128: 1 | AE128: 0 | AF128: 23046 | AG128: 0 | AH128: 0 | AJ128: 828378.5724 | AK128: 120082.8 | AL128: 0 | AM128: 0 | AN128: 18191 | AO128: 225 | AP128: 0 | AV128: 0 | AX128: 0 | AZ128: 0 | BA128: 0 | BB128: 0 | BC128: 0 | BD128: 0 | BE128: 0 | BF128: 2854
A129: 2629 | B129: Holywell Primary School Upchurch | C129: 1 | D129: 195 | E129: 0 | F129: 0 | G129: 12 | H129: 0 | I129: 18.25123153 | J129: 0 | K129: 14 | L129: 6 | M129: 1 | N129: 0 | O129: 0 | P129: 1 | Q129: 0 | R129: 0 | S129: 0 | T129: 0 | U129: 0 | V129: 0 | W129: 11.67664671 | X129: 0 | Y129: 31.88679245 | Z129: 0 | AA129: 120082.8 | AB129: 0 | AC129: 0 | AD129: 1 | AE129: 0 | AF129: 23200 | AG129: 0 | AH129: 0 | AJ129: 731786.9674 | AK129: 120082.8 | AL129: 0 | AM129: 0 | AN129: 21845 | AO129: 201 | AP129: 0 | AV129: 0 | AX129: 0 | AZ129: 0 | BA129: 0 | BB129: 0 | BC129: 0 | BD129: 0 | BE129: 0 | BF129: 2671
A130: 2632 | B130: Sevenoaks Primary School | C130: 1 | D130: 596 | E130: 0 | F130: 0 | G130: 31 | H130: 0 | I130: 40.06722689 | J130: 0 | K130: 2 | L130: 0 | M130: 0 | N130: 2 | O130: 2 | P130: 0 | Q130: 0 | R130: 0 | S130: 0 | T130: 0 | U130: 0 | V130: 0 | W130: 87.16205534 | X130: 0 | Y130: 107.5583864 | Z130: 0 | AA130: 120082.8 | AB130: 0 | AC130: 0 | AD130: 1.0364 | AE130: 0 | AF130: 74088 | AG130: 0 | AH130: 0 | AJ130: 2035879.455 | AK130: 124453.8139 | AL130: 0 | AM130: 0 | AN130: 73950 | AO130: 598 | AP130: 0 | AV130: 0 | AX130: 0 | AZ130: 0 | BA130: 0 | BB130: 0 | BC130: 0 | BD130: 0 | BE130: 0 | BF130: 7823
A131: 2643 | B131: Swalecliffe Community Primary School | C131: 1 | D131: 627 | E131: 0 | F131: 0 | G131: 55 | H131: 0 | I131: 82.08359621 | J131: 0 | K131: 88 | L131: 8 | M131: 10 | N131: 0 | O131: 10 | P131: 0 | Q131: 0 | R131: 0 | S131: 0 | T131: 0 | U131: 0 | V131: 0 | W131: 9.103448276 | X131: 0 | Y131: 152.1397059 | Z131: 0 | AA131: 120082.8 | AB131: 0 | AC131: 0 | AD131: 1 | AE131: 0 | AF131: 58968 | AG131: 0 | AH131: 0 | AJ131: 2086481 | AK131: 120082.8 | AL131: 0 | AM131: 0 | AN131: 57681 | AO131: 634 | AP131: 0 | AV131: 0 | AX131: 0 | AZ131: 0 | BA131: 0 | BB131: 0 | BC131: 0 | BD131: 0 | BE131: 0 | BF131: 8177
A132: 2648 | B132: Aylesham Primary School | C132: 1 | D132: 271 | E132: 0 | F132: 0 | G132: 61 | H132: 0 | I132: 96.53648069 | J132: 0 | K132: 149 | L132: 1 | M132: 1 | N132: 115 | O132: 1 | P132: 0 | Q132: 0 | R132: 0 | S132: 0 | T132: 0 | U132: 0 | V132: 0 | W132: 15.86936937 | X132: 0 | Y132: 71.84651163 | Z132: 0 | AA132: 120082.8 | AB132: 0 | AC132: 0 | AD132: 1 | AE132: 0 | AF132: 23401 | AG132: 0 | AH132: 0 | AJ132: 930050.1489 | AK132: 120082.8 | AL132: 0 | AM132: 0 | AN132: 18501 | AO132: 230 | AP132: 0 | AV132: 0 | AX132: 0 | AZ132: 0 | BA132: 0 | BB132: 0 | BC132: 0 | BD132: 0 | BE132: 0 | BF132: 3023
A133: 2651 | B133: Broadwater Primary School | C133: 1 | D133: 161 | E133: 0 | F133: 0 | G133: 31 | H133: 0 | I133: 47.60752688 | J133: 0 | K133: 3 | L133: 0 | M133: 6 | N133: 67 | O133: 0 | P133: 0 | Q133: 0 | R133: 0 | S133: 0 | T133: 0 | U133: 0 | V133: 0 | W133: 19.27464789 | X133: 0 | Y133: 54.43884892 | Z133: 0 | AA133: 120082.8 | AB133: 0 | AC133: 0 | AD133: 1 | AE133: 0 | AF133: 17740 | AG133: 0 | AH133: 0 | AJ133: 765120.1488 | AK133: 120082.8 | AL133: 0 | AM133: 0 | AN133: 15292 | AO133: 188 | AP133: 0 | AV133: 0 | AX133: 0 | AZ133: 0 | BA133: 0 | BB133: 0 | BC133: 0 | BD133: 0 | BE133: 0 | BF133: 2414
A134: 2653 | B134: West Borough Primary School | C134: 1 | D134: 450 | E134: 0 | F134: 0 | G134: 61 | H134: 0 | I134: 101.1235955 | J134: 0 | K134: 94 | L134: 2 | M134: 4 | N134: 4 | O134: 4 | P134: 0 | Q134: 0 | R134: 0 | S134: 0 | T134: 0 | U134: 0 | V134: 0 | W134: 84.23076923 | X134: 0 | Y134: 118.0327869 | Z134: 0 | AA134: 120082.8 | AB134: 0 | AC134: 0 | AD134: 1 | AE134: 0 | AF134: 58874 | AG134: 0 | AH134: 0 | AJ134: 1599190.148 | AK134: 120082.8 | AL134: 0 | AM134: 0 | AN134: 55709 | AO134: 448 | AP134: 0 | AR134: 4 | AS134: 0.9 | AT134: 0 | AV134: 0 | AX134: 0 | AZ134: 0 | BA134: 0 | BB134: 0 | BC134: 0 | BD134: 0 | BE134: 0 | BF134: 6501
A135: 2659 | B135: Sandown School | C135: 1 | D135: 385 | E135: 0 | F135: 0 | G135: 75 | H135: 0 | I135: 89.39313984 | J135: 0 | K135: 196.5314136 | L135: 5.039267016 | M135: 18.14136126 | N135: 0 | O135: 16.12565445 | P135: 0 | Q135: 0 | R135: 0 | S135: 0 | T135: 0 | U135: 0 | V135: 0 | W135: 7.903225806 | X135: 0 | Y135: 101.9791667 | Z135: 0 | AA135: 120082.8 | AB135: 0 | AC135: 0 | AD135: 1 | AE135: 0 | AF135: 38052 | AG135: 0 | AH135: 0 | AJ135: 1355038.052 | AK135: 120082.8 | AL135: 0 | AM135: 0 | AN135: 37222 | AO135: 379 | AP135: 0 | AV135: 0 | AX135: 0 | AZ135: 0 | BA135: 0 | BB135: 0 | BC135: 0 | BD135: 0 | BE135: 0 | BF135: 4815
A136: 2661 | B136: Cage Green Primary School | C136: 1 | D136: 369 | E136: 0 | F136: 0 | G136: 89 | H136: 0 | I136: 123.3 | J136: 0 | K136: 79.21467391 | L136: 16.04347826 | M136: 2.005434783 | N136: 79.21467391 | O136: 0 | P136: 0 | Q136: 0 | R136: 0 | S136: 0 | T136: 0 | U136: 0 | V136: 0 | W136: 13.0619469 | X136: 0 | Y136: 102.438806 | Z136: 0 | AA136: 120082.8 | AB136: 0 | AC136: 0 | AD136: 1 | AE136: 0 | AF136: 41425 | AG136: 0 | AH136: 0 | AJ136: 1491907.914 | AK136: 120082.8 | AL136: 0 | AM136: 0 | AN136: 34590 | AO136: 415 | AP136: 0 | AV136: 624.7546764 | AX136: 624.7546764 | AZ136: 31 | BA136: 0 | BB136: 31 | BC136: 0 | BD136: 27 | BE136: 0 | BF136: 5265
A137: 2662 | B137: Long Mead Community Primary School | C137: 1 | D137: 143 | E137: 0 | F137: 0 | G137: 48 | H137: 0 | I137: 62.2585034 | J137: 0 | K137: 14 | L137: 8 | M137: 0 | N137: 38 | O137: 0 | P137: 0 | Q137: 0 | R137: 0 | S137: 0 | T137: 0 | U137: 0 | V137: 0 | W137: 11.72131148 | X137: 0 | Y137: 55.19298246 | Z137: 0 | AA137: 120082.8 | AB137: 0 | AC137: 0 | AD137: 1 | AE137: 0 | AF137: 17401 | AG137: 0 | AH137: 0 | AJ137: 648896.2634 | AK137: 120082.8 | AL137: 0 | AM137: 0 | AN137: 11427 | AO137: 148 | AP137: 0 | AR137: 4 | AS137: 0.9 | AT137: 0.1 | AV137: 0 | AX137: 0 | AZ137: 0 | BA137: 0 | BB137: 0 | BC137: 0 | BD137: 0 | BE137: 0 | BF137: 2157
A138: 2672 | B138: Palm Bay Primary School | C138: 1 | D138: 427 | E138: 0 | F138: 0 | G138: 35 | H138: 0 | I138: 65.61465721 | J138: 0 | K138: 20 | L138: 3 | M138: 29 | N138: 35 | O138: 18 | P138: 42 | Q138: 0 | R138: 0 | S138: 0 | T138: 0 | U138: 0 | V138: 0 | W138: 15.20821918 | X138: 0 | Y138: 103.801105 | Z138: 0 | AA138: 120082.8 | AB138: 0 | AC138: 0 | AD138: 1 | AE138: 0 | AF138: 53424 | AG138: 0 | AH138: 0 | AJ138: 1486765.375 | AK138: 120082.8 | AL138: 0 | AM138: 0 | AN138: 52258 | AO138: 422 | AP138: 0 | AV138: 0 | AX138: 0 | AZ138: 0 | BA138: 0 | BB138: 0 | BC138: 0 | BD138: 0 | BE138: 0 | BF138: 5483
A139: 2674 | B139: King's Farm Primary School | C139: 1 | D139: 358 | E139: 0 | F139: 0 | G139: 133 | H139: 0 | I139: 169.1988473 | J139: 0 | K139: 66 | L139: 36 | M139: 28 | N139: 8 | O139: 156 | P139: 0 | Q139: 0 | R139: 0 | S139: 0 | T139: 0 | U139: 0 | V139: 0 | W139: 59.47603834 | X139: 0 | Y139: 159.5434783 | Z139: 0 | AA139: 120082.8 | AB139: 0 | AC139: 0 | AD139: 1 | AE139: 0 | AF139: 38341 | AG139: 0 | AH139: 0 | AJ139: 1748028.152 | AK139: 120082.8 | AL139: 0 | AM139: 0 | AN139: 30337 | AO139: 344 | AP139: 0 | AR139: 4 | AS139: 0.9 | AT139: 0.21 | AV139: 691.769024 | AX139: 691.769024 | AZ139: 0 | BA139: 0 | BB139: 6 | BC139: 0 | BD139: 0 | BE139: 0 | BF139: 5100
A140: 2680 | B140: Kings Hill School | C140: 1 | D140: 480 | E140: 0 | F140: 0 | G140: 23 | H140: 0 | I140: 39.08141962 | J140: 0 | K140: 11.0460251 | L140: 8.033472803 | M140: 0 | N140: 0 | O140: 1.0041841 | P140: 0 | Q140: 0 | R140: 0 | S140: 0 | T140: 0 | U140: 0 | V140: 0 | W140: 18.15602837 | X140: 0 | Y140: 101.7456359 | Z140: 0 | AA140: 120082.8 | AB140: 0 | AC140: 0 | AD140: 1 | AE140: 0 | AF140: 54781 | AG140: 0 | AH140: 0 | AJ140: 1570286 | AK140: 120082.8 | AL140: 0 | AM140: 0 | AN140: 50286 | AO140: 475 | AP140: 0 | AV140: 0 | AX140: 0 | AZ140: 0 | BA140: 0 | BB140: 0 | BC140: 0 | BD140: 0 | BE140: 0 | BF140: 6026
A141: 2682 | B141: New Ash Green Primary School | C141: 1 | D141: 399 | E141: 0 | F141: 0 | G141: 20 | H141: 0 | I141: 45.03149606 | J141: 0 | K141: 99 | L141: 12 | M141: 2 | N141: 0 | O141: 1 | P141: 0 | Q141: 0 | R141: 0 | S141: 0 | T141: 0 | U141: 0 | V141: 0 | W141: 8.119186047 | X141: 0 | Y141: 105.6875 | Z141: 0 | AA141: 120082.8 | AB141: 0 | AC141: 0 | AD141: 1.0364 | AE141: 0 | AF141: 33264 | AG141: 0 | AH141: 0 | AJ141: 1336132.769 | AK141: 124453.8139 | AL141: 0 | AM141: 0 | AN141: 27744 | AO141: 377 | AP141: 0 | AV141: 0 | AX141: 0 | AZ141: 0 | BA141: 0 | BB141: 0 | BC141: 0 | BD141: 0 | BE141: 0 | BF141: 5046
A142: 2689 | B142: Craylands School, The | C142: 1 | D142: 295 | E142: 0 | F142: 0 | G142: 39 | H142: 0 | I142: 55.38314176 | J142: 0 | K142: 100 | L142: 19 | M142: 0 | N142: 1 | O142: 34 | P142: 0 | Q142: 0 | R142: 0 | S142: 0 | T142: 0 | U142: 0 | V142: 0 | W142: 17.5 | X142: 0 | Y142: 107.9574468 | Z142: 0 | AA142: 120082.8 | AB142: 0 | AC142: 0 | AD142: 1.0364 | AE142: 0 | AF142: 32508 | AG142: 74614.176 | AH142: 0 | AJ142: 1129757.82 | AK142: 124453.8139 | AL142: 0 | AM142: 0 | AN142: 31799 | AO142: 266 | AP142: 0 | AV142: 0 | AX142: 0 | AZ142: 0 | BA142: 0 | BB142: 0 | BC142: 0 | BD142: 0 | BE142: 0 | BF142: 3634
A143: 2692 | B143: Churchill School, The | C143: 1 | D143: 408 | E143: 0 | F143: 0 | G143: 43 | H143: 0 | I143: 65.04347826 | J143: 0 | K143: 86.21130221 | L143: 4.00982801 | M143: 13.03194103 | N143: 2.004914005 | O143: 16.03931204 | P143: 2.004914005 | Q143: 0 | R143: 0 | S143: 0 | T143: 0 | U143: 0 | V143: 0 | W143: 24.13521127 | X143: 0 | Y143: 104.0938416 | Z143: 0 | AA143: 120082.8 | AB143: 0 | AC143: 0 | AD143: 1 | AE143: 0 | AF143: 12398 | AG143: 0 | AH143: 0 | AJ143: 1410303.343 | AK143: 120082.8 | AL143: 0 | AM143: 0 | AN143: 12128 | AO143: 416 | AP143: 0 | AV143: 0 | AX143: 0 | AZ143: 0 | BA143: 0 | BB143: 0 | BC143: 0 | BD143: 0 | BE143: 0 | BF143: 5278
A144: 3010 | B144: St Paul's CEP School | C144: 1 | D144: 108 | E144: 0 | F144: 0 | G144: 4 | H144: 0 | I144: 5.944954128 | J144: 0 | K144: 0 | L144: 7 | M144: 1 | N144: 1 | O144: 12 | P144: 0 | Q144: 0 | R144: 0 | S144: 0 | T144: 0 | U144: 0 | V144: 0 | W144: 0 | X144: 0 | Y144: 25.5483871 | Z144: 0 | AA144: 120082.8 | AB144: 0 | AC144: 0 | AD144: 1.0364 | AE144: 0 | AF144: 10557 | AG144: 0 | AH144: 0 | AJ144: 472292.8422 | AK144: 124453.8139 | AL144: 0 | AM144: 0 | AN144: 10082 | AO144: 108 | AP144: 0 | AV144: 0 | AX144: 0 | AZ144: 0 | BA144: 0 | BB144: 0 | BC144: 0 | BD144: 0 | BE144: 0 | BF144: 1437
A145: 3015 | B145: Fawkham CEP School | C145: 1 | D145: 105 | E145: 0 | F145: 0 | G145: 3 | H145: 0 | I145: 8.155339806 | J145: 0 | K145: 7 | L145: 5 | M145: 0 | N145: 2 | O145: 0 | P145: 0 | Q145: 0 | R145: 0 | S145: 0 | T145: 0 | U145: 0 | V145: 0 | W145: 1.166666667 | X145: 0 | Y145: 13.27586207 | Z145: 0 | AA145: 120082.8 | AB145: 0 | AC145: 0 | AD145: 1.0364 | AE145: 0 | AF145: 20745 | AG145: 0 | AH145: 0 | AJ145: 450671.1138 | AK145: 124453.8139 | AL145: 0 | AM145: 0 | AN145: 20280 | AO145: 102 | AP145: 0 | AV145: 0 | AX145: 0 | AZ145: 0 | BA145: 0 | BB145: 0 | BC145: 0 | BD145: 0 | BE145: 0 | BF145: 1333
A146: 3020 | B146: Sedley's CEP School | C146: 1 | D146: 98 | E146: 0 | F146: 0 | G146: 7 | H146: 0 | I146: 7 | J146: 0 | K146: 7.072164948 | L146: 9.092783505 | M146: 1.010309278 | N146: 0 | O146: 1.010309278 | P146: 0 | Q146: 0 | R146: 0 | S146: 0 | T146: 0 | U146: 0 | V146: 0 | W146: 0 | X146: 0 | Y146: 26.38461538 | Z146: 0 | AA146: 120082.8 | AB146: 0 | AC146: 0 | AD146: 1.0364 | AE146: 0 | AF146: 4973 | AG146: 0 | AH146: 0 | AJ146: 440471.534 | AK146: 124453.8139 | AL146: 0 | AM146: 0 | AN146: 4419 | AO146: 101 | AP146: 0 | AV146: 0 | AX146: 0 | AZ146: 0 | BA146: 0 | BB146: 0 | BC146: 0 | BD146: 0 | BE146: 0 | BF146: 1340
A147: 3022 | B147: Benenden CEP School | C147: 1 | D147: 167 | E147: 0 | F147: 0 | G147: 3 | H147: 0 | I147: 12.37037037 | J147: 0 | K147: 11.20121951 | L147: 1.018292683 | M147: 0 | N147: 0 | O147: 0 | P147: 0 | Q147: 0 | R147: 0 | S147: 0 | T147: 0 | U147: 0 | V147: 0 | W147: 0 | X147: 0 | Y147: 39.93478261 | Z147: 0 | AA147: 120082.8 | AB147: 0 | AC147: 0 | AD147: 1 | AE147: 0 | AF147: 6024 | AG147: 0 | AH147: 15101 | AJ147: 612818.6112 | AK147: 120082.8 | AL147: 0 | AM147: 0 | AN147: 5353 | AO147: 162 | AP147: 0 | AV147: 0 | AX147: 0 | AZ147: 0 | BA147: 0 | BB147: 0 | BC147: 0 | BD147: 0 | BE147: 0 | BF147: 2097
A148: 3023 | B148: Bidborough CEP School | C148: 1 | D148: 210 | E148: 0 | F148: 0 | G148: 6 | H148: 0 | I148: 6 | J148: 0 | K148: 0 | L148: 5 | M148: 0 | N148: 0 | O148: 0 | P148: 0 | Q148: 0 | R148: 0 | S148: 0 | T148: 0 | U148: 0 | V148: 0 | W148: 10.5 | X148: 0 | Y148: 53.75 | Z148: 0 | AA148: 120082.8 | AB148: 0 | AC148: 0 | AD148: 1 | AE148: 0 | AF148: 14730 | AG148: 0 | AH148: 0 | AJ148: 733614.1509 | AK148: 120082.8 | AL148: 0 | AM148: 0 | AN148: 14283 | AO148: 206 | AP148: 0 | AV148: 0 | AX148: 0 | AZ148: 0 | BA148: 0 | BB148: 0 | BC148: 0 | BD148: 0 | BE148: 0 | BF148: 2659
A149: 3027 | B149: Cranbrook CEP School | C149: 1 | D149: 160 | E149: 0 | F149: 0 | G149: 42 | H149: 0 | I149: 62.33766234 | J149: 0 | K149: 2 | L149: 0 | M149: 0 | N149: 0 | O149: 0 | P149: 0 | Q149: 0 | R149: 0 | S149: 0 | T149: 0 | U149: 0 | V149: 0 | W149: 8.615384615 | X149: 0 | Y149: 50.32258065 | Z149: 0 | AA149: 120082.8 | AB149: 0 | AC149: 0 | AD149: 1 | AE149: 0 | AF149: 25704 | AG149: 0 | AH149: 0 | AJ149: 621922.7167 | AK149: 120082.8 | AL149: 0 | AM149: 0 | AN149: 25143 | AO149: 150 | AP149: 0 | AV149: 0 | AX149: 0 | AZ149: 0 | BA149: 0 | BB149: 0 | BC149: 0 | BD149: 0 | BE149: 0 | BF149: 1903
A150: 3029 | B150: Goudhurst & Kilndown CEP School | C150: 1 | D150: 212 | E150: 0 | F150: 0 | G150: 13 | H150: 0 | I150: 21.89671362 | J150: 0 | K150: 1 | L150: 0 | M150: 9 | N150: 0 | O150: 0 | P150: 0 | Q150: 0 | R150: 0 | S150: 0 | T150: 0 | U150: 0 | V150: 0 | W150: 3.494505495 | X150: 0 | Y150: 26.8045977 | Z150: 0 | AA150: 120082.8 | AB150: 0 | AC150: 0 | AD150: 1 | AE150: 0 | AF150: 26964 | AG150: 0 | AH150: 0 | AJ150: 755651.2369 | AK150: 120082.8 | AL150: 0 | AM150: 0 | AN150: 26376 | AO150: 211 | AP150: 0 | AV150: 0 | AX150: 0 | AZ150: 0 | BA150: 0 | BB150: 0 | BC150: 0 | BD150: 0 | BE150: 0 | BF150: 2694
A151: 3032 | B151: Hawkhurst CEP School | C151: 1 | D151: 195 | E151: 0 | F151: 0 | G151: 42 | H151: 0 | I151: 64.66836735 | J151: 0 | K151: 72 | L151: 0 | M151: 0 | N151: 1 | O151: 0 | P151: 0 | Q151: 0 | R151: 0 | S151: 0 | T151: 0 | U151: 0 | V151: 0 | W151: 8.272727273 | X151: 0 | Y151: 56.22699387 | Z151: 0 | AA151: 120082.8 | AB151: 0 | AC151: 0 | AD151: 1 | AE151: 0 | AF151: 34020 | AG151: 0 | AH151: 0 | AJ151: 774947.8662 | AK151: 120082.8 | AL151: 0 | AM151: 0 | AN151: 33278 | AO151: 196 | AP151: 0 | AV151: 0 | AX151: 0 | AZ151: 0 | BA151: 0 | BB151: 0 | BC151: 0 | BD151: 0 | BE151: 0 | BF151: 2507
A152: 3033 | B152: Hildenborough CEP School | C152: 1 | D152: 204 | E152: 0 | F152: 0 | G152: 12 | H152: 0 | I152: 16.23880597 | J152: 0 | K152: 4.019704433 | L152: 12.0591133 | M152: 0 | N152: 0 | O152: 0 | P152: 0 | Q152: 0 | R152: 0 | S152: 0 | T152: 0 | U152: 0 | V152: 0 | W152: 4.689655172 | X152: 0 | Y152: 46.25581395 | Z152: 0 | AA152: 120082.8 | AB152: 0 | AC152: 0 | AD152: 1 | AE152: 0 | AF152: 25591 | AG152: 0 | AH152: 0 | AJ152: 727112.9389 | AK152: 120082.8 | AL152: 0 | AM152: 0 | AN152: 21720 | AO152: 198 | AP152: 0 | AV152: 0 | AX152: 0 | AZ152: 0 | BA152: 0 | BB152: 0 | BC152: 0 | BD152: 0 | BE152: 0 | BF152: 2512
A153: 3034 | B153: Lamberhurst St Mary's CEP School | C153: 1 | D153: 209 | E153: 0 | F153: 0 | G153: 7 | H153: 0 | I153: 11.55276382 | J153: 0 | K153: 2.009615385 | L153: 1.004807692 | M153: 0 | N153: 0 | O153: 0 | P153: 0 | Q153: 0 | R153: 0 | S153: 0 | T153: 0 | U153: 0 | V153: 0 | W153: 5.773480663 | X153: 0 | Y153: 39.63793103 | Z153: 0 | AA153: 120082.8 | AB153: 0 | AC153: 0 | AD153: 1 | AE153: 0 | AF153: 27468 | AG153: 0 | AH153: 0 | AJ153: 718345.412 | AK153: 120082.8 | AL153: 0 | AM153: 0 | AN153: 26869 | AO153: 198 | AP153: 0 | AV153: 0 | AX153: 0 | AZ153: 0 | BA153: 0 | BB153: 0 | BC153: 0 | BD153: 0 | BE153: 0 | BF153: 2613
A154: 3035 | B154: Seal CEP School | C154: 1 | D154: 282 | E154: 0 | F154: 0 | G154: 44 | H154: 0 | I154: 77.20152091 | J154: 0 | K154: 2 | L154: 2 | M154: 0 | N154: 0 | O154: 0 | P154: 0 | Q154: 0 | R154: 0 | S154: 0 | T154: 0 | U154: 0 | V154: 0 | W154: 16.04878049 | X154: 0 | Y154: 69.87610619 | Z154: 0 | AA154: 120082.8 | AB154: 0 | AC154: 0 | AD154: 1.0364 | AE154: 0 | AF154: 14234 | AG154: 0 | AH154: 0 | AJ154: 980376.9156 | AK154: 124453.8139 | AL154: 0 | AM154: 0 | AN154: 12771 | AO154: 263 | AP154: 0 | AV154: 0 | AX154: 0 | AZ154: 0 | BA154: 0 | BB154: 0 | BC154: 0 | BD154: 0 | BE154: 0 | BF154: 3586
A155: 3037 | B155: St John's CEP School, Sevenoaks | C155: 1 | D155: 240 | E155: 0 | F155: 0 | G155: 14 | H155: 0 | I155: 19.75308642 | J155: 0 | K155: 0 | L155: 1 | M155: 0 | N155: 0 | O155: 0 | P155: 0 | Q155: 0 | R155: 0 | S155: 0 | T155: 0 | U155: 0 | V155: 0 | W155: 17.14285714 | X155: 0 | Y155: 57.25888325 | Z155: 0 | AA155: 120082.8 | AB155: 0 | AC155: 0 | AD155: 1.0364 | AE155: 0 | AF155: 19185 | AG155: 0 | AH155: 0 | AJ155: 1015853.242 | AK155: 124453.8139 | AL155: 0 | AM155: 0 | AN155: 22440 | AO155: 242 | AP155: 0 | AV155: 0 | AX155: 0 | AZ155: 0 | BA155: 0 | BB155: 0 | BC155: 0 | BD155: 0 | BE155: 0 | BF155: 3162
A156: 3042 | B156: Speldhurst CEP School | C156: 1 | D156: 177 | E156: 0 | F156: 0 | G156: 2 | H156: 0 | I156: 2.44137931 | J156: 0 | K156: 0 | L156: 0 | M156: 0 | N156: 0 | O156: 0 | P156: 0 | Q156: 0 | R156: 0 | S156: 0 | T156: 0 | U156: 0 | V156: 0 | W156: 2.391891892 | X156: 0 | Y156: 24.91111111 | Z156: 0 | AA156: 120082.8 | AB156: 0 | AC156: 0 | AD156: 1 | AE156: 0 | AF156: 3049 | AG156: 0 | AH156: 0 | AJ156: 539241.3937 | AK156: 120082.8 | AL156: 0 | AM156: 0 | AN156: 2904 | AO156: 145 | AP156: 0 | AV156: 0 | AX156: 0 | AZ156: 0 | BA156: 0 | BB156: 0 | BC156: 0 | BD156: 0 | BE156: 0 | BF156: 1851
A157: 3043 | B157: Sundridge & Brasted CEP School | C157: 1 | D157: 91 | E157: 0 | F157: 0 | G157: 11 | H157: 0 | I157: 16.28421053 | J157: 0 | K157: 0 | L157: 5 | M157: 0 | N157: 0 | O157: 0 | P157: 0 | Q157: 0 | R157: 0 | S157: 0 | T157: 0 | U157: 0 | V157: 0 | W157: 2.275 | X157: 0 | Y157: 16.43055556 | Z157: 0 | AA157: 120082.8 | AB157: 0 | AC157: 0 | AD157: 1.0364 | AE157: 0 | AF157: 6394 | AG157: 0 | AH157: 0 | AJ157: 427690.8193 | AK157: 124453.8139 | AL157: 0 | AM157: 0 | AN157: 5682 | AO157: 96 | AP157: 0 | AV157: 0 | AX157: 0 | AZ157: 0 | BA157: 0 | BB157: 0 | BC157: 0 | BD157: 0 | BE157: 0 | BF157: 1306
A158: 3049 | B158: St James' CEJ School | C158: 1 | D158: 362 | E158: 0 | F158: 0 | G158: 10 | H158: 0 | I158: 19.15877437 | J158: 0 | K158: 15.04155125 | L158: 0 | M158: 5.013850416 | N158: 1.002770083 | O158: 0 | P158: 0 | Q158: 0 | R158: 0 | S158: 0 | T158: 0 | U158: 0 | V158: 0 | W158: 30.08310249 | X158: 0 | Y158: 94.38968481 | Z158: 0 | AA158: 120082.8 | AB158: 0 | AC158: 0 | AD158: 1 | AE158: 0 | AF158: 34776 | AG158: 0 | AH158: 0 | AJ158: 1222359.585 | AK158: 120082.8 | AL158: 0 | AM158: 0 | AN158: 34017 | AO158: 361 | AP158: 0 | AV158: 0 | AX158: 0 | AZ158: 0 | BA158: 0 | BB158: 0 | BC158: 0 | BD158: 0 | BE158: 0 | BF158: 4580
A159: 3050 | B159: St John's CEP School | C159: 1 | D159: 649 | E159: 0 | F159: 0 | G159: 31 | H159: 0 | I159: 55.34108527 | J159: 0 | K159: 10 | L159: 31 | M159: 18 | N159: 0 | O159: 0 | P159: 0 | Q159: 0 | R159: 0 | S159: 0 | T159: 0 | U159: 0 | V159: 0 | W159: 85.91413238 | X159: 0 | Y159: 182.53125 | Z159: 0 | AA159: 120082.8 | AB159: 0 | AC159: 0 | AD159: 1 | AE159: 0 | AF159: 72072 | AG159: 0 | AH159: 0 | AJ159: 2099474.345 | AK159: 120082.8 | AL159: 0 | AM159: 0 | AN159: 70499 | AO159: 632 | AP159: 0 | AV159: 0 | AX159: 0 | AZ159: 0 | BA159: 0 | BB159: 0 | BC159: 0 | BD159: 0 | BE159: 0 | BF159: 8048
A160: 3052 | B160: St Mark's CEP School | C160: 1 | D160: 309 | E160: 0 | F160: 0 | G160: 48 | H160: 0 | I160: 60.97324415 | J160: 0 | K160: 7 | L160: 0 | M160: 0 | N160: 72 | O160: 0 | P160: 0 | Q160: 0 | R160: 0 | S160: 0 | T160: 0 | U160: 0 | V160: 0 | W160: 38.33458647 | X160: 0 | Y160: 95.85306122 | Z160: 0 | AA160: 120082.8 | AB160: 0 | AC160: 0 | AD160: 1 | AE160: 0 | AF160: 44856 | AG160: 0 | AH160: 0 | AJ160: 1158245.581 | AK160: 120082.8 | AL160: 0 | AM160: 0 | AN160: 43877 | AO160: 310 | AP160: 0 | AV160: 0 | AX160: 0 | AZ160: 0 | BA160: 0 | BB160: 0 | BC160: 0 | BD160: 0 | BE160: 0 | BF160: 4065
A161: 3053 | B161: St Peter's CEP School | C161: 1 | D161: 139 | E161: 0 | F161: 0 | G161: 16 | H161: 0 | I161: 23.82857143 | J161: 0 | K161: 2 | L161: 2 | M161: 0 | N161: 1 | O161: 0 | P161: 0 | Q161: 0 | R161: 0 | S161: 0 | T161: 0 | U161: 0 | V161: 0 | W161: 4.672268908 | X161: 0 | Y161: 32.63478261 | Z161: 0 | AA161: 120082.8 | AB161: 0 | AC161: 0 | AD161: 1 | AE161: 0 | AF161: 9850 | AG161: 0 | AH161: 7250 | AJ161: 552154.9838 | AK161: 120082.8 | AL161: 0 | AM161: 0 | AN161: 8753 | AO161: 139 | AP161: 0 | AV161: 0 | AX161: 0 | AZ161: 0 | BA161: 0 | BB161: 0 | BC161: 0 | BD161: 0 | BE161: 0 | BF161: 1816
A162: 3054 | B162: Crockham Hill CEP School | C162: 1 | D162: 142 | E162: 0 | F162: 0 | G162: 5 | H162: 0 | I162: 9.260869565 | J162: 0 | K162: 10 | L162: 5 | M162: 0 | N162: 0 | O162: 0 | P162: 0 | Q162: 0 | R162: 0 | S162: 0 | T162: 0 | U162: 0 | V162: 0 | W162: 2.327868852 | X162: 0 | Y162: 23.66666667 | Z162: 0 | AA162: 120082.8 | AB162: 0 | AC162: 0 | AD162: 1.0364 | AE162: 0 | AF162: 17676 | AG162: 0 | AH162: 12500 | AJ162: 573181.488 | AK162: 124453.8139 | AL162: 0 | AM162: 0 | AN162: 17280 | AO162: 137 | AP162: 0 | AV162: 0 | AX162: 0 | AZ162: 0 | BA162: 0 | BB162: 0 | BC162: 0 | BD162: 0 | BE162: 0 | BF162: 1799
A163: 3055 | B163: Churchill CEP School | C163: 1 | D163: 257 | E163: 0 | F163: 0 | G163: 23 | H163: 0 | I163: 34.44329897 | J163: 0 | K163: 4 | L163: 4 | M163: 0 | N163: 0 | O163: 0 | P163: 0 | Q163: 0 | R163: 0 | S163: 0 | T163: 0 | U163: 0 | V163: 0 | W163: 6.646551724 | X163: 0 | Y163: 51.85087719 | Z163: 0 | AA163: 120082.8 | AB163: 0 | AC163: 0 | AD163: 1.0364 | AE163: 0 | AF163: 28476 | AG163: 0 | AH163: 0 | AJ163: 1041464.253 | AK163: 124453.8139 | AL163: 0 | AM163: 0 | AN163: 22748 | AO163: 294 | AP163: 0 | AV163: 0 | AX163: 0 | AZ163: 0 | BA163: 0 | BB163: 0 | BC163: 0 | BD163: 0 | BE163: 0 | BF163: 3960
A164: 3057 | B164: St Peter's CEP School | C164: 1 | D164: 164 | E164: 0 | F164: 0 | G164: 16 | H164: 0 | I164: 23.15294118 | J164: 0 | K164: 12 | L164: 1 | M164: 14 | N164: 0 | O164: 5 | P164: 0 | Q164: 0 | R164: 0 | S164: 0 | T164: 0 | U164: 0 | V164: 0 | W164: 7.028571429 | X164: 0 | Y164: 41 | Z164: 0 | AA164: 120082.8 | AB164: 0 | AC164: 0 | AD164: 1 | AE164: 0 | AF164: 19453 | AG164: 0 | AH164: 9630 | AJ164: 638694.212 | AK164: 120082.8 | AL164: 0 | AM164: 0 | AN164: 15720 | AO164: 165 | AP164: 0 | AV164: 0 | AX164: 0 | AZ164: 0 | BA164: 0 | BB164: 0 | BC164: 0 | BD164: 0 | BE164: 0 | BF164: 2167
A165: 3061 | B165: Bredhurst CEP School | C165: 1 | D165: 125 | E165: 0 | F165: 0 | G165: 4 | H165: 0 | I165: 7.291666667 | J165: 0 | K165: 2 | L165: 7 | M165: 1 | N165: 1 | O165: 1 | P165: 0 | Q165: 0 | R165: 0 | S165: 0 | T165: 0 | U165: 0 | V165: 0 | W165: 7.009345794 | X165: 0 | Y165: 33.01886792 | Z165: 0 | AA165: 120082.8 | AB165: 0 | AC165: 0 | AD165: 1 | AE165: 0 | AF165: 16898 | AG165: 0 | AH165: 0 | AJ165: 490248.9031 | AK165: 120082.8 | AL165: 0 | AM165: 0 | AN165: 14640 | AO165: 120 | AP165: 0 | AV165: 0 | AX165: 0 | AZ165: 0 | BA165: 0 | BB165: 0 | BC165: 0 | BD165: 0 | BE165: 0 | BF165: 1523
A166: 3062 | B166: Burham CEP School | C166: 1 | D166: 172 | E166: 0 | F166: 0 | G166: 16 | H166: 0 | I166: 24.89473684 | J166: 0 | K166: 46 | L166: 7 | M166: 3 | N166: 3 | O166: 3 | P166: 0 | Q166: 0 | R166: 0 | S166: 0 | T166: 0 | U166: 0 | V166: 0 | W166: 4.496732026 | X166: 0 | Y166: 45.70629371 | Z166: 0 | AA166: 120082.8 | AB166: 0 | AC166: 0 | AD166: 1 | AE166: 0 | AF166: 25100 | AG166: 0 | AH166: 0 | AJ166: 603013.8676 | AK166: 120082.8 | AL166: 0 | AM166: 0 | AN166: 21240 | AO166: 150 | AP166: 0 | AV166: 0 | AX166: 0 | AZ166: 0 | BA166: 0 | BB166: 0 | BC166: 0 | BD166: 0 | BE166: 0 | BF166: 1903
A167: 3067 | B167: Harrietsham CEP School | C167: 1 | D167: 212 | E167: 0 | F167: 0 | G167: 30 | H167: 0 | I167: 34.63366337 | J167: 0 | K167: 1 | L167: 1 | M167: 0 | N167: 0 | O167: 2 | P167: 0 | Q167: 0 | R167: 0 | S167: 0 | T167: 0 | U167: 0 | V167: 0 | W167: 4.764044944 | X167: 0 | Y167: 50.83040936 | Z167: 0 | AA167: 120082.8 | AB167: 0 | AC167: 0 | AD167: 1 | AE167: 0 | AF167: 32414 | AG167: 0 | AH167: 0 | AJ167: 726925.9452 | AK167: 120082.8 | AL167: 0 | AM167: 0 | AN167: 29827 | AO167: 194 | AP167: 0 | AV167: 0 | AX167: 0 | AZ167: 0 | BA167: 0 | BB167: 0 | BC167: 0 | BD167: 0 | BE167: 0 | BF167: 2461
A168: 3069 | B168: Leeds & Broomfield CEP School | C168: 1 | D168: 76 | E168: 0 | F168: 0 | G168: 11 | H168: 0 | I168: 15.2 | J168: 0 | K168: 3.04 | L168: 0 | M168: 1.013333333 | N168: 2.026666667 | O168: 3.04 | P168: 0 | Q168: 0 | R168: 0 | S168: 0 | T168: 0 | U168: 0 | V168: 0 | W168: 1.206349206 | X168: 0 | Y168: 26.96774194 | Z168: 0 | AA168: 120082.8 | AB168: 0 | AC168: 0 | AD168: 1 | AE168: 0 | AF168: 6895 | AG168: 0 | AH168: 0 | AJ168: 367027.2145 | AK168: 120082.8 | AL168: 0 | AM168: 0 | AN168: 4419 | AO168: 79 | AP168: 0 | AV168: 0 | AX168: 0 | AZ168: 0 | BA168: 0 | BB168: 0 | BC168: 0 | BD168: 0 | BE168: 0 | BF168: 1269
A169: 3072 | B169: St Michael's CEJ School, Maidstone | C169: 1 | D169: 164 | E169: 0 | F169: 0 | G169: 10 | H169: 0 | I169: 40.22641509 | J169: 0 | K169: 27.16564417 | L169: 0 | M169: 0 | N169: 9.055214724 | O169: 2.012269939 | P169: 0 | Q169: 0 | R169: 0 | S169: 0 | T169: 0 | U169: 0 | V169: 0 | W169: 16 | X169: 0 | Y169: 41.80392157 | Z169: 0 | AA169: 120082.8 | AB169: 0 | AC169: 0 | AD169: 1 | AE169: 0 | AF169: 11988 | AG169: 0 | AH169: 0 | AJ169: 636354.9347 | AK169: 120082.8 | AL169: 0 | AM169: 0 | AN169: 9410 | AO169: 163 | AP169: 0 | AV169: 0 | AX169: 0 | AZ169: 0 | BA169: 0 | BB169: 0 | BC169: 0 | BD169: 0 | BE169: 0 | BF169: 2068
A170: 3073 | B170: St Michael's CEI School, Maidstone | C170: 1 | D170: 121 | E170: 0 | F170: 0 | G170: 7 | H170: 0 | I170: 10 | J170: 0 | K170: 25 | L170: 1 | M170: 1 | N170: 2 | O170: 0 | P170: 0 | Q170: 0 | R170: 0 | S170: 0 | T170: 0 | U170: 0 | V170: 0 | W170: 23.90123457 | X170: 0 | Y170: 29.87654321 | Z170: 0 | AA170: 120082.8 | AB170: 0 | AC170: 0 | AD170: 1 | AE170: 0 | AF170: 11865 | AG170: 0 | AH170: 0 | AJ170: 515069.8137 | AK170: 120082.8 | AL170: 0 | AM170: 0 | AN170: 9720 | AO170: 121 | AP170: 0 | AV170: 0 | AX170: 0 | AZ170: 0 | BA170: 0 | BB170: 0 | BC170: 0 | BD170: 0 | BE170: 0 | BF170: 1734
A171: 3081 | B171: Thurnham CEI School | C171: 1 | D171: 271 | E171: 0 | F171: 0 | G171: 4 | H171: 0 | I171: 4 | J171: 0 | K171: 3 | L171: 0 | M171: 0 | N171: 2 | O171: 1 | P171: 0 | Q171: 0 | R171: 0 | S171: 0 | T171: 0 | U171: 0 | V171: 0 | W171: 23.9558011 | X171: 0 | Y171: 49.96089385 | Z171: 0 | AA171: 120082.8 | AB171: 0 | AC171: 0 | AD171: 1 | AE171: 0 | AF171: 27878 | AG171: 0 | AH171: 0 | AJ171: 940263.0227 | AK171: 120082.8 | AL171: 0 | AM171: 0 | AN171: 25390 | AO171: 273 | AP171: 0 | AV171: 0 | AX171: 0 | AZ171: 0 | BA171: 0 | BB171: 0 | BC171: 0 | BD171: 0 | BE171: 0 | BF171: 3948
A172: 3082 | B172: Trottiscliffe CEP School | C172: 1 | D172: 82 | E172: 0 | F172: 0 | G172: 4 | H172: 0 | I172: 8.98630137 | J172: 0 | K172: 0 | L172: 3.037037037 | M172: 0 | N172: 1.012345679 | O172: 0 | P172: 0 | Q172: 0 | R172: 0 | S172: 0 | T172: 0 | U172: 0 | V172: 0 | W172: 0 | X172: 0 | Y172: 18.08823529 | Z172: 0 | AA172: 120082.8 | AB172: 0 | AC172: 0 | AD172: 1 | AE172: 0 | AF172: 9121 | AG172: 0 | AH172: 0 | AJ172: 320489.2356 | AK172: 120082.8 | AL172: 0 | AM172: 0 | AN172: 5108 | AO172: 66 | AP172: 0 | AV172: 0 | AX172: 0 | AZ172: 0 | BA172: 0 | BB172: 0 | BC172: 0 | BD172: 0 | BE172: 0 | BF172: 1269
A173: 3083 | B173: Ulcombe CEP School | C173: 1 | D173: 84 | E173: 0 | F173: 0 | G173: 33 | H173: 0 | I173: 33 | J173: 0 | K173: 0 | L173: 0 | M173: 0 | N173: 1 | O173: 0 | P173: 0 | Q173: 0 | R173: 0 | S173: 0 | T173: 0 | U173: 0 | V173: 0 | W173: 1.217391304 | X173: 0 | Y173: 39.62264151 | Z173: 0 | AA173: 120082.8 | AB173: 0 | AC173: 0 | AD173: 1 | AE173: 0 | AF173: 6701 | AG173: 0 | AH173: 0 | AJ173: 350510.7712 | AK173: 120082.8 | AL173: 0 | AM173: 0 | AN173: 4247 | AO173: 71 | AP173: 0 | AV173: 0 | AX173: 0 | AZ173: 0 | BA173: 0 | BB173: 0 | BC173: 0 | BD173: 0 | BE173: 0 | BF173: 1269
A174: 3084 | B174: Wateringbury CEP School | C174: 1 | D174: 202 | E174: 0 | F174: 0 | G174: 25 | H174: 0 | I174: 26.79591837 | J174: 0 | K174: 7.034825871 | L174: 4.019900498 | M174: 0 | N174: 0 | O174: 2.009950249 | P174: 0 | Q174: 0 | R174: 0 | S174: 0 | T174: 0 | U174: 0 | V174: 0 | W174: 4.752941176 | X174: 0 | Y174: 54.75903614 | Z174: 0 | AA174: 120082.8 | AB174: 0 | AC174: 0 | AD174: 1 | AE174: 0 | AF174: 8186 | AG174: 0 | AH174: 0 | AJ174: 714727.5355 | AK174: 120082.8 | AL174: 0 | AM174: 0 | AN174: 4584 | AO174: 199 | AP174: 0 | AV174: 0 | AX174: 0 | AZ174: 0 | BA174: 0 | BB174: 0 | BC174: 0 | BD174: 0 | BE174: 0 | BF174: 2525
A175: 3088 | B175: Wouldham, All Saint's CEP School | C175: 1 | D175: 299 | E175: 0 | F175: 0 | G175: 18 | H175: 0 | I175: 20.5733945 | J175: 0 | K175: 14 | L175: 39 | M175: 6 | N175: 2 | O175: 11 | P175: 0 | Q175: 0 | R175: 0 | S175: 0 | T175: 0 | U175: 0 | V175: 0 | W175: 5.932539683 | X175: 0 | Y175: 92.88085106 | Z175: 0 | AA175: 120082.8 | AB175: 0 | AC175: 0 | AD175: 1 | AE175: 0 | AF175: 72925 | AG175: 0 | AH175: 0 | AJ175: 789399.7551 | AK175: 120082.8 | AL175: 0 | AM175: 0 | AN175: 18240 | AO175: 215 | AP175: 0 | AV175: 0 | AX175: 0 | AZ175: 0 | BA175: 0 | BB175: 0 | BC175: 0 | BD175: 0 | BE175: 0 | BF175: 2753
A176: 3089 | B176: St George's CEP School | C176: 1 | D176: 209 | E176: 0 | F176: 0 | G176: 20 | H176: 0 | I176: 35.65876777 | J176: 0 | K176: 10 | L176: 8 | M176: 0 | N176: 2 | O176: 1 | P176: 0 | Q176: 0 | R176: 0 | S176: 0 | T176: 0 | U176: 0 | V176: 0 | W176: 2.335195531 | X176: 0 | Y176: 70.05586592 | Z176: 0 | AA176: 120082.8 | AB176: 0 | AC176: 0 | AD176: 1 | AE176: 0 | AF176: 17813 | AG176: 0 | AH176: 0 | AJ176: 789084.6017 | AK176: 120082.8 | AL176: 0 | AM176: 0 | AN176: 11763 | AO176: 210 | AP176: 0 | AV176: 0 | AX176: 0 | AZ176: 0 | BA176: 0 | BB176: 0 | BC176: 0 | BD176: 0 | BE176: 0 | BF176: 2683
A177: 3090 | B177: St Margaret's CEP School, Collier Street | C177: 1 | D177: 118 | E177: 0 | F177: 0 | G177: 4 | H177: 0 | I177: 5.086206897 | J177: 0 | K177: 0 | L177: 0 | M177: 12 | N177: 1 | O177: 1 | P177: 0 | Q177: 0 | R177: 0 | S177: 0 | T177: 0 | U177: 0 | V177: 0 | W177: 1.18 | X177: 0 | Y177: 54.18367347 | Z177: 0 | AA177: 120082.8 | AB177: 0 | AC177: 0 | AD177: 1 | AE177: 0 | AF177: 15670 | AG177: 0 | AH177: 0 | AJ177: 504014.6517 | AK177: 120082.8 | AL177: 0 | AM177: 0 | AN177: 15960 | AO177: 120 | AP177: 0 | AV177: 0 | AX177: 0 | AZ177: 0 | BA177: 0 | BB177: 0 | BC177: 0 | BD177: 0 | BE177: 0 | BF177: 1535
A178: 3091 | B178: Laddingford St Mary's CEP School | C178: 1 | D178: 78 | E178: 0 | F178: 0 | G178: 15 | H178: 0 | I178: 16.20779221 | J178: 0 | K178: 6 | L178: 0 | M178: 5 | N178: 0 | O178: 0 | P178: 0 | Q178: 0 | R178: 0 | S178: 0 | T178: 0 | U178: 0 | V178: 0 | W178: 2.260869565 | X178: 0 | Y178: 22.94117647 | Z178: 0 | AA178: 120082.8 | AB178: 0 | AC178: 0 | AD178: 1 | AE178: 0 | AF178: 7078 | AG178: 0 | AH178: 5427 | AJ178: 368736.5306 | AK178: 120082.8 | AL178: 0 | AM178: 0 | AN178: 5166 | AO178: 78 | AP178: 0 | AV178: 0 | AX178: 0 | AZ178: 0 | BA178: 0 | BB178: 0 | BC178: 0 | BD178: 0 | BE178: 0 | BF178: 1269
A179: 3092 | B179: Yalding St Peter & St Paul CEP School | C179: 1 | D179: 167 | E179: 0 | F179: 0 | G179: 4 | H179: 0 | I179: 11.8516129 | J179: 0 | K179: 5 | L179: 0 | M179: 1 | N179: 0 | O179: 0 | P179: 0 | Q179: 0 | R179: 0 | S179: 0 | T179: 0 | U179: 0 | V179: 0 | W179: 1.176056338 | X179: 0 | Y179: 37.90070922 | Z179: 0 | AA179: 120082.8 | AB179: 0 | AC179: 0 | AD179: 1 | AE179: 0 | AF179: 15916 | AG179: 0 | AH179: 0 | AJ179: 591606.6609 | AK179: 120082.8 | AL179: 0 | AM179: 0 | AN179: 13680 | AO179: 156 | AP179: 0 | AV179: 0 | AX179: 0 | AZ179: 0 | BA179: 0 | BB179: 0 | BC179: 0 | BD179: 0 | BE179: 0 | BF179: 2027
A180: 3106 | B180: Eastchurch CEP School | C180: 1 | D180: 435 | E180: 0 | F180: 0 | G180: 103 | H180: 0 | I180: 153.8646288 | J180: 0 | K180: 17.03917051 | L180: 105.2419355 | M180: 0 | N180: 136.3133641 | O180: 121.2788018 | P180: 12.02764977 | Q180: 0 | R180: 0 | S180: 0 | T180: 0 | U180: 0 | V180: 0 | W180: 9.08616188 | X180: 0 | Y180: 149.2761394 | Z180: 0 | AA180: 120082.8 | AB180: 0 | AC180: 0 | AD180: 1 | AE180: 33000 | AF180: 76608 | AG180: 0 | AH180: 0 | AJ180: 1823642.967 | AK180: 120082.8 | AL180: 0 | AM180: 33000 | AN180: 74936 | AO180: 467 | AP180: 0 | AR180: 4 | AS180: 0.9 | AT180: 0 | AV180: 0 | AX180: 0 | AZ180: 0 | BA180: 0 | BB180: 0 | BC180: 0 | BD180: 0 | BE180: 0 | BF180: 6343
A181: 3108 | B181: Ospringe CEP School | C181: 1 | D181: 222 | E181: 0 | F181: 0 | G181: 43 | H181: 0 | I181: 60.04918033 | J181: 0 | K181: 28 | L181: 14 | M181: 69 | N181: 3 | O181: 12 | P181: 0 | Q181: 0 | R181: 0 | S181: 0 | T181: 0 | U181: 0 | V181: 0 | W181: 4.417910448 | X181: 0 | Y181: 57.76530612 | Z181: 0 | AA181: 120082.8 | AB181: 0 | AC181: 0 | AD181: 1 | AE181: 0 | AF181: 22709 | AG181: 0 | AH181: 0 | AJ181: 931582.9408 | AK181: 120082.8 | AL181: 0 | AM181: 0 | AN181: 23526 | AO181: 246 | AP181: 0 | AV181: 0 | AX181: 0 | AZ181: 0 | BA181: 0 | BB181: 0 | BC181: 0 | BD181: 0 | BE181: 0 | BF181: 3140
A182: 3109 | B182: Hernhill CEP School | C182: 1 | D182: 203 | E182: 0 | F182: 0 | G182: 8 | H182: 0 | I182: 14 | J182: 0 | K182: 23 | L182: 8 | M182: 6 | N182: 0 | O182: 1 | P182: 0 | Q182: 0 | R182: 0 | S182: 0 | T182: 0 | U182: 0 | V182: 0 | W182: 0 | X182: 0 | Y182: 50.4566474 | Z182: 0 | AA182: 120082.8 | AB182: 0 | AC182: 0 | AD182: 1 | AE182: 0 | AF182: 31248 | AG182: 0 | AH182: 0 | AJ182: 756752.8275 | AK182: 120082.8 | AL182: 0 | AM182: 0 | AN182: 30566 | AO182: 205 | AP182: 0 | AV182: 0 | AX182: 0 | AZ182: 0 | BA182: 0 | BB182: 0 | BC182: 0 | BD182: 0 | BE182: 0 | BF182: 2601
A183: 3111 | B183: Newington CEP School | C183: 1 | D183: 172 | E183: 0 | F183: 0 | G183: 30 | H183: 0 | I183: 52.30409357 | J183: 0 | K183: 60 | L183: 6 | M183: 4 | N183: 1 | O183: 0 | P183: 1 | Q183: 0 | R183: 0 | S183: 0 | T183: 0 | U183: 0 | V183: 0 | W183: 2.278145695 | X183: 0 | Y183: 49.97297297 | Z183: 0 | AA183: 120082.8 | AB183: 0 | AC183: 0 | AD183: 1 | AE183: 0 | AF183: 33516 | AG183: 0 | AH183: 0 | AJ183: 692983.5515 | AK183: 120082.8 | AL183: 0 | AM183: 0 | AN183: 32785 | AO183: 171 | AP183: 0 | AV183: 0 | AX183: 0 | AZ183: 0 | BA183: 0 | BB183: 0 | BC183: 0 | BD183: 0 | BE183: 0 | BF183: 2169
A184: 3117 | B184: Teynham Parochial CEP School | C184: 1 | D184: 209 | E184: 0 | F184: 0 | G184: 35 | H184: 0 | I184: 60.44607843 | J184: 0 | K184: 84 | L184: 14 | M184: 15 | N184: 16 | O184: 4 | P184: 0 | Q184: 0 | R184: 0 | S184: 0 | T184: 0 | U184: 0 | V184: 0 | W184: 9.340782123 | X184: 0 | Y184: 66.06321839 | Z184: 0 | AA184: 120082.8 | AB184: 0 | AC184: 0 | AD184: 1 | AE184: 0 | AF184: 15884 | AG184: 0 | AH184: 0 | AJ184: 804076.2073 | AK184: 120082.8 | AL184: 0 | AM184: 0 | AN184: 12939 | AO184: 202 | AP184: 0 | AV184: 0 | AX184: 0 | AZ184: 0 | BA184: 0 | BB184: 0 | BC184: 0 | BD184: 0 | BE184: 0 | BF184: 2624
A185: 3120 | B185: Barham CEP School | C185: 1 | D185: 207 | E185: 0 | F185: 0 | G185: 6 | H185: 0 | I185: 10.09756098 | J185: 0 | K185: 23 | L185: 3 | M185: 0 | N185: 9 | O185: 2 | P185: 0 | Q185: 0 | R185: 0 | S185: 0 | T185: 0 | U185: 0 | V185: 0 | W185: 15.20338983 | X185: 0 | Y185: 35.68965517 | Z185: 0 | AA185: 120082.8 | AB185: 0 | AC185: 0 | AD185: 1 | AE185: 0 | AF185: 28224 | AG185: 0 | AH185: 0 | AJ185: 736716.1386 | AK185: 120082.8 | AL185: 0 | AM185: 0 | AN185: 27608 | AO185: 202 | AP185: 0 | AV185: 0 | AX185: 0 | AZ185: 0 | BA185: 0 | BB185: 0 | BC185: 0 | BD185: 0 | BE185: 0 | BF185: 2601
A186: 3122 | B186: Bridge & Patrixbourne CEP School | C186: 1 | D186: 419 | E186: 0 | F186: 0 | G186: 11 | H186: 0 | I186: 21 | J186: 0 | K186: 7 | L186: 0 | M186: 3 | N186: 12 | O186: 7 | P186: 0 | Q186: 0 | R186: 0 | S186: 0 | T186: 0 | U186: 0 | V186: 0 | W186: 38.40833333 | X186: 0 | Y186: 60.88034188 | Z186: 0 | AA186: 120082.8 | AB186: 0 | AC186: 0 | AD186: 1 | AE186: 0 | AF186: 34524 | AG186: 0 | AH186: 0 | AJ186: 1365531.506 | AK186: 120082.8 | AL186: 0 | AM186: 0 | AN186: 33771 | AO186: 413 | AP186: 0 | AV186: 0 | AX186: 0 | AZ186: 0 | BA186: 0 | BB186: 0 | BC186: 0 | BD186: 0 | BE186: 0 | BF186: 5342
A187: 3123 | B187: Chislet CEP School | C187: 1 | D187: 95 | E187: 0 | F187: 0 | G187: 1 | H187: 0 | I187: 8.085106383 | J187: 0 | K187: 6 | L187: 22 | M187: 2 | N187: 0 | O187: 0 | P187: 0 | Q187: 0 | R187: 0 | S187: 0 | T187: 0 | U187: 0 | V187: 0 | W187: 1.1875 | X187: 0 | Y187: 25.57692308 | Z187: 0 | AA187: 120082.8 | AB187: 0 | AC187: 0 | AD187: 1 | AE187: 0 | AF187: 6015 | AG187: 0 | AH187: 0 | AJ187: 409539.7814 | AK187: 120082.8 | AL187: 0 | AM187: 0 | AN187: 5682 | AO187: 95 | AP187: 0 | AV187: 0 | AX187: 0 | AZ187: 0 | BA187: 0 | BB187: 0 | BC187: 0 | BD187: 0 | BE187: 0 | BF187: 1269
A188: 3126 | B188: Littlebourne CEP School | C188: 1 | D188: 96 | E188: 0 | F188: 0 | G188: 19 | H188: 0 | I188: 26.83870968 | J188: 0 | K188: 4 | L188: 0 | M188: 1 | N188: 11 | O188: 3 | P188: 0 | Q188: 0 | R188: 0 | S188: 0 | T188: 0 | U188: 0 | V188: 0 | W188: 7.291139241 | X188: 0 | Y188: 33.72972973 | Z188: 0 | AA188: 120082.8 | AB188: 0 | AC188: 0 | AD188: 1 | AE188: 0 | AF188: 11048 | AG188: 0 | AH188: 0 | AJ188: 410999.2331 | AK188: 120082.8 | AL188: 0 | AM188: 0 | AN188: 10800 | AO188: 88 | AP188: 0 | AV188: 0 | AX188: 0 | AZ188: 0 | BA188: 0 | BB188: 0 | BC188: 0 | BD188: 0 | BE188: 0 | BF188: 1269
A189: 3129 | B189: St Alphege CEI School | C189: 1 | D189: 164 | E189: 0 | F189: 0 | G189: 21 | H189: 0 | I189: 22.58682635 | J189: 0 | K189: 1 | L189: 0 | M189: 10 | N189: 0 | O189: 21 | P189: 0 | Q189: 0 | R189: 0 | S189: 0 | T189: 0 | U189: 0 | V189: 0 | W189: 4.598130841 | X189: 0 | Y189: 46.41509434 | Z189: 0 | AA189: 120082.8 | AB189: 0 | AC189: 0 | AD189: 1 | AE189: 0 | AF189: 30996 | AG189: 0 | AH189: 0 | AJ189: 659955.0348 | AK189: 120082.8 | AL189: 0 | AM189: 0 | AN189: 30320 | AO189: 164 | AP189: 0 | AR189: 4 | AS189: 0.9 | AT189: 0 | AV189: 0 | AX189: 0 | AZ189: 0 | BA189: 0 | BB189: 0 | BC189: 0 | BD189: 0 | BE189: 0 | BF189: 2624
A190: 3130 | B190: Wickhambreaux CEP School | C190: 1 | D190: 132 | E190: 0 | F190: 0 | G190: 4 | H190: 0 | I190: 10.47619048 | J190: 0 | K190: 2 | L190: 4 | M190: 3 | N190: 0 | O190: 0 | P190: 0 | Q190: 0 | R190: 0 | S190: 0 | T190: 0 | U190: 0 | V190: 0 | W190: 6.947368421 | X190: 0 | Y190: 12.57142857 | Z190: 0 | AA190: 120082.8 | AB190: 0 | AC190: 0 | AD190: 1 | AE190: 0 | AF190: 8593 | AG190: 0 | AH190: 0 | AJ190: 505140.9529 | AK190: 120082.8 | AL190: 0 | AM190: 0 | AN190: 8400 | AO190: 125 | AP190: 0 | AV190: 0 | AX190: 0 | AZ190: 0 | BA190: 0 | BB190: 0 | BC190: 0 | BD190: 0 | BE190: 0 | BF190: 1586
A191: 3134 | B191: John Mayne CEP School | C191: 1 | D191: 109 | E191: 0 | F191: 0 | G191: 13 | H191: 0 | I191: 13 | J191: 0 | K191: 0 | L191: 0 | M191: 0 | N191: 0 | O191: 0 | P191: 0 | Q191: 0 | R191: 0 | S191: 0 | T191: 0 | U191: 0 | V191: 0 | W191: 2.395604396 | X191: 0 | Y191: 35.12222222 | Z191: 0 | AA191: 120082.8 | AB191: 13627.55407 | AC191: 0 | AD191: 1 | AE191: 0 | AF191: 13614 | AG191: 0 | AH191: 0 | AJ191: 488896.1776 | AK191: 120082.8 | AL191: 11289.49332 | AM191: 0 | AN191: 11091 | AO191: 116 | AP191: 0 | AV191: 0 | AX191: 0 | AZ191: 0 | BA191: 0 | BB191: 0 | BC191: 0 | BD191: 0 | BE191: 0 | BF191: 1472
A192: 3136 | B192: Brabourne CEP School | C192: 1 | D192: 94 | E192: 0 | F192: 0 | G192: 3 | H192: 0 | I192: 8.545454545 | J192: 0 | K192: 4 | L192: 1 | M192: 1 | N192: 0 | O192: 0 | P192: 0 | Q192: 0 | R192: 0 | S192: 0 | T192: 0 | U192: 0 | V192: 0 | W192: 2.320987654 | X192: 0 | Y192: 25.40540541 | Z192: 0 | AA192: 120082.8 | AB192: 0 | AC192: 0 | AD192: 1 | AE192: 0 | AF192: 5413 | AG192: 0 | AH192: 0 | AJ192: 409694.1175 | AK192: 120082.8 | AL192: 0 | AM192: 0 | AN192: 5085 | AO192: 96 | AP192: 0 | AV192: 0 | AX192: 0 | AZ192: 0 | BA192: 0 | BB192: 0 | BC192: 0 | BD192: 0 | BE192: 0 | BF192: 1269
A193: 3137 | B193: Brookland CEP School | C193: 1 | D193: 101 | E193: 0 | F193: 0 | G193: 12 | H193: 0 | I193: 18 | J193: 0 | K193: 0 | L193: 10 | M193: 35 | N193: 1 | O193: 0 | P193: 0 | Q193: 0 | R193: 0 | S193: 0 | T193: 0 | U193: 0 | V193: 0 | W193: 1.174418605 | X193: 0 | Y193: 14.42857143 | Z193: 0 | AA193: 120082.8 | AB193: 0 | AC193: 0 | AD193: 1 | AE193: 0 | AF193: 11784 | AG193: 0 | AH193: 0 | AJ193: 447512.1124 | AK193: 120082.8 | AL193: 0 | AM193: 0 | AN193: 11520 | AO193: 102 | AP193: 0 | AV193: 0 | AX193: 0 | AZ193: 0 | BA193: 0 | BB193: 0 | BC193: 0 | BD193: 0 | BE193: 0 | BF193: 1347
A194: 3138 | B194: Chilham St Mary's CEP School | C194: 1 | D194: 93 | E194: 0 | F194: 0 | G194: 18 | H194: 0 | I194: 23.25 | J194: 0 | K194: 0 | L194: 0 | M194: 0 | N194: 0 | O194: 1 | P194: 0 | Q194: 0 | R194: 0 | S194: 0 | T194: 0 | U194: 0 | V194: 0 | W194: 3.4875 | X194: 0 | Y194: 27.77922078 | Z194: 0 | AA194: 120082.8 | AB194: 0 | AC194: 0 | AD194: 1 | AE194: 0 | AF194: 8073 | AG194: 0 | AH194: 8400 | AJ194: 418737.8621 | AK194: 120082.8 | AL194: 0 | AM194: 0 | AN194: 7174 | AO194: 91 | AP194: 0 | AV194: 0 | AX194: 0 | AZ194: 0 | BA194: 0 | BB194: 0 | BC194: 0 | BD194: 0 | BE194: 0 | BF194: 1269
A195: 3139 | B195: High Halden CEP School | C195: 1 | D195: 90 | E195: 0 | F195: 0 | G195: 6 | H195: 0 | I195: 15.48387097 | J195: 0 | K195: 1 | L195: 0 | M195: 0 | N195: 0 | O195: 0 | P195: 0 | Q195: 0 | R195: 0 | S195: 0 | T195: 0 | U195: 0 | V195: 0 | W195: 1.084337349 | X195: 0 | Y195: 18 | Z195: 0 | AA195: 120082.8 | AB195: 0 | AC195: 0 | AD195: 1 | AE195: 0 | AF195: 15712 | AG195: 0 | AH195: 0 | AJ195: 412884.7026 | AK195: 120082.8 | AL195: 0 | AM195: 0 | AN195: 15360 | AO195: 92 | AP195: 0 | AV195: 0 | AX195: 0 | AZ195: 0 | BA195: 0 | BB195: 0 | BC195: 0 | BD195: 0 | BE195: 0 | BF195: 1269
A196: 3145 | B196: Woodchurch CEP School | C196: 1 | D196: 174 | E196: 0 | F196: 0 | G196: 25 | H196: 0 | I196: 27.79881657 | J196: 0 | K196: 3 | L196: 1 | M196: 5 | N196: 1 | O196: 1 | P196: 0 | Q196: 0 | R196: 0 | S196: 0 | T196: 0 | U196: 0 | V196: 0 | W196: 0 | X196: 0 | Y196: 51.95833333 | Z196: 0 | AA196: 120082.8 | AB196: 0 | AC196: 0 | AD196: 1 | AE196: 0 | AF196: 11539 | AG196: 0 | AH196: 0 | AJ196: 623512.5547 | AK196: 120082.8 | AL196: 0 | AM196: 0 | AN196: 11280 | AO196: 163 | AP196: 0 | AV196: 0 | AX196: 0 | AZ196: 0 | BA196: 0 | BB196: 0 | BC196: 0 | BD196: 0 | BE196: 0 | BF196: 2068
A197: 3146 | B197: Bodsham CEP School | C197: 1 | D197: 79 | E197: 0 | F197: 0 | G197: 0 | H197: 0 | I197: 0.8404255319 | J197: 0 | K197: 0 | L197: 1.012820513 | M197: 1.012820513 | N197: 0 | O197: 0 | P197: 0 | Q197: 0 | R197: 0 | S197: 0 | T197: 0 | U197: 0 | V197: 0 | W197: 1.112676056 | X197: 0 | Y197: 11.79104478 | Z197: 0 | AA197: 120082.8 | AB197: 23647.81442 | AC197: 0 | AD197: 1 | AE197: 0 | AF197: 5960 | AG197: 0 | AH197: 0 | AJ197: 410394.4035 | AK197: 120082.8 | AL197: 18971.69292 | AM197: 0 | AN197: 5800 | AO197: 93 | AP197: 0 | AV197: 0 | AX197: 0 | AZ197: 0 | BA197: 0 | BB197: 0 | BC197: 0 | BD197: 0 | BE197: 0 | BF197: 1269
A198: 3149 | B198: St Martin's CEP School, Folkestone | C198: 1 | D198: 209 | E198: 0 | F198: 0 | G198: 18 | H198: 0 | I198: 29 | J198: 0 | K198: 22 | L198: 17 | M198: 5 | N198: 3 | O198: 3 | P198: 2 | Q198: 0 | R198: 0 | S198: 0 | T198: 0 | U198: 0 | V198: 0 | W198: 5.837988827 | X198: 0 | Y198: 46.71764706 | Z198: 0 | AA198: 120082.8 | AB198: 0 | AC198: 0 | AD198: 1 | AE198: 0 | AF198: 19198 | AG198: 0 | AH198: 0 | AJ198: 763519.8035 | AK198: 120082.8 | AL198: 0 | AM198: 0 | AN198: 18768 | AO198: 207 | AP198: 0 | AV198: 0 | AX198: 0 | AZ198: 0 | BA198: 0 | BB198: 0 | BC198: 0 | BD198: 0 | BE198: 0 | BF198: 2636
A199: 3150 | B199: St Peter's CEP School, Folkestone | C199: 1 | D199: 108 | E199: 0 | F199: 0 | G199: 34 | H199: 0 | I199: 46.13592233 | J199: 0 | K199: 2 | L199: 2 | M199: 17 | N199: 33 | O199: 15 | P199: 36 | Q199: 0 | R199: 0 | S199: 0 | T199: 0 | U199: 0 | V199: 0 | W199: 5.806451613 | X199: 0 | Y199: 38.83146067 | Z199: 0 | AA199: 120082.8 | AB199: 0 | AC199: 0 | AD199: 1 | AE199: 0 | AF199: 2522 | AG199: 0 | AH199: 27480 | AJ199: 532023.936 | AK199: 120082.8 | AL199: 0 | AM199: 0 | AN199: 1879 | AO199: 104 | AP199: 0 | AV199: 0 | AX199: 0 | AZ199: 0 | BA199: 0 | BB199: 0 | BC199: 0 | BD199: 0 | BE199: 0 | BF199: 1347
A200: 3153 | B200: Seabrook CEP School | C200: 1 | D200: 107 | E200: 0 | F200: 0 | G200: 10 | H200: 0 | I200: 19.17924528 | J200: 0 | K200: 16 | L200: 26 | M200: 5 | N200: 4 | O200: 0 | P200: 0 | Q200: 0 | R200: 0 | S200: 0 | T200: 0 | U200: 0 | V200: 0 | W200: 1.163043478 | X200: 0 | Y200: 12.15909091 | Z200: 0 | AA200: 120082.8 | AB200: 0 | AC200: 0 | AD200: 1 | AE200: 0 | AF200: 1114 | AG200: 0 | AH200: 0 | AJ200: 449849.821 | AK200: 120082.8 | AL200: 0 | AM200: 0 | AN200: 445 | AO200: 107 | AP200: 0 | AV200: 0 | AX200: 0 | AZ200: 0 | BA200: 0 | BB200: 0 | BC200: 0 | BD200: 0 | BE200: 0 | BF200: 1359
... 119 more rows

Sheet TestArea (hidden)
A1: MI DfE no | B1: School Name | D1: Macro School Name | E1: Data Calc | F1: =SUM(F2:F318) -> 0 | H1: Macro F1 | I1: Data Calc F1 | J1: 0 | L1: Macro F2 | M1: Data Calc F2 | N1: 0 | P1: Macro F4 | Q1: Data Calc F4 | R1: 0 | T1: Macro F6 | U1: Data Calc F6 | V1: 0 | X1: Macro F7 | Y1: Data Calc F7 | Z1: 0 | AB1: Macro F8 | AC1: Data Calc F8 | AD1: 0 | AF1: Macro F9 | AG1: Data Calc F9 | AH1: 0 | AJ1: Macro F10 | AK1: Data Calc F10 | AL1: 0 | AN1: Macro F11 | AO1: Data Calc F11 | AP1: 0 | AR1: Macro F12 | AS1: Data Calc F12 | AT1: 0 | AV1: Macro F13 | AW1: Data Calc F13 | AX1: 0 | AZ1: Macro F14 | BA1: Data Calc F14 | BB1: 0 | BD1: Macro FFT | BE1: Data Calc FFT | BF1: 0 | BH1: Macro MFG | BI1: Data Calc MFG | BJ1: 0 | BL1: Macro SBS | BM1: Data Calc SBS | BN1: 0 | BP1: Macro Growth | BQ1: Data Calc Growth | BR1: 0 | BT1: Macro SBS Inc Growth | BU1: Data Calc SBS Inc Growth | BV1: 0 | BX1: Early years rate | BZ1: =SUM(BZ2:BZ318) -> 156 | CB1: Macro Notional SEN | CC1: Data Calc | CD1: =SUM(CD2:CD318) -> 39528669 | CF1: Macro SEN top up | CG1: Data Calc | CH1: =SUM(CH2:CH318) -> 224318 | CJ1: SRP Element 1 | CK1: Data Calc | CL1: =SUM(CL2:CL318) -> 136001 | CN1: SRP Element 2 | CO1: Data Calc | CP1: =SUM(CP2:CP318) -> 3147000 | CR1: SRP 1 Pre | CS1: Data Calc | CT1: =SUM(CT2:CT318) -> 15514 | CV1: SRP 1 Post | CW1: Data Calc | CX1: =SUM(CX2:CX318) -> 15514 | CZ1: SRP 2 Pre | DA1: Data Calc | DB1: =SUM(DB2:DB318) -> 15514 | DD1: SRP 2 Post | DE1: Data Calc | DF1: =SUM(DF2:DF318) -> 15514 | DH1: Qual Year1 | DI1: Data Calc | DJ1: =SUM(DJ2:DJ318) -> 20 | DL1: Orig PAN 1 | DM1: Data Calc | DN1: =SUM(DN2:DN318) -> -405 | DP1: New PAN | DQ1: Data Calc | DR1: =SUM(DR2:DR318) -> 20 | DT1: Qual Year2 | DU1: Data Calc | DV1: =SUM(DV2:DV318) -> 15 | DX1: Orig PAN2 | DY1: Data Calc | DZ1: =SUM(DZ2:DZ318) -> 24 | EB1: New PAN2 | EC1: Data Calc | ED1: =SUM(ED2:ED318) -> 16 | EF1: Qual Year3 | EG1: Data Calc | EH1: =SUM(EH2:EH318) -> 7 | EJ1: Orig PAN3 | EK1: Data Calc | EL1: =SUM(EL2:EL318) -> 18 | EN1: New PAN3 | EO1: Data Calc | EP1: =SUM(EP2:EP318) -> 8
A2: 1001 | B2: Northfleet Nursery | D2: Northfleet Nursery | E2: Northfleet Nursery | F2: =IF(E2=D2,0,1) -> 0 | H2: 0 | I2: 0 | J2: 0 | L2: 0 | M2: 0 | N2: 0 | P2: 0 | Q2: 0 | R2: 0 | T2: 0 | U2: 0 | V2: 0 | X2: 0 | Y2: 0 | Z2: 0 | AB2: 0 | AC2: 0 | AD2: 0 | AF2: 0 | AG2: 0 | AH2: 0 | AJ2: 0 | AK2: 0 | AL2: 0 | AN2: 0 | AO2: 0 | AP2: 0 | AR2: 0 | AS2: 0 | AT2: 0 | AV2: 0 | AW2: 0 | AX2: 0 | AZ2: 0 | BA2: 0 | BB2: 0 | BD2: 0 | BE2: 0 | BF2: 0 | BH2: 0 | BI2: 0 | BJ2: 0 | BL2: 0 | BM2: 0 | BN2: 0 | BP2: 0 | BR2: 0 | BT2: 0 | BU2: 0 | BV2: 0 | BX2: 5.06 | BZ2: =ROUND(BX2-BY2,0) -> 5 | CB2: 0 | CD2: =ROUND(CB2-CC2,0) -> 0 | CF2: 0 | CH2: =ROUND(CF2-CG2,0) -> 0 | CJ2: 0 | CL2: =ROUND(CJ2-CK2,0) -> 0 | CN2: 0 | CP2: =ROUND(CN2-CO2,0) -> 0 | CR2: 0 | CT2: =ROUND(CR2-CS2,0) -> 0 | CV2: 0 | CX2: =ROUND(CV2-CW2,0) -> 0 | CZ2: 0 | DB2: =ROUND(CZ2-DA2,0) -> 0 | DD2: 0 | DF2: =ROUND(DD2-DE2,0) -> 0 | DH2: NO | DI2: =IF(ISERROR(VLOOKUP($A2+8860000,'Growth Data'!$A:$F,3,0)),"NO",VLOOKUP($A2+8860000,'Growth Data'!$A:$F,3,0)) -> NO | DJ2: =IF(DH2=DI2,0,1) -> 0 | DL2: 0 | DM2: =IF(DI2="YES",IF(ISERROR(VLOOKUP($A2+8860000,'Growth Data'!$A:$F,6,0)),0,VLOOKUP($A2+8860000,'Growth Data'!$A:$F,6,0)),0) -> 0 | DN2: =ROUND(DL2-DM2,0) -> 0 | DP2: 0 | DQ2: =IF(ISERROR(VLOOKUP($A2+8860000,'Growth Data'!$A:$Z,7,0)),0,VLOOKUP($A2+8860000,'Growth Data'!$A:$Z,7,0)) -> 0 | DR2: =IF(DP2=DQ2,0,1) -> 0 | DT2: NO | DU2: =IF(ISERROR(VLOOKUP($A2+8860000,'Growth Data'!$A:$F,4,0)),"NO",VLOOKUP($A2+8860000,'Growth Data'!$A:$F,4,0)) -> NO | DV2: =IF(DT2=DU2,0,1) -> 0 | DX2: 0 | DY2: =IF(ISERROR(VLOOKUP($A2+8860000,'Growth Data'!$A:$Z,8,0)),0,VLOOKUP($A2+8860000,'Growth Data'!$A:$Z,8,0)) -> 0 | DZ2: =IF(DX2=DY2,0,1) -> 0 | EB2: 0 | EC2: =IF(ISERROR(VLOOKUP($A2+8860000,'Growth Data'!$A:$Z,9,0)),0,VLOOKUP($A2+8860000,'Growth Data'!$A:$Z,9,0)) -> 0 | ED2: =IF(EB2=EC2,0,1) -> 0 | EF2: NO | EG2: =IF(ISERROR(VLOOKUP($A2+8860000,'Growth Data'!$A:$Z,5,0)),"NO",VLOOKUP($A2+8860000,'Growth Data'!$A:$Z,5,0)) -> NO | EH2: =IF(EF2=EG2,0,1) -> 0 | EJ2: 0 | EK2: =IF(ISERROR(VLOOKUP($A2+8860000,'Growth Data'!$A:$Z,10,0)),0,VLOOKUP($A2+8860000,'Growth Data'!$A:$Z,10,0)) -> 0 | EL2: =IF(EJ2=EK2,0,1) -> 0 | EN2: 0 | EO2: =IF(ISERROR(VLOOKUP($A2+8860000,'Growth Data'!$A:$Z,11,0)),0,VLOOKUP($A2+8860000,'Growth Data'!$A:$Z,11,0)) -> 0 | EP2: =IF(EN2=EO2,0,1) -> 0
A3: 2000 | B3: St Johns C of E Primary School | D3: St Johns C of E Primary School | E3: St Johns C of E Primary School | F3: 0 | H3: 874145.56 | I3: 874145.5645 | J3: 0 | L3: 200351.76 | M3: 200351.7561 | N3: 0 | P3: 28740.68 | Q3: 28740.6756 | R3: 0 | T3: 90373.54 | U3: 90373.54076 | V3: 0 | X3: 120082.8 | Y3: 120082.8 | Z3: 0 | AB3: 0 | AC3: 0 | AD3: 0 | AF3: 0 | AG3: 0 | AH3: 0 | AJ3: 0 | AK3: 0 | AL3: 0 | AN3: 24182 | AO3: 24182 | AP3: 0 | AR3: 0 | AS3: 0 | AT3: 0 | AV3: 0 | AW3: 0 | AX3: 0 | AZ3: 0 | BA3: 0 | BB3: 0 | BD3: 1337876.34 | BE3: 1337876.337 | BF3: 0 | BH3: 0 | BI3: 0 | BJ3: 0 | BL3: 1337876.34 | BM3: 1337876.337 | BN3: 0 | BP3: 0 | BR3: 0 | BT3: 1337876.34 | BU3: 1337876.337 | BV3: 0 | BX3: 5.09 | BZ3: 5 | CB3: 268901.81 | CD3: 268902 | CF3: 0 | CH3: 0 | CJ3: 0 | CL3: 0 | CN3: 0 | CP3: 0 | CR3: 0 | CT3: 0 | CV3: 0 | CX3: 0 | CZ3: 0 | DB3: 0 | DD3: 0 | DF3: 0 | DH3: NO | DI3: =IF(ISERROR(VLOOKUP($A3+8860000,'Growth Data'!$A:$F,3,0)),"NO",VLOOKUP($A3+8860000,'Growth Data'!$A:$F,3,0)) -> NO | DJ3: 0 | DL3: 0 | DM3: =IF(DI3="YES",IF(ISERROR(VLOOKUP($A3+8860000,'Growth Data'!$A:$F,6,0)),0,VLOOKUP($A3+8860000,'Growth Data'!$A:$F,6,0)),0) -> 0 | DN3: 0 | DP3: 0 | DQ3: =IF(ISERROR(VLOOKUP($A3+8860000,'Growth Data'!$A:$Z,7,0)),0,VLOOKUP($A3+8860000,'Growth Data'!$A:$Z,7,0)) -> 0 | DR3: 0 | DT3: NO | DU3: =IF(ISERROR(VLOOKUP($A3+8860000,'Growth Data'!$A:$F,4,0)),"NO",VLOOKUP($A3+8860000,'Growth Data'!$A:$F,4,0)) -> NO | DV3: 0 | DX3: 0 | DY3: =IF(ISERROR(VLOOKUP($A3+8860000,'Growth Data'!$A:$Z,8,0)),0,VLOOKUP($A3+8860000,'Growth Data'!$A:$Z,8,0)) -> 0 | DZ3: 0 | EB3: 0 | EC3: =IF(ISERROR(VLOOKUP($A3+8860000,'Growth Data'!$A:$Z,9,0)),0,VLOOKUP($A3+8860000,'Growth Data'!$A:$Z,9,0)) -> 0 | ED3: 0 | EF3: NO | EG3: =IF(ISERROR(VLOOKUP($A3+8860000,'Growth Data'!$A:$Z,5,0)),"NO",VLOOKUP($A3+8860000,'Growth Data'!$A:$Z,5,0)) -> NO | EH3: 0 | EJ3: 0 | EK3: =IF(ISERROR(VLOOKUP($A3+8860000,'Growth Data'!$A:$Z,10,0)),0,VLOOKUP($A3+8860000,'Growth Data'!$A:$Z,10,0)) -> 0 | EL3: 0 | EN3: 0 | EO3: =IF(ISERROR(VLOOKUP($A3+8860000,'Growth Data'!$A:$Z,11,0)),0,VLOOKUP($A3+8860000,'Growth Data'!$A:$Z,11,0)) -> 0 | EP3: 0
A4: 2002 | B4: Repton Manor Primary School | D4: Repton Manor Primary School | E4: Repton Manor Primary School | F4: 0 | H4: 1322213.89 | I4: 1322213.889 | J4: 0 | L4: 58131.83 | M4: 58131.82743 | N4: 0 | P4: 22427.77 | Q4: 22427.77402 | R4: 0 | T4: 77193.6 | U4: 77193.60471 | V4: 0 | X4: 120082.8 | Y4: 120082.8 | Z4: 0 | AB4: 0 | AC4: 0 | AD4: 0 | AF4: 0 | AG4: 0 | AH4: 0 | AJ4: 0 | AK4: 0 | AL4: 0 | AN4: 14234 | AO4: 14234 | AP4: 0 | AR4: 0 | AS4: 0 | AT4: 0 | AV4: 0 | AW4: 0 | AX4: 0 | AZ4: 35350.11 | BA4: 35350.10533 | BB4: 0 | BD4: 1649634 | BE4: 1649634 | BF4: 0 | BH4: 0 | BI4: 0 | BJ4: 0 | BL4: 1649634 | BM4: 1649634 | BN4: 0 | BP4: 0 | BR4: 0 | BT4: 1649634 | BU4: 1649634 | BV4: 0 | BX4: 0 | BZ4: 0 | CB4: 150338.79 | CD4: 150339 | CF4: 0 | CH4: 0 | CJ4: 0 | CL4: 0 | CN4: 0 | CP4: 0 | CR4: 0 | CT4: 0 | CV4: 0 | CX4: 0 | CZ4: 0 | DB4: 0 | DD4: 0 | DF4: 0 | DH4: YES | DI4: =IF(ISERROR(VLOOKUP($A4+8860000,'Growth Data'!$A:$F,3,0)),"NO",VLOOKUP($A4+8860000,'Growth Data'!$A:$F,3,0)) -> NO | DJ4: 1 | DL4: 33 | DM4: =IF(DI4="YES",IF(ISERROR(VLOOKUP($A4+8860000,'Growth Data'!$A:$F,6,0)),0,VLOOKUP($A4+8860000,'Growth Data'!$A:$F,6,0)),0) -> 0 | DN4: 33 | DP4: 60 | DQ4: =IF(ISERROR(VLOOKUP($A4+8860000,'Growth Data'!$A:$Z,7,0)),0,VLOOKUP($A4+8860000,'Growth Data'!$A:$Z,7,0)) -> 0 | DR4: 1 | DT4: NO | DU4: =IF(ISERROR(VLOOKUP($A4+8860000,'Growth Data'!$A:$F,4,0)),"NO",VLOOKUP($A4+8860000,'Growth Data'!$A:$F,4,0)) -> NO | DV4: 0 | DX4: 0 | DY4: =IF(ISERROR(VLOOKUP($A4+8860000,'Growth Data'!$A:$Z,8,0)),0,VLOOKUP($A4+8860000,'Growth Data'!$A:$Z,8,0)) -> 0 | DZ4: 0 | EB4: 0 | EC4: =IF(ISERROR(VLOOKUP($A4+8860000,'Growth Data'!$A:$Z,9,0)),0,VLOOKUP($A4+8860000,'Growth Data'!$A:$Z,9,0)) -> 0 | ED4: 0 | EF4: NO | EG4: =IF(ISERROR(VLOOKUP($A4+8860000,'Growth Data'!$A:$Z,5,0)),"NO",VLOOKUP($A4+8860000,'Growth Data'!$A:$Z,5,0)) -> NO | EH4: 0 | EJ4: 0 | EK4: =IF(ISERROR(VLOOKUP($A4+8860000,'Growth Data'!$A:$Z,10,0)),0,VLOOKUP($A4+8860000,'Growth Data'!$A:$Z,10,0)) -> 0 | EL4: 0 | EN4: 0 | EO4: =IF(ISERROR(VLOOKUP($A4+8860000,'Growth Data'!$A:$Z,11,0)),0,VLOOKUP($A4+8860000,'Growth Data'!$A:$Z,11,0)) -> 0 | EP4: 0
A5: 2062 | B5: Darenth Community Primary School | D5: Darenth Community Primary School | E5: Darenth Community Primary School | F5: 0 | H5: 533283.77 | I5: 533283.7721 | J5: 0 | L5: 70820.65 | M5: 70820.64602 | N5: 0 | P5: 6022.83 | Q5: 6022.827584 | R5: 0 | T5: 57333.36 | U5: 57333.35546 | V5: 0 | X5: 120082.8 | Y5: 120082.8 | Z5: 0 | AB5: 0 | AC5: 0 | AD5: 0 | AF5: 28666.58 | AG5: 28666.5798 | AH5: 0 | AJ5: 0 | AK5: 0 | AL5: 0 | AN5: 13409 | AO5: 13409 | AP5: 0 | AR5: 0 | AS5: 0 | AT5: 0 | AV5: 0 | AW5: 0 | AX5: 0 | AZ5: 0 | BA5: 0 | BB5: 0 | BD5: 829618.98 | BE5: 829618.9809 | BF5: 0 | BH5: 0 | BI5: 0 | BJ5: 0 | BL5: 829618.98 | BM5: 829618.9809 | BN5: 0 | BP5: 0 | BR5: 0 | BT5: 829618.98 | BU5: 829618.9809 | BV5: 0 | BX5: 0 | BZ5: 0 | CB5: 126813.26 | CD5: 126813 | CF5: 0 | CH5: 0 | CJ5: 0 | CL5: 0 | CN5: 0 | CP5: 0 | CR5: 0 | CT5: 0 | CV5: 0 | CX5: 0 | CZ5: 0 | DB5: 0 | DD5: 0 | DF5: 0 | DH5: NO | DI5: =IF(ISERROR(VLOOKUP($A5+8860000,'Growth Data'!$A:$F,3,0)),"NO",VLOOKUP($A5+8860000,'Growth Data'!$A:$F,3,0)) -> NO | DJ5: 0 | DL5: 0 | DM5: =IF(DI5="YES",IF(ISERROR(VLOOKUP($A5+8860000,'Growth Data'!$A:$F,6,0)),0,VLOOKUP($A5+8860000,'Growth Data'!$A:$F,6,0)),0) -> 0 | DN5: 0 | DP5: 0 | DQ5: =IF(ISERROR(VLOOKUP($A5+8860000,'Growth Data'!$A:$Z,7,0)),0,VLOOKUP($A5+8860000,'Growth Data'!$A:$Z,7,0)) -> 0 | DR5: 0 | DT5: NO | DU5: =IF(ISERROR(VLOOKUP($A5+8860000,'Growth Data'!$A:$F,4,0)),"NO",VLOOKUP($A5+8860000,'Growth Data'!$A:$F,4,0)) -> NO | DV5: 0 | DX5: 0 | DY5: =IF(ISERROR(VLOOKUP($A5+8860000,'Growth Data'!$A:$Z,8,0)),0,VLOOKUP($A5+8860000,'Growth Data'!$A:$Z,8,0)) -> 0 | DZ5: 0 | EB5: 0 | EC5: =IF(ISERROR(VLOOKUP($A5+8860000,'Growth Data'!$A:$Z,9,0)),0,VLOOKUP($A5+8860000,'Growth Data'!$A:$Z,9,0)) -> 0 | ED5: 0 | EF5: NO | EG5: =IF(ISERROR(VLOOKUP($A5+8860000,'Growth Data'!$A:$Z,5,0)),"NO",VLOOKUP($A5+8860000,'Growth Data'!$A:$Z,5,0)) -> NO | EH5: 0 | EJ5: 0 | EK5: =IF(ISERROR(VLOOKUP($A5+8860000,'Growth Data'!$A:$Z,10,0)),0,VLOOKUP($A5+8860000,'Growth Data'!$A:$Z,10,0)) -> 0 | EL5: 0 | EN5: 0 | EO5: =IF(ISERROR(VLOOKUP($A5+8860000,'Growth Data'!$A:$Z,11,0)),0,VLOOKUP($A5+8860000,'Growth Data'!$A:$Z,11,0)) -> 0 | EP5: 0
A6: 2065 | B6: Discovery School, The | D6: Discovery School, The | E6: Discovery School, The | F6: 0 | H6: 1707057.85 | I6: 1707057.848 | J6: 0 | L6: 22691.05 | M6: 22691.05297 | N6: 0 | P6: 18860.3 | Q6: 18860.29745 | R6: 0 | T6: 94058.43 | U6: 94058.42975 | V6: 0 | X6: 120082.8 | Y6: 120082.8 | Z6: 0 | AB6: 0 | AC6: 0 | AD6: 0 | AF6: 0 | AG6: 0 | AH6: 0 | AJ6: 0 | AK6: 0 | AL6: 0 | AN6: 77461 | AO6: 77461 | AP6: 0 | AR6: 0 | AS6: 0 | AT6: 0 | AV6: 0 | AW6: 0 | AX6: 0 | AZ6: 148649.57 | BA6: 148649.5721 | BB6: 0 | BD6: 2188861 | BE6: 2188861 | BF6: 0 | BH6: 0 | BI6: 0 | BJ6: 0 | BL6: 2188861 | BM6: 2188861 | BN6: 0 | BP6: 0 | BR6: 0 | BT6: 2188861 | BU6: 2188861 | BV6: 0 | BX6: 0 | BZ6: 0 | CB6: 133038.71 | CD6: 133039 | CF6: 0 | CH6: 0 | CJ6: 0 | CL6: 0 | CN6: 0 | CP6: 0 | CR6: 0 | CT6: 0 | CV6: 0 | CX6: 0 | CZ6: 0 | DB6: 0 | DD6: 0 | DF6: 0 | DH6: NO | DI6: =IF(ISERROR(VLOOKUP($A6+8860000,'Growth Data'!$A:$F,3,0)),"NO",VLOOKUP($A6+8860000,'Growth Data'!$A:$F,3,0)) -> NO | DJ6: 0 | DL6: 0 | DM6: =IF(DI6="YES",IF(ISERROR(VLOOKUP($A6+8860000,'Growth Data'!$A:$F,6,0)),0,VLOOKUP($A6+8860000,'Growth Data'!$A:$F,6,0)),0) -> 0 | DN6: 0 | DP6: 0 | DQ6: =IF(ISERROR(VLOOKUP($A6+8860000,'Growth Data'!$A:$Z,7,0)),0,VLOOKUP($A6+8860000,'Growth Data'!$A:$Z,7,0)) -> 0 | DR6: 0 | DT6: NO | DU6: =IF(ISERROR(VLOOKUP($A6+8860000,'Growth Data'!$A:$F,4,0)),"NO",VLOOKUP($A6+8860000,'Growth Data'!$A:$F,4,0)) -> NO | DV6: 0 | DX6: 0 | DY6: =IF(ISERROR(VLOOKUP($A6+8860000,'Growth Data'!$A:$Z,8,0)),0,VLOOKUP($A6+8860000,'Growth Data'!$A:$Z,8,0)) -> 0 | DZ6: 0 | EB6: 0 | EC6: =IF(ISERROR(VLOOKUP($A6+8860000,'Growth Data'!$A:$Z,9,0)),0,VLOOKUP($A6+8860000,'Growth Data'!$A:$Z,9,0)) -> 0 | ED6: 0 | EF6: NO | EG6: =IF(ISERROR(VLOOKUP($A6+8860000,'Growth Data'!$A:$Z,5,0)),"NO",VLOOKUP($A6+8860000,'Growth Data'!$A:$Z,5,0)) -> NO | EH6: 0 | EJ6: 0 | EK6: =IF(ISERROR(VLOOKUP($A6+8860000,'Growth Data'!$A:$Z,10,0)),0,VLOOKUP($A6+8860000,'Growth Data'!$A:$Z,10,0)) -> 0 | EL6: 0 | EN6: 0 | EO6: =IF(ISERROR(VLOOKUP($A6+8860000,'Growth Data'!$A:$Z,11,0)),0,VLOOKUP($A6+8860000,'Growth Data'!$A:$Z,11,0)) -> 0 | EP6: 0
A7: 2066 | B7: Maypole Primary School | D7: Maypole Primary School | E7: Maypole Primary School | F7: 0 | H7: 1116047.48 | I7: 1116047.482 | J7: 0 | L7: 65849.32 | M7: 65849.31711 | N7: 0 | P7: 9456.92 | Q7: 9456.916253 | R7: 0 | T7: 89738.29 | U7: 89738.29216 | V7: 0 | X7: 120082.8 | Y7: 120082.8 | Z7: 0 | AB7: 0 | AC7: 0 | AD7: 0 | AF7: 51002.76 | AG7: 51002.76299 | AH7: 0 | AJ7: 0 | AK7: 0 | AL7: 0 | AN7: 40919 | AO7: 40919 | AP7: 0 | AR7: 0 | AS7: 0 | AT7: 0 | AV7: 0 | AW7: 0 | AX7: 0 | AZ7: 0 | BA7: 0 | BB7: 0 | BD7: 1493096.57 | BE7: 1493096.57 | BF7: 0 | BH7: 0 | BI7: 0 | BJ7: 0 | BL7: 1493096.57 | BM7: 1493096.57 | BN7: 0 | BP7: 0 | BR7: 0 | BT7: 1493096.57 | BU7: 1493096.57 | BV7: 0 | BX7: 0 | BZ7: 0 | CB7: 151959.58 | CD7: 151960 | CF7: 0 | CH7: 0 | CJ7: 0 | CL7: 0 | CN7: 0 | CP7: 0 | CR7: 0 | CT7: 0 | CV7: 0 | CX7: 0 | CZ7: 0 | DB7: 0 | DD7: 0 | DF7: 0 | DH7: NO | DI7: =IF(ISERROR(VLOOKUP($A7+8860000,'Growth Data'!$A:$F,3,0)),"NO",VLOOKUP($A7+8860000,'Growth Data'!$A:$F,3,0)) -> NO | DJ7: 0 | DL7: 0 | DM7: =IF(DI7="YES",IF(ISERROR(VLOOKUP($A7+8860000,'Growth Data'!$A:$F,6,0)),0,VLOOKUP($A7+8860000,'Growth Data'!$A:$F,6,0)),0) -> 0 | DN7: 0 | DP7: 0 | DQ7: =IF(ISERROR(VLOOKUP($A7+8860000,'Growth Data'!$A:$Z,7,0)),0,VLOOKUP($A7+8860000,'Growth Data'!$A:$Z,7,0)) -> 0 | DR7: 0 | DT7: NO | DU7: =IF(ISERROR(VLOOKUP($A7+8860000,'Growth Data'!$A:$F,4,0)),"NO",VLOOKUP($A7+8860000,'Growth Data'!$A:$F,4,0)) -> NO | DV7: 0 | DX7: 0 | DY7: =IF(ISERROR(VLOOKUP($A7+8860000,'Growth Data'!$A:$Z,8,0)),0,VLOOKUP($A7+8860000,'Growth Data'!$A:$Z,8,0)) -> 0 | DZ7: 0 | EB7: 0 | EC7: =IF(ISERROR(VLOOKUP($A7+8860000,'Growth Data'!$A:$Z,9,0)),0,VLOOKUP($A7+8860000,'Growth Data'!$A:$Z,9,0)) -> 0 | ED7: 0 | EF7: NO | EG7: =IF(ISERROR(VLOOKUP($A7+8860000,'Growth Data'!$A:$Z,5,0)),"NO",VLOOKUP($A7+8860000,'Growth Data'!$A:$Z,5,0)) -> NO | EH7: 0 | EJ7: 0 | EK7: =IF(ISERROR(VLOOKUP($A7+8860000,'Growth Data'!$A:$Z,10,0)),0,VLOOKUP($A7+8860000,'Growth Data'!$A:$Z,10,0)) -> 0 | EL7: 0 | EN7: 0 | EO7: =IF(ISERROR(VLOOKUP($A7+8860000,'Growth Data'!$A:$Z,11,0)),0,VLOOKUP($A7+8860000,'Growth Data'!$A:$Z,11,0)) -> 0 | EP7: 0
A8: 2074 | B8: Sunny Bank Primary School | D8: Sunny Bank Primary School | E8: Sunny Bank Primary School | F8: 0 | H8: 736701.29 | I8: 736701.2934 | J8: 0 | L8: 168990.68 | M8: 168990.6791 | N8: 0 | P8: 19982.63 | Q8: 19982.62957 | R8: 0 | T8: 91482.28 | U8: 91482.28043 | V8: 0 | X8: 120082.8 | Y8: 120082.8 | Z8: 0 | AB8: 0 | AC8: 0 | AD8: 0 | AF8: 0 | AG8: 0 | AH8: 0 | AJ8: 0 | AK8: 0 | AL8: 0 | AN8: 23814 | AO8: 23814 | AP8: 0 | AR8: 0 | AS8: 0 | AT8: 0 | AV8: 17750 | AW8: 17750 | AX8: 0 | AZ8: 0 | BA8: 0 | BB8: 0 | BD8: 1178803.68 | BE8: 1178803.683 | BF8: 0 | BH8: 0 | BI8: 0 | BJ8: 0 | BL8: 1178803.68 | BM8: 1178803.683 | BN8: 0 | BP8: 0 | BR8: 0 | BT8: 1178803.68 | BU8: 1178803.683 | BV8: 0 | BX8: 4.94 | BZ8: 5 | CB8: 237376.59 | CD8: 237377 | CF8: 0 | CH8: 0 | CJ8: 0 | CL8: 0 | CN8: 0 | CP8: 0 | CR8: 0 | CT8: 0 | CV8: 0 | CX8: 0 | CZ8: 0 | DB8: 0 | DD8: 0 | DF8: 0 | DH8: NO | DI8: =IF(ISERROR(VLOOKUP($A8+8860000,'Growth Data'!$A:$F,3,0)),"NO",VLOOKUP($A8+8860000,'Growth Data'!$A:$F,3,0)) -> NO | DJ8: 0 | DL8: 0 | DM8: =IF(DI8="YES",IF(ISERROR(VLOOKUP($A8+8860000,'Growth Data'!$A:$F,6,0)),0,VLOOKUP($A8+8860000,'Growth Data'!$A:$F,6,0)),0) -> 0 | DN8: 0 | DP8: 0 | DQ8: =IF(ISERROR(VLOOKUP($A8+8860000,'Growth Data'!$A:$Z,7,0)),0,VLOOKUP($A8+8860000,'Growth Data'!$A:$Z,7,0)) -> 0 | DR8: 0 | DT8: NO | DU8: =IF(ISERROR(VLOOKUP($A8+8860000,'Growth Data'!$A:$F,4,0)),"NO",VLOOKUP($A8+8860000,'Growth Data'!$A:$F,4,0)) -> NO | DV8: 0 | DX8: 0 | DY8: =IF(ISERROR(VLOOKUP($A8+8860000,'Growth Data'!$A:$Z,8,0)),0,VLOOKUP($A8+8860000,'Growth Data'!$A:$Z,8,0)) -> 0 | DZ8: 0 | EB8: 0 | EC8: =IF(ISERROR(VLOOKUP($A8+8860000,'Growth Data'!$A:$Z,9,0)),0,VLOOKUP($A8+8860000,'Growth Data'!$A:$Z,9,0)) -> 0 | ED8: 0 | EF8: NO | EG8: =IF(ISERROR(VLOOKUP($A8+8860000,'Growth Data'!$A:$Z,5,0)),"NO",VLOOKUP($A8+8860000,'Growth Data'!$A:$Z,5,0)) -> NO | EH8: 0 | EJ8: 0 | EK8: =IF(ISERROR(VLOOKUP($A8+8860000,'Growth Data'!$A:$Z,10,0)),0,VLOOKUP($A8+8860000,'Growth Data'!$A:$Z,10,0)) -> 0 | EL8: 0 | EN8: 0 | EO8: =IF(ISERROR(VLOOKUP($A8+8860000,'Growth Data'!$A:$Z,11,0)),0,VLOOKUP($A8+8860000,'Growth Data'!$A:$Z,11,0)) -> 0 | EP8: 0
A9: 2079 | B9: Woodlands Primary School | D9: Woodlands Primary School | E9: Woodlands Primary School | F9: 0 | H9: 1770282.21 | I9: 1770282.212 | J9: 0 | L9: 75343.77 | M9: 75343.7673 | N9: 0 | P9: 9533.61 | Q9: 9533.611358 | R9: 0 | T9: 107733.14 | U9: 107733.1357 | V9: 0 | X9: 120082.8 | Y9: 120082.8 | Z9: 0 | AB9: 0 | AC9: 0 | AD9: 0 | AF9: 0 | AG9: 0 | AH9: 0 | AJ9: 0 | AK9: 0 | AL9: 0 | AN9: 60325 | AO9: 60325 | AP9: 0 | AR9: 0 | AS9: 0 | AT9: 0 | AV9: 0 | AW9: 0 | AX9: 0 | AZ9: 106624.47 | BA9: 106624.4732 | BB9: 0 | BD9: 2249925 | BE9: 2249925 | BF9: 0 | BH9: 0 | BI9: 0 | BJ9: 0 | BL9: 2249925 | BM9: 2249925 | BN9: 0 | BP9: 0 | BR9: 0 | BT9: 2249925 | BU9: 2249925 | BV9: 0 | BX9: 0 | BZ9: 0 | CB9: 176830.33 | CD9: 176830 | CF9: 0 | CH9: 0 | CJ9: 0 | CL9: 0 | CN9: 0 | CP9: 0 | CR9: 0 | CT9: 0 | CV9: 0 | CX9: 0 | CZ9: 0 | DB9: 0 | DD9: 0 | DF9: 0 | DH9: NO | DI9: =IF(ISERROR(VLOOKUP($A9+8860000,'Growth Data'!$A:$F,3,0)),"NO",VLOOKUP($A9+8860000,'Growth Data'!$A:$F,3,0)) -> NO | DJ9: 0 | DL9: 0 | DM9: =IF(DI9="YES",IF(ISERROR(VLOOKUP($A9+8860000,'Growth Data'!$A:$F,6,0)),0,VLOOKUP($A9+8860000,'Growth Data'!$A:$F,6,0)),0) -> 0 | DN9: 0 | DP9: 0 | DQ9: =IF(ISERROR(VLOOKUP($A9+8860000,'Growth Data'!$A:$Z,7,0)),0,VLOOKUP($A9+8860000,'Growth Data'!$A:$Z,7,0)) -> 0 | DR9: 0 | DT9: NO | DU9: =IF(ISERROR(VLOOKUP($A9+8860000,'Growth Data'!$A:$F,4,0)),"NO",VLOOKUP($A9+8860000,'Growth Data'!$A:$F,4,0)) -> NO | DV9: 0 | DX9: 0 | DY9: =IF(ISERROR(VLOOKUP($A9+8860000,'Growth Data'!$A:$Z,8,0)),0,VLOOKUP($A9+8860000,'Growth Data'!$A:$Z,8,0)) -> 0 | DZ9: 0 | EB9: 0 | EC9: =IF(ISERROR(VLOOKUP($A9+8860000,'Growth Data'!$A:$Z,9,0)),0,VLOOKUP($A9+8860000,'Growth Data'!$A:$Z,9,0)) -> 0 | ED9: 0 | EF9: NO | EG9: =IF(ISERROR(VLOOKUP($A9+8860000,'Growth Data'!$A:$Z,5,0)),"NO",VLOOKUP($A9+8860000,'Growth Data'!$A:$Z,5,0)) -> NO | EH9: 0 | EJ9: 0 | EK9: =IF(ISERROR(VLOOKUP($A9+8860000,'Growth Data'!$A:$Z,10,0)),0,VLOOKUP($A9+8860000,'Growth Data'!$A:$Z,10,0)) -> 0 | EL9: 0 | EN9: 0 | EO9: =IF(ISERROR(VLOOKUP($A9+8860000,'Growth Data'!$A:$Z,11,0)),0,VLOOKUP($A9+8860000,'Growth Data'!$A:$Z,11,0)) -> 0 | EP9: 0
A10: 2088 | B10: Crockenhill Primary School | D10: Crockenhill Primary School | E10: Crockenhill Primary School | F10: 0 | H10: 555274.86 | I10: 555274.8555 | J10: 0 | L10: 27553.45 | M10: 27553.44853 | N10: 0 | P10: 1210.49 | Q10: 1210.485822 | R10: 0 | T10: 26316.41 | U10: 26316.40536 | V10: 0 | X10: 120082.8 | Y10: 120082.8 | Z10: 0 | AB10: 0 | AC10: 0 | AD10: 0 | AF10: 26587.94 | AG10: 26587.94302 | AH10: 0 | AJ10: 0 | AK10: 0 | AL10: 0 | AN10: 23730 | AO10: 23730 | AP10: 0 | AR10: 0 | AS10: 0 | AT10: 0 | AV10: 0 | AW10: 0 | AX10: 0 | AZ10: 0 | BA10: 0 | BB10: 0 | BD10: 780755.94 | BE10: 780755.9382 | BF10: 0 | BH10: 0 | BI10: 0 | BJ10: 0 | BL10: 780755.94 | BM10: 780755.9382 | BN10: 0 | BP10: 0 | BR10: 0 | BT10: 780755.94 | BU10: 780755.9382 | BV10: 0 | BX10: 0 | BZ10: 0 | CB10: 58983.91 | CD10: 58984 | CF10: 101.61 | CH10: 102 | CJ10: 0 | CL10: 0 | CN10: 0 | CP10: 0 | CR10: 0 | CT10: 0 | CV10: 0 | CX10: 0 | CZ10: 0 | DB10: 0 | DD10: 0 | DF10: 0 | DH10: NO | DI10: =IF(ISERROR(VLOOKUP($A10+8860000,'Growth Data'!$A:$F,3,0)),"NO",VLOOKUP($A10+8860000,'Growth Data'!$A:$F,3,0)) -> NO | DJ10: 0 | DL10: 0 | DM10: =IF(DI10="YES",IF(ISERROR(VLOOKUP($A10+8860000,'Growth Data'!$A:$F,6,0)),0,VLOOKUP($A10+8860000,'Growth Data'!$A:$F,6,0)),0) -> 0 | DN10: 0 | DP10: 0 | DQ10: =IF(ISERROR(VLOOKUP($A10+8860000,'Growth Data'!$A:$Z,7,0)),0,VLOOKUP($A10+8860000,'Growth Data'!$A:$Z,7,0)) -> 0 | DR10: 0 | DT10: NO | DU10: =IF(ISERROR(VLOOKUP($A10+8860000,'Growth Data'!$A:$F,4,0)),"NO",VLOOKUP($A10+8860000,'Growth Data'!$A:$F,4,0)) -> NO | DV10: 0 | DX10: 0 | DY10: =IF(ISERROR(VLOOKUP($A10+8860000,'Growth Data'!$A:$Z,8,0)),0,VLOOKUP($A10+8860000,'Growth Data'!$A:$Z,8,0)) -> 0 | DZ10: 0 | EB10: 0 | EC10: =IF(ISERROR(VLOOKUP($A10+8860000,'Growth Data'!$A:$Z,9,0)),0,VLOOKUP($A10+8860000,'Growth Data'!$A:$Z,9,0)) -> 0 | ED10: 0 | EF10: NO | EG10: =IF(ISERROR(VLOOKUP($A10+8860000,'Growth Data'!$A:$Z,5,0)),"NO",VLOOKUP($A10+8860000,'Growth Data'!$A:$Z,5,0)) -> NO | EH10: 0 | EJ10: 0 | EK10: =IF(ISERROR(VLOOKUP($A10+8860000,'Growth Data'!$A:$Z,10,0)),0,VLOOKUP($A10+8860000,'Growth Data'!$A:$Z,10,0)) -> 0 | EL10: 0 | EN10: 0 | EO10: =IF(ISERROR(VLOOKUP($A10+8860000,'Growth Data'!$A:$Z,11,0)),0,VLOOKUP($A10+8860000,'Growth Data'!$A:$Z,11,0)) -> 0 | EP10: 0
A11: 2089 | B11: Anthony Roper Primary School, The | D11: Anthony Roper Primary School, The | E11: Anthony Roper Primary School, The | F11: 0 | H11: 835661.17 | I11: 835661.1686 | J11: 0 | L11: 16692.5 | M11: 16692.50352 | N11: 0 | P11: 2410.28 | Q11: 2410.277329 | R11: 0 | T11: 57296.1 | U11: 57296.09763 | V11: 0 | X11: 120082.8 | Y11: 120082.8 | Z11: 0 | AB11: 0 | AC11: 0 | AD11: 0 | AF11: 37570 | AG11: 37569.99963 | AH11: 0 | AJ11: 0 | AK11: 0 | AL11: 0 | AN11: 6552 | AO11: 6552 | AP11: 0 | AR11: 0 | AS11: 0 | AT11: 0 | AV11: 0 | AW11: 0 | AX11: 0 | AZ11: 0 | BA11: 0 | BB11: 0 | BD11: 1076264.85 | BE11: 1076264.847 | BF11: 0 | BH11: 0 | BI11: 0 | BJ11: 0 | BL11: 1076264.85 | BM11: 1076264.847 | BN11: 0 | BP11: 0 | BR11: 0 | BT11: 1076264.85 | BU11: 1076264.847 | BV11: 0 | BX11: 0 | BZ11: 0 | CB11: 77884.13 | CD11: 77884 | CF11: 0 | CH11: 0 | CJ11: 0 | CL11: 0 | CN11: 0 | CP11: 0 | CR11: 0 | CT11: 0 | CV11: 0 | CX11: 0 | CZ11: 0 | DB11: 0 | DD11: 0 | DF11: 0 | DH11: NO | DI11: =IF(ISERROR(VLOOKUP($A11+8860000,'Growth Data'!$A:$F,3,0)),"NO",VLOOKUP($A11+8860000,'Growth Data'!$A:$F,3,0)) -> NO | DJ11: 0 | DL11: 0 | DM11: =IF(DI11="YES",IF(ISERROR(VLOOKUP($A11+8860000,'Growth Data'!$A:$F,6,0)),0,VLOOKUP($A11+8860000,'Growth Data'!$A:$F,6,0)),0) -> 0 | DN11: 0 | DP11: 0 | DQ11: =IF(ISERROR(VLOOKUP($A11+8860000,'Growth Data'!$A:$Z,7,0)),0,VLOOKUP($A11+8860000,'Growth Data'!$A:$Z,7,0)) -> 0 | DR11: 0 | DT11: NO | DU11: =IF(ISERROR(VLOOKUP($A11+8860000,'Growth Data'!$A:$F,4,0)),"NO",VLOOKUP($A11+8860000,'Growth Data'!$A:$F,4,0)) -> NO | DV11: 0 | DX11: 0 | DY11: =IF(ISERROR(VLOOKUP($A11+8860000,'Growth Data'!$A:$Z,8,0)),0,VLOOKUP($A11+8860000,'Growth Data'!$A:$Z,8,0)) -> 0 | DZ11: 0 | EB11: 0 | EC11: =IF(ISERROR(VLOOKUP($A11+8860000,'Growth Data'!$A:$Z,9,0)),0,VLOOKUP($A11+8860000,'Growth Data'!$A:$Z,9,0)) -> 0 | ED11: 0 | EF11: NO | EG11: =IF(ISERROR(VLOOKUP($A11+8860000,'Growth Data'!$A:$Z,5,0)),"NO",VLOOKUP($A11+8860000,'Growth Data'!$A:$Z,5,0)) -> NO | EH11: 0 | EJ11: 0 | EK11: =IF(ISERROR(VLOOKUP($A11+8860000,'Growth Data'!$A:$Z,10,0)),0,VLOOKUP($A11+8860000,'Growth Data'!$A:$Z,10,0)) -> 0 | EL11: 0 | EN11: 0 | EO11: =IF(ISERROR(VLOOKUP($A11+8860000,'Growth Data'!$A:$Z,11,0)),0,VLOOKUP($A11+8860000,'Growth Data'!$A:$Z,11,0)) -> 0 | EP11: 0
A12: 2094 | B12: Cobham Primary School | D12: Cobham Primary School | E12: Cobham Primary School | F12: 0 | H12: 604754.79 | I12: 604754.7931 | J12: 0 | L12: 11264.46 | M12: 11264.46437 | N12: 0 | P12: 1193.45 | Q12: 1193.454495 | R12: 0 | T12: 26623.62 | U12: 26623.62413 | V12: 0 | X12: 120082.8 | Y12: 120082.8 | Z12: 0 | AB12: 0 | AC12: 0 | AD12: 0 | AF12: 0 | AG12: 0 | AH12: 0 | AJ12: 0 | AK12: 0 | AL12: 0 | AN12: 16940 | AO12: 16940 | AP12: 0 | AR12: 0 | AS12: 0 | AT12: 0 | AV12: 0 | AW12: 0 | AX12: 0 | AZ12: 0 | BA12: 0 | BB12: 0 | BD12: 780859.14 | BE12: 780859.1361 | BF12: 0 | BH12: 0 | BI12: 0 | BJ12: 0 | BL12: 780859.14 | BM12: 780859.1361 | BN12: 0 | BP12: 0 | BR12: 0 | BT12: 780859.14 | BU12: 780859.1361 | BV12: 0 | BX12: 0 | BZ12: 0 | CB12: 42234.42 | CD12: 42234 | CF12: 1776.56 | CH12: 1777 | CJ12: 0 | CL12: 0 | CN12: 0 | CP12: 0 | CR12: 0 | CT12: 0 | CV12: 0 | CX12: 0 | CZ12: 0 | DB12: 0 | DD12: 0 | DF12: 0 | DH12: NO | DI12: =IF(ISERROR(VLOOKUP($A12+8860000,'Growth Data'!$A:$F,3,0)),"NO",VLOOKUP($A12+8860000,'Growth Data'!$A:$F,3,0)) -> NO | DJ12: 0 | DL12: 0 | DM12: =IF(DI12="YES",IF(ISERROR(VLOOKUP($A12+8860000,'Growth Data'!$A:$F,6,0)),0,VLOOKUP($A12+8860000,'Growth Data'!$A:$F,6,0)),0) -> 0 | DN12: 0 | DP12: 0 | DQ12: =IF(ISERROR(VLOOKUP($A12+8860000,'Growth Data'!$A:$Z,7,0)),0,VLOOKUP($A12+8860000,'Growth Data'!$A:$Z,7,0)) -> 0 | DR12: 0 | DT12: NO | DU12: =IF(ISERROR(VLOOKUP($A12+8860000,'Growth Data'!$A:$F,4,0)),"NO",VLOOKUP($A12+8860000,'Growth Data'!$A:$F,4,0)) -> NO | DV12: 0 | DX12: 0 | DY12: =IF(ISERROR(VLOOKUP($A12+8860000,'Growth Data'!$A:$Z,8,0)),0,VLOOKUP($A12+8860000,'Growth Data'!$A:$Z,8,0)) -> 0 | DZ12: 0 | EB12: 0 | EC12: =IF(ISERROR(VLOOKUP($A12+8860000,'Growth Data'!$A:$Z,9,0)),0,VLOOKUP($A12+8860000,'Growth Data'!$A:$Z,9,0)) -> 0 | ED12: 0 | EF12: NO | EG12: =IF(ISERROR(VLOOKUP($A12+8860000,'Growth Data'!$A:$Z,5,0)),"NO",VLOOKUP($A12+8860000,'Growth Data'!$A:$Z,5,0)) -> NO | EH12: 0 | EJ12: 0 | EK12: =IF(ISERROR(VLOOKUP($A12+8860000,'Growth Data'!$A:$Z,10,0)),0,VLOOKUP($A12+8860000,'Growth Data'!$A:$Z,10,0)) -> 0 | EL12: 0 | EN12: 0 | EO12: =IF(ISERROR(VLOOKUP($A12+8860000,'Growth Data'!$A:$Z,11,0)),0,VLOOKUP($A12+8860000,'Growth Data'!$A:$Z,11,0)) -> 0 | EP12: 0
A13: 2095 | B13: Cecil Road Primary and Nursery School | D13: Cecil Road Primary and Nursery School | E13: Cecil Road Primary and Nursery School | F13: 0 | H13: 1047325.35 | I13: 1047325.346 | J13: 0 | L13: 82155.56 | M13: 82155.56341 | N13: 0 | P13: 56443.23 | Q13: 56443.2309 | R13: 0 | T13: 76655.49 | U13: 76655.48986 | V13: 0 | X13: 120082.8 | Y13: 120082.8 | Z13: 0 | AB13: 0 | AC13: 0 | AD13: 0 | AF13: 0 | AG13: 0 | AH13: 0 | AJ13: 0 | AK13: 0 | AL13: 0 | AN13: 33516 | AO13: 33516 | AP13: 0 | AR13: 0 | AS13: 0 | AT13: 0 | AV13: 0 | AW13: 0 | AX13: 0 | AZ13: 0 | BA13: 0 | BB13: 0 | BD13: 1416178.43 | BE13: 1416178.43 | BF13: 0 | BH13: 0 | BI13: 0 | BJ13: 0 | BL13: 1416178.43 | BM13: 1416178.43 | BN13: 0 | BP13: 0 | BR13: 0 | BT13: 1416178.43 | BU13: 1416178.43 | BV13: 0 | BX13: 4.9 | BZ13: 5 | CB13: 202115.93 | CD13: 202116 | CF13: 0 | CH13: 0 | CJ13: 0 | CL13: 0 | CN13: 0 | CP13: 0 | CR13: 0 | CT13: 0 | CV13: 0 | CX13: 0 | CZ13: 0 | DB13: 0 | DD13: 0 | DF13: 0 | DH13: NO | DI13: =IF(ISERROR(VLOOKUP($A13+8860000,'Growth Data'!$A:$F,3,0)),"NO",VLOOKUP($A13+8860000,'Growth Data'!$A:$F,3,0)) -> NO | DJ13: 0 | DL13: 0 | DM13: =IF(DI13="YES",IF(ISERROR(VLOOKUP($A13+8860000,'Growth Data'!$A:$F,6,0)),0,VLOOKUP($A13+8860000,'Growth Data'!$A:$F,6,0)),0) -> 0 | DN13: 0 | DP13: 0 | DQ13: =IF(ISERROR(VLOOKUP($A13+8860000,'Growth Data'!$A:$Z,7,0)),0,VLOOKUP($A13+8860000,'Growth Data'!$A:$Z,7,0)) -> 0 | DR13: 0 | DT13: NO | DU13: =IF(ISERROR(VLOOKUP($A13+8860000,'Growth Data'!$A:$F,4,0)),"NO",VLOOKUP($A13+8860000,'Growth Data'!$A:$F,4,0)) -> NO | DV13: 0 | DX13: 0 | DY13: =IF(ISERROR(VLOOKUP($A13+8860000,'Growth Data'!$A:$Z,8,0)),0,VLOOKUP($A13+8860000,'Growth Data'!$A:$Z,8,0)) -> 0 | DZ13: 0 | EB13: 0 | EC13: =IF(ISERROR(VLOOKUP($A13+8860000,'Growth Data'!$A:$Z,9,0)),0,VLOOKUP($A13+8860000,'Growth Data'!$A:$Z,9,0)) -> 0 | ED13: 0 | EF13: NO | EG13: =IF(ISERROR(VLOOKUP($A13+8860000,'Growth Data'!$A:$Z,5,0)),"NO",VLOOKUP($A13+8860000,'Growth Data'!$A:$Z,5,0)) -> NO | EH13: 0 | EJ13: 0 | EK13: =IF(ISERROR(VLOOKUP($A13+8860000,'Growth Data'!$A:$Z,10,0)),0,VLOOKUP($A13+8860000,'Growth Data'!$A:$Z,10,0)) -> 0 | EL13: 0 | EN13: 0 | EO13: =IF(ISERROR(VLOOKUP($A13+8860000,'Growth Data'!$A:$Z,11,0)),0,VLOOKUP($A13+8860000,'Growth Data'!$A:$Z,11,0)) -> 0 | EP13: 0
A14: 2109 | B14: Higham Primary School | D14: Higham Primary School | E14: Higham Primary School | F14: 0 | H14: 580014.82 | I14: 580014.8243 | J14: 0 | L14: 15758.87 | M14: 15758.86612 | N14: 0 | P14: 600.77 | Q14: 600.7733638 | R14: 0 | T14: 36953.85 | U14: 36953.8529 | V14: 0 | X14: 120082.8 | Y14: 120082.8 | Z14: 0 | AB14: 0 | AC14: 0 | AD14: 0 | AF14: 0 | AG14: 0 | AH14: 0 | AJ14: 0 | AK14: 0 | AL14: 0 | AN14: 21972 | AO14: 21972 | AP14: 0 | AR14: 0 | AS14: 0 | AT14: 0 | AV14: 0 | AW14: 0 | AX14: 0 | AZ14: 0 | BA14: 0 | BB14: 0 | BD14: 775383.12 | BE14: 775383.1167 | BF14: 0 | BH14: 0 | BI14: 0 | BJ14: 0 | BL14: 775383.12 | BM14: 775383.1167 | BN14: 0 | BP14: 0 | BR14: 0 | BT14: 775383.12 | BU14: 775383.1167 | BV14: 0 | BX14: 0 | BZ14: 0 | CB14: 52063.33 | CD14: 52063 | CF14: 793.67 | CH14: 794 | CJ14: 0 | CL14: 0 | CN14: 0 | CP14: 0 | CR14: 0 | CT14: 0 | CV14: 0 | CX14: 0 | CZ14: 0 | DB14: 0 | DD14: 0 | DF14: 0 | DH14: NO | DI14: =IF(ISERROR(VLOOKUP($A14+8860000,'Growth Data'!$A:$F,3,0)),"NO",VLOOKUP($A14+8860000,'Growth Data'!$A:$F,3,0)) -> NO | DJ14: 0 | DL14: 0 | DM14: =IF(DI14="YES",IF(ISERROR(VLOOKUP($A14+8860000,'Growth Data'!$A:$F,6,0)),0,VLOOKUP($A14+8860000,'Growth Data'!$A:$F,6,0)),0) -> 0 | DN14: 0 | DP14: 0 | DQ14: =IF(ISERROR(VLOOKUP($A14+8860000,'Growth Data'!$A:$Z,7,0)),0,VLOOKUP($A14+8860000,'Growth Data'!$A:$Z,7,0)) -> 0 | DR14: 0 | DT14: NO | DU14: =IF(ISERROR(VLOOKUP($A14+8860000,'Growth Data'!$A:$F,4,0)),"NO",VLOOKUP($A14+8860000,'Growth Data'!$A:$F,4,0)) -> NO | DV14: 0 | DX14: 0 | DY14: =IF(ISERROR(VLOOKUP($A14+8860000,'Growth Data'!$A:$Z,8,0)),0,VLOOKUP($A14+8860000,'Growth Data'!$A:$Z,8,0)) -> 0 | DZ14: 0 | EB14: 0 | EC14: =IF(ISERROR(VLOOKUP($A14+8860000,'Growth Data'!$A:$Z,9,0)),0,VLOOKUP($A14+8860000,'Growth Data'!$A:$Z,9,0)) -> 0 | ED14: 0 | EF14: NO | EG14: =IF(ISERROR(VLOOKUP($A14+8860000,'Growth Data'!$A:$Z,5,0)),"NO",VLOOKUP($A14+8860000,'Growth Data'!$A:$Z,5,0)) -> NO | EH14: 0 | EJ14: 0 | EK14: =IF(ISERROR(VLOOKUP($A14+8860000,'Growth Data'!$A:$Z,10,0)),0,VLOOKUP($A14+8860000,'Growth Data'!$A:$Z,10,0)) -> 0 | EL14: 0 | EN14: 0 | EO14: =IF(ISERROR(VLOOKUP($A14+8860000,'Growth Data'!$A:$Z,11,0)),0,VLOOKUP($A14+8860000,'Growth Data'!$A:$Z,11,0)) -> 0 | EP14: 0
A15: 2116 | B15: Lawn Primary School | D15: Lawn Primary School | E15: Lawn Primary School | F15: 0 | H15: 536032.66 | I15: 536032.6575 | J15: 0 | L15: 152993.28 | M15: 152993.2758 | N15: 0 | P15: 19230.39 | Q15: 19230.38945 | R15: 0 | T15: 70601.79 | U15: 70601.79127 | V15: 0 | X15: 120082.8 | Y15: 120082.8 | Z15: 0 | AB15: 0 | AC15: 0 | AD15: 0 | AF15: 0 | AG15: 0 | AH15: 0 | AJ15: 0 | AK15: 0 | AL15: 0 | AN15: 20377 | AO15: 20377 | AP15: 0 | AR15: 0 | AS15: 0 | AT15: 0 | AV15: 0 | AW15: 0 | AX15: 0 | AZ15: 0 | BA15: 0 | BB15: 0 | BD15: 919317.91 | BE15: 919317.914 | BF15: 0 | BH15: 0 | BI15: 0 | BJ15: 0 | BL15: 919317.91 | BM15: 919317.914 | BN15: 0 | BP15: 0 | BR15: 0 | BT15: 919317.91 | BU15: 919317.914 | BV15: 0 | BX15: 5.43 | BZ15: 5 | CB15: 209433.13 | CD15: 209433 | CF15: 0 | CH15: 0 | CJ15: 0 | CL15: 0 | CN15: 0 | CP15: 0 | CR15: 0 | CT15: 0 | CV15: 0 | CX15: 0 | CZ15: 0 | DB15: 0 | DD15: 0 | DF15: 0 | DH15: NO | DI15: =IF(ISERROR(VLOOKUP($A15+8860000,'Growth Data'!$A:$F,3,0)),"NO",VLOOKUP($A15+8860000,'Growth Data'!$A:$F,3,0)) -> NO | DJ15: 0 | DL15: 0 | DM15: =IF(DI15="YES",IF(ISERROR(VLOOKUP($A15+8860000,'Growth Data'!$A:$F,6,0)),0,VLOOKUP($A15+8860000,'Growth Data'!$A:$F,6,0)),0) -> 0 | DN15: 0 | DP15: 0 | DQ15: =IF(ISERROR(VLOOKUP($A15+8860000,'Growth Data'!$A:$Z,7,0)),0,VLOOKUP($A15+8860000,'Growth Data'!$A:$Z,7,0)) -> 0 | DR15: 0 | DT15: NO | DU15: =IF(ISERROR(VLOOKUP($A15+8860000,'Growth Data'!$A:$F,4,0)),"NO",VLOOKUP($A15+8860000,'Growth Data'!$A:$F,4,0)) -> NO | DV15: 0 | DX15: 0 | DY15: =IF(ISERROR(VLOOKUP($A15+8860000,'Growth Data'!$A:$Z,8,0)),0,VLOOKUP($A15+8860000,'Growth Data'!$A:$Z,8,0)) -> 0 | DZ15: 0 | EB15: 0 | EC15: =IF(ISERROR(VLOOKUP($A15+8860000,'Growth Data'!$A:$Z,9,0)),0,VLOOKUP($A15+8860000,'Growth Data'!$A:$Z,9,0)) -> 0 | ED15: 0 | EF15: NO | EG15: =IF(ISERROR(VLOOKUP($A15+8860000,'Growth Data'!$A:$Z,5,0)),"NO",VLOOKUP($A15+8860000,'Growth Data'!$A:$Z,5,0)) -> NO | EH15: 0 | EJ15: 0 | EK15: =IF(ISERROR(VLOOKUP($A15+8860000,'Growth Data'!$A:$Z,10,0)),0,VLOOKUP($A15+8860000,'Growth Data'!$A:$Z,10,0)) -> 0 | EL15: 0 | EN15: 0 | EO15: =IF(ISERROR(VLOOKUP($A15+8860000,'Growth Data'!$A:$Z,11,0)),0,VLOOKUP($A15+8860000,'Growth Data'!$A:$Z,11,0)) -> 0 | EP15: 0
A16: 2119 | B16: Shears Green Infant School | D16: Shears Green Infant School | E16: Shears Green Infant School | F16: 0 | H16: 986849.87 | I16: 986849.8669 | J16: 0 | L16: 73608.76 | M16: 73608.75502 | N16: 0 | P16: 28522.77 | Q16: 28522.77131 | R16: 0 | T16: 49607.77 | U16: 49607.77051 | V16: 0 | X16: 120082.8 | Y16: 120082.8 | Z16: 0 | AB16: 0 | AC16: 0 | AD16: 0 | AF16: 0 | AG16: 0 | AH16: 0 | AJ16: 0 | AK16: 0 | AL16: 0 | AN16: 21420 | AO16: 21420 | AP16: 0 | AR16: 0 | AS16: 0 | AT16: 0 | AV16: 0 | AW16: 0 | AX16: 0 | AZ16: 0 | BA16: 0 | BB16: 0 | BD16: 1280091.96 | BE16: 1280091.964 | BF16: 0 | BH16: 0 | BI16: 0 | BJ16: 0 | BL16: 1280091.96 | BM16: 1280091.964 | BN16: 0 | BP16: 0 | BR16: 0 | BT16: 1280091.96 | BU16: 1280091.964 | BV16: 0 | BX16: 0 | BZ16: 0 | CB16: 141683.06 | CD16: 141683 | CF16: 0 | CH16: 0 | CJ16: 0 | CL16: 0 | CN16: 0 | CP16: 0 | CR16: 0 | CT16: 0 | CV16: 0 | CX16: 0 | CZ16: 0 | DB16: 0 | DD16: 0 | DF16: 0 | DH16: NO | DI16: =IF(ISERROR(VLOOKUP($A16+8860000,'Growth Data'!$A:$F,3,0)),"NO",VLOOKUP($A16+8860000,'Growth Data'!$A:$F,3,0)) -> NO | DJ16: 0 | DL16: 0 | DM16: =IF(DI16="YES",IF(ISERROR(VLOOKUP($A16+8860000,'Growth Data'!$A:$F,6,0)),0,VLOOKUP($A16+8860000,'Growth Data'!$A:$F,6,0)),0) -> 0 | DN16: 0 | DP16: 0 | DQ16: =IF(ISERROR(VLOOKUP($A16+8860000,'Growth Data'!$A:$Z,7,0)),0,VLOOKUP($A16+8860000,'Growth Data'!$A:$Z,7,0)) -> 0 | DR16: 0 | DT16: NO | DU16: =IF(ISERROR(VLOOKUP($A16+8860000,'Growth Data'!$A:$F,4,0)),"NO",VLOOKUP($A16+8860000,'Growth Data'!$A:$F,4,0)) -> NO | DV16: 0 | DX16: 0 | DY16: =IF(ISERROR(VLOOKUP($A16+8860000,'Growth Data'!$A:$Z,8,0)),0,VLOOKUP($A16+8860000,'Growth Data'!$A:$Z,8,0)) -> 0 | DZ16: 0 | EB16: 0 | EC16: =IF(ISERROR(VLOOKUP($A16+8860000,'Growth Data'!$A:$Z,9,0)),0,VLOOKUP($A16+8860000,'Growth Data'!$A:$Z,9,0)) -> 0 | ED16: 0 | EF16: NO | EG16: =IF(ISERROR(VLOOKUP($A16+8860000,'Growth Data'!$A:$Z,5,0)),"NO",VLOOKUP($A16+8860000,'Growth Data'!$A:$Z,5,0)) -> NO | EH16: 0 | EJ16: 0 | EK16: =IF(ISERROR(VLOOKUP($A16+8860000,'Growth Data'!$A:$Z,10,0)),0,VLOOKUP($A16+8860000,'Growth Data'!$A:$Z,10,0)) -> 0 | EL16: 0 | EN16: 0 | EO16: =IF(ISERROR(VLOOKUP($A16+8860000,'Growth Data'!$A:$Z,11,0)),0,VLOOKUP($A16+8860000,'Growth Data'!$A:$Z,11,0)) -> 0 | EP16: 0
A17: 2120 | B17: Bean Primary School | D17: Bean Primary School | E17: Bean Primary School | F17: 0 | H17: 541530.43 | I17: 541530.4284 | J17: 0 | L17: 48393.66 | M17: 48393.65706 | N17: 0 | P17: 3583.24 | Q17: 3583.235434 | R17: 0 | T17: 44960.71 | U17: 44960.71427 | V17: 0 | X17: 120082.8 | Y17: 120082.8 | Z17: 0 | AB17: 0 | AC17: 0 | AD17: 0 | AF17: 27611.25 | AG17: 27611.2504 | AH17: 0 | AJ17: 0 | AK17: 0 | AL17: 0 | AN17: 14028 | AO17: 14028 | AP17: 0 | AR17: 0 | AS17: 0 | AT17: 0 | AV17: 0 | AW17: 0 | AX17: 0 | AZ17: 0 | BA17: 0 | BB17: 0 | BD17: 800190.09 | BE17: 800190.0855 | BF17: 0 | BH17: 0 | BI17: 0 | BJ17: 0 | BL17: 800190.09 | BM17: 800190.0855 | BN17: 0 | BP17: 0 | BR17: 0 | BT17: 800190.09 | BU17: 800190.0855 | BV17: 0 | BX17: 0 | BZ17: 0 | CB17: 97345.15 | CD17: 97345 | CF17: 0 | CH17: 0 | CJ17: 0 | CL17: 0 | CN17: 0 | CP17: 0 | CR17: 0 | CT17: 0 | CV17: 0 | CX17: 0 | CZ17: 0 | DB17: 0 | DD17: 0 | DF17: 0 | DH17: NO | DI17: =IF(ISERROR(VLOOKUP($A17+8860000,'Growth Data'!$A:$F,3,0)),"NO",VLOOKUP($A17+8860000,'Growth Data'!$A:$F,3,0)) -> NO | DJ17: 0 | DL17: 0 | DM17: =IF(DI17="YES",IF(ISERROR(VLOOKUP($A17+8860000,'Growth Data'!$A:$F,6,0)),0,VLOOKUP($A17+8860000,'Growth Data'!$A:$F,6,0)),0) -> 0 | DN17: 0 | DP17: 0 | DQ17: =IF(ISERROR(VLOOKUP($A17+8860000,'Growth Data'!$A:$Z,7,0)),0,VLOOKUP($A17+8860000,'Growth Data'!$A:$Z,7,0)) -> 0 | DR17: 0 | DT17: NO | DU17: =IF(ISERROR(VLOOKUP($A17+8860000,'Growth Data'!$A:$F,4,0)),"NO",VLOOKUP($A17+8860000,'Growth Data'!$A:$F,4,0)) -> NO | DV17: 0 | DX17: 0 | DY17: =IF(ISERROR(VLOOKUP($A17+8860000,'Growth Data'!$A:$Z,8,0)),0,VLOOKUP($A17+8860000,'Growth Data'!$A:$Z,8,0)) -> 0 | DZ17: 0 | EB17: 0 | EC17: =IF(ISERROR(VLOOKUP($A17+8860000,'Growth Data'!$A:$Z,9,0)),0,VLOOKUP($A17+8860000,'Growth Data'!$A:$Z,9,0)) -> 0 | ED17: 0 | EF17: NO | EG17: =IF(ISERROR(VLOOKUP($A17+8860000,'Growth Data'!$A:$Z,5,0)),"NO",VLOOKUP($A17+8860000,'Growth Data'!$A:$Z,5,0)) -> NO | EH17: 0 | EJ17: 0 | EK17: =IF(ISERROR(VLOOKUP($A17+8860000,'Growth Data'!$A:$Z,10,0)),0,VLOOKUP($A17+8860000,'Growth Data'!$A:$Z,10,0)) -> 0 | EL17: 0 | EN17: 0 | EO17: =IF(ISERROR(VLOOKUP($A17+8860000,'Growth Data'!$A:$Z,11,0)),0,VLOOKUP($A17+8860000,'Growth Data'!$A:$Z,11,0)) -> 0 | EP17: 0
A18: 2127 | B18: Paddock Wood Primary School | D18: Paddock Wood Primary School | E18: Paddock Wood Primary School | F18: 0 | H18: 1696062.31 | I18: 1696062.306 | J18: 0 | L18: 87982.11 | M18: 87982.11303 | N18: 0 | P18: 3566.07 | Q18: 3566.066366 | R18: 0 | T18: 105629.19 | U18: 105629.191 | V18: 0 | X18: 120082.8 | Y18: 120082.8 | Z18: 0 | AB18: 0 | AC18: 0 | AD18: 0 | AF18: 0 | AG18: 0 | AH18: 0 | AJ18: 0 | AK18: 0 | AL18: 0 | AN18: 59472 | AO18: 59472 | AP18: 0 | AR18: 0 | AS18: 0 | AT18: 0 | AV18: 0 | AW18: 0 | AX18: 0 | AZ18: 84477.52 | BA18: 84477.52352 | BB18: 0 | BD18: 2157272 | BE18: 2157272 | BF18: 0 | BH18: 0 | BI18: 0 | BJ18: 0 | BL18: 2157272 | BM18: 2157272 | BN18: 0 | BP18: 0 | BR18: 0 | BT18: 2157272 | BU18: 2157272 | BV18: 0 | BX18: 0 | BZ18: 0 | CB18: 168188.08 | CD18: 168188 | CF18: 0 | CH18: 0 | CJ18: 0 | CL18: 0 | CN18: 0 | CP18: 0 | CR18: 0 | CT18: 0 | CV18: 0 | CX18: 0 | CZ18: 0 | DB18: 0 | DD18: 0 | DF18: 0 | DH18: NO | DI18: =IF(ISERROR(VLOOKUP($A18+8860000,'Growth Data'!$A:$F,3,0)),"NO",VLOOKUP($A18+8860000,'Growth Data'!$A:$F,3,0)) -> NO | DJ18: 0 | DL18: 0 | DM18: =IF(DI18="YES",IF(ISERROR(VLOOKUP($A18+8860000,'Growth Data'!$A:$F,6,0)),0,VLOOKUP($A18+8860000,'Growth Data'!$A:$F,6,0)),0) -> 0 | DN18: 0 | DP18: 0 | DQ18: =IF(ISERROR(VLOOKUP($A18+8860000,'Growth Data'!$A:$Z,7,0)),0,VLOOKUP($A18+8860000,'Growth Data'!$A:$Z,7,0)) -> 0 | DR18: 0 | DT18: NO | DU18: =IF(ISERROR(VLOOKUP($A18+8860000,'Growth Data'!$A:$F,4,0)),"NO",VLOOKUP($A18+8860000,'Growth Data'!$A:$F,4,0)) -> NO | DV18: 0 | DX18: 0 | DY18: =IF(ISERROR(VLOOKUP($A18+8860000,'Growth Data'!$A:$Z,8,0)),0,VLOOKUP($A18+8860000,'Growth Data'!$A:$Z,8,0)) -> 0 | DZ18: 0 | EB18: 0 | EC18: =IF(ISERROR(VLOOKUP($A18+8860000,'Growth Data'!$A:$Z,9,0)),0,VLOOKUP($A18+8860000,'Growth Data'!$A:$Z,9,0)) -> 0 | ED18: 0 | EF18: NO | EG18: =IF(ISERROR(VLOOKUP($A18+8860000,'Growth Data'!$A:$Z,5,0)),"NO",VLOOKUP($A18+8860000,'Growth Data'!$A:$Z,5,0)) -> NO | EH18: 0 | EJ18: 0 | EK18: =IF(ISERROR(VLOOKUP($A18+8860000,'Growth Data'!$A:$Z,10,0)),0,VLOOKUP($A18+8860000,'Growth Data'!$A:$Z,10,0)) -> 0 | EL18: 0 | EN18: 0 | EO18: =IF(ISERROR(VLOOKUP($A18+8860000,'Growth Data'!$A:$Z,11,0)),0,VLOOKUP($A18+8860000,'Growth Data'!$A:$Z,11,0)) -> 0 | EP18: 0
A19: 2128 | B19: Capel Primary School | D19: Capel Primary School | E19: Capel Primary School | F19: 0 | H19: 574517.05 | I19: 574517.0534 | J19: 0 | L19: 18533.22 | M19: 18533.21512 | N19: 0 | P19: 0 | Q19: 0 | R19: 0 | T19: 27811.82 | U19: 27811.82486 | V19: 0 | X19: 120082.8 | Y19: 120082.8 | Z19: 0 | AB19: 0 | AC19: 0 | AD19: 0 | AF19: 0 | AG19: 0 | AH19: 0 | AJ19: 0 | AK19: 0 | AL19: 0 | AN19: 20422 | AO19: 20422 | AP19: 0 | AR19: 0 | AS19: 0 | AT19: 0 | AV19: 0 | AW19: 0 | AX19: 0 | AZ19: 0 | BA19: 0 | BB19: 0 | BD19: 761366.89 | BE19: 761366.8934 | BF19: 0 | BH19: 0 | BI19: 0 | BJ19: 0 | BL19: 761366.89 | BM19: 761366.8934 | BN19: 0 | BP19: 0 | BR19: 0 | BT19: 761366.89 | BU19: 761366.8934 | BV19: 0 | BX19: 0 | BZ19: 0 | CB19: 45094.88 | CD19: 45095 | CF19: 1490.51 | CH19: 1491 | CJ19: 0 | CL19: 0 | CN19: 0 | CP19: 0 | CR19: 0 | CT19: 0 | CV19: 0 | CX19: 0 | CZ19: 0 | DB19: 0 | DD19: 0 | DF19: 0 | DH19: NO | DI19: =IF(ISERROR(VLOOKUP($A19+8860000,'Growth Data'!$A:$F,3,0)),"NO",VLOOKUP($A19+8860000,'Growth Data'!$A:$F,3,0)) -> NO | DJ19: 0 | DL19: 0 | DM19: =IF(DI19="YES",IF(ISERROR(VLOOKUP($A19+8860000,'Growth Data'!$A:$F,6,0)),0,VLOOKUP($A19+8860000,'Growth Data'!$A:$F,6,0)),0) -> 0 | DN19: 0 | DP19: 0 | DQ19: =IF(ISERROR(VLOOKUP($A19+8860000,'Growth Data'!$A:$Z,7,0)),0,VLOOKUP($A19+8860000,'Growth Data'!$A:$Z,7,0)) -> 0 | DR19: 0 | DT19: NO | DU19: =IF(ISERROR(VLOOKUP($A19+8860000,'Growth Data'!$A:$F,4,0)),"NO",VLOOKUP($A19+8860000,'Growth Data'!$A:$F,4,0)) -> NO | DV19: 0 | DX19: 0 | DY19: =IF(ISERROR(VLOOKUP($A19+8860000,'Growth Data'!$A:$Z,8,0)),0,VLOOKUP($A19+8860000,'Growth Data'!$A:$Z,8,0)) -> 0 | DZ19: 0 | EB19: 0 | EC19: =IF(ISERROR(VLOOKUP($A19+8860000,'Growth Data'!$A:$Z,9,0)),0,VLOOKUP($A19+8860000,'Growth Data'!$A:$Z,9,0)) -> 0 | ED19: 0 | EF19: NO | EG19: =IF(ISERROR(VLOOKUP($A19+8860000,'Growth Data'!$A:$Z,5,0)),"NO",VLOOKUP($A19+8860000,'Growth Data'!$A:$Z,5,0)) -> NO | EH19: 0 | EJ19: 0 | EK19: =IF(ISERROR(VLOOKUP($A19+8860000,'Growth Data'!$A:$Z,10,0)),0,VLOOKUP($A19+8860000,'Growth Data'!$A:$Z,10,0)) -> 0 | EL19: 0 | EN19: 0 | EO19: =IF(ISERROR(VLOOKUP($A19+8860000,'Growth Data'!$A:$Z,11,0)),0,VLOOKUP($A19+8860000,'Growth Data'!$A:$Z,11,0)) -> 0 | EP19: 0
A20: 2130 | B20: Dunton Green Primary School | D20: Dunton Green Primary School | E20: Dunton Green Primary School | F20: 0 | H20: 461812.75 | I20: 461812.7511 | J20: 0 | L20: 30781.22 | M20: 30781.2244 | N20: 0 | P20: 7604.97 | Q20: 7604.973543 | R20: 0 | T20: 40523.95 | U20: 40523.94806 | V20: 0 | X20: 120082.8 | Y20: 120082.8 | Z20: 0 | AB20: 0 | AC20: 0 | AD20: 0 | AF20: 24053.33 | AG20: 24053.32737 | AH20: 0 | AJ20: 0 | AK20: 0 | AL20: 0 | AN20: 24182 | AO20: 24182 | AP20: 0 | AR20: 0 | AS20: 0 | AT20: 0 | AV20: 0 | AW20: 0 | AX20: 0 | AZ20: 0 | BA20: 0 | BB20: 0 | BD20: 709041.02 | BE20: 709041.0245 | BF20: 0 | BH20: 0 | BI20: 0 | BJ20: 0 | BL20: 709041.02 | BM20: 709041.0245 | BN20: 0 | BP20: 0 | BR20: 0 | BT20: 709041.02 | BU20: 709041.0245 | BV20: 0 | BX20: 0 | BZ20: 0 | CB20: 69991.2 | CD20: 69991 | CF20: 0 | CH20: 0 | CJ20: 0 | CL20: 0 | CN20: 0 | CP20: 0 | CR20: 0 | CT20: 0 | CV20: 0 | CX20: 0 | CZ20: 0 | DB20: 0 | DD20: 0 | DF20: 0 | DH20: NO | DI20: =IF(ISERROR(VLOOKUP($A20+8860000,'Growth Data'!$A:$F,3,0)),"NO",VLOOKUP($A20+8860000,'Growth Data'!$A:$F,3,0)) -> NO | DJ20: 0 | DL20: 0 | DM20: =IF(DI20="YES",IF(ISERROR(VLOOKUP($A20+8860000,'Growth Data'!$A:$F,6,0)),0,VLOOKUP($A20+8860000,'Growth Data'!$A:$F,6,0)),0) -> 0 | DN20: 0 | DP20: 0 | DQ20: =IF(ISERROR(VLOOKUP($A20+8860000,'Growth Data'!$A:$Z,7,0)),0,VLOOKUP($A20+8860000,'Growth Data'!$A:$Z,7,0)) -> 0 | DR20: 0 | DT20: NO | DU20: =IF(ISERROR(VLOOKUP($A20+8860000,'Growth Data'!$A:$F,4,0)),"NO",VLOOKUP($A20+8860000,'Growth Data'!$A:$F,4,0)) -> NO | DV20: 0 | DX20: 0 | DY20: =IF(ISERROR(VLOOKUP($A20+8860000,'Growth Data'!$A:$Z,8,0)),0,VLOOKUP($A20+8860000,'Growth Data'!$A:$Z,8,0)) -> 0 | DZ20: 0 | EB20: 0 | EC20: =IF(ISERROR(VLOOKUP($A20+8860000,'Growth Data'!$A:$Z,9,0)),0,VLOOKUP($A20+8860000,'Growth Data'!$A:$Z,9,0)) -> 0 | ED20: 0 | EF20: NO | EG20: =IF(ISERROR(VLOOKUP($A20+8860000,'Growth Data'!$A:$Z,5,0)),"NO",VLOOKUP($A20+8860000,'Growth Data'!$A:$Z,5,0)) -> NO | EH20: 0 | EJ20: 0 | EK20: =IF(ISERROR(VLOOKUP($A20+8860000,'Growth Data'!$A:$Z,10,0)),0,VLOOKUP($A20+8860000,'Growth Data'!$A:$Z,10,0)) -> 0 | EL20: 0 | EN20: 0 | EO20: =IF(ISERROR(VLOOKUP($A20+8860000,'Growth Data'!$A:$Z,11,0)),0,VLOOKUP($A20+8860000,'Growth Data'!$A:$Z,11,0)) -> 0 | EP20: 0
A21: 2132 | B21: Hadlow School | D21: Hadlow School | E21: Hadlow School | F21: 0 | H21: 555274.86 | I21: 555274.8555 | J21: 0 | L21: 57030.52 | M21: 57030.51844 | N21: 0 | P21: 3450.89 | Q21: 3450.887758 | R21: 0 | T21: 34980.12 | U21: 34980.12084 | V21: 0 | X21: 120082.8 | Y21: 120082.8 | Z21: 0 | AB21: 0 | AC21: 0 | AD21: 0 | AF21: 0 | AG21: 0 | AH21: 0 | AJ21: 0 | AK21: 0 | AL21: 0 | AN21: 25237 | AO21: 25237 | AP21: 0 | AR21: 0 | AS21: 0 | AT21: 0 | AV21: 0 | AW21: 0 | AX21: 0 | AZ21: 0 | BA21: 0 | BB21: 0 | BD21: 796056.18 | BE21: 796056.1825 | BF21: 0 | BH21: 0 | BI21: 0 | BJ21: 0 | BL21: 796056.18 | BM21: 796056.1825 | BN21: 0 | BP21: 0 | BR21: 0 | BT21: 796056.18 | BU21: 796056.1825 | BV21: 0 | BX21: 0 | BZ21: 0 | CB21: 85845.6 | CD21: 85846 | CF21: 0 | CH21: 0 | CJ21: 0 | CL21: 0 | CN21: 0 | CP21: 0 | CR21: 0 | CT21: 0 | CV21: 0 | CX21: 0 | CZ21: 0 | DB21: 0 | DD21: 0 | DF21: 0 | DH21: NO | DI21: =IF(ISERROR(VLOOKUP($A21+8860000,'Growth Data'!$A:$F,3,0)),"NO",VLOOKUP($A21+8860000,'Growth Data'!$A:$F,3,0)) -> NO | DJ21: 0 | DL21: 0 | DM21: =IF(DI21="YES",IF(ISERROR(VLOOKUP($A21+8860000,'Growth Data'!$A:$F,6,0)),0,VLOOKUP($A21+8860000,'Growth Data'!$A:$F,6,0)),0) -> 0 | DN21: 0 | DP21: 0 | DQ21: =IF(ISERROR(VLOOKUP($A21+8860000,'Growth Data'!$A:$Z,7,0)),0,VLOOKUP($A21+8860000,'Growth Data'!$A:$Z,7,0)) -> 0 | DR21: 0 | DT21: NO | DU21: =IF(ISERROR(VLOOKUP($A21+8860000,'Growth Data'!$A:$F,4,0)),"NO",VLOOKUP($A21+8860000,'Growth Data'!$A:$F,4,0)) -> NO | DV21: 0 | DX21: 0 | DY21: =IF(ISERROR(VLOOKUP($A21+8860000,'Growth Data'!$A:$Z,8,0)),0,VLOOKUP($A21+8860000,'Growth Data'!$A:$Z,8,0)) -> 0 | DZ21: 0 | EB21: 0 | EC21: =IF(ISERROR(VLOOKUP($A21+8860000,'Growth Data'!$A:$Z,9,0)),0,VLOOKUP($A21+8860000,'Growth Data'!$A:$Z,9,0)) -> 0 | ED21: 0 | EF21: NO | EG21: =IF(ISERROR(VLOOKUP($A21+8860000,'Growth Data'!$A:$Z,5,0)),"NO",VLOOKUP($A21+8860000,'Growth Data'!$A:$Z,5,0)) -> NO | EH21: 0 | EJ21: 0 | EK21: =IF(ISERROR(VLOOKUP($A21+8860000,'Growth Data'!$A:$Z,10,0)),0,VLOOKUP($A21+8860000,'Growth Data'!$A:$Z,10,0)) -> 0 | EL21: 0 | EN21: 0 | EO21: =IF(ISERROR(VLOOKUP($A21+8860000,'Growth Data'!$A:$Z,11,0)),0,VLOOKUP($A21+8860000,'Growth Data'!$A:$Z,11,0)) -> 0 | EP21: 0
A22: 2133 | B22: Halstead Community Primary School | D22: Halstead Community Primary School | E22: Halstead Community Primary School | F22: 0 | H22: 228157.49 | I22: 228157.4901 | J22: 0 | L22: 16627.56 | M22: 16627.55499 | N22: 0 | P22: 2312.13 | Q22: 2312.134814 | R22: 0 | T22: 20861.04 | U22: 20861.03678 | V22: 0 | X22: 120082.8 | Y22: 120082.8 | Z22: 0 | AB22: 0 | AC22: 0 | AD22: 0 | AF22: 14124.69 | AG22: 14124.69301 | AH22: 0 | AJ22: 0 | AK22: 0 | AL22: 0 | AN22: 9329 | AO22: 9329 | AP22: 0 | AR22: 0 | AS22: 0 | AT22: 0 | AV22: 0 | AW22: 0 | AX22: 0 | AZ22: 0 | BA22: 0 | BB22: 0 | BD22: 411494.71 | BE22: 411494.7097 | BF22: 0 | BH22: 0 | BI22: 0 | BJ22: 0 | BL22: 411494.71 | BM22: 411494.7097 | BN22: 0 | BP22: 0 | BR22: 0 | BT22: 411494.71 | BU22: 411494.7097 | BV22: 0 | BX22: 0 | BZ22: 0 | CB22: 40866.47 | CD22: 40866 | CF22: 1913.35 | CH22: 1913 | CJ22: 0 | CL22: 0 | CN22: 0 | CP22: 0 | CR22: 0 | CT22: 0 | CV22: 0 | CX22: 0 | CZ22: 0 | DB22: 0 | DD22: 0 | DF22: 0 | DH22: NO | DI22: =IF(ISERROR(VLOOKUP($A22+8860000,'Growth Data'!$A:$F,3,0)),"NO",VLOOKUP($A22+8860000,'Growth Data'!$A:$F,3,0)) -> NO | DJ22: 0 | DL22: 0 | DM22: =IF(DI22="YES",IF(ISERROR(VLOOKUP($A22+8860000,'Growth Data'!$A:$F,6,0)),0,VLOOKUP($A22+8860000,'Growth Data'!$A:$F,6,0)),0) -> 0 | DN22: 0 | DP22: 0 | DQ22: =IF(ISERROR(VLOOKUP($A22+8860000,'Growth Data'!$A:$Z,7,0)),0,VLOOKUP($A22+8860000,'Growth Data'!$A:$Z,7,0)) -> 0 | DR22: 0 | DT22: NO | DU22: =IF(ISERROR(VLOOKUP($A22+8860000,'Growth Data'!$A:$F,4,0)),"NO",VLOOKUP($A22+8860000,'Growth Data'!$A:$F,4,0)) -> NO | DV22: 0 | DX22: 0 | DY22: =IF(ISERROR(VLOOKUP($A22+8860000,'Growth Data'!$A:$Z,8,0)),0,VLOOKUP($A22+8860000,'Growth Data'!$A:$Z,8,0)) -> 0 | DZ22: 0 | EB22: 0 | EC22: =IF(ISERROR(VLOOKUP($A22+8860000,'Growth Data'!$A:$Z,9,0)),0,VLOOKUP($A22+8860000,'Growth Data'!$A:$Z,9,0)) -> 0 | ED22: 0 | EF22: NO | EG22: =IF(ISERROR(VLOOKUP($A22+8860000,'Growth Data'!$A:$Z,5,0)),"NO",VLOOKUP($A22+8860000,'Growth Data'!$A:$Z,5,0)) -> NO | EH22: 0 | EJ22: 0 | EK22: =IF(ISERROR(VLOOKUP($A22+8860000,'Growth Data'!$A:$Z,10,0)),0,VLOOKUP($A22+8860000,'Growth Data'!$A:$Z,10,0)) -> 0 | EL22: 0 | EN22: 0 | EO22: =IF(ISERROR(VLOOKUP($A22+8860000,'Growth Data'!$A:$Z,11,0)),0,VLOOKUP($A22+8860000,'Growth Data'!$A:$Z,11,0)) -> 0 | EP22: 0
A23: 2134 | B23: Four Elms Primary School | D23: Four Elms Primary School | E23: Four Elms Primary School | F23: 0 | H23: 302377.4 | I23: 302377.3965 | J23: 0 | L23: 13862.53 | M23: 13862.53152 | N23: 0 | P23: 1193.45 | Q23: 1193.454495 | R23: 0 | T23: 22944.23 | U23: 22944.23023 | V23: 0 | X23: 120082.8 | Y23: 120082.8 | Z23: 0 | AB23: 0 | AC23: 0 | AD23: 0 | AF23: 16760.76 | AG23: 16760.75903 | AH23: 0 | AJ23: 0 | AK23: 0 | AL23: 0 | AN23: 13134 | AO23: 13134 | AP23: 0 | AR23: 0 | AS23: 0 | AT23: 0 | AV23: 0 | AW23: 0 | AX23: 0 | AZ23: 0 | BA23: 0 | BB23: 0 | BD23: 490355.17 | BE23: 490355.1718 | BF23: 0 | BH23: 0 | BI23: 0 | BJ23: 0 | BL23: 490355.17 | BM23: 490355.1718 | BN23: 0 | BP23: 0 | BR23: 0 | BT23: 490355.17 | BU23: 490355.1718 | BV23: 0 | BX23: 0 | BZ23: 0 | CB23: 42194.73 | CD23: 42195 | CF23: 1780.53 | CH23: 1781 | CJ23: 0 | CL23: 0 | CN23: 0 | CP23: 0 | CR23: 0 | CT23: 0 | CV23: 0 | CX23: 0 | CZ23: 0 | DB23: 0 | DD23: 0 | DF23: 0 | DH23: NO | DI23: =IF(ISERROR(VLOOKUP($A23+8860000,'Growth Data'!$A:$F,3,0)),"NO",VLOOKUP($A23+8860000,'Growth Data'!$A:$F,3,0)) -> NO | DJ23: 0 | DL23: 0 | DM23: =IF(DI23="YES",IF(ISERROR(VLOOKUP($A23+8860000,'Growth Data'!$A:$F,6,0)),0,VLOOKUP($A23+8860000,'Growth Data'!$A:$F,6,0)),0) -> 0 | DN23: 0 | DP23: 0 | DQ23: =IF(ISERROR(VLOOKUP($A23+8860000,'Growth Data'!$A:$Z,7,0)),0,VLOOKUP($A23+8860000,'Growth Data'!$A:$Z,7,0)) -> 0 | DR23: 0 | DT23: NO | DU23: =IF(ISERROR(VLOOKUP($A23+8860000,'Growth Data'!$A:$F,4,0)),"NO",VLOOKUP($A23+8860000,'Growth Data'!$A:$F,4,0)) -> NO | DV23: 0 | DX23: 0 | DY23: =IF(ISERROR(VLOOKUP($A23+8860000,'Growth Data'!$A:$Z,8,0)),0,VLOOKUP($A23+8860000,'Growth Data'!$A:$Z,8,0)) -> 0 | DZ23: 0 | EB23: 0 | EC23: =IF(ISERROR(VLOOKUP($A23+8860000,'Growth Data'!$A:$Z,9,0)),0,VLOOKUP($A23+8860000,'Growth Data'!$A:$Z,9,0)) -> 0 | ED23: 0 | EF23: NO | EG23: =IF(ISERROR(VLOOKUP($A23+8860000,'Growth Data'!$A:$Z,5,0)),"NO",VLOOKUP($A23+8860000,'Growth Data'!$A:$Z,5,0)) -> NO | EH23: 0 | EJ23: 0 | EK23: =IF(ISERROR(VLOOKUP($A23+8860000,'Growth Data'!$A:$Z,10,0)),0,VLOOKUP($A23+8860000,'Growth Data'!$A:$Z,10,0)) -> 0 | EL23: 0 | EN23: 0 | EO23: =IF(ISERROR(VLOOKUP($A23+8860000,'Growth Data'!$A:$Z,11,0)),0,VLOOKUP($A23+8860000,'Growth Data'!$A:$Z,11,0)) -> 0 | EP23: 0
A24: 2135 | B24: Horsmonden Primary School | D24: Horsmonden Primary School | E24: Horsmonden Primary School | F24: 0 | H24: 494799.38 | I24: 494799.3762 | J24: 0 | L24: 12617.31 | M24: 12617.30877 | N24: 0 | P24: 0 | Q24: 0 | R24: 0 | T24: 24769.34 | U24: 24769.33945 | V24: 0 | X24: 120082.8 | Y24: 120082.8 | Z24: 0 | AB24: 0 | AC24: 0 | AD24: 0 | AF24: 0 | AG24: 0 | AH24: 0 | AJ24: 0 | AK24: 0 | AL24: 0 | AN24: 18413 | AO24: 18413 | AP24: 0 | AR24: 0 | AS24: 0 | AT24: 0 | AV24: 0 | AW24: 0 | AX24: 0 | AZ24: 0 | BA24: 0 | BB24: 0 | BD24: 670681.82 | BE24: 670681.8244 | BF24: 0 | BH24: 0 | BI24: 0 | BJ24: 0 | BL24: 670681.82 | BM24: 670681.8244 | BN24: 0 | BP24: 0 | BR24: 0 | BT24: 670681.82 | BU24: 670681.8244 | BV24: 0 | BX24: 0 | BZ24: 0 | CB24: 39218.61 | CD24: 39219 | CF24: 2078.14 | CH24: 2078 | CJ24: 0 | CL24: 0 | CN24: 0 | CP24: 0 | CR24: 0 | CT24: 0 | CV24: 0 | CX24: 0 | CZ24: 0 | DB24: 0 | DD24: 0 | DF24: 0 | DH24: NO | DI24: =IF(ISERROR(VLOOKUP($A24+8860000,'Growth Data'!$A:$F,3,0)),"NO",VLOOKUP($A24+8860000,'Growth Data'!$A:$F,3,0)) -> NO | DJ24: 0 | DL24: 0 | DM24: =IF(DI24="YES",IF(ISERROR(VLOOKUP($A24+8860000,'Growth Data'!$A:$F,6,0)),0,VLOOKUP($A24+8860000,'Growth Data'!$A:$F,6,0)),0) -> 0 | DN24: 0 | DP24: 0 | DQ24: =IF(ISERROR(VLOOKUP($A24+8860000,'Growth Data'!$A:$Z,7,0)),0,VLOOKUP($A24+8860000,'Growth Data'!$A:$Z,7,0)) -> 0 | DR24: 0 | DT24: NO | DU24: =IF(ISERROR(VLOOKUP($A24+8860000,'Growth Data'!$A:$F,4,0)),"NO",VLOOKUP($A24+8860000,'Growth Data'!$A:$F,4,0)) -> NO | DV24: 0 | DX24: 0 | DY24: =IF(ISERROR(VLOOKUP($A24+8860000,'Growth Data'!$A:$Z,8,0)),0,VLOOKUP($A24+8860000,'Growth Data'!$A:$Z,8,0)) -> 0 | DZ24: 0 | EB24: 0 | EC24: =IF(ISERROR(VLOOKUP($A24+8860000,'Growth Data'!$A:$Z,9,0)),0,VLOOKUP($A24+8860000,'Growth Data'!$A:$Z,9,0)) -> 0 | ED24: 0 | EF24: NO | EG24: =IF(ISERROR(VLOOKUP($A24+8860000,'Growth Data'!$A:$Z,5,0)),"NO",VLOOKUP($A24+8860000,'Growth Data'!$A:$Z,5,0)) -> NO | EH24: 0 | EJ24: 0 | EK24: =IF(ISERROR(VLOOKUP($A24+8860000,'Growth Data'!$A:$Z,10,0)),0,VLOOKUP($A24+8860000,'Growth Data'!$A:$Z,10,0)) -> 0 | EL24: 0 | EN24: 0 | EO24: =IF(ISERROR(VLOOKUP($A24+8860000,'Growth Data'!$A:$Z,11,0)),0,VLOOKUP($A24+8860000,'Growth Data'!$A:$Z,11,0)) -> 0 | EP24: 0
A25: 2136 | B25: Kemsing Primary School | D25: Kemsing Primary School | E25: Kemsing Primary School | F25: 0 | H25: 544279.31 | I25: 544279.3138 | J25: 0 | L25: 13131.83 | M25: 13131.83023 | N25: 0 | P25: 1200.47 | Q25: 1200.474815 | R25: 0 | T25: 46158.39 | U25: 46158.39258 | V25: 0 | X25: 120082.8 | Y25: 120082.8 | Z25: 0 | AB25: 0 | AC25: 0 | AD25: 0 | AF25: 26384.64 | AG25: 26384.64233 | AH25: 0 | AJ25: 0 | AK25: 0 | AL25: 0 | AN25: 21604 | AO25: 21604 | AP25: 0 | AR25: 0 | AS25: 0 | AT25: 0 | AV25: 0 | AW25: 0 | AX25: 0 | AZ25: 0 | BA25: 0 | BB25: 0 | BD25: 772841.45 | BE25: 772841.4537 | BF25: 0 | BH25: 0 | BI25: 0 | BJ25: 0 | BL25: 772841.45 | BM25: 772841.4537 | BN25: 0 | BP25: 0 | BR25: 0 | BT25: 772841.45 | BU25: 772841.4537 | BV25: 0 | BX25: 0 | BZ25: 0 | CB25: 63222.21 | CD25: 63222 | CF25: 0 | CH25: 0 | CJ25: 0 | CL25: 0 | CN25: 0 | CP25: 0 | CR25: 0 | CT25: 0 | CV25: 0 | CX25: 0 | CZ25: 0 | DB25: 0 | DD25: 0 | DF25: 0 | DH25: NO | DI25: =IF(ISERROR(VLOOKUP($A25+8860000,'Growth Data'!$A:$F,3,0)),"NO",VLOOKUP($A25+8860000,'Growth Data'!$A:$F,3,0)) -> NO | DJ25: 0 | DL25: 0 | DM25: =IF(DI25="YES",IF(ISERROR(VLOOKUP($A25+8860000,'Growth Data'!$A:$F,6,0)),0,VLOOKUP($A25+8860000,'Growth Data'!$A:$F,6,0)),0) -> 0 | DN25: 0 | DP25: 0 | DQ25: =IF(ISERROR(VLOOKUP($A25+8860000,'Growth Data'!$A:$Z,7,0)),0,VLOOKUP($A25+8860000,'Growth Data'!$A:$Z,7,0)) -> 0 | DR25: 0 | DT25: NO | DU25: =IF(ISERROR(VLOOKUP($A25+8860000,'Growth Data'!$A:$F,4,0)),"NO",VLOOKUP($A25+8860000,'Growth Data'!$A:$F,4,0)) -> NO | DV25: 0 | DX25: 0 | DY25: =IF(ISERROR(VLOOKUP($A25+8860000,'Growth Data'!$A:$Z,8,0)),0,VLOOKUP($A25+8860000,'Growth Data'!$A:$Z,8,0)) -> 0 | DZ25: 0 | EB25: 0 | EC25: =IF(ISERROR(VLOOKUP($A25+8860000,'Growth Data'!$A:$Z,9,0)),0,VLOOKUP($A25+8860000,'Growth Data'!$A:$Z,9,0)) -> 0 | ED25: 0 | EF25: NO | EG25: =IF(ISERROR(VLOOKUP($A25+8860000,'Growth Data'!$A:$Z,5,0)),"NO",VLOOKUP($A25+8860000,'Growth Data'!$A:$Z,5,0)) -> NO | EH25: 0 | EJ25: 0 | EK25: =IF(ISERROR(VLOOKUP($A25+8860000,'Growth Data'!$A:$Z,10,0)),0,VLOOKUP($A25+8860000,'Growth Data'!$A:$Z,10,0)) -> 0 | EL25: 0 | EN25: 0 | EO25: =IF(ISERROR(VLOOKUP($A25+8860000,'Growth Data'!$A:$Z,11,0)),0,VLOOKUP($A25+8860000,'Growth Data'!$A:$Z,11,0)) -> 0 | EP25: 0
A26: 2137 | B26: Leigh Primary School | D26: Leigh Primary School | E26: Leigh Primary School | F26: 0 | H26: 472808.29 | I26: 472808.2928 | J26: 0 | L26: 10668.64 | M26: 10668.63998 | N26: 0 | P26: 0 | Q26: 0 | R26: 0 | T26: 27557.67 | U26: 27557.66676 | V26: 0 | X26: 120082.8 | Y26: 120082.8 | Z26: 0 | AB26: 0 | AC26: 0 | AD26: 0 | AF26: 22972.67 | AG26: 22972.67334 | AH26: 0 | AJ26: 0 | AK26: 0 | AL26: 0 | AN26: 12005 | AO26: 12005 | AP26: 0 | AR26: 0 | AS26: 0 | AT26: 0 | AV26: 0 | AW26: 0 | AX26: 0 | AZ26: 0 | BA26: 0 | BB26: 0 | BD26: 666095.07 | BE26: 666095.0729 | BF26: 0 | BH26: 0 | BI26: 0 | BJ26: 0 | BL26: 666095.07 | BM26: 666095.0729 | BN26: 0 | BP26: 0 | BR26: 0 | BT26: 666095.07 | BU26: 666095.0729 | BV26: 0 | BX26: 0 | BZ26: 0 | CB26: 41060.06 | CD26: 41060 | CF26: 1893.99 | CH26: 1894 | CJ26: 0 | CL26: 0 | CN26: 0 | CP26: 0 | CR26: 0 | CT26: 0 | CV26: 0 | CX26: 0 | CZ26: 0 | DB26: 0 | DD26: 0 | DF26: 0 | DH26: NO | DI26: =IF(ISERROR(VLOOKUP($A26+8860000,'Growth Data'!$A:$F,3,0)),"NO",VLOOKUP($A26+8860000,'Growth Data'!$A:$F,3,0)) -> NO | DJ26: 0 | DL26: 0 | DM26: =IF(DI26="YES",IF(ISERROR(VLOOKUP($A26+8860000,'Growth Data'!$A:$F,6,0)),0,VLOOKUP($A26+8860000,'Growth Data'!$A:$F,6,0)),0) -> 0 | DN26: 0 | DP26: 0 | DQ26: =IF(ISERROR(VLOOKUP($A26+8860000,'Growth Data'!$A:$Z,7,0)),0,VLOOKUP($A26+8860000,'Growth Data'!$A:$Z,7,0)) -> 0 | DR26: 0 | DT26: NO | DU26: =IF(ISERROR(VLOOKUP($A26+8860000,'Growth Data'!$A:$F,4,0)),"NO",VLOOKUP($A26+8860000,'Growth Data'!$A:$F,4,0)) -> NO | DV26: 0 | DX26: 0 | DY26: =IF(ISERROR(VLOOKUP($A26+8860000,'Growth Data'!$A:$Z,8,0)),0,VLOOKUP($A26+8860000,'Growth Data'!$A:$Z,8,0)) -> 0 | DZ26: 0 | EB26: 0 | EC26: =IF(ISERROR(VLOOKUP($A26+8860000,'Growth Data'!$A:$Z,9,0)),0,VLOOKUP($A26+8860000,'Growth Data'!$A:$Z,9,0)) -> 0 | ED26: 0 | EF26: NO | EG26: =IF(ISERROR(VLOOKUP($A26+8860000,'Growth Data'!$A:$Z,5,0)),"NO",VLOOKUP($A26+8860000,'Growth Data'!$A:$Z,5,0)) -> NO | EH26: 0 | EJ26: 0 | EK26: =IF(ISERROR(VLOOKUP($A26+8860000,'Growth Data'!$A:$Z,10,0)),0,VLOOKUP($A26+8860000,'Growth Data'!$A:$Z,10,0)) -> 0 | EL26: 0 | EN26: 0 | EO26: =IF(ISERROR(VLOOKUP($A26+8860000,'Growth Data'!$A:$Z,11,0)),0,VLOOKUP($A26+8860000,'Growth Data'!$A:$Z,11,0)) -> 0 | EP26: 0
A27: 2138 | B27: Otford Primary School | D27: Otford Primary School | E27: Otford Primary School | F27: 0 | H27: 1072065.32 | I27: 1072065.315 | J27: 0 | L27: 19894.1 | M27: 19894.09914 | N27: 0 | P27: 4902.16 | Q27: 4902.160646 | R27: 0 | T27: 58485.29 | U27: 58485.29275 | V27: 0 | X27: 120082.8 | Y27: 120082.8 | Z27: 0 | AB27: 0 | AC27: 0 | AD27: 0 | AF27: 46425.64 | AG27: 46425.6399 | AH27: 0 | AJ27: 0 | AK27: 0 | AL27: 0 | AN27: 28980 | AO27: 28980 | AP27: 0 | AR27: 0 | AS27: 0 | AT27: 0 | AV27: 0 | AW27: 0 | AX27: 0 | AZ27: 4144.69 | BA27: 4144.692557 | BB27: 0 | BD27: 1354980 | BE27: 1354980 | BF27: 0 | BH27: 0 | BI27: 0 | BJ27: 0 | BL27: 1354980 | BM27: 1354980 | BN27: 0 | BP27: 0 | BR27: 0 | BT27: 1354980 | BU27: 1354980 | BV27: 0 | BX27: 0 | BZ27: 0 | CB27: 84561 | CD27: 84561 | CF27: 0 | CH27: 0 | CJ27: 0 | CL27: 0 | CN27: 0 | CP27: 0 | CR27: 0 | CT27: 0 | CV27: 0 | CX27: 0 | CZ27: 0 | DB27: 0 | DD27: 0 | DF27: 0 | DH27: NO | DI27: =IF(ISERROR(VLOOKUP($A27+8860000,'Growth Data'!$A:$F,3,0)),"NO",VLOOKUP($A27+8860000,'Growth Data'!$A:$F,3,0)) -> NO | DJ27: 0 | DL27: 0 | DM27: =IF(DI27="YES",IF(ISERROR(VLOOKUP($A27+8860000,'Growth Data'!$A:$F,6,0)),0,VLOOKUP($A27+8860000,'Growth Data'!$A:$F,6,0)),0) -> 0 | DN27: 0 | DP27: 0 | DQ27: =IF(ISERROR(VLOOKUP($A27+8860000,'Growth Data'!$A:$Z,7,0)),0,VLOOKUP($A27+8860000,'Growth Data'!$A:$Z,7,0)) -> 0 | DR27: 0 | DT27: NO | DU27: =IF(ISERROR(VLOOKUP($A27+8860000,'Growth Data'!$A:$F,4,0)),"NO",VLOOKUP($A27+8860000,'Growth Data'!$A:$F,4,0)) -> NO | DV27: 0 | DX27: 0 | DY27: =IF(ISERROR(VLOOKUP($A27+8860000,'Growth Data'!$A:$Z,8,0)),0,VLOOKUP($A27+8860000,'Growth Data'!$A:$Z,8,0)) -> 0 | DZ27: 0 | EB27: 0 | EC27: =IF(ISERROR(VLOOKUP($A27+8860000,'Growth Data'!$A:$Z,9,0)),0,VLOOKUP($A27+8860000,'Growth Data'!$A:$Z,9,0)) -> 0 | ED27: 0 | EF27: NO | EG27: =IF(ISERROR(VLOOKUP($A27+8860000,'Growth Data'!$A:$Z,5,0)),"NO",VLOOKUP($A27+8860000,'Growth Data'!$A:$Z,5,0)) -> NO | EH27: 0 | EJ27: 0 | EK27: =IF(ISERROR(VLOOKUP($A27+8860000,'Growth Data'!$A:$Z,10,0)),0,VLOOKUP($A27+8860000,'Growth Data'!$A:$Z,10,0)) -> 0 | EL27: 0 | EN27: 0 | EO27: =IF(ISERROR(VLOOKUP($A27+8860000,'Growth Data'!$A:$Z,11,0)),0,VLOOKUP($A27+8860000,'Growth Data'!$A:$Z,11,0)) -> 0 | EP27: 0
A28: 2139 | B28: Pembury School | D28: Pembury School | E28: Pembury School | F28: 0 | H28: 1215007.36 | I28: 1215007.357 | J28: 0 | L28: 23074.29 | M28: 23074.28764 | N28: 0 | P28: 15108.33 | Q28: 15108.32572 | R28: 0 | T28: 69387.51 | U28: 69387.50985 | V28: 0 | X28: 120082.8 | Y28: 120082.8 | Z28: 0 | AB28: 0 | AC28: 0 | AD28: 0 | AF28: 0 | AG28: 0 | AH28: 0 | AJ28: 0 | AK28: 0 | AL28: 0 | AN28: 41832 | AO28: 41832 | AP28: 0 | AR28: 0 | AS28: 0 | AT28: 0 | AV28: 0 | AW28: 0 | AX28: 0 | AZ28: 60139.72 | BA28: 60139.71978 | BB28: 0 | BD28: 1544632 | BE28: 1544632 | BF28: 0 | BH28: 0 | BI28: 0 | BJ28: 0 | BL28: 1544632 | BM28: 1544632 | BN28: 0 | BP28: 0 | BR28: 0 | BT28: 1544632 | BU28: 1544632 | BV28: 0 | BX28: 0 | BZ28: 0 | CB28: 105879.66 | CD28: 105880 | CF28: 0 | CH28: 0 | CJ28: 0 | CL28: 0 | CN28: 0 | CP28: 0 | CR28: 0 | CT28: 0 | CV28: 0 | CX28: 0 | CZ28: 0 | DB28: 0 | DD28: 0 | DF28: 0 | DH28: NO | DI28: =IF(ISERROR(VLOOKUP($A28+8860000,'Growth Data'!$A:$F,3,0)),"NO",VLOOKUP($A28+8860000,'Growth Data'!$A:$F,3,0)) -> NO | DJ28: 0 | DL28: 0 | DM28: =IF(DI28="YES",IF(ISERROR(VLOOKUP($A28+8860000,'Growth Data'!$A:$F,6,0)),0,VLOOKUP($A28+8860000,'Growth Data'!$A:$F,6,0)),0) -> 0 | DN28: 0 | DP28: 0 | DQ28: =IF(ISERROR(VLOOKUP($A28+8860000,'Growth Data'!$A:$Z,7,0)),0,VLOOKUP($A28+8860000,'Growth Data'!$A:$Z,7,0)) -> 0 | DR28: 0 | DT28: NO | DU28: =IF(ISERROR(VLOOKUP($A28+8860000,'Growth Data'!$A:$F,4,0)),"NO",VLOOKUP($A28+8860000,'Growth Data'!$A:$F,4,0)) -> NO | DV28: 0 | DX28: 0 | DY28: =IF(ISERROR(VLOOKUP($A28+8860000,'Growth Data'!$A:$Z,8,0)),0,VLOOKUP($A28+8860000,'Growth Data'!$A:$Z,8,0)) -> 0 | DZ28: 0 | EB28: 0 | EC28: =IF(ISERROR(VLOOKUP($A28+8860000,'Growth Data'!$A:$Z,9,0)),0,VLOOKUP($A28+8860000,'Growth Data'!$A:$Z,9,0)) -> 0 | ED28: 0 | EF28: NO | EG28: =IF(ISERROR(VLOOKUP($A28+8860000,'Growth Data'!$A:$Z,5,0)),"NO",VLOOKUP($A28+8860000,'Growth Data'!$A:$Z,5,0)) -> NO | EH28: 0 | EJ28: 0 | EK28: =IF(ISERROR(VLOOKUP($A28+8860000,'Growth Data'!$A:$Z,10,0)),0,VLOOKUP($A28+8860000,'Growth Data'!$A:$Z,10,0)) -> 0 | EL28: 0 | EN28: 0 | EO28: =IF(ISERROR(VLOOKUP($A28+8860000,'Growth Data'!$A:$Z,11,0)),0,VLOOKUP($A28+8860000,'Growth Data'!$A:$Z,11,0)) -> 0 | EP28: 0
A29: 2142 | B29: Sandhurst Primary School | D29: Sandhurst Primary School | E29: Sandhurst Primary School | F29: 0 | H29: 393090.62 | I29: 393090.6155 | J29: 0 | L29: 21481.11 | M29: 21481.10962 | N29: 0 | P29: 1700.67 | Q29: 1700.672655 | R29: 0 | T29: 26653.61 | U29: 26653.6149 | V29: 0 | X29: 120082.8 | Y29: 120082.8 | Z29: 0 | AB29: 0 | AC29: 0 | AD29: 0 | AF29: 0 | AG29: 0 | AH29: 0 | AJ29: 0 | AK29: 0 | AL29: 0 | AN29: 21236 | AO29: 21236 | AP29: 0 | AR29: 0 | AS29: 0 | AT29: 0 | AV29: 0 | AW29: 0 | AX29: 0 | AZ29: 0 | BA29: 0 | BB29: 0 | BD29: 584244.81 | BE29: 584244.8127 | BF29: 0 | BH29: 0 | BI29: 0 | BJ29: 0 | BL29: 584244.81 | BM29: 584244.8127 | BN29: 0 | BP29: 0 | BR29: 0 | BT29: 584244.81 | BU29: 584244.8127 | BV29: 0 | BX29: 0 | BZ29: 0 | CB29: 48585.24 | CD29: 48585 | CF29: 1141.48 | CH29: 1141 | CJ29: 0 | CL29: 0 | CN29: 0 | CP29: 0 | CR29: 0 | CT29: 0 | CV29: 0 | CX29: 0 | CZ29: 0 | DB29: 0 | DD29: 0 | DF29: 0 | DH29: NO | DI29: =IF(ISERROR(VLOOKUP($A29+8860000,'Growth Data'!$A:$F,3,0)),"NO",VLOOKUP($A29+8860000,'Growth Data'!$A:$F,3,0)) -> NO | DJ29: 0 | DL29: 0 | DM29: =IF(DI29="YES",IF(ISERROR(VLOOKUP($A29+8860000,'Growth Data'!$A:$F,6,0)),0,VLOOKUP($A29+8860000,'Growth Data'!$A:$F,6,0)),0) -> 0 | DN29: 0 | DP29: 0 | DQ29: =IF(ISERROR(VLOOKUP($A29+8860000,'Growth Data'!$A:$Z,7,0)),0,VLOOKUP($A29+8860000,'Growth Data'!$A:$Z,7,0)) -> 0 | DR29: 0 | DT29: NO | DU29: =IF(ISERROR(VLOOKUP($A29+8860000,'Growth Data'!$A:$F,4,0)),"NO",VLOOKUP($A29+8860000,'Growth Data'!$A:$F,4,0)) -> NO | DV29: 0 | DX29: 0 | DY29: =IF(ISERROR(VLOOKUP($A29+8860000,'Growth Data'!$A:$Z,8,0)),0,VLOOKUP($A29+8860000,'Growth Data'!$A:$Z,8,0)) -> 0 | DZ29: 0 | EB29: 0 | EC29: =IF(ISERROR(VLOOKUP($A29+8860000,'Growth Data'!$A:$Z,9,0)),0,VLOOKUP($A29+8860000,'Growth Data'!$A:$Z,9,0)) -> 0 | ED29: 0 | EF29: NO | EG29: =IF(ISERROR(VLOOKUP($A29+8860000,'Growth Data'!$A:$Z,5,0)),"NO",VLOOKUP($A29+8860000,'Growth Data'!$A:$Z,5,0)) -> NO | EH29: 0 | EJ29: 0 | EK29: =IF(ISERROR(VLOOKUP($A29+8860000,'Growth Data'!$A:$Z,10,0)),0,VLOOKUP($A29+8860000,'Growth Data'!$A:$Z,10,0)) -> 0 | EL29: 0 | EN29: 0 | EO29: =IF(ISERROR(VLOOKUP($A29+8860000,'Growth Data'!$A:$Z,11,0)),0,VLOOKUP($A29+8860000,'Growth Data'!$A:$Z,11,0)) -> 0 | EP29: 0
A30: 2147 | B30: Weald Community Primary School | D30: Weald Community Primary School | E30: Weald Community Primary School | F30: 0 | H30: 467310.52 | I30: 467310.5219 | J30: 0 | L30: 6694.37 | M30: 6694.365927 | N30: 0 | P30: 5879.89 | Q30: 5879.893255 | R30: 0 | T30: 29080.35 | U30: 29080.34952 | V30: 0 | X30: 120082.8 | Y30: 120082.8 | Z30: 0 | AB30: 0 | AC30: 0 | AD30: 0 | AF30: 22897.34 | AG30: 22897.34468 | AH30: 0 | AJ30: 0 | AK30: 0 | AL30: 0 | AN30: 14976 | AO30: 14976 | AP30: 0 | AR30: 0 | AS30: 0 | AT30: 0 | AV30: 0 | AW30: 0 | AX30: 0 | AZ30: 0 | BA30: 0 | BB30: 0 | BD30: 666921.28 | BE30: 666921.2753 | BF30: 0 | BH30: 0 | BI30: 0 | BJ30: 0 | BL30: 666921.28 | BM30: 666921.2753 | BN30: 0 | BP30: 0 | BR30: 0 | BT30: 666921.28 | BU30: 666921.2753 | BV30: 0 | BX30: 0 | BZ30: 0 | CB30: 46438.48 | CD30: 46438 | CF30: 1356.15 | CH30: 1356 | CJ30: 0 | CL30: 0 | CN30: 0 | CP30: 0 | CR30: 0 | CT30: 0 | CV30: 0 | CX30: 0 | CZ30: 0 | DB30: 0 | DD30: 0 | DF30: 0 | DH30: NO | DI30: =IF(ISERROR(VLOOKUP($A30+8860000,'Growth Data'!$A:$F,3,0)),"NO",VLOOKUP($A30+8860000,'Growth Data'!$A:$F,3,0)) -> NO | DJ30: 0 | DL30: 0 | DM30: =IF(DI30="YES",IF(ISERROR(VLOOKUP($A30+8860000,'Growth Data'!$A:$F,6,0)),0,VLOOKUP($A30+8860000,'Growth Data'!$A:$F,6,0)),0) -> 0 | DN30: 0 | DP30: 0 | DQ30: =IF(ISERROR(VLOOKUP($A30+8860000,'Growth Data'!$A:$Z,7,0)),0,VLOOKUP($A30+8860000,'Growth Data'!$A:$Z,7,0)) -> 0 | DR30: 0 | DT30: NO | DU30: =IF(ISERROR(VLOOKUP($A30+8860000,'Growth Data'!$A:$F,4,0)),"NO",VLOOKUP($A30+8860000,'Growth Data'!$A:$F,4,0)) -> NO | DV30: 0 | DX30: 0 | DY30: =IF(ISERROR(VLOOKUP($A30+8860000,'Growth Data'!$A:$Z,8,0)),0,VLOOKUP($A30+8860000,'Growth Data'!$A:$Z,8,0)) -> 0 | DZ30: 0 | EB30: 0 | EC30: =IF(ISERROR(VLOOKUP($A30+8860000,'Growth Data'!$A:$Z,9,0)),0,VLOOKUP($A30+8860000,'Growth Data'!$A:$Z,9,0)) -> 0 | ED30: 0 | EF30: NO | EG30: =IF(ISERROR(VLOOKUP($A30+8860000,'Growth Data'!$A:$Z,5,0)),"NO",VLOOKUP($A30+8860000,'Growth Data'!$A:$Z,5,0)) -> NO | EH30: 0 | EJ30: 0 | EK30: =IF(ISERROR(VLOOKUP($A30+8860000,'Growth Data'!$A:$Z,10,0)),0,VLOOKUP($A30+8860000,'Growth Data'!$A:$Z,10,0)) -> 0 | EL30: 0 | EN30: 0 | EO30: =IF(ISERROR(VLOOKUP($A30+8860000,'Growth Data'!$A:$Z,11,0)),0,VLOOKUP($A30+8860000,'Growth Data'!$A:$Z,11,0)) -> 0 | EP30: 0
A31: 2148 | B31: Shoreham Village School | D31: Shoreham Village School | E31: Shoreham Village School | F31: 0 | H31: 258395.23 | I31: 258395.2298 | J31: 0 | L31: 14352.25 | M31: 14352.24787 | N31: 0 | P31: 1794.2 | Q31: 1794.200107 | R31: 0 | T31: 19969.98 | U31: 19969.97816 | V31: 0 | X31: 120082.8 | Y31: 120082.8 | Z31: 0 | AB31: 0 | AC31: 0 | AD31: 0 | AF31: 15091.24 | AG31: 15091.2382 | AH31: 0 | AJ31: 0 | AK31: 0 | AL31: 0 | AN31: 13871 | AO31: 13871 | AP31: 0 | AR31: 0 | AS31: 0 | AT31: 0 | AV31: 0 | AW31: 0 | AX31: 0 | AZ31: 0 | BA31: 0 | BB31: 0 | BD31: 443556.69 | BE31: 443556.6941 | BF31: 0 | BH31: 0 | BI31: 0 | BJ31: 0 | BL31: 443556.69 | BM31: 443556.6941 | BN31: 0 | BP31: 0 | BR31: 0 | BT31: 443556.69 | BU31: 443556.6941 | BV31: 0 | BX31: 0 | BZ31: 0 | CB31: 37960.72 | CD31: 37961 | CF31: 2203.93 | CH31: 2204 | CJ31: 0 | CL31: 0 | CN31: 0 | CP31: 0 | CR31: 0 | CT31: 0 | CV31: 0 | CX31: 0 | CZ31: 0 | DB31: 0 | DD31: 0 | DF31: 0 | DH31: NO | DI31: =IF(ISERROR(VLOOKUP($A31+8860000,'Growth Data'!$A:$F,3,0)),"NO",VLOOKUP($A31+8860000,'Growth Data'!$A:$F,3,0)) -> NO | DJ31: 0 | DL31: 0 | DM31: =IF(DI31="YES",IF(ISERROR(VLOOKUP($A31+8860000,'Growth Data'!$A:$F,6,0)),0,VLOOKUP($A31+8860000,'Growth Data'!$A:$F,6,0)),0) -> 0 | DN31: 0 | DP31: 0 | DQ31: =IF(ISERROR(VLOOKUP($A31+8860000,'Growth Data'!$A:$Z,7,0)),0,VLOOKUP($A31+8860000,'Growth Data'!$A:$Z,7,0)) -> 0 | DR31: 0 | DT31: NO | DU31: =IF(ISERROR(VLOOKUP($A31+8860000,'Growth Data'!$A:$F,4,0)),"NO",VLOOKUP($A31+8860000,'Growth Data'!$A:$F,4,0)) -> NO | DV31: 0 | DX31: 0 | DY31: =IF(ISERROR(VLOOKUP($A31+8860000,'Growth Data'!$A:$Z,8,0)),0,VLOOKUP($A31+8860000,'Growth Data'!$A:$Z,8,0)) -> 0 | DZ31: 0 | EB31: 0 | EC31: =IF(ISERROR(VLOOKUP($A31+8860000,'Growth Data'!$A:$Z,9,0)),0,VLOOKUP($A31+8860000,'Growth Data'!$A:$Z,9,0)) -> 0 | ED31: 0 | EF31: NO | EG31: =IF(ISERROR(VLOOKUP($A31+8860000,'Growth Data'!$A:$Z,5,0)),"NO",VLOOKUP($A31+8860000,'Growth Data'!$A:$Z,5,0)) -> NO | EH31: 0 | EJ31: 0 | EK31: =IF(ISERROR(VLOOKUP($A31+8860000,'Growth Data'!$A:$Z,10,0)),0,VLOOKUP($A31+8860000,'Growth Data'!$A:$Z,10,0)) -> 0 | EL31: 0 | EN31: 0 | EO31: =IF(ISERROR(VLOOKUP($A31+8860000,'Growth Data'!$A:$Z,11,0)),0,VLOOKUP($A31+8860000,'Growth Data'!$A:$Z,11,0)) -> 0 | EP31: 0
A32: 2155 | B32: Slade Primary School | D32: Slade Primary School | E32: Slade Primary School | F32: 0 | H32: 1069316.43 | I32: 1069316.43 | J32: 0 | L32: 24774.36 | M32: 24774.35912 | N32: 0 | P32: 17670.89 | Q32: 17670.89272 | R32: 0 | T32: 88661.36 | U32: 88661.3577 | V32: 0 | X32: 120082.8 | Y32: 120082.8 | Z32: 0 | AB32: 0 | AC32: 0 | AD32: 0 | AF32: 0 | AG32: 0 | AH32: 0 | AJ32: 0 | AK32: 0 | AL32: 0 | AN32: 32857 | AO32: 32857 | AP32: 0 | AR32: 0 | AS32: 0 | AT32: 0 | AV32: 0 | AW32: 0 | AX32: 0 | AZ32: 2094.16 | BA32: 2094.160885 | BB32: 0 | BD32: 1355457 | BE32: 1355457 | BF32: 0 | BH32: 0 | BI32: 0 | BJ32: 0 | BL32: 1355457 | BM32: 1355457 | BN32: 0 | BP32: 0 | BR32: 0 | BT32: 1355457 | BU32: 1355457 | BV32: 0 | BX32: 0 | BZ32: 0 | CB32: 128975.84 | CD32: 128976 | CF32: 0 | CH32: 0 | CJ32: 0 | CL32: 0 | CN32: 30000 | CP32: 30000 | CR32: 985.74 | CT32: 986 | CV32: 985.74 | CX32: 986 | CZ32: 985.74 | DB32: 986 | DD32: 985.74 | DF32: 986 | DH32: YES | DI32: =IF(ISERROR(VLOOKUP($A32+8860000,'Growth Data'!$A:$F,3,0)),"NO",VLOOKUP($A32+8860000,'Growth Data'!$A:$F,3,0)) -> YES | DJ32: 0 | DL32: 46 | DM32: =IF(DI32="YES",IF(ISERROR(VLOOKUP($A32+8860000,'Growth Data'!$A:$F,6,0)),0,VLOOKUP($A32+8860000,'Growth Data'!$A:$F,6,0)),0) -> 46 | DN32: 0 | DP32: 60 | DQ32: =IF(ISERROR(VLOOKUP($A32+8860000,'Growth Data'!$A:$Z,7,0)),0,VLOOKUP($A32+8860000,'Growth Data'!$A:$Z,7,0)) -> 60 | DR32: 0 | DT32: YES | DU32: =IF(ISERROR(VLOOKUP($A32+8860000,'Growth Data'!$A:$F,4,0)),"NO",VLOOKUP($A32+8860000,'Growth Data'!$A:$F,4,0)) -> YES | DV32: 0 | DX32: 46 | DY32: =IF(ISERROR(VLOOKUP($A32+8860000,'Growth Data'!$A:$Z,8,0)),0,VLOOKUP($A32+8860000,'Growth Data'!$A:$Z,8,0)) -> 45 | DZ32: 1 | EB32: 60 | EC32: =IF(ISERROR(VLOOKUP($A32+8860000,'Growth Data'!$A:$Z,9,0)),0,VLOOKUP($A32+8860000,'Growth Data'!$A:$Z,9,0)) -> 60 | ED32: 0 | EF32: YES | EG32: =IF(ISERROR(VLOOKUP($A32+8860000,'Growth Data'!$A:$Z,5,0)),"NO",VLOOKUP($A32+8860000,'Growth Data'!$A:$Z,5,0)) -> NO | EH32: 1 | EJ32: 47 | EK32: =IF(ISERROR(VLOOKUP($A32+8860000,'Growth Data'!$A:$Z,10,0)),0,VLOOKUP($A32+8860000,'Growth Data'!$A:$Z,10,0)) -> 0 | EL32: 1 | EN32: 60 | EO32: =IF(ISERROR(VLOOKUP($A32+8860000,'Growth Data'!$A:$Z,11,0)),0,VLOOKUP($A32+8860000,'Growth Data'!$A:$Z,11,0)) -> 0 | EP32: 1
A33: 2156 | B33: Sussex Road Community Primary School | D33: Sussex Road Community Primary School | E33: Sussex Road Community Primary School | F33: 0 | H33: 1231500.67 | I33: 1231500.67 | J33: 0 | L33: 39102.1 | M33: 39102.10279 | N33: 0 | P33: 24927.83 | Q33: 24927.83102 | R33: 0 | T33: 54943.69 | U33: 54943.6948 | V33: 0 | X33: 120082.8 | Y33: 120082.8 | Z33: 0 | AB33: 0 | AC33: 0 | AD33: 0 | AF33: 0 | AG33: 0 | AH33: 0 | AJ33: 0 | AK33: 0 | AL33: 0 | AN33: 47221 | AO33: 47221 | AP33: 0 | AR33: 0 | AS33: 0 | AT33: 0 | AV33: 0 | AW33: 0 | AX33: 0 | AZ33: 52642.9 | BA33: 52642.90184 | BB33: 0 | BD33: 1570421 | BE33: 1570421 | BF33: 0 | BH33: 0 | BI33: 0 | BJ33: 0 | BL33: 1570421 | BM33: 1570421 | BN33: 0 | BP33: 0 | BR33: 0 | BT33: 1570421 | BU33: 1570421 | BV33: 0 | BX33: 0 | BZ33: 0 | CB33: 108477.09 | CD33: 108477 | CF33: 0 | CH33: 0 | CJ33: 0 | CL33: 0 | CN33: 0 | CP33: 0 | CR33: 0 | CT33: 0 | CV33: 0 | CX33: 0 | CZ33: 0 | DB33: 0 | DD33: 0 | DF33: 0 | DH33: NO | DI33: =IF(ISERROR(VLOOKUP($A33+8860000,'Growth Data'!$A:$F,3,0)),"NO",VLOOKUP($A33+8860000,'Growth Data'!$A:$F,3,0)) -> NO | DJ33: 0 | DL33: 0 | DM33: =IF(DI33="YES",IF(ISERROR(VLOOKUP($A33+8860000,'Growth Data'!$A:$F,6,0)),0,VLOOKUP($A33+8860000,'Growth Data'!$A:$F,6,0)),0) -> 0 | DN33: 0 | DP33: 0 | DQ33: =IF(ISERROR(VLOOKUP($A33+8860000,'Growth Data'!$A:$Z,7,0)),0,VLOOKUP($A33+8860000,'Growth Data'!$A:$Z,7,0)) -> 0 | DR33: 0 | DT33: NO | DU33: =IF(ISERROR(VLOOKUP($A33+8860000,'Growth Data'!$A:$F,4,0)),"NO",VLOOKUP($A33+8860000,'Growth Data'!$A:$F,4,0)) -> NO | DV33: 0 | DX33: 0 | DY33: =IF(ISERROR(VLOOKUP($A33+8860000,'Growth Data'!$A:$Z,8,0)),0,VLOOKUP($A33+8860000,'Growth Data'!$A:$Z,8,0)) -> 0 | DZ33: 0 | EB33: 0 | EC33: =IF(ISERROR(VLOOKUP($A33+8860000,'Growth Data'!$A:$Z,9,0)),0,VLOOKUP($A33+8860000,'Growth Data'!$A:$Z,9,0)) -> 0 | ED33: 0 | EF33: NO | EG33: =IF(ISERROR(VLOOKUP($A33+8860000,'Growth Data'!$A:$Z,5,0)),"NO",VLOOKUP($A33+8860000,'Growth Data'!$A:$Z,5,0)) -> NO | EH33: 0 | EJ33: 0 | EK33: =IF(ISERROR(VLOOKUP($A33+8860000,'Growth Data'!$A:$Z,10,0)),0,VLOOKUP($A33+8860000,'Growth Data'!$A:$Z,10,0)) -> 0 | EL33: 0 | EN33: 0 | EO33: =IF(ISERROR(VLOOKUP($A33+8860000,'Growth Data'!$A:$Z,11,0)),0,VLOOKUP($A33+8860000,'Growth Data'!$A:$Z,11,0)) -> 0 | EP33: 0
A34: 2161 | B34: Boughton Monchelsea Primary School | D34: Boughton Monchelsea Primary School | E34: Boughton Monchelsea Primary School | F34: 0 | H34: 571768.17 | I34: 571768.168 | J34: 0 | L34: 17712.87 | M34: 17712.87218 | N34: 0 | P34: 2994.24 | Q34: 2994.243374 | R34: 0 | T34: 47434.4 | U34: 47434.39939 | V34: 0 | X34: 120082.8 | Y34: 120082.8 | Z34: 0 | AB34: 0 | AC34: 0 | AD34: 0 | AF34: 0 | AG34: 0 | AH34: 0 | AJ34: 0 | AK34: 0 | AL34: 0 | AN34: 24140 | AO34: 24140 | AP34: 0 | AR34: 0 | AS34: 0 | AT34: 0 | AV34: 0 | AW34: 0 | AX34: 0 | AZ34: 0 | BA34: 0 | BB34: 0 | BD34: 784132.48 | BE34: 784132.4829 | BF34: 0 | BH34: 0 | BI34: 0 | BJ34: 0 | BL34: 784132.48 | BM34: 784132.4829 | BN34: 0 | BP34: 0 | BR34: 0 | BT34: 784132.48 | BU34: 784132.4829 | BV34: 0 | BX34: 0 | BZ34: 0 | CB34: 69973.48 | CD34: 69973 | CF34: 0 | CH34: 0 | CJ34: 0 | CL34: 0 | CN34: 0 | CP34: 0 | CR34: 0 | CT34: 0 | CV34: 0 | CX34: 0 | CZ34: 0 | DB34: 0 | DD34: 0 | DF34: 0 | DH34: NO | DI34: =IF(ISERROR(VLOOKUP($A34+8860000,'Growth Data'!$A:$F,3,0)),"NO",VLOOKUP($A34+8860000,'Growth Data'!$A:$F,3,0)) -> NO | DJ34: 0 | DL34: 0 | DM34: =IF(DI34="YES",IF(ISERROR(VLOOKUP($A34+8860000,'Growth Data'!$A:$F,6,0)),0,VLOOKUP($A34+8860000,'Growth Data'!$A:$F,6,0)),0) -> 0 | DN34: 0 | DP34: 0 | DQ34: =IF(ISERROR(VLOOKUP($A34+8860000,'Growth Data'!$A:$Z,7,0)),0,VLOOKUP($A34+8860000,'Growth Data'!$A:$Z,7,0)) -> 0 | DR34: 0 | DT34: NO | DU34: =IF(ISERROR(VLOOKUP($A34+8860000,'Growth Data'!$A:$F,4,0)),"NO",VLOOKUP($A34+8860000,'Growth Data'!$A:$F,4,0)) -> NO | DV34: 0 | DX34: 0 | DY34: =IF(ISERROR(VLOOKUP($A34+8860000,'Growth Data'!$A:$Z,8,0)),0,VLOOKUP($A34+8860000,'Growth Data'!$A:$Z,8,0)) -> 0 | DZ34: 0 | EB34: 0 | EC34: =IF(ISERROR(VLOOKUP($A34+8860000,'Growth Data'!$A:$Z,9,0)),0,VLOOKUP($A34+8860000,'Growth Data'!$A:$Z,9,0)) -> 0 | ED34: 0 | EF34: NO | EG34: =IF(ISERROR(VLOOKUP($A34+8860000,'Growth Data'!$A:$Z,5,0)),"NO",VLOOKUP($A34+8860000,'Growth Data'!$A:$Z,5,0)) -> NO | EH34: 0 | EJ34: 0 | EK34: =IF(ISERROR(VLOOKUP($A34+8860000,'Growth Data'!$A:$Z,10,0)),0,VLOOKUP($A34+8860000,'Growth Data'!$A:$Z,10,0)) -> 0 | EL34: 0 | EN34: 0 | EO34: =IF(ISERROR(VLOOKUP($A34+8860000,'Growth Data'!$A:$Z,11,0)),0,VLOOKUP($A34+8860000,'Growth Data'!$A:$Z,11,0)) -> 0 | EP34: 0
A35: 2163 | B35: East Farleigh Primary School | D35: East Farleigh Primary School | E35: East Farleigh Primary School | F35: 0 | H35: 549777.08 | I35: 549777.0846 | J35: 0 | L35: 15768.26 | M35: 15768.26176 | N35: 0 | P35: 3637.8 | Q35: 3637.802471 | R35: 0 | T35: 26924.38 | U35: 26924.37512 | V35: 0 | X35: 120082.8 | Y35: 120082.8 | Z35: 0 | AB35: 0 | AC35: 0 | AD35: 0 | AF35: 0 | AG35: 0 | AH35: 0 | AJ35: 0 | AK35: 0 | AL35: 0 | AN35: 18371 | AO35: 18371 | AP35: 0 | AR35: 0 | AS35: 0 | AT35: 0 | AV35: 0 | AW35: 0 | AX35: 0 | AZ35: 0 | BA35: 0 | BB35: 0 | BD35: 734561.32 | BE35: 734561.324 | BF35: 0 | BH35: 0 | BI35: 0 | BJ35: 0 | BL35: 734561.32 | BM35: 734561.324 | BN35: 0 | BP35: 0 | BR35: 0 | BT35: 734561.32 | BU35: 734561.324 | BV35: 0 | BX35: 0 | BZ35: 0 | CB35: 50804.23 | CD35: 50804 | CF35: 919.58 | CH35: 920 | CJ35: 0 | CL35: 0 | CN35: 0 | CP35: 0 | CR35: 0 | CT35: 0 | CV35: 0 | CX35: 0 | CZ35: 0 | DB35: 0 | DD35: 0 | DF35: 0 | DH35: NO | DI35: =IF(ISERROR(VLOOKUP($A35+8860000,'Growth Data'!$A:$F,3,0)),"NO",VLOOKUP($A35+8860000,'Growth Data'!$A:$F,3,0)) -> NO | DJ35: 0 | DL35: 0 | DM35: =IF(DI35="YES",IF(ISERROR(VLOOKUP($A35+8860000,'Growth Data'!$A:$F,6,0)),0,VLOOKUP($A35+8860000,'Growth Data'!$A:$F,6,0)),0) -> 0 | DN35: 0 | DP35: 0 | DQ35: =IF(ISERROR(VLOOKUP($A35+8860000,'Growth Data'!$A:$Z,7,0)),0,VLOOKUP($A35+8860000,'Growth Data'!$A:$Z,7,0)) -> 0 | DR35: 0 | DT35: NO | DU35: =IF(ISERROR(VLOOKUP($A35+8860000,'Growth Data'!$A:$F,4,0)),"NO",VLOOKUP($A35+8860000,'Growth Data'!$A:$F,4,0)) -> NO | DV35: 0 | DX35: 0 | DY35: =IF(ISERROR(VLOOKUP($A35+8860000,'Growth Data'!$A:$Z,8,0)),0,VLOOKUP($A35+8860000,'Growth Data'!$A:$Z,8,0)) -> 0 | DZ35: 0 | EB35: 0 | EC35: =IF(ISERROR(VLOOKUP($A35+8860000,'Growth Data'!$A:$Z,9,0)),0,VLOOKUP($A35+8860000,'Growth Data'!$A:$Z,9,0)) -> 0 | ED35: 0 | EF35: NO | EG35: =IF(ISERROR(VLOOKUP($A35+8860000,'Growth Data'!$A:$Z,5,0)),"NO",VLOOKUP($A35+8860000,'Growth Data'!$A:$Z,5,0)) -> NO | EH35: 0 | EJ35: 0 | EK35: =IF(ISERROR(VLOOKUP($A35+8860000,'Growth Data'!$A:$Z,10,0)),0,VLOOKUP($A35+8860000,'Growth Data'!$A:$Z,10,0)) -> 0 | EL35: 0 | EN35: 0 | EO35: =IF(ISERROR(VLOOKUP($A35+8860000,'Growth Data'!$A:$Z,11,0)),0,VLOOKUP($A35+8860000,'Growth Data'!$A:$Z,11,0)) -> 0 | EP35: 0
A36: 2164 | B36: East Peckham Primary School | D36: East Peckham Primary School | E36: East Peckham Primary School | F36: 0 | H36: 434323.9 | I36: 434323.8968 | J36: 0 | L36: 13680.08 | M36: 13680.0838 | N36: 0 | P36: 590.04 | Q36: 590.0445312 | R36: 0 | T36: 35138.55 | U36: 35138.54666 | V36: 0 | X36: 120082.8 | Y36: 120082.8 | Z36: 0 | AB36: 0 | AC36: 0 | AD36: 0 | AF36: 0 | AG36: 0 | AH36: 0 | AJ36: 0 | AK36: 0 | AL36: 0 | AN36: 23750 | AO36: 23750 | AP36: 0 | AR36: 0 | AS36: 0 | AT36: 0 | AV36: 0 | AW36: 0 | AX36: 0 | AZ36: 0 | BA36: 0 | BB36: 0 | BD36: 627565.37 | BE36: 627565.3718 | BF36: 0 | BH36: 0 | BI36: 0 | BJ36: 0 | BL36: 627565.37 | BM36: 627565.3718 | BN36: 0 | BP36: 0 | BR36: 0 | BT36: 627565.37 | BU36: 627565.3718 | BV36: 0 | BX36: 0 | BZ36: 0 | CB36: 51240.64 | CD36: 51241 | CF36: 875.94 | CH36: 876 | CJ36: 0 | CL36: 0 | CN36: 0 | CP36: 0 | CR36: 0 | CT36: 0 | CV36: 0 | CX36: 0 | CZ36: 0 | DB36: 0 | DD36: 0 | DF36: 0 | DH36: NO | DI36: =IF(ISERROR(VLOOKUP($A36+8860000,'Growth Data'!$A:$F,3,0)),"NO",VLOOKUP($A36+8860000,'Growth Data'!$A:$F,3,0)) -> NO | DJ36: 0 | DL36: 0 | DM36: =IF(DI36="YES",IF(ISERROR(VLOOKUP($A36+8860000,'Growth Data'!$A:$F,6,0)),0,VLOOKUP($A36+8860000,'Growth Data'!$A:$F,6,0)),0) -> 0 | DN36: 0 | DP36: 0 | DQ36: =IF(ISERROR(VLOOKUP($A36+8860000,'Growth Data'!$A:$Z,7,0)),0,VLOOKUP($A36+8860000,'Growth Data'!$A:$Z,7,0)) -> 0 | DR36: 0 | DT36: NO | DU36: =IF(ISERROR(VLOOKUP($A36+8860000,'Growth Data'!$A:$F,4,0)),"NO",VLOOKUP($A36+8860000,'Growth Data'!$A:$F,4,0)) -> NO | DV36: 0 | DX36: 0 | DY36: =IF(ISERROR(VLOOKUP($A36+8860000,'Growth Data'!$A:$Z,8,0)),0,VLOOKUP($A36+8860000,'Growth Data'!$A:$Z,8,0)) -> 0 | DZ36: 0 | EB36: 0 | EC36: =IF(ISERROR(VLOOKUP($A36+8860000,'Growth Data'!$A:$Z,9,0)),0,VLOOKUP($A36+8860000,'Growth Data'!$A:$Z,9,0)) -> 0 | ED36: 0 | EF36: NO | EG36: =IF(ISERROR(VLOOKUP($A36+8860000,'Growth Data'!$A:$Z,5,0)),"NO",VLOOKUP($A36+8860000,'Growth Data'!$A:$Z,5,0)) -> NO | EH36: 0 | EJ36: 0 | EK36: =IF(ISERROR(VLOOKUP($A36+8860000,'Growth Data'!$A:$Z,10,0)),0,VLOOKUP($A36+8860000,'Growth Data'!$A:$Z,10,0)) -> 0 | EL36: 0 | EN36: 0 | EO36: =IF(ISERROR(VLOOKUP($A36+8860000,'Growth Data'!$A:$Z,11,0)),0,VLOOKUP($A36+8860000,'Growth Data'!$A:$Z,11,0)) -> 0 | EP36: 0
A37: 2165 | B37: Headcorn Primary School | D37: Headcorn Primary School | E37: Headcorn Primary School | F37: 0 | H37: 698216.9 | I37: 698216.8975 | J37: 0 | L37: 17636.79 | M37: 17636.79257 | N37: 0 | P37: 1993.41 | Q37: 1993.404958 | R37: 0 | T37: 19217.75 | U37: 19217.75402 | V37: 0 | X37: 120082.8 | Y37: 120082.8 | Z37: 0 | AB37: 0 | AC37: 0 | AD37: 0 | AF37: 0 | AG37: 0 | AH37: 0 | AJ37: 0 | AK37: 0 | AL37: 0 | AN37: 42184 | AO37: 42184 | AP37: 0 | AR37: 0 | AS37: 0 | AT37: 0 | AV37: 0 | AW37: 0 | AX37: 0 | AZ37: 6452.35 | BA37: 6452.350983 | BB37: 0 | BD37: 905784 | BE37: 905784 | BF37: 0 | BH37: 0 | BI37: 0 | BJ37: 0 | BL37: 905784 | BM37: 905784 | BN37: 0 | BP37: 0 | BR37: 0 | BT37: 905784 | BU37: 905784 | BV37: 0 | BX37: 0 | BZ37: 0 | CB37: 37597.79 | CD37: 37598 | CF37: 2240.22 | CH37: 2240 | CJ37: 0 | CL37: 0 | CN37: 0 | CP37: 0 | CR37: 0 | CT37: 0 | CV37: 0 | CX37: 0 | CZ37: 0 | DB37: 0 | DD37: 0 | DF37: 0 | DH37: NO | DI37: =IF(ISERROR(VLOOKUP($A37+8860000,'Growth Data'!$A:$F,3,0)),"NO",VLOOKUP($A37+8860000,'Growth Data'!$A:$F,3,0)) -> NO | DJ37: 0 | DL37: 0 | DM37: =IF(DI37="YES",IF(ISERROR(VLOOKUP($A37+8860000,'Growth Data'!$A:$F,6,0)),0,VLOOKUP($A37+8860000,'Growth Data'!$A:$F,6,0)),0) -> 0 | DN37: 0 | DP37: 0 | DQ37: =IF(ISERROR(VLOOKUP($A37+8860000,'Growth Data'!$A:$Z,7,0)),0,VLOOKUP($A37+8860000,'Growth Data'!$A:$Z,7,0)) -> 0 | DR37: 0 | DT37: NO | DU37: =IF(ISERROR(VLOOKUP($A37+8860000,'Growth Data'!$A:$F,4,0)),"NO",VLOOKUP($A37+8860000,'Growth Data'!$A:$F,4,0)) -> YES | DV37: 1 | DX37: 0 | DY37: =IF(ISERROR(VLOOKUP($A37+8860000,'Growth Data'!$A:$Z,8,0)),0,VLOOKUP($A37+8860000,'Growth Data'!$A:$Z,8,0)) -> 31 | DZ37: 1 | EB37: 0 | EC37: =IF(ISERROR(VLOOKUP($A37+8860000,'Growth Data'!$A:$Z,9,0)),0,VLOOKUP($A37+8860000,'Growth Data'!$A:$Z,9,0)) -> 60 | ED37: 1 | EF37: YES | EG37: =IF(ISERROR(VLOOKUP($A37+8860000,'Growth Data'!$A:$Z,5,0)),"NO",VLOOKUP($A37+8860000,'Growth Data'!$A:$Z,5,0)) -> YES | EH37: 0 | EJ37: 31 | EK37: =IF(ISERROR(VLOOKUP($A37+8860000,'Growth Data'!$A:$Z,10,0)),0,VLOOKUP($A37+8860000,'Growth Data'!$A:$Z,10,0)) -> 30 | EL37: 1 | EN37: 60 | EO37: =IF(ISERROR(VLOOKUP($A37+8860000,'Growth Data'!$A:$Z,11,0)),0,VLOOKUP($A37+8860000,'Growth Data'!$A:$Z,11,0)) -> 60 | EP37: 0
A38: 2166 | B38: Hollingbourne Primary School | D38: Hollingbourne Primary School | E38: Hollingbourne Primary School | F38: 0 | H38: 272139.66 | I38: 272139.6569 | J38: 0 | L38: 5359.54 | M38: 5359.537115 | N38: 0 | P38: 0 | Q38: 0 | R38: 0 | T38: 16145.94 | U38: 16145.93979 | V38: 0 | X38: 120082.8 | Y38: 120082.8 | Z38: 0 | AB38: 0 | AC38: 0 | AD38: 0 | AF38: 0 | AG38: 0 | AH38: 0 | AJ38: 0 | AK38: 0 | AL38: 0 | AN38: 15425 | AO38: 15425 | AP38: 0 | AR38: 0 | AS38: 0 | AT38: 0 | AV38: 0 | AW38: 0 | AX38: 0 | AZ38: 0 | BA38: 0 | BB38: 0 | BD38: 429152.93 | BE38: 429152.9338 | BF38: 0 | BH38: 0 | BI38: 0 | BJ38: 0 | BL38: 429152.93 | BM38: 429152.9338 | BN38: 0 | BP38: 0 | BR38: 0 | BT38: 429152.93 | BU38: 429152.9338 | BV38: 0 | BX38: 0 | BZ38: 0 | CB38: 25979.26 | CD38: 25979 | CF38: 3402.07 | CH38: 3402 | CJ38: 0 | CL38: 0 | CN38: 0 | CP38: 0 | CR38: 0 | CT38: 0 | CV38: 0 | CX38: 0 | CZ38: 0 | DB38: 0 | DD38: 0 | DF38: 0 | DH38: NO | DI38: =IF(ISERROR(VLOOKUP($A38+8860000,'Growth Data'!$A:$F,3,0)),"NO",VLOOKUP($A38+8860000,'Growth Data'!$A:$F,3,0)) -> NO | DJ38: 0 | DL38: 0 | DM38: =IF(DI38="YES",IF(ISERROR(VLOOKUP($A38+8860000,'Growth Data'!$A:$F,6,0)),0,VLOOKUP($A38+8860000,'Growth Data'!$A:$F,6,0)),0) -> 0 | DN38: 0 | DP38: 0 | DQ38: =IF(ISERROR(VLOOKUP($A38+8860000,'Growth Data'!$A:$Z,7,0)),0,VLOOKUP($A38+8860000,'Growth Data'!$A:$Z,7,0)) -> 0 | DR38: 0 | DT38: NO | DU38: =IF(ISERROR(VLOOKUP($A38+8860000,'Growth Data'!$A:$F,4,0)),"NO",VLOOKUP($A38+8860000,'Growth Data'!$A:$F,4,0)) -> NO | DV38: 0 | DX38: 0 | DY38: =IF(ISERROR(VLOOKUP($A38+8860000,'Growth Data'!$A:$Z,8,0)),0,VLOOKUP($A38+8860000,'Growth Data'!$A:$Z,8,0)) -> 0 | DZ38: 0 | EB38: 0 | EC38: =IF(ISERROR(VLOOKUP($A38+8860000,'Growth Data'!$A:$Z,9,0)),0,VLOOKUP($A38+8860000,'Growth Data'!$A:$Z,9,0)) -> 0 | ED38: 0 | EF38: NO | EG38: =IF(ISERROR(VLOOKUP($A38+8860000,'Growth Data'!$A:$Z,5,0)),"NO",VLOOKUP($A38+8860000,'Growth Data'!$A:$Z,5,0)) -> NO | EH38: 0 | EJ38: 0 | EK38: =IF(ISERROR(VLOOKUP($A38+8860000,'Growth Data'!$A:$Z,10,0)),0,VLOOKUP($A38+8860000,'Growth Data'!$A:$Z,10,0)) -> 0 | EL38: 0 | EN38: 0 | EO38: =IF(ISERROR(VLOOKUP($A38+8860000,'Growth Data'!$A:$Z,11,0)),0,VLOOKUP($A38+8860000,'Growth Data'!$A:$Z,11,0)) -> 0 | EP38: 0
A39: 2167 | B39: Ightham Primary School | D39: Ightham Primary School | E39: Ightham Primary School | F39: 0 | H39: 552525.97 | I39: 552525.97 | J39: 0 | L39: 2618.67 | M39: 2618.665633 | N39: 0 | P39: 1817.31 | Q39: 1817.305708 | R39: 0 | T39: 27833.05 | U39: 27833.0523 | V39: 0 | X39: 120082.8 | Y39: 120082.8 | Z39: 0 | AB39: 0 | AC39: 0 | AD39: 0 | AF39: 0 | AG39: 0 | AH39: 0 | AJ39: 0 | AK39: 0 | AL39: 0 | AN39: 24486 | AO39: 24486 | AP39: 0 | AR39: 0 | AS39: 0 | AT39: 0 | AV39: 0 | AW39: 0 | AX39: 0 | AZ39: 0 | BA39: 0 | BB39: 0 | BD39: 729363.79 | BE39: 729363.7937 | BF39: 0 | BH39: 0 | BI39: 0 | BJ39: 0 | BL39: 729363.79 | BM39: 729363.7937 | BN39: 0 | BP39: 0 | BR39: 0 | BT39: 729363.79 | BU39: 729363.7937 | BV39: 0 | BX39: 0 | BZ39: 0 | CB39: 38063.72 | CD39: 38064 | CF39: 2193.63 | CH39: 2194 | CJ39: 0 | CL39: 0 | CN39: 0 | CP39: 0 | CR39: 0 | CT39: 0 | CV39: 0 | CX39: 0 | CZ39: 0 | DB39: 0 | DD39: 0 | DF39: 0 | DH39: NO | DI39: =IF(ISERROR(VLOOKUP($A39+8860000,'Growth Data'!$A:$F,3,0)),"NO",VLOOKUP($A39+8860000,'Growth Data'!$A:$F,3,0)) -> NO | DJ39: 0 | DL39: 0 | DM39: =IF(DI39="YES",IF(ISERROR(VLOOKUP($A39+8860000,'Growth Data'!$A:$F,6,0)),0,VLOOKUP($A39+8860000,'Growth Data'!$A:$F,6,0)),0) -> 0 | DN39: 0 | DP39: 0 | DQ39: =IF(ISERROR(VLOOKUP($A39+8860000,'Growth Data'!$A:$Z,7,0)),0,VLOOKUP($A39+8860000,'Growth Data'!$A:$Z,7,0)) -> 0 | DR39: 0 | DT39: NO | DU39: =IF(ISERROR(VLOOKUP($A39+8860000,'Growth Data'!$A:$F,4,0)),"NO",VLOOKUP($A39+8860000,'Growth Data'!$A:$F,4,0)) -> NO | DV39: 0 | DX39: 0 | DY39: =IF(ISERROR(VLOOKUP($A39+8860000,'Growth Data'!$A:$Z,8,0)),0,VLOOKUP($A39+8860000,'Growth Data'!$A:$Z,8,0)) -> 0 | DZ39: 0 | EB39: 0 | EC39: =IF(ISERROR(VLOOKUP($A39+8860000,'Growth Data'!$A:$Z,9,0)),0,VLOOKUP($A39+8860000,'Growth Data'!$A:$Z,9,0)) -> 0 | ED39: 0 | EF39: NO | EG39: =IF(ISERROR(VLOOKUP($A39+8860000,'Growth Data'!$A:$Z,5,0)),"NO",VLOOKUP($A39+8860000,'Growth Data'!$A:$Z,5,0)) -> NO | EH39: 0 | EJ39: 0 | EK39: =IF(ISERROR(VLOOKUP($A39+8860000,'Growth Data'!$A:$Z,10,0)),0,VLOOKUP($A39+8860000,'Growth Data'!$A:$Z,10,0)) -> 0 | EL39: 0 | EN39: 0 | EO39: =IF(ISERROR(VLOOKUP($A39+8860000,'Growth Data'!$A:$Z,11,0)),0,VLOOKUP($A39+8860000,'Growth Data'!$A:$Z,11,0)) -> 0 | EP39: 0
A40: 2168 | B40: Lenham Primary School | D40: Lenham Primary School | E40: Lenham Primary School | F40: 0 | H40: 563521.51 | I40: 563521.5117 | J40: 0 | L40: 21090.71 | M40: 21090.71481 | N40: 0 | P40: 2414.81 | Q40: 2414.807926 | R40: 0 | T40: 36737.99 | U40: 36737.98668 | V40: 0 | X40: 120082.8 | Y40: 120082.8 | Z40: 0 | AB40: 0 | AC40: 0 | AD40: 0 | AF40: 0 | AG40: 0 | AH40: 0 | AJ40: 0 | AK40: 0 | AL40: 0 | AN40: 20457 | AO40: 20457 | AP40: 0 | AR40: 0 | AS40: 0 | AT40: 0 | AV40: 0 | AW40: 0 | AX40: 0 | AZ40: 0 | BA40: 0 | BB40: 0 | BD40: 764304.82 | BE40: 764304.8212 | BF40: 0 | BH40: 0 | BI40: 0 | BJ40: 0 | BL40: 764304.82 | BM40: 764304.8212 | BN40: 0 | BP40: 0 | BR40: 0 | BT40: 764304.82 | BU40: 764304.8212 | BV40: 0 | BX40: 0 | BZ40: 0 | CB40: 55030.62 | CD40: 55031 | CF40: 496.94 | CH40: 497 | CJ40: 0 | CL40: 0 | CN40: 0 | CP40: 0 | CR40: 0 | CT40: 0 | CV40: 0 | CX40: 0 | CZ40: 0 | DB40: 0 | DD40: 0 | DF40: 0 | DH40: NO | DI40: =IF(ISERROR(VLOOKUP($A40+8860000,'Growth Data'!$A:$F,3,0)),"NO",VLOOKUP($A40+8860000,'Growth Data'!$A:$F,3,0)) -> NO | DJ40: 0 | DL40: 0 | DM40: =IF(DI40="YES",IF(ISERROR(VLOOKUP($A40+8860000,'Growth Data'!$A:$F,6,0)),0,VLOOKUP($A40+8860000,'Growth Data'!$A:$F,6,0)),0) -> 0 | DN40: 0 | DP40: 0 | DQ40: =IF(ISERROR(VLOOKUP($A40+8860000,'Growth Data'!$A:$Z,7,0)),0,VLOOKUP($A40+8860000,'Growth Data'!$A:$Z,7,0)) -> 0 | DR40: 0 | DT40: NO | DU40: =IF(ISERROR(VLOOKUP($A40+8860000,'Growth Data'!$A:$F,4,0)),"NO",VLOOKUP($A40+8860000,'Growth Data'!$A:$F,4,0)) -> NO | DV40: 0 | DX40: 0 | DY40: =IF(ISERROR(VLOOKUP($A40+8860000,'Growth Data'!$A:$Z,8,0)),0,VLOOKUP($A40+8860000,'Growth Data'!$A:$Z,8,0)) -> 0 | DZ40: 0 | EB40: 0 | EC40: =IF(ISERROR(VLOOKUP($A40+8860000,'Growth Data'!$A:$Z,9,0)),0,VLOOKUP($A40+8860000,'Growth Data'!$A:$Z,9,0)) -> 0 | ED40: 0 | EF40: NO | EG40: =IF(ISERROR(VLOOKUP($A40+8860000,'Growth Data'!$A:$Z,5,0)),"NO",VLOOKUP($A40+8860000,'Growth Data'!$A:$Z,5,0)) -> NO | EH40: 0 | EJ40: 0 | EK40: =IF(ISERROR(VLOOKUP($A40+8860000,'Growth Data'!$A:$Z,10,0)),0,VLOOKUP($A40+8860000,'Growth Data'!$A:$Z,10,0)) -> 0 | EL40: 0 | EN40: 0 | EO40: =IF(ISERROR(VLOOKUP($A40+8860000,'Growth Data'!$A:$Z,11,0)),0,VLOOKUP($A40+8860000,'Growth Data'!$A:$Z,11,0)) -> 0 | EP40: 0
A41: 2169 | B41: Platts Heath Primary School | D41: Platts Heath Primary School | E41: Platts Heath Primary School | F41: 0 | H41: 186924.21 | I41: 186924.2088 | J41: 0 | L41: 9733.63 | M41: 9733.634654 | N41: 0 | P41: 0 | Q41: 0 | R41: 0 | T41: 16041.1 | U41: 16041.09603 | V41: 0 | X41: 120082.8 | Y41: 120082.8 | Z41: 0 | AB41: 0 | AC41: 0 | AD41: 0 | AF41: 0 | AG41: 0 | AH41: 0 | AJ41: 0 | AK41: 0 | AL41: 0 | AN41: 4230 | AO41: 4230 | AP41: 0 | AR41: 0 | AS41: 0 | AT41: 0 | AV41: 0 | AW41: 0 | AX41: 0 | AZ41: 0 | BA41: 0 | BB41: 0 | BD41: 337011.74 | BE41: 337011.7395 | BF41: 0 | BH41: 0 | BI41: 0 | BJ41: 0 | BL41: 337011.74 | BM41: 337011.7395 | BN41: 0 | BP41: 0 | BR41: 0 | BT41: 337011.74 | BU41: 337011.7395 | BV41: 0 | BX41: 0 | BZ41: 0 | CB41: 28487.3 | CD41: 28487 | CF41: 3151.27 | CH41: 3151 | CJ41: 0 | CL41: 0 | CN41: 0 | CP41: 0 | CR41: 0 | CT41: 0 | CV41: 0 | CX41: 0 | CZ41: 0 | DB41: 0 | DD41: 0 | DF41: 0 | DH41: NO | DI41: =IF(ISERROR(VLOOKUP($A41+8860000,'Growth Data'!$A:$F,3,0)),"NO",VLOOKUP($A41+8860000,'Growth Data'!$A:$F,3,0)) -> NO | DJ41: 0 | DL41: 0 | DM41: =IF(DI41="YES",IF(ISERROR(VLOOKUP($A41+8860000,'Growth Data'!$A:$F,6,0)),0,VLOOKUP($A41+8860000,'Growth Data'!$A:$F,6,0)),0) -> 0 | DN41: 0 | DP41: 0 | DQ41: =IF(ISERROR(VLOOKUP($A41+8860000,'Growth Data'!$A:$Z,7,0)),0,VLOOKUP($A41+8860000,'Growth Data'!$A:$Z,7,0)) -> 0 | DR41: 0 | DT41: NO | DU41: =IF(ISERROR(VLOOKUP($A41+8860000,'Growth Data'!$A:$F,4,0)),"NO",VLOOKUP($A41+8860000,'Growth Data'!$A:$F,4,0)) -> NO | DV41: 0 | DX41: 0 | DY41: =IF(ISERROR(VLOOKUP($A41+8860000,'Growth Data'!$A:$Z,8,0)),0,VLOOKUP($A41+8860000,'Growth Data'!$A:$Z,8,0)) -> 0 | DZ41: 0 | EB41: 0 | EC41: =IF(ISERROR(VLOOKUP($A41+8860000,'Growth Data'!$A:$Z,9,0)),0,VLOOKUP($A41+8860000,'Growth Data'!$A:$Z,9,0)) -> 0 | ED41: 0 | EF41: NO | EG41: =IF(ISERROR(VLOOKUP($A41+8860000,'Growth Data'!$A:$Z,5,0)),"NO",VLOOKUP($A41+8860000,'Growth Data'!$A:$Z,5,0)) -> NO | EH41: 0 | EJ41: 0 | EK41: =IF(ISERROR(VLOOKUP($A41+8860000,'Growth Data'!$A:$Z,10,0)),0,VLOOKUP($A41+8860000,'Growth Data'!$A:$Z,10,0)) -> 0 | EL41: 0 | EN41: 0 | EO41: =IF(ISERROR(VLOOKUP($A41+8860000,'Growth Data'!$A:$Z,11,0)),0,VLOOKUP($A41+8860000,'Growth Data'!$A:$Z,11,0)) -> 0 | EP41: 0
A42: 2171 | B42: Brunswick House Primary School | D42: Brunswick House Primary School | E42: Brunswick House Primary School | F42: 0 | H42: 1151782.99 | I42: 1151782.992 | J42: 0 | L42: 55505.46 | M42: 55505.46387 | N42: 0 | P42: 22193.21 | Q42: 22193.20553 | R42: 0 | T42: 71574.85 | U42: 71574.84987 | V42: 0 | X42: 120082.8 | Y42: 120082.8 | Z42: 0 | AB42: 0 | AC42: 0 | AD42: 0 | AF42: 0 | AG42: 0 | AH42: 0 | AJ42: 0 | AK42: 0 | AL42: 0 | AN42: 66938 | AO42: 66938 | AP42: 0 | AR42: 0 | AS42: 0 | AT42: 0 | AV42: 0 | AW42: 0 | AX42: 0 | AZ42: 3460.69 | BA42: 3460.688453 | BB42: 0 | BD42: 1491538 | BE42: 1491538 | BF42: 0 | BH42: 0 | BI42: 0 | BJ42: 0 | BL42: 1491538 | BM42: 1491538 | BN42: 0 | BP42: 0 | BR42: 0 | BT42: 1491538 | BU42: 1491538 | BV42: 0 | BX42: 0 | BZ42: 0 | CB42: 134814.25 | CD42: 134814 | CF42: 0 | CH42: 0 | CJ42: 0 | CL42: 0 | CN42: 0 | CP42: 0 | CR42: 0 | CT42: 0 | CV42: 0 | CX42: 0 | CZ42: 0 | DB42: 0 | DD42: 0 | DF42: 0 | DH42: NO | DI42: =IF(ISERROR(VLOOKUP($A42+8860000,'Growth Data'!$A:$F,3,0)),"NO",VLOOKUP($A42+8860000,'Growth Data'!$A:$F,3,0)) -> NO | DJ42: 0 | DL42: 0 | DM42: =IF(DI42="YES",IF(ISERROR(VLOOKUP($A42+8860000,'Growth Data'!$A:$F,6,0)),0,VLOOKUP($A42+8860000,'Growth Data'!$A:$F,6,0)),0) -> 0 | DN42: 0 | DP42: 0 | DQ42: =IF(ISERROR(VLOOKUP($A42+8860000,'Growth Data'!$A:$Z,7,0)),0,VLOOKUP($A42+8860000,'Growth Data'!$A:$Z,7,0)) -> 0 | DR42: 0 | DT42: NO | DU42: =IF(ISERROR(VLOOKUP($A42+8860000,'Growth Data'!$A:$F,4,0)),"NO",VLOOKUP($A42+8860000,'Growth Data'!$A:$F,4,0)) -> NO | DV42: 0 | DX42: 0 | DY42: =IF(ISERROR(VLOOKUP($A42+8860000,'Growth Data'!$A:$Z,8,0)),0,VLOOKUP($A42+8860000,'Growth Data'!$A:$Z,8,0)) -> 0 | DZ42: 0 | EB42: 0 | EC42: =IF(ISERROR(VLOOKUP($A42+8860000,'Growth Data'!$A:$Z,9,0)),0,VLOOKUP($A42+8860000,'Growth Data'!$A:$Z,9,0)) -> 0 | ED42: 0 | EF42: NO | EG42: =IF(ISERROR(VLOOKUP($A42+8860000,'Growth Data'!$A:$Z,5,0)),"NO",VLOOKUP($A42+8860000,'Growth Data'!$A:$Z,5,0)) -> NO | EH42: 0 | EJ42: 0 | EK42: =IF(ISERROR(VLOOKUP($A42+8860000,'Growth Data'!$A:$Z,10,0)),0,VLOOKUP($A42+8860000,'Growth Data'!$A:$Z,10,0)) -> 0 | EL42: 0 | EN42: 0 | EO42: =IF(ISERROR(VLOOKUP($A42+8860000,'Growth Data'!$A:$Z,11,0)),0,VLOOKUP($A42+8860000,'Growth Data'!$A:$Z,11,0)) -> 0 | EP42: 0
A43: 2175 | B43: North Borough Junior School | D43: North Borough Junior School | E43: North Borough Junior School | F43: 0 | H43: 923625.5 | I43: 923625.5022 | J43: 0 | L43: 69590.51 | M43: 69590.51372 | N43: 0 | P43: 26283.12 | Q43: 26283.12285 | R43: 0 | T43: 84546.01 | U43: 84546.012 | V43: 0 | X43: 120082.8 | Y43: 120082.8 | Z43: 0 | AB43: 0 | AC43: 0 | AD43: 0 | AF43: 0 | AG43: 0 | AH43: 0 | AJ43: 0 | AK43: 0 | AL43: 0 | AN43: 24200 | AO43: 24200 | AP43: 0 | AR43: 0 | AS43: 0 | AT43: 0 | AV43: 0 | AW43: 0 | AX43: 0 | AZ43: 0 | BA43: 0 | BB43: 0 | BD43: 1248327.95 | BE43: 1248327.951 | BF43: 0 | BH43: 0 | BI43: 0 | BJ43: 0 | BL43: 1248327.95 | BM43: 1248327.951 | BN43: 0 | BP43: 0 | BR43: 0 | BT43: 1248327.95 | BU43: 1248327.951 | BV43: 0 | BX43: 0 | BZ43: 0 | CB43: 165960.38 | CD43: 165960 | CF43: 0 | CH43: 0 | CJ43: 0 | CL43: 0 | CN43: 0 | CP43: 0 | CR43: 0 | CT43: 0 | CV43: 0 | CX43: 0 | CZ43: 0 | DB43: 0 | DD43: 0 | DF43: 0 | DH43: YES | DI43: =IF(ISERROR(VLOOKUP($A43+8860000,'Growth Data'!$A:$F,3,0)),"NO",VLOOKUP($A43+8860000,'Growth Data'!$A:$F,3,0)) -> NO | DJ43: 1 | DL43: 75 | DM43: =IF(DI43="YES",IF(ISERROR(VLOOKUP($A43+8860000,'Growth Data'!$A:$F,6,0)),0,VLOOKUP($A43+8860000,'Growth Data'!$A:$F,6,0)),0) -> 0 | DN43: 75 | DP43: 90 | DQ43: =IF(ISERROR(VLOOKUP($A43+8860000,'Growth Data'!$A:$Z,7,0)),0,VLOOKUP($A43+8860000,'Growth Data'!$A:$Z,7,0)) -> 0 | DR43: 1 | DT43: NO | DU43: =IF(ISERROR(VLOOKUP($A43+8860000,'Growth Data'!$A:$F,4,0)),"NO",VLOOKUP($A43+8860000,'Growth Data'!$A:$F,4,0)) -> NO | DV43: 0 | DX43: 0 | DY43: =IF(ISERROR(VLOOKUP($A43+8860000,'Growth Data'!$A:$Z,8,0)),0,VLOOKUP($A43+8860000,'Growth Data'!$A:$Z,8,0)) -> 0 | DZ43: 0 | EB43: 0 | EC43: =IF(ISERROR(VLOOKUP($A43+8860000,'Growth Data'!$A:$Z,9,0)),0,VLOOKUP($A43+8860000,'Growth Data'!$A:$Z,9,0)) -> 0 | ED43: 0 | EF43: NO | EG43: =IF(ISERROR(VLOOKUP($A43+8860000,'Growth Data'!$A:$Z,5,0)),"NO",VLOOKUP($A43+8860000,'Growth Data'!$A:$Z,5,0)) -> NO | EH43: 0 | EJ43: 0 | EK43: =IF(ISERROR(VLOOKUP($A43+8860000,'Growth Data'!$A:$Z,10,0)),0,VLOOKUP($A43+8860000,'Growth Data'!$A:$Z,10,0)) -> 0 | EL43: 0 | EN43: 0 | EO43: =IF(ISERROR(VLOOKUP($A43+8860000,'Growth Data'!$A:$Z,11,0)),0,VLOOKUP($A43+8860000,'Growth Data'!$A:$Z,11,0)) -> 0 | EP43: 0
A44: 2176 | B44: Park Way Primary School | D44: Park Way Primary School | E44: Park Way Primary School | F44: 0 | H44: 852154.48 | I44: 852154.4812 | J44: 0 | L44: 99597.92 | M44: 99597.91808 | N44: 0 | P44: 24717.61 | Q44: 24717.60943 | R44: 0 | T44: 86033.56 | U44: 86033.56001 | V44: 0 | X44: 120082.8 | Y44: 120082.8 | Z44: 0 | AB44: 0 | AC44: 0 | AD44: 0 | AF44: 0 | AG44: 0 | AH44: 0 | AJ44: 0 | AK44: 0 | AL44: 0 | AN44: 29894 | AO44: 29894 | AP44: 0 | AR44: 0 | AS44: 0 | AT44: 0 | AV44: 0 | AW44: 0 | AX44: 0 | AZ44: 0 | BA44: 0 | BB44: 0 | BD44: 1212480.37 | BE44: 1212480.369 | BF44: 0 | BH44: 0 | BI44: 0 | BJ44: 0 | BL44: 1212480.37 | BM44: 1212480.369 | BN44: 0 | BP44: 0 | BR44: 0 | BT44: 1212480.37 | BU44: 1212480.369 | BV44: 0 | BX44: 0 | BZ44: 0 | CB44: 191046.48 | CD44: 191046 | CF44: 0 | CH44: 0 | CJ44: 0 | CL44: 0 | CN44: 0 | CP44: 0 | CR44: 0 | CT44: 0 | CV44: 0 | CX44: 0 | CZ44: 0 | DB44: 0 | DD44: 0 | DF44: 0 | DH44: NO | DI44: =IF(ISERROR(VLOOKUP($A44+8860000,'Growth Data'!$A:$F,3,0)),"NO",VLOOKUP($A44+8860000,'Growth Data'!$A:$F,3,0)) -> NO | DJ44: 0 | DL44: 0 | DM44: =IF(DI44="YES",IF(ISERROR(VLOOKUP($A44+8860000,'Growth Data'!$A:$F,6,0)),0,VLOOKUP($A44+8860000,'Growth Data'!$A:$F,6,0)),0) -> 0 | DN44: 0 | DP44: 0 | DQ44: =IF(ISERROR(VLOOKUP($A44+8860000,'Growth Data'!$A:$Z,7,0)),0,VLOOKUP($A44+8860000,'Growth Data'!$A:$Z,7,0)) -> 0 | DR44: 0 | DT44: NO | DU44: =IF(ISERROR(VLOOKUP($A44+8860000,'Growth Data'!$A:$F,4,0)),"NO",VLOOKUP($A44+8860000,'Growth Data'!$A:$F,4,0)) -> NO | DV44: 0 | DX44: 0 | DY44: =IF(ISERROR(VLOOKUP($A44+8860000,'Growth Data'!$A:$Z,8,0)),0,VLOOKUP($A44+8860000,'Growth Data'!$A:$Z,8,0)) -> 0 | DZ44: 0 | EB44: 0 | EC44: =IF(ISERROR(VLOOKUP($A44+8860000,'Growth Data'!$A:$Z,9,0)),0,VLOOKUP($A44+8860000,'Growth Data'!$A:$Z,9,0)) -> 0 | ED44: 0 | EF44: NO | EG44: =IF(ISERROR(VLOOKUP($A44+8860000,'Growth Data'!$A:$Z,5,0)),"NO",VLOOKUP($A44+8860000,'Growth Data'!$A:$Z,5,0)) -> NO | EH44: 0 | EJ44: 0 | EK44: =IF(ISERROR(VLOOKUP($A44+8860000,'Growth Data'!$A:$Z,10,0)),0,VLOOKUP($A44+8860000,'Growth Data'!$A:$Z,10,0)) -> 0 | EL44: 0 | EN44: 0 | EO44: =IF(ISERROR(VLOOKUP($A44+8860000,'Growth Data'!$A:$Z,11,0)),0,VLOOKUP($A44+8860000,'Growth Data'!$A:$Z,11,0)) -> 0 | EP44: 0
A45: 2183 | B45: Marden Primary School | D45: Marden Primary School | E45: Marden Primary School | F45: 0 | H45: 777934.57 | I45: 777934.5747 | J45: 0 | L45: 84709.48 | M45: 84709.483 | N45: 0 | P45: 5357.59 | Q45: 5357.592149 | R45: 0 | T45: 59591.96 | U45: 59591.9573 | V45: 0 | X45: 120082.8 | Y45: 120082.8 | Z45: 0 | AB45: 0 | AC45: 0 | AD45: 0 | AF45: 0 | AG45: 0 | AH45: 0 | AJ45: 0 | AK45: 0 | AL45: 0 | AN45: 28130 | AO45: 28130 | AP45: 0 | AR45: 0 | AS45: 0 | AT45: 0 | AV45: 0 | AW45: 0 | AX45: 0 | AZ45: 0 | BA45: 0 | BB45: 0 | BD45: 1075806.41 | BE45: 1075806.407 | BF45: 0 | BH45: 0 | BI45: 0 | BJ45: 0 | BL45: 1075806.41 | BM45: 1075806.407 | BN45: 0 | BP45: 0 | BR45: 0 | BT45: 1075806.41 | BU45: 1075806.407 | BV45: 0 | BX45: 0 | BZ45: 0 | CB45: 134759.46 | CD45: 134759 | CF45: 0 | CH45: 0 | CJ45: 0 | CL45: 0 | CN45: 0 | CP45: 0 | CR45: 0 | CT45: 0 | CV45: 0 | CX45: 0 | CZ45: 0 | DB45: 0 | DD45: 0 | DF45: 0 | DH45: NO | DI45: =IF(ISERROR(VLOOKUP($A45+8860000,'Growth Data'!$A:$F,3,0)),"NO",VLOOKUP($A45+8860000,'Growth Data'!$A:$F,3,0)) -> NO | DJ45: 0 | DL45: 0 | DM45: =IF(DI45="YES",IF(ISERROR(VLOOKUP($A45+8860000,'Growth Data'!$A:$F,6,0)),0,VLOOKUP($A45+8860000,'Growth Data'!$A:$F,6,0)),0) -> 0 | DN45: 0 | DP45: 0 | DQ45: =IF(ISERROR(VLOOKUP($A45+8860000,'Growth Data'!$A:$Z,7,0)),0,VLOOKUP($A45+8860000,'Growth Data'!$A:$Z,7,0)) -> 0 | DR45: 0 | DT45: NO | DU45: =IF(ISERROR(VLOOKUP($A45+8860000,'Growth Data'!$A:$F,4,0)),"NO",VLOOKUP($A45+8860000,'Growth Data'!$A:$F,4,0)) -> NO | DV45: 0 | DX45: 0 | DY45: =IF(ISERROR(VLOOKUP($A45+8860000,'Growth Data'!$A:$Z,8,0)),0,VLOOKUP($A45+8860000,'Growth Data'!$A:$Z,8,0)) -> 0 | DZ45: 0 | EB45: 0 | EC45: =IF(ISERROR(VLOOKUP($A45+8860000,'Growth Data'!$A:$Z,9,0)),0,VLOOKUP($A45+8860000,'Growth Data'!$A:$Z,9,0)) -> 0 | ED45: 0 | EF45: NO | EG45: =IF(ISERROR(VLOOKUP($A45+8860000,'Growth Data'!$A:$Z,5,0)),"NO",VLOOKUP($A45+8860000,'Growth Data'!$A:$Z,5,0)) -> NO | EH45: 0 | EJ45: 0 | EK45: =IF(ISERROR(VLOOKUP($A45+8860000,'Growth Data'!$A:$Z,10,0)),0,VLOOKUP($A45+8860000,'Growth Data'!$A:$Z,10,0)) -> 0 | EL45: 0 | EN45: 0 | EO45: =IF(ISERROR(VLOOKUP($A45+8860000,'Growth Data'!$A:$Z,11,0)),0,VLOOKUP($A45+8860000,'Growth Data'!$A:$Z,11,0)) -> 0 | EP45: 0
A46: 2185 | B46: Mereworth Community Primary School | D46: Mereworth Community Primary School | E46: Mereworth Community Primary School | F46: 0 | H46: 574517.05 | I46: 574517.0534 | J46: 0 | L46: 23531.13 | M46: 23531.13004 | N46: 0 | P46: 2367.24 | Q46: 2367.236663 | R46: 0 | T46: 38777.47 | U46: 38777.46776 | V46: 0 | X46: 120082.8 | Y46: 120082.8 | Z46: 0 | AB46: 0 | AC46: 0 | AD46: 0 | AF46: 0 | AG46: 0 | AH46: 0 | AJ46: 0 | AK46: 0 | AL46: 0 | AN46: 29329 | AO46: 29329 | AP46: 0 | AR46: 0 | AS46: 0 | AT46: 0 | AV46: 0 | AW46: 0 | AX46: 0 | AZ46: 0 | BA46: 0 | BB46: 0 | BD46: 788604.69 | BE46: 788604.6879 | BF46: 0 | BH46: 0 | BI46: 0 | BJ46: 0 | BL46: 788604.69 | BM46: 788604.6879 | BN46: 0 | BP46: 0 | BR46: 0 | BT46: 788604.69 | BU46: 788604.6879 | BV46: 0 | BX46: 0 | BZ46: 0 | CB46: 61664.46 | CD46: 61664 | CF46: 0 | CH46: 0 | CJ46: 0 | CL46: 0 | CN46: 0 | CP46: 0 | CR46: 0 | CT46: 0 | CV46: 0 | CX46: 0 | CZ46: 0 | DB46: 0 | DD46: 0 | DF46: 0 | DH46: NO | DI46: =IF(ISERROR(VLOOKUP($A46+8860000,'Growth Data'!$A:$F,3,0)),"NO",VLOOKUP($A46+8860000,'Growth Data'!$A:$F,3,0)) -> NO | DJ46: 0 | DL46: 0 | DM46: =IF(DI46="YES",IF(ISERROR(VLOOKUP($A46+8860000,'Growth Data'!$A:$F,6,0)),0,VLOOKUP($A46+8860000,'Growth Data'!$A:$F,6,0)),0) -> 0 | DN46: 0 | DP46: 0 | DQ46: =IF(ISERROR(VLOOKUP($A46+8860000,'Growth Data'!$A:$Z,7,0)),0,VLOOKUP($A46+8860000,'Growth Data'!$A:$Z,7,0)) -> 0 | DR46: 0 | DT46: NO | DU46: =IF(ISERROR(VLOOKUP($A46+8860000,'Growth Data'!$A:$F,4,0)),"NO",VLOOKUP($A46+8860000,'Growth Data'!$A:$F,4,0)) -> NO | DV46: 0 | DX46: 0 | DY46: =IF(ISERROR(VLOOKUP($A46+8860000,'Growth Data'!$A:$Z,8,0)),0,VLOOKUP($A46+8860000,'Growth Data'!$A:$Z,8,0)) -> 0 | DZ46: 0 | EB46: 0 | EC46: =IF(ISERROR(VLOOKUP($A46+8860000,'Growth Data'!$A:$Z,9,0)),0,VLOOKUP($A46+8860000,'Growth Data'!$A:$Z,9,0)) -> 0 | ED46: 0 | EF46: NO | EG46: =IF(ISERROR(VLOOKUP($A46+8860000,'Growth Data'!$A:$Z,5,0)),"NO",VLOOKUP($A46+8860000,'Growth Data'!$A:$Z,5,0)) -> NO | EH46: 0 | EJ46: 0 | EK46: =IF(ISERROR(VLOOKUP($A46+8860000,'Growth Data'!$A:$Z,10,0)),0,VLOOKUP($A46+8860000,'Growth Data'!$A:$Z,10,0)) -> 0 | EL46: 0 | EN46: 0 | EO46: =IF(ISERROR(VLOOKUP($A46+8860000,'Growth Data'!$A:$Z,11,0)),0,VLOOKUP($A46+8860000,'Growth Data'!$A:$Z,11,0)) -> 0 | EP46: 0
A47: 2187 | B47: Offham Primary School | D47: Offham Primary School | E47: Offham Primary School | F47: 0 | H47: 577265.94 | I47: 577265.9389 | J47: 0 | L47: 7581.88 | M47: 7581.878607 | N47: 0 | P47: 1202.5 | Q47: 1202.495817 | R47: 0 | T47: 26992.83 | U47: 26992.82693 | V47: 0 | X47: 120082.8 | Y47: 120082.8 | Z47: 0 | AB47: 0 | AC47: 0 | AD47: 0 | AF47: 0 | AG47: 0 | AH47: 0 | AJ47: 0 | AK47: 0 | AL47: 0 | AN47: 26818 | AO47: 26818 | AP47: 0 | AR47: 0 | AS47: 0 | AT47: 0 | AV47: 0 | AW47: 0 | AX47: 0 | AZ47: 0 | BA47: 0 | BB47: 0 | BD47: 759943.94 | BE47: 759943.9402 | BF47: 0 | BH47: 0 | BI47: 0 | BJ47: 0 | BL47: 759943.94 | BM47: 759943.9402 | BN47: 0 | BP47: 0 | BR47: 0 | BT47: 759943.94 | BU47: 759943.9402 | BV47: 0 | BX47: 0 | BZ47: 0 | CB47: 41131.59 | CD47: 41132 | CF47: 1886.84 | CH47: 1887 | CJ47: 0 | CL47: 0 | CN47: 0 | CP47: 0 | CR47: 0 | CT47: 0 | CV47: 0 | CX47: 0 | CZ47: 0 | DB47: 0 | DD47: 0 | DF47: 0 | DH47: NO | DI47: =IF(ISERROR(VLOOKUP($A47+8860000,'Growth Data'!$A:$F,3,0)),"NO",VLOOKUP($A47+8860000,'Growth Data'!$A:$F,3,0)) -> NO | DJ47: 0 | DL47: 0 | DM47: =IF(DI47="YES",IF(ISERROR(VLOOKUP($A47+8860000,'Growth Data'!$A:$F,6,0)),0,VLOOKUP($A47+8860000,'Growth Data'!$A:$F,6,0)),0) -> 0 | DN47: 0 | DP47: 0 | DQ47: =IF(ISERROR(VLOOKUP($A47+8860000,'Growth Data'!$A:$Z,7,0)),0,VLOOKUP($A47+8860000,'Growth Data'!$A:$Z,7,0)) -> 0 | DR47: 0 | DT47: NO | DU47: =IF(ISERROR(VLOOKUP($A47+8860000,'Growth Data'!$A:$F,4,0)),"NO",VLOOKUP($A47+8860000,'Growth Data'!$A:$F,4,0)) -> NO | DV47: 0 | DX47: 0 | DY47: =IF(ISERROR(VLOOKUP($A47+8860000,'Growth Data'!$A:$Z,8,0)),0,VLOOKUP($A47+8860000,'Growth Data'!$A:$Z,8,0)) -> 0 | DZ47: 0 | EB47: 0 | EC47: =IF(ISERROR(VLOOKUP($A47+8860000,'Growth Data'!$A:$Z,9,0)),0,VLOOKUP($A47+8860000,'Growth Data'!$A:$Z,9,0)) -> 0 | ED47: 0 | EF47: NO | EG47: =IF(ISERROR(VLOOKUP($A47+8860000,'Growth Data'!$A:$Z,5,0)),"NO",VLOOKUP($A47+8860000,'Growth Data'!$A:$Z,5,0)) -> NO | EH47: 0 | EJ47: 0 | EK47: =IF(ISERROR(VLOOKUP($A47+8860000,'Growth Data'!$A:$Z,10,0)),0,VLOOKUP($A47+8860000,'Growth Data'!$A:$Z,10,0)) -> 0 | EL47: 0 | EN47: 0 | EO47: =IF(ISERROR(VLOOKUP($A47+8860000,'Growth Data'!$A:$Z,11,0)),0,VLOOKUP($A47+8860000,'Growth Data'!$A:$Z,11,0)) -> 0 | EP47: 0
A48: 2188 | B48: Plaxtol Primary School | D48: Plaxtol Primary School | E48: Plaxtol Primary School | F48: 0 | H48: 252897.46 | I48: 252897.4589 | J48: 0 | L48: 5449.29 | M48: 5449.289332 | N48: 0 | P48: 0 | Q48: 0 | R48: 0 | T48: 11703.36 | U48: 11703.36 | V48: 0 | X48: 120082.8 | Y48: 120082.8 | Z48: 0 | AB48: 0 | AC48: 0 | AD48: 0 | AF48: 0 | AG48: 0 | AH48: 0 | AJ48: 0 | AK48: 0 | AL48: 0 | AN48: 16998 | AO48: 16998 | AP48: 0 | AR48: 0 | AS48: 0 | AT48: 0 | AV48: 0 | AW48: 0 | AX48: 0 | AZ48: 0 | BA48: 0 | BB48: 0 | BD48: 407130.91 | BE48: 407130.9083 | BF48: 0 | BH48: 0 | BI48: 0 | BJ48: 0 | BL48: 407130.91 | BM48: 407130.9083 | BN48: 0 | BP48: 0 | BR48: 0 | BT48: 407130.91 | BU48: 407130.9083 | BV48: 0 | BX48: 0 | BZ48: 0 | CB48: 21626.43 | CD48: 21626 | CF48: 3837.36 | CH48: 3837 | CJ48: 0 | CL48: 0 | CN48: 0 | CP48: 0 | CR48: 0 | CT48: 0 | CV48: 0 | CX48: 0 | CZ48: 0 | DB48: 0 | DD48: 0 | DF48: 0 | DH48: NO | DI48: =IF(ISERROR(VLOOKUP($A48+8860000,'Growth Data'!$A:$F,3,0)),"NO",VLOOKUP($A48+8860000,'Growth Data'!$A:$F,3,0)) -> NO | DJ48: 0 | DL48: 0 | DM48: =IF(DI48="YES",IF(ISERROR(VLOOKUP($A48+8860000,'Growth Data'!$A:$F,6,0)),0,VLOOKUP($A48+8860000,'Growth Data'!$A:$F,6,0)),0) -> 0 | DN48: 0 | DP48: 0 | DQ48: =IF(ISERROR(VLOOKUP($A48+8860000,'Growth Data'!$A:$Z,7,0)),0,VLOOKUP($A48+8860000,'Growth Data'!$A:$Z,7,0)) -> 0 | DR48: 0 | DT48: NO | DU48: =IF(ISERROR(VLOOKUP($A48+8860000,'Growth Data'!$A:$F,4,0)),"NO",VLOOKUP($A48+8860000,'Growth Data'!$A:$F,4,0)) -> NO | DV48: 0 | DX48: 0 | DY48: =IF(ISERROR(VLOOKUP($A48+8860000,'Growth Data'!$A:$Z,8,0)),0,VLOOKUP($A48+8860000,'Growth Data'!$A:$Z,8,0)) -> 0 | DZ48: 0 | EB48: 0 | EC48: =IF(ISERROR(VLOOKUP($A48+8860000,'Growth Data'!$A:$Z,9,0)),0,VLOOKUP($A48+8860000,'Growth Data'!$A:$Z,9,0)) -> 0 | ED48: 0 | EF48: NO | EG48: =IF(ISERROR(VLOOKUP($A48+8860000,'Growth Data'!$A:$Z,5,0)),"NO",VLOOKUP($A48+8860000,'Growth Data'!$A:$Z,5,0)) -> NO | EH48: 0 | EJ48: 0 | EK48: =IF(ISERROR(VLOOKUP($A48+8860000,'Growth Data'!$A:$Z,10,0)),0,VLOOKUP($A48+8860000,'Growth Data'!$A:$Z,10,0)) -> 0 | EL48: 0 | EN48: 0 | EO48: =IF(ISERROR(VLOOKUP($A48+8860000,'Growth Data'!$A:$Z,11,0)),0,VLOOKUP($A48+8860000,'Growth Data'!$A:$Z,11,0)) -> 0 | EP48: 0
A49: 2189 | B49: Ryarsh Primary School | D49: Ryarsh Primary School | E49: Ryarsh Primary School | F49: 0 | H49: 574517.05 | I49: 574517.0534 | J49: 0 | L49: 5385.83 | M49: 5385.827945 | N49: 0 | P49: 0 | Q49: 0 | R49: 0 | T49: 29298.53 | U49: 29298.5312 | V49: 0 | X49: 120082.8 | Y49: 120082.8 | Z49: 0 | AB49: 0 | AC49: 0 | AD49: 0 | AF49: 0 | AG49: 0 | AH49: 0 | AJ49: 0 | AK49: 0 | AL49: 0 | AN49: 21049 | AO49: 21049 | AP49: 0 | AR49: 0 | AS49: 0 | AT49: 0 | AV49: 0 | AW49: 0 | AX49: 0 | AZ49: 0 | BA49: 0 | BB49: 0 | BD49: 750333.21 | BE49: 750333.2126 | BF49: 0 | BH49: 0 | BI49: 0 | BJ49: 0 | BL49: 750333.21 | BM49: 750333.2126 | BN49: 0 | BP49: 0 | BR49: 0 | BT49: 750333.21 | BU49: 750333.2126 | BV49: 0 | BX49: 0 | BZ49: 0 | CB49: 40479.06 | CD49: 40479 | CF49: 1952.09 | CH49: 1952 | CJ49: 0 | CL49: 0 | CN49: 0 | CP49: 0 | CR49: 0 | CT49: 0 | CV49: 0 | CX49: 0 | CZ49: 0 | DB49: 0 | DD49: 0 | DF49: 0 | DH49: NO | DI49: =IF(ISERROR(VLOOKUP($A49+8860000,'Growth Data'!$A:$F,3,0)),"NO",VLOOKUP($A49+8860000,'Growth Data'!$A:$F,3,0)) -> NO | DJ49: 0 | DL49: 0 | DM49: =IF(DI49="YES",IF(ISERROR(VLOOKUP($A49+8860000,'Growth Data'!$A:$F,6,0)),0,VLOOKUP($A49+8860000,'Growth Data'!$A:$F,6,0)),0) -> 0 | DN49: 0 | DP49: 0 | DQ49: =IF(ISERROR(VLOOKUP($A49+8860000,'Growth Data'!$A:$Z,7,0)),0,VLOOKUP($A49+8860000,'Growth Data'!$A:$Z,7,0)) -> 0 | DR49: 0 | DT49: NO | DU49: =IF(ISERROR(VLOOKUP($A49+8860000,'Growth Data'!$A:$F,4,0)),"NO",VLOOKUP($A49+8860000,'Growth Data'!$A:$F,4,0)) -> NO | DV49: 0 | DX49: 0 | DY49: =IF(ISERROR(VLOOKUP($A49+8860000,'Growth Data'!$A:$Z,8,0)),0,VLOOKUP($A49+8860000,'Growth Data'!$A:$Z,8,0)) -> 0 | DZ49: 0 | EB49: 0 | EC49: =IF(ISERROR(VLOOKUP($A49+8860000,'Growth Data'!$A:$Z,9,0)),0,VLOOKUP($A49+8860000,'Growth Data'!$A:$Z,9,0)) -> 0 | ED49: 0 | EF49: NO | EG49: =IF(ISERROR(VLOOKUP($A49+8860000,'Growth Data'!$A:$Z,5,0)),"NO",VLOOKUP($A49+8860000,'Growth Data'!$A:$Z,5,0)) -> NO | EH49: 0 | EJ49: 0 | EK49: =IF(ISERROR(VLOOKUP($A49+8860000,'Growth Data'!$A:$Z,10,0)),0,VLOOKUP($A49+8860000,'Growth Data'!$A:$Z,10,0)) -> 0 | EL49: 0 | EN49: 0 | EO49: =IF(ISERROR(VLOOKUP($A49+8860000,'Growth Data'!$A:$Z,11,0)),0,VLOOKUP($A49+8860000,'Growth Data'!$A:$Z,11,0)) -> 0 | EP49: 0
A50: 2190 | B50: Shipbourne School | D50: Shipbourne School | E50: Shipbourne School | F50: 0 | H50: 151188.7 | I50: 151188.6983 | J50: 0 | L50: 10357.14 | M50: 10357.1415 | N50: 0 | P50: 3697.11 | Q50: 3697.114467 | R50: 0 | T50: 6891.56 | U50: 6891.559668 | V50: 0 | X50: 120082.8 | Y50: 120082.8 | Z50: 0 | AB50: 0 | AC50: 0 | AD50: 0 | AF50: 0 | AG50: 0 | AH50: 0 | AJ50: 0 | AK50: 0 | AL50: 0 | AN50: 9993 | AO50: 9993 | AP50: 0 | AR50: 0 | AS50: 0 | AT50: 0 | AV50: 0 | AW50: 0 | AX50: 0 | AZ50: 0 | BA50: 0 | BB50: 0 | BD50: 302210.31 | BE50: 302210.3139 | BF50: 0 | BH50: 0 | BI50: 0 | BJ50: 0 | BL50: 302210.31 | BM50: 302210.3139 | BN50: 0 | BP50: 0 | BR50: 0 | BT50: 302210.31 | BU50: 302210.3139 | BV50: 0 | BX50: 0 | BZ50: 0 | CB50: 23218.08 | CD50: 23218 | CF50: 3678.19 | CH50: 3678 | CJ50: 0 | CL50: 0 | CN50: 0 | CP50: 0 | CR50: 0 | CT50: 0 | CV50: 0 | CX50: 0 | CZ50: 0 | DB50: 0 | DD50: 0 | DF50: 0 | DH50: NO | DI50: =IF(ISERROR(VLOOKUP($A50+8860000,'Growth Data'!$A:$F,3,0)),"NO",VLOOKUP($A50+8860000,'Growth Data'!$A:$F,3,0)) -> NO | DJ50: 0 | DL50: 0 | DM50: =IF(DI50="YES",IF(ISERROR(VLOOKUP($A50+8860000,'Growth Data'!$A:$F,6,0)),0,VLOOKUP($A50+8860000,'Growth Data'!$A:$F,6,0)),0) -> 0 | DN50: 0 | DP50: 0 | DQ50: =IF(ISERROR(VLOOKUP($A50+8860000,'Growth Data'!$A:$Z,7,0)),0,VLOOKUP($A50+8860000,'Growth Data'!$A:$Z,7,0)) -> 0 | DR50: 0 | DT50: NO | DU50: =IF(ISERROR(VLOOKUP($A50+8860000,'Growth Data'!$A:$F,4,0)),"NO",VLOOKUP($A50+8860000,'Growth Data'!$A:$F,4,0)) -> NO | DV50: 0 | DX50: 0 | DY50: =IF(ISERROR(VLOOKUP($A50+8860000,'Growth Data'!$A:$Z,8,0)),0,VLOOKUP($A50+8860000,'Growth Data'!$A:$Z,8,0)) -> 0 | DZ50: 0 | EB50: 0 | EC50: =IF(ISERROR(VLOOKUP($A50+8860000,'Growth Data'!$A:$Z,9,0)),0,VLOOKUP($A50+8860000,'Growth Data'!$A:$Z,9,0)) -> 0 | ED50: 0 | EF50: NO | EG50: =IF(ISERROR(VLOOKUP($A50+8860000,'Growth Data'!$A:$Z,5,0)),"NO",VLOOKUP($A50+8860000,'Growth Data'!$A:$Z,5,0)) -> NO | EH50: 0 | EJ50: 0 | EK50: =IF(ISERROR(VLOOKUP($A50+8860000,'Growth Data'!$A:$Z,10,0)),0,VLOOKUP($A50+8860000,'Growth Data'!$A:$Z,10,0)) -> 0 | EL50: 0 | EN50: 0 | EO50: =IF(ISERROR(VLOOKUP($A50+8860000,'Growth Data'!$A:$Z,11,0)),0,VLOOKUP($A50+8860000,'Growth Data'!$A:$Z,11,0)) -> 0 | EP50: 0
A51: 2191 | B51: St Katherine's School | D51: St Katherine's School | E51: St Katherine's School | F51: 0 | H51: 1597102.43 | I51: 1597102.431 | J51: 0 | L51: 149145.79 | M51: 149145.7936 | N51: 0 | P51: 3607.49 | Q51: 3607.48745 | R51: 0 | T51: 112666.56 | U51: 112666.5588 | V51: 0 | X51: 120082.8 | Y51: 120082.8 | Z51: 0 | AB51: 0 | AC51: 0 | AD51: 0 | AF51: 0 | AG51: 0 | AH51: 0 | AJ51: 0 | AK51: 0 | AL51: 0 | AN51: 72925 | AO51: 72925 | AP51: 0 | AR51: 0 | AS51: 0 | AT51: 0 | AV51: 0 | AW51: 0 | AX51: 0 | AZ51: 0 | BA51: 0 | BB51: 0 | BD51: 2055530.07 | BE51: 2055530.071 | BF51: 0 | BH51: 0 | BI51: 0 | BJ51: 0 | BL51: 2055530.07 | BM51: 2055530.071 | BN51: 0 | BP51: 0 | BR51: 0 | BT51: 2055530.07 | BU51: 2055530.071 | BV51: 0 | BX51: 4.9 | BZ51: 5 | CB51: 235549.94 | CD51: 235550 | CF51: 0 | CH51: 0 | CJ51: 0 | CL51: 0 | CN51: 0 | CP51: 0 | CR51: 0 | CT51: 0 | CV51: 0 | CX51: 0 | CZ51: 0 | DB51: 0 | DD51: 0 | DF51: 0 | DH51: NO | DI51: =IF(ISERROR(VLOOKUP($A51+8860000,'Growth Data'!$A:$F,3,0)),"NO",VLOOKUP($A51+8860000,'Growth Data'!$A:$F,3,0)) -> NO | DJ51: 0 | DL51: 0 | DM51: =IF(DI51="YES",IF(ISERROR(VLOOKUP($A51+8860000,'Growth Data'!$A:$F,6,0)),0,VLOOKUP($A51+8860000,'Growth Data'!$A:$F,6,0)),0) -> 0 | DN51: 0 | DP51: 0 | DQ51: =IF(ISERROR(VLOOKUP($A51+8860000,'Growth Data'!$A:$Z,7,0)),0,VLOOKUP($A51+8860000,'Growth Data'!$A:$Z,7,0)) -> 0 | DR51: 0 | DT51: NO | DU51: =IF(ISERROR(VLOOKUP($A51+8860000,'Growth Data'!$A:$F,4,0)),"NO",VLOOKUP($A51+8860000,'Growth Data'!$A:$F,4,0)) -> NO | DV51: 0 | DX51: 0 | DY51: =IF(ISERROR(VLOOKUP($A51+8860000,'Growth Data'!$A:$Z,8,0)),0,VLOOKUP($A51+8860000,'Growth Data'!$A:$Z,8,0)) -> 0 | DZ51: 0 | EB51: 0 | EC51: =IF(ISERROR(VLOOKUP($A51+8860000,'Growth Data'!$A:$Z,9,0)),0,VLOOKUP($A51+8860000,'Growth Data'!$A:$Z,9,0)) -> 0 | ED51: 0 | EF51: NO | EG51: =IF(ISERROR(VLOOKUP($A51+8860000,'Growth Data'!$A:$Z,5,0)),"NO",VLOOKUP($A51+8860000,'Growth Data'!$A:$Z,5,0)) -> NO | EH51: 0 | EJ51: 0 | EK51: =IF(ISERROR(VLOOKUP($A51+8860000,'Growth Data'!$A:$Z,10,0)),0,VLOOKUP($A51+8860000,'Growth Data'!$A:$Z,10,0)) -> 0 | EL51: 0 | EN51: 0 | EO51: =IF(ISERROR(VLOOKUP($A51+8860000,'Growth Data'!$A:$Z,11,0)),0,VLOOKUP($A51+8860000,'Growth Data'!$A:$Z,11,0)) -> 0 | EP51: 0
A52: 2192 | B52: Staplehurst School | D52: Staplehurst School | E52: Staplehurst School | F52: 0 | H52: 1061069.77 | I52: 1061069.773 | J52: 0 | L52: 44363.4 | M52: 44363.40083 | N52: 0 | P52: 3584.27 | Q52: 3584.273245 | R52: 0 | T52: 70604.05 | U52: 70604.04945 | V52: 0 | X52: 120082.8 | Y52: 120082.8 | Z52: 0 | AB52: 0 | AC52: 0 | AD52: 0 | AF52: 0 | AG52: 0 | AH52: 0 | AJ52: 0 | AK52: 0 | AL52: 0 | AN52: 38966 | AO52: 38966 | AP52: 0 | AR52: 0 | AS52: 0 | AT52: 0 | AV52: 0 | AW52: 0 | AX52: 0 | AZ52: 12695.7 | BA52: 12695.70316 | BB52: 0 | BD52: 1351366 | BE52: 1351366 | BF52: 0 | BH52: 0 | BI52: 0 | BJ52: 0 | BL52: 1351366 | BM52: 1351366 | BN52: 0 | BP52: 0 | BR52: 0 | BT52: 1351366 | BU52: 1351366 | BV52: 0 | BX52: 0 | BZ52: 0 | CB52: 103211.85 | CD52: 103212 | CF52: 0 | CH52: 0 | CJ52: 0 | CL52: 0 | CN52: 0 | CP52: 0 | CR52: 0 | CT52: 0 | CV52: 0 | CX52: 0 | CZ52: 0 | DB52: 0 | DD52: 0 | DF52: 0 | DH52: NO | DI52: =IF(ISERROR(VLOOKUP($A52+8860000,'Growth Data'!$A:$F,3,0)),"NO",VLOOKUP($A52+8860000,'Growth Data'!$A:$F,3,0)) -> NO | DJ52: 0 | DL52: 0 | DM52: =IF(DI52="YES",IF(ISERROR(VLOOKUP($A52+8860000,'Growth Data'!$A:$F,6,0)),0,VLOOKUP($A52+8860000,'Growth Data'!$A:$F,6,0)),0) -> 0 | DN52: 0 | DP52: 0 | DQ52: =IF(ISERROR(VLOOKUP($A52+8860000,'Growth Data'!$A:$Z,7,0)),0,VLOOKUP($A52+8860000,'Growth Data'!$A:$Z,7,0)) -> 0 | DR52: 0 | DT52: NO | DU52: =IF(ISERROR(VLOOKUP($A52+8860000,'Growth Data'!$A:$F,4,0)),"NO",VLOOKUP($A52+8860000,'Growth Data'!$A:$F,4,0)) -> NO | DV52: 0 | DX52: 0 | DY52: =IF(ISERROR(VLOOKUP($A52+8860000,'Growth Data'!$A:$Z,8,0)),0,VLOOKUP($A52+8860000,'Growth Data'!$A:$Z,8,0)) -> 0 | DZ52: 0 | EB52: 0 | EC52: =IF(ISERROR(VLOOKUP($A52+8860000,'Growth Data'!$A:$Z,9,0)),0,VLOOKUP($A52+8860000,'Growth Data'!$A:$Z,9,0)) -> 0 | ED52: 0 | EF52: NO | EG52: =IF(ISERROR(VLOOKUP($A52+8860000,'Growth Data'!$A:$Z,5,0)),"NO",VLOOKUP($A52+8860000,'Growth Data'!$A:$Z,5,0)) -> NO | EH52: 0 | EJ52: 0 | EK52: =IF(ISERROR(VLOOKUP($A52+8860000,'Growth Data'!$A:$Z,10,0)),0,VLOOKUP($A52+8860000,'Growth Data'!$A:$Z,10,0)) -> 0 | EL52: 0 | EN52: 0 | EO52: =IF(ISERROR(VLOOKUP($A52+8860000,'Growth Data'!$A:$Z,11,0)),0,VLOOKUP($A52+8860000,'Growth Data'!$A:$Z,11,0)) -> 0 | EP52: 0
A53: 2193 | B53: Sutton Valence Primary School | D53: Sutton Valence Primary School | E53: Sutton Valence Primary School | F53: 0 | H53: 503046.03 | I53: 503046.0324 | J53: 0 | L53: 23190.43 | M53: 23190.43104 | N53: 0 | P53: 3368.22 | Q53: 3368.215323 | R53: 0 | T53: 32715.29 | U53: 32715.2871 | V53: 0 | X53: 120082.8 | Y53: 120082.8 | Z53: 0 | AB53: 0 | AC53: 0 | AD53: 0 | AF53: 0 | AG53: 0 | AH53: 0 | AJ53: 0 | AK53: 0 | AL53: 0 | AN53: 21439 | AO53: 21439 | AP53: 0 | AR53: 0 | AS53: 0 | AT53: 0 | AV53: 0 | AW53: 0 | AX53: 0 | AZ53: 0 | BA53: 0 | BB53: 0 | BD53: 703841.77 | BE53: 703841.7659 | BF53: 0 | BH53: 0 | BI53: 0 | BJ53: 0 | BL53: 703841.77 | BM53: 703841.7659 | BN53: 0 | BP53: 0 | BR53: 0 | BT53: 703841.77 | BU53: 703841.7659 | BV53: 0 | BX53: 0 | BZ53: 0 | CB53: 58464.08 | CD53: 58464 | CF53: 153.59 | CH53: 154 | CJ53: 0 | CL53: 0 | CN53: 0 | CP53: 0 | CR53: 0 | CT53: 0 | CV53: 0 | CX53: 0 | CZ53: 0 | DB53: 0 | DD53: 0 | DF53: 0 | DH53: NO | DI53: =IF(ISERROR(VLOOKUP($A53+8860000,'Growth Data'!$A:$F,3,0)),"NO",VLOOKUP($A53+8860000,'Growth Data'!$A:$F,3,0)) -> NO | DJ53: 0 | DL53: 0 | DM53: =IF(DI53="YES",IF(ISERROR(VLOOKUP($A53+8860000,'Growth Data'!$A:$F,6,0)),0,VLOOKUP($A53+8860000,'Growth Data'!$A:$F,6,0)),0) -> 0 | DN53: 0 | DP53: 0 | DQ53: =IF(ISERROR(VLOOKUP($A53+8860000,'Growth Data'!$A:$Z,7,0)),0,VLOOKUP($A53+8860000,'Growth Data'!$A:$Z,7,0)) -> 0 | DR53: 0 | DT53: NO | DU53: =IF(ISERROR(VLOOKUP($A53+8860000,'Growth Data'!$A:$F,4,0)),"NO",VLOOKUP($A53+8860000,'Growth Data'!$A:$F,4,0)) -> NO | DV53: 0 | DX53: 0 | DY53: =IF(ISERROR(VLOOKUP($A53+8860000,'Growth Data'!$A:$Z,8,0)),0,VLOOKUP($A53+8860000,'Growth Data'!$A:$Z,8,0)) -> 0 | DZ53: 0 | EB53: 0 | EC53: =IF(ISERROR(VLOOKUP($A53+8860000,'Growth Data'!$A:$Z,9,0)),0,VLOOKUP($A53+8860000,'Growth Data'!$A:$Z,9,0)) -> 0 | ED53: 0 | EF53: NO | EG53: =IF(ISERROR(VLOOKUP($A53+8860000,'Growth Data'!$A:$Z,5,0)),"NO",VLOOKUP($A53+8860000,'Growth Data'!$A:$Z,5,0)) -> NO | EH53: 0 | EJ53: 0 | EK53: =IF(ISERROR(VLOOKUP($A53+8860000,'Growth Data'!$A:$Z,10,0)),0,VLOOKUP($A53+8860000,'Growth Data'!$A:$Z,10,0)) -> 0 | EL53: 0 | EN53: 0 | EO53: =IF(ISERROR(VLOOKUP($A53+8860000,'Growth Data'!$A:$Z,11,0)),0,VLOOKUP($A53+8860000,'Growth Data'!$A:$Z,11,0)) -> 0 | EP53: 0
A54: 2226 | B54: Eastling Primary School | D54: Eastling Primary School | E54: Eastling Primary School | F54: 0 | H54: 247399.69 | I54: 247399.6881 | J54: 0 | L54: 13907.83 | M54: 13907.82508 | N54: 0 | P54: 587.11 | Q54: 587.1136899 | R54: 0 | T54: 18629.93 | U54: 18629.93053 | V54: 0 | X54: 120082.8 | Y54: 120082.8 | Z54: 0 | AB54: 19973.72 | AC54: 19973.71896 | AD54: 0 | AF54: 0 | AG54: 0 | AH54: 0 | AJ54: 0 | AK54: 0 | AL54: 0 | AN54: 12080 | AO54: 12080 | AP54: 0 | AR54: 0 | AS54: 0 | AT54: 0 | AV54: 0 | AW54: 0 | AX54: 0 | AZ54: 0 | BA54: 0 | BB54: 0 | BD54: 432661.08 | BE54: 432661.0763 | BF54: 0 | BH54: 0 | BI54: 0 | BJ54: 0 | BL54: 432661.08 | BM54: 432661.0763 | BN54: 0 | BP54: 0 | BR54: 0 | BT54: 432661.08 | BU54: 432661.0763 | BV54: 0 | BX54: 0 | BZ54: 0 | CB54: 34956.83 | CD54: 34957 | CF54: 2504.32 | CH54: 2504 | CJ54: 0 | CL54: 0 | CN54: 0 | CP54: 0 | CR54: 0 | CT54: 0 | CV54: 0 | CX54: 0 | CZ54: 0 | DB54: 0 | DD54: 0 | DF54: 0 | DH54: NO | DI54: =IF(ISERROR(VLOOKUP($A54+8860000,'Growth Data'!$A:$F,3,0)),"NO",VLOOKUP($A54+8860000,'Growth Data'!$A:$F,3,0)) -> NO | DJ54: 0 | DL54: 0 | DM54: =IF(DI54="YES",IF(ISERROR(VLOOKUP($A54+8860000,'Growth Data'!$A:$F,6,0)),0,VLOOKUP($A54+8860000,'Growth Data'!$A:$F,6,0)),0) -> 0 | DN54: 0 | DP54: 0 | DQ54: =IF(ISERROR(VLOOKUP($A54+8860000,'Growth Data'!$A:$Z,7,0)),0,VLOOKUP($A54+8860000,'Growth Data'!$A:$Z,7,0)) -> 0 | DR54: 0 | DT54: NO | DU54: =IF(ISERROR(VLOOKUP($A54+8860000,'Growth Data'!$A:$F,4,0)),"NO",VLOOKUP($A54+8860000,'Growth Data'!$A:$F,4,0)) -> NO | DV54: 0 | DX54: 0 | DY54: =IF(ISERROR(VLOOKUP($A54+8860000,'Growth Data'!$A:$Z,8,0)),0,VLOOKUP($A54+8860000,'Growth Data'!$A:$Z,8,0)) -> 0 | DZ54: 0 | EB54: 0 | EC54: =IF(ISERROR(VLOOKUP($A54+8860000,'Growth Data'!$A:$Z,9,0)),0,VLOOKUP($A54+8860000,'Growth Data'!$A:$Z,9,0)) -> 0 | ED54: 0 | EF54: NO | EG54: =IF(ISERROR(VLOOKUP($A54+8860000,'Growth Data'!$A:$Z,5,0)),"NO",VLOOKUP($A54+8860000,'Growth Data'!$A:$Z,5,0)) -> NO | EH54: 0 | EJ54: 0 | EK54: =IF(ISERROR(VLOOKUP($A54+8860000,'Growth Data'!$A:$Z,10,0)),0,VLOOKUP($A54+8860000,'Growth Data'!$A:$Z,10,0)) -> 0 | EL54: 0 | EN54: 0 | EO54: =IF(ISERROR(VLOOKUP($A54+8860000,'Growth Data'!$A:$Z,11,0)),0,VLOOKUP($A54+8860000,'Growth Data'!$A:$Z,11,0)) -> 0 | EP54: 0
A55: 2227 | B55: Ethelbert Road Primary School | D55: Ethelbert Road Primary School | E55: Ethelbert Road Primary School | F55: 0 | H55: 574517.05 | I55: 574517.0534 | J55: 0 | L55: 15755.09 | M55: 15755.09209 | N55: 0 | P55: 1210.22 | Q55: 1210.216496 | R55: 0 | T55: 40274.65 | U55: 40274.6487 | V55: 0 | X55: 120082.8 | Y55: 120082.8 | Z55: 0 | AB55: 0 | AC55: 0 | AD55: 0 | AF55: 0 | AG55: 0 | AH55: 0 | AJ55: 0 | AK55: 0 | AL55: 0 | AN55: 11293 | AO55: 11293 | AP55: 0 | AR55: 0 | AS55: 0 | AT55: 0 | AV55: 0 | AW55: 0 | AX55: 0 | AZ55: 0 | BA55: 0 | BB55: 0 | BD55: 763132.81 | BE55: 763132.8107 | BF55: 0 | BH55: 0 | BI55: 0 | BJ55: 0 | BL55: 763132.81 | BM55: 763132.8107 | BN55: 0 | BP55: 0 | BR55: 0 | BT55: 763132.81 | BU55: 763132.8107 | BV55: 0 | BX55: 0 | BZ55: 0 | CB55: 60833.14 | CD55: 60833 | CF55: 0 | CH55: 0 | CJ55: 0 | CL55: 0 | CN55: 0 | CP55: 0 | CR55: 0 | CT55: 0 | CV55: 0 | CX55: 0 | CZ55: 0 | DB55: 0 | DD55: 0 | DF55: 0 | DH55: NO | DI55: =IF(ISERROR(VLOOKUP($A55+8860000,'Growth Data'!$A:$F,3,0)),"NO",VLOOKUP($A55+8860000,'Growth Data'!$A:$F,3,0)) -> NO | DJ55: 0 | DL55: 0 | DM55: =IF(DI55="YES",IF(ISERROR(VLOOKUP($A55+8860000,'Growth Data'!$A:$F,6,0)),0,VLOOKUP($A55+8860000,'Growth Data'!$A:$F,6,0)),0) -> 0 | DN55: 0 | DP55: 0 | DQ55: =IF(ISERROR(VLOOKUP($A55+8860000,'Growth Data'!$A:$Z,7,0)),0,VLOOKUP($A55+8860000,'Growth Data'!$A:$Z,7,0)) -> 0 | DR55: 0 | DT55: NO | DU55: =IF(ISERROR(VLOOKUP($A55+8860000,'Growth Data'!$A:$F,4,0)),"NO",VLOOKUP($A55+8860000,'Growth Data'!$A:$F,4,0)) -> NO | DV55: 0 | DX55: 0 | DY55: =IF(ISERROR(VLOOKUP($A55+8860000,'Growth Data'!$A:$Z,8,0)),0,VLOOKUP($A55+8860000,'Growth Data'!$A:$Z,8,0)) -> 0 | DZ55: 0 | EB55: 0 | EC55: =IF(ISERROR(VLOOKUP($A55+8860000,'Growth Data'!$A:$Z,9,0)),0,VLOOKUP($A55+8860000,'Growth Data'!$A:$Z,9,0)) -> 0 | ED55: 0 | EF55: NO | EG55: =IF(ISERROR(VLOOKUP($A55+8860000,'Growth Data'!$A:$Z,5,0)),"NO",VLOOKUP($A55+8860000,'Growth Data'!$A:$Z,5,0)) -> NO | EH55: 0 | EJ55: 0 | EK55: =IF(ISERROR(VLOOKUP($A55+8860000,'Growth Data'!$A:$Z,10,0)),0,VLOOKUP($A55+8860000,'Growth Data'!$A:$Z,10,0)) -> 0 | EL55: 0 | EN55: 0 | EO55: =IF(ISERROR(VLOOKUP($A55+8860000,'Growth Data'!$A:$Z,11,0)),0,VLOOKUP($A55+8860000,'Growth Data'!$A:$Z,11,0)) -> 0 | EP55: 0
A56: 2228 | B56: Davington Primary School | D56: Davington Primary School | E56: Davington Primary School | F56: 0 | H56: 1124294.14 | I56: 1124294.138 | J56: 0 | L56: 130169.41 | M56: 130169.4088 | N56: 0 | P56: 4156.23 | Q56: 4156.23202 | R56: 0 | T56: 92888.57 | U56: 92888.57157 | V56: 0 | X56: 120082.8 | Y56: 120082.8 | Z56: 0 | AB56: 0 | AC56: 0 | AD56: 0 | AF56: 0 | AG56: 0 | AH56: 0 | AJ56: 0 | AK56: 0 | AL56: 0 | AN56: 38808 | AO56: 38808 | AP56: 0 | AR56: 0 | AS56: 0 | AT56: 0 | AV56: 0 | AW56: 0 | AX56: 0 | AZ56: 0 | BA56: 0 | BB56: 0 | BD56: 1510399.15 | BE56: 1510399.15 | BF56: 0 | BH56: 0 | BI56: 0 | BJ56: 0 | BL56: 1510399.15 | BM56: 1510399.15 | BN56: 0 | BP56: 0 | BR56: 0 | BT56: 1510399.15 | BU56: 1510399.15 | BV56: 0 | BX56: 0 | BZ56: 0 | CB56: 212314.64 | CD56: 212315 | CF56: 0 | CH56: 0 | CJ56: 0 | CL56: 0 | CN56: 0 | CP56: 0 | CR56: 0 | CT56: 0 | CV56: 0 | CX56: 0 | CZ56: 0 | DB56: 0 | DD56: 0 | DF56: 0 | DH56: NO | DI56: =IF(ISERROR(VLOOKUP($A56+8860000,'Growth Data'!$A:$F,3,0)),"NO",VLOOKUP($A56+8860000,'Growth Data'!$A:$F,3,0)) -> NO | DJ56: 0 | DL56: 0 | DM56: =IF(DI56="YES",IF(ISERROR(VLOOKUP($A56+8860000,'Growth Data'!$A:$F,6,0)),0,VLOOKUP($A56+8860000,'Growth Data'!$A:$F,6,0)),0) -> 0 | DN56: 0 | DP56: 0 | DQ56: =IF(ISERROR(VLOOKUP($A56+8860000,'Growth Data'!$A:$Z,7,0)),0,VLOOKUP($A56+8860000,'Growth Data'!$A:$Z,7,0)) -> 0 | DR56: 0 | DT56: NO | DU56: =IF(ISERROR(VLOOKUP($A56+8860000,'Growth Data'!$A:$F,4,0)),"NO",VLOOKUP($A56+8860000,'Growth Data'!$A:$F,4,0)) -> NO | DV56: 0 | DX56: 0 | DY56: =IF(ISERROR(VLOOKUP($A56+8860000,'Growth Data'!$A:$Z,8,0)),0,VLOOKUP($A56+8860000,'Growth Data'!$A:$Z,8,0)) -> 0 | DZ56: 0 | EB56: 0 | EC56: =IF(ISERROR(VLOOKUP($A56+8860000,'Growth Data'!$A:$Z,9,0)),0,VLOOKUP($A56+8860000,'Growth Data'!$A:$Z,9,0)) -> 0 | ED56: 0 | EF56: NO | EG56: =IF(ISERROR(VLOOKUP($A56+8860000,'Growth Data'!$A:$Z,5,0)),"NO",VLOOKUP($A56+8860000,'Growth Data'!$A:$Z,5,0)) -> NO | EH56: 0 | EJ56: 0 | EK56: =IF(ISERROR(VLOOKUP($A56+8860000,'Growth Data'!$A:$Z,10,0)),0,VLOOKUP($A56+8860000,'Growth Data'!$A:$Z,10,0)) -> 0 | EL56: 0 | EN56: 0 | EO56: =IF(ISERROR(VLOOKUP($A56+8860000,'Growth Data'!$A:$Z,11,0)),0,VLOOKUP($A56+8860000,'Growth Data'!$A:$Z,11,0)) -> 0 | EP56: 0
A57: 2231 | B57: Lower Halstow School | D57: Lower Halstow School | E57: Lower Halstow School | F57: 0 | H57: 409583.93 | I57: 409583.928 | J57: 0 | L57: 19299.76 | M57: 19299.75926 | N57: 0 | P57: 564.62 | Q57: 564.6172585 | R57: 0 | T57: 25831.19 | U57: 25831.19215 | V57: 0 | X57: 120082.8 | Y57: 120082.8 | Z57: 0 | AB57: 0 | AC57: 0 | AD57: 0 | AF57: 0 | AG57: 0 | AH57: 0 | AJ57: 0 | AK57: 0 | AL57: 0 | AN57: 20499 | AO57: 20499 | AP57: 0 | AR57: 0 | AS57: 0 | AT57: 0 | AV57: 0 | AW57: 0 | AX57: 0 | AZ57: 0 | BA57: 0 | BB57: 0 | BD57: 595861.3 | BE57: 595861.2967 | BF57: 0 | BH57: 0 | BI57: 0 | BJ57: 0 | BL57: 595861.3 | BM57: 595861.2967 | BN57: 0 | BP57: 0 | BR57: 0 | BT57: 595861.3 | BU57: 595861.2967 | BV57: 0 | BX57: 0 | BZ57: 0 | CB57: 47087.23 | CD57: 47087 | CF57: 1291.28 | CH57: 1291 | CJ57: 0 | CL57: 0 | CN57: 0 | CP57: 0 | CR57: 0 | CT57: 0 | CV57: 0 | CX57: 0 | CZ57: 0 | DB57: 0 | DD57: 0 | DF57: 0 | DH57: NO | DI57: =IF(ISERROR(VLOOKUP($A57+8860000,'Growth Data'!$A:$F,3,0)),"NO",VLOOKUP($A57+8860000,'Growth Data'!$A:$F,3,0)) -> YES | DJ57: 1 | DL57: 0 | DM57: =IF(DI57="YES",IF(ISERROR(VLOOKUP($A57+8860000,'Growth Data'!$A:$F,6,0)),0,VLOOKUP($A57+8860000,'Growth Data'!$A:$F,6,0)),0) -> 23 | DN57: -23 | DP57: 0 | DQ57: =IF(ISERROR(VLOOKUP($A57+8860000,'Growth Data'!$A:$Z,7,0)),0,VLOOKUP($A57+8860000,'Growth Data'!$A:$Z,7,0)) -> 30 | DR57: 1 | DT57: NO | DU57: =IF(ISERROR(VLOOKUP($A57+8860000,'Growth Data'!$A:$F,4,0)),"NO",VLOOKUP($A57+8860000,'Growth Data'!$A:$F,4,0)) -> YES | DV57: 1 | DX57: 0 | DY57: =IF(ISERROR(VLOOKUP($A57+8860000,'Growth Data'!$A:$Z,8,0)),0,VLOOKUP($A57+8860000,'Growth Data'!$A:$Z,8,0)) -> 22 | DZ57: 1 | EB57: 0 | EC57: =IF(ISERROR(VLOOKUP($A57+8860000,'Growth Data'!$A:$Z,9,0)),0,VLOOKUP($A57+8860000,'Growth Data'!$A:$Z,9,0)) -> 30 | ED57: 1 | EF57: NO | EG57: =IF(ISERROR(VLOOKUP($A57+8860000,'Growth Data'!$A:$Z,5,0)),"NO",VLOOKUP($A57+8860000,'Growth Data'!$A:$Z,5,0)) -> YES | EH57: 1 | EJ57: 0 | EK57: =IF(ISERROR(VLOOKUP($A57+8860000,'Growth Data'!$A:$Z,10,0)),0,VLOOKUP($A57+8860000,'Growth Data'!$A:$Z,10,0)) -> 28 | EL57: 1 | EN57: 0 | EO57: =IF(ISERROR(VLOOKUP($A57+8860000,'Growth Data'!$A:$Z,11,0)),0,VLOOKUP($A57+8860000,'Growth Data'!$A:$Z,11,0)) -> 30 | EP57: 1
A58: 2237 | B58: Queenborough School and Nursery | D58: Queenborough School and Nursery | E58: Queenborough School and Nursery | F58: 0 | H58: 1184769.62 | I58: 1184769.617 | J58: 0 | L58: 274038.65 | M58: 274038.6541 | N58: 0 | P58: 3582.55 | Q58: 3582.550901 | R58: 0 | T58: 89127.05 | U58: 89127.04736 | V58: 0 | X58: 120082.8 | Y58: 120082.8 | Z58: 0 | AB58: 0 | AC58: 0 | AD58: 0 | AF58: 0 | AG58: 0 | AH58: 0 | AJ58: 0 | AK58: 0 | AL58: 0 | AN58: 33516 | AO58: 33516 | AP58: 0 | AR58: 0 | AS58: 0 | AT58: 0 | AV58: 0 | AW58: 0 | AX58: 0 | AZ58: 0 | BA58: 0 | BB58: 0 | BD58: 1705116.67 | BE58: 1705116.67 | BF58: 0 | BH58: 0 | BI58: 0 | BJ58: 0 | BL58: 1705116.67 | BM58: 1705116.67 | BN58: 0 | BP58: 0 | BR58: 0 | BT58: 1705116.67 | BU58: 1705116.67 | BV58: 0 | BX58: 5.14 | BZ58: 5 | CB58: 318825.91 | CD58: 318826 | CF58: 0 | CH58: 0 | CJ58: 0 | CL58: 0 | CN58: 0 | CP58: 0 | CR58: 0 | CT58: 0 | CV58: 0 | CX58: 0 | CZ58: 0 | DB58: 0 | DD58: 0 | DF58: 0 | DH58: NO | DI58: =IF(ISERROR(VLOOKUP($A58+8860000,'Growth Data'!$A:$F,3,0)),"NO",VLOOKUP($A58+8860000,'Growth Data'!$A:$F,3,0)) -> NO | DJ58: 0 | DL58: 0 | DM58: =IF(DI58="YES",IF(ISERROR(VLOOKUP($A58+8860000,'Growth Data'!$A:$F,6,0)),0,VLOOKUP($A58+8860000,'Growth Data'!$A:$F,6,0)),0) -> 0 | DN58: 0 | DP58: 0 | DQ58: =IF(ISERROR(VLOOKUP($A58+8860000,'Growth Data'!$A:$Z,7,0)),0,VLOOKUP($A58+8860000,'Growth Data'!$A:$Z,7,0)) -> 0 | DR58: 0 | DT58: NO | DU58: =IF(ISERROR(VLOOKUP($A58+8860000,'Growth Data'!$A:$F,4,0)),"NO",VLOOKUP($A58+8860000,'Growth Data'!$A:$F,4,0)) -> NO | DV58: 0 | DX58: 0 | DY58: =IF(ISERROR(VLOOKUP($A58+8860000,'Growth Data'!$A:$Z,8,0)),0,VLOOKUP($A58+8860000,'Growth Data'!$A:$Z,8,0)) -> 0 | DZ58: 0 | EB58: 0 | EC58: =IF(ISERROR(VLOOKUP($A58+8860000,'Growth Data'!$A:$Z,9,0)),0,VLOOKUP($A58+8860000,'Growth Data'!$A:$Z,9,0)) -> 0 | ED58: 0 | EF58: NO | EG58: =IF(ISERROR(VLOOKUP($A58+8860000,'Growth Data'!$A:$Z,5,0)),"NO",VLOOKUP($A58+8860000,'Growth Data'!$A:$Z,5,0)) -> NO | EH58: 0 | EJ58: 0 | EK58: =IF(ISERROR(VLOOKUP($A58+8860000,'Growth Data'!$A:$Z,10,0)),0,VLOOKUP($A58+8860000,'Growth Data'!$A:$Z,10,0)) -> 0 | EL58: 0 | EN58: 0 | EO58: =IF(ISERROR(VLOOKUP($A58+8860000,'Growth Data'!$A:$Z,11,0)),0,VLOOKUP($A58+8860000,'Growth Data'!$A:$Z,11,0)) -> 0 | EP58: 0
A59: 2239 | B59: Rodmersham School | D59: Rodmersham School | E59: Rodmersham School | F59: 0 | H59: 274888.54 | I59: 274888.5423 | J59: 0 | L59: 7664.38 | M59: 7664.375682 | N59: 0 | P59: 592.36 | Q59: 592.3624713 | R59: 0 | T59: 8736.98 | U59: 8736.980407 | V59: 0 | X59: 120082.8 | Y59: 120082.8 | Z59: 0 | AB59: 0 | AC59: 0 | AD59: 0 | AF59: 0 | AG59: 0 | AH59: 0 | AJ59: 0 | AK59: 0 | AL59: 0 | AN59: 5769 | AO59: 5769 | AP59: 0 | AR59: 0 | AS59: 0 | AT59: 0 | AV59: 6027 | AW59: 6027 | AX59: 0 | AZ59: 0 | BA59: 0 | BB59: 0 | BD59: 423761.06 | BE59: 423761.0609 | BF59: 0 | BH59: 0 | BI59: 0 | BJ59: 0 | BL59: 423761.06 | BM59: 423761.0609 | BN59: 0 | BP59: 0 | BR59: 0 | BT59: 423761.06 | BU59: 423761.0609 | BV59: 0 | BX59: 0 | BZ59: 0 | CB59: 23228.72 | CD59: 23229 | CF59: 3677.13 | CH59: 3677 | CJ59: 0 | CL59: 0 | CN59: 0 | CP59: 0 | CR59: 0 | CT59: 0 | CV59: 0 | CX59: 0 | CZ59: 0 | DB59: 0 | DD59: 0 | DF59: 0 | DH59: NO | DI59: =IF(ISERROR(VLOOKUP($A59+8860000,'Growth Data'!$A:$F,3,0)),"NO",VLOOKUP($A59+8860000,'Growth Data'!$A:$F,3,0)) -> NO | DJ59: 0 | DL59: 0 | DM59: =IF(DI59="YES",IF(ISERROR(VLOOKUP($A59+8860000,'Growth Data'!$A:$F,6,0)),0,VLOOKUP($A59+8860000,'Growth Data'!$A:$F,6,0)),0) -> 0 | DN59: 0 | DP59: 0 | DQ59: =IF(ISERROR(VLOOKUP($A59+8860000,'Growth Data'!$A:$Z,7,0)),0,VLOOKUP($A59+8860000,'Growth Data'!$A:$Z,7,0)) -> 0 | DR59: 0 | DT59: NO | DU59: =IF(ISERROR(VLOOKUP($A59+8860000,'Growth Data'!$A:$F,4,0)),"NO",VLOOKUP($A59+8860000,'Growth Data'!$A:$F,4,0)) -> NO | DV59: 0 | DX59: 0 | DY59: =IF(ISERROR(VLOOKUP($A59+8860000,'Growth Data'!$A:$Z,8,0)),0,VLOOKUP($A59+8860000,'Growth Data'!$A:$Z,8,0)) -> 0 | DZ59: 0 | EB59: 0 | EC59: =IF(ISERROR(VLOOKUP($A59+8860000,'Growth Data'!$A:$Z,9,0)),0,VLOOKUP($A59+8860000,'Growth Data'!$A:$Z,9,0)) -> 0 | ED59: 0 | EF59: NO | EG59: =IF(ISERROR(VLOOKUP($A59+8860000,'Growth Data'!$A:$Z,5,0)),"NO",VLOOKUP($A59+8860000,'Growth Data'!$A:$Z,5,0)) -> NO | EH59: 0 | EJ59: 0 | EK59: =IF(ISERROR(VLOOKUP($A59+8860000,'Growth Data'!$A:$Z,10,0)),0,VLOOKUP($A59+8860000,'Growth Data'!$A:$Z,10,0)) -> 0 | EL59: 0 | EN59: 0 | EO59: =IF(ISERROR(VLOOKUP($A59+8860000,'Growth Data'!$A:$Z,11,0)),0,VLOOKUP($A59+8860000,'Growth Data'!$A:$Z,11,0)) -> 0 | EP59: 0
A60: 2245 | B60: Rose Street School | D60: Rose Street School | E60: Rose Street School | F60: 0 | H60: 962109.9 | I60: 962109.8981 | J60: 0 | L60: 266135.34 | M60: 266135.3422 | N60: 0 | P60: 11195.65 | Q60: 11195.65071 | R60: 0 | T60: 76785.93 | U60: 76785.93172 | V60: 0 | X60: 120082.8 | Y60: 120082.8 | Z60: 0 | AB60: 0 | AC60: 0 | AD60: 0 | AF60: 0 | AG60: 0 | AH60: 0 | AJ60: 0 | AK60: 0 | AL60: 0 | AN60: 78624 | AO60: 78624 | AP60: 0 | AR60: 0 | AS60: 0 | AT60: 0 | AV60: 0 | AW60: 0 | AX60: 0 | AZ60: 0 | BA60: 0 | BB60: 0 | BD60: 1514933.62 | BE60: 1514933.623 | BF60: 0 | BH60: 0 | BI60: 0 | BJ60: 0 | BL60: 1514933.62 | BM60: 1514933.623 | BN60: 0 | BP60: 0 | BR60: 0 | BT60: 1514933.62 | BU60: 1514933.623 | BV60: 0 | BX60: 5.36 | BZ60: 5 | CB60: 303112.46 | CD60: 303112 | CF60: 0 | CH60: 0 | CJ60: 0 | CL60: 0 | CN60: 0 | CP60: 0 | CR60: 0 | CT60: 0 | CV60: 0 | CX60: 0 | CZ60: 0 | DB60: 0 | DD60: 0 | DF60: 0 | DH60: YES | DI60: =IF(ISERROR(VLOOKUP($A60+8860000,'Growth Data'!$A:$F,3,0)),"NO",VLOOKUP($A60+8860000,'Growth Data'!$A:$F,3,0)) -> YES | DJ60: 0 | DL60: 30 | DM60: =IF(DI60="YES",IF(ISERROR(VLOOKUP($A60+8860000,'Growth Data'!$A:$F,6,0)),0,VLOOKUP($A60+8860000,'Growth Data'!$A:$F,6,0)),0) -> 30 | DN60: 0 | DP60: 60 | DQ60: =IF(ISERROR(VLOOKUP($A60+8860000,'Growth Data'!$A:$Z,7,0)),0,VLOOKUP($A60+8860000,'Growth Data'!$A:$Z,7,0)) -> 60 | DR60: 0 | DT60: YES | DU60: =IF(ISERROR(VLOOKUP($A60+8860000,'Growth Data'!$A:$F,4,0)),"NO",VLOOKUP($A60+8860000,'Growth Data'!$A:$F,4,0)) -> YES | DV60: 0 | DX60: 30 | DY60: =IF(ISERROR(VLOOKUP($A60+8860000,'Growth Data'!$A:$Z,8,0)),0,VLOOKUP($A60+8860000,'Growth Data'!$A:$Z,8,0)) -> 30 | DZ60: 0 | EB60: 60 | EC60: =IF(ISERROR(VLOOKUP($A60+8860000,'Growth Data'!$A:$Z,9,0)),0,VLOOKUP($A60+8860000,'Growth Data'!$A:$Z,9,0)) -> 60 | ED60: 0 | EF60: YES | EG60: =IF(ISERROR(VLOOKUP($A60+8860000,'Growth Data'!$A:$Z,5,0)),"NO",VLOOKUP($A60+8860000,'Growth Data'!$A:$Z,5,0)) -> NO | EH60: 1 | EJ60: 30 | EK60: =IF(ISERROR(VLOOKUP($A60+8860000,'Growth Data'!$A:$Z,10,0)),0,VLOOKUP($A60+8860000,'Growth Data'!$A:$Z,10,0)) -> 0 | EL60: 1 | EN60: 60 | EO60: =IF(ISERROR(VLOOKUP($A60+8860000,'Growth Data'!$A:$Z,11,0)),0,VLOOKUP($A60+8860000,'Growth Data'!$A:$Z,11,0)) -> 0 | EP60: 1
A61: 2254 | B61: Canterbury Road Primary School | D61: Canterbury Road Primary School | E61: Canterbury Road Primary School | F61: 0 | H61: 577265.94 | I61: 577265.9389 | J61: 0 | L61: 81659.53 | M61: 81659.52897 | N61: 0 | P61: 8417.47 | Q61: 8417.470717 | R61: 0 | T61: 64800.6 | U61: 64800.59514 | V61: 0 | X61: 120082.8 | Y61: 120082.8 | Z61: 0 | AB61: 0 | AC61: 0 | AD61: 0 | AF61: 0 | AG61: 0 | AH61: 0 | AJ61: 0 | AK61: 0 | AL61: 0 | AN61: 29484 | AO61: 29484 | AP61: 0 | AR61: 0 | AS61: 0 | AT61: 0 | AV61: 0 | AW61: 0 | AX61: 0 | AZ61: 0 | BA61: 0 | BB61: 0 | BD61: 881710.33 | BE61: 881710.3337 | BF61: 0 | BH61: 0 | BI61: 0 | BJ61: 0 | BL61: 881710.33 | BM61: 881710.3337 | BN61: 0 | BP61: 0 | BR61: 0 | BT61: 881710.33 | BU61: 881710.3337 | BV61: 0 | BX61: 0 | BZ61: 0 | CB61: 149664.7 | CD61: 149665 | CF61: 0 | CH61: 0 | CJ61: 0 | CL61: 0 | CN61: 0 | CP61: 0 | CR61: 0 | CT61: 0 | CV61: 0 | CX61: 0 | CZ61: 0 | DB61: 0 | DD61: 0 | DF61: 0 | DH61: NO | DI61: =IF(ISERROR(VLOOKUP($A61+8860000,'Growth Data'!$A:$F,3,0)),"NO",VLOOKUP($A61+8860000,'Growth Data'!$A:$F,3,0)) -> NO | DJ61: 0 | DL61: 0 | DM61: =IF(DI61="YES",IF(ISERROR(VLOOKUP($A61+8860000,'Growth Data'!$A:$F,6,0)),0,VLOOKUP($A61+8860000,'Growth Data'!$A:$F,6,0)),0) -> 0 | DN61: 0 | DP61: 0 | DQ61: =IF(ISERROR(VLOOKUP($A61+8860000,'Growth Data'!$A:$Z,7,0)),0,VLOOKUP($A61+8860000,'Growth Data'!$A:$Z,7,0)) -> 0 | DR61: 0 | DT61: NO | DU61: =IF(ISERROR(VLOOKUP($A61+8860000,'Growth Data'!$A:$F,4,0)),"NO",VLOOKUP($A61+8860000,'Growth Data'!$A:$F,4,0)) -> NO | DV61: 0 | DX61: 0 | DY61: =IF(ISERROR(VLOOKUP($A61+8860000,'Growth Data'!$A:$Z,8,0)),0,VLOOKUP($A61+8860000,'Growth Data'!$A:$Z,8,0)) -> 0 | DZ61: 0 | EB61: 0 | EC61: =IF(ISERROR(VLOOKUP($A61+8860000,'Growth Data'!$A:$Z,9,0)),0,VLOOKUP($A61+8860000,'Growth Data'!$A:$Z,9,0)) -> 0 | ED61: 0 | EF61: NO | EG61: =IF(ISERROR(VLOOKUP($A61+8860000,'Growth Data'!$A:$Z,5,0)),"NO",VLOOKUP($A61+8860000,'Growth Data'!$A:$Z,5,0)) -> NO | EH61: 0 | EJ61: 0 | EK61: =IF(ISERROR(VLOOKUP($A61+8860000,'Growth Data'!$A:$Z,10,0)),0,VLOOKUP($A61+8860000,'Growth Data'!$A:$Z,10,0)) -> 0 | EL61: 0 | EN61: 0 | EO61: =IF(ISERROR(VLOOKUP($A61+8860000,'Growth Data'!$A:$Z,11,0)),0,VLOOKUP($A61+8860000,'Growth Data'!$A:$Z,11,0)) -> 0 | EP61: 0
A62: 2258 | B62: Blean Primary School | D62: Blean Primary School | E62: Blean Primary School | F62: 0 | H62: 1190267.39 | I62: 1190267.388 | J62: 0 | L62: 44541.04 | M62: 44541.04316 | N62: 0 | P62: 38886.53 | Q62: 38886.5317 | R62: 0 | T62: 57290.18 | U62: 57290.17715 | V62: 0 | X62: 120082.8 | Y62: 120082.8 | Z62: 0 | AB62: 0 | AC62: 0 | AD62: 0 | AF62: 0 | AG62: 0 | AH62: 0 | AJ62: 0 | AK62: 0 | AL62: 0 | AN62: 37044 | AO62: 37044 | AP62: 0 | AR62: 0 | AS62: 0 | AT62: 0 | AV62: 0 | AW62: 0 | AX62: 0 | AZ62: 21132.06 | BA62: 21132.05978 | BB62: 0 | BD62: 1509244 | BE62: 1509244 | BF62: 0 | BH62: 0 | BI62: 0 | BJ62: 0 | BL62: 1509244 | BM62: 1509244 | BN62: 0 | BP62: 0 | BR62: 0 | BT62: 1509244 | BU62: 1509244 | BV62: 0 | BX62: 0 | BZ62: 0 | CB62: 138586.98 | CD62: 138587 | CF62: 0 | CH62: 0 | CJ62: 0 | CL62: 0 | CN62: 0 | CP62: 0 | CR62: 0 | CT62: 0 | CV62: 0 | CX62: 0 | CZ62: 0 | DB62: 0 | DD62: 0 | DF62: 0 | DH62: NO | DI62: =IF(ISERROR(VLOOKUP($A62+8860000,'Growth Data'!$A:$F,3,0)),"NO",VLOOKUP($A62+8860000,'Growth Data'!$A:$F,3,0)) -> NO | DJ62: 0 | DL62: 0 | DM62: =IF(DI62="YES",IF(ISERROR(VLOOKUP($A62+8860000,'Growth Data'!$A:$F,6,0)),0,VLOOKUP($A62+8860000,'Growth Data'!$A:$F,6,0)),0) -> 0 | DN62: 0 | DP62: 0 | DQ62: =IF(ISERROR(VLOOKUP($A62+8860000,'Growth Data'!$A:$Z,7,0)),0,VLOOKUP($A62+8860000,'Growth Data'!$A:$Z,7,0)) -> 0 | DR62: 0 | DT62: NO | DU62: =IF(ISERROR(VLOOKUP($A62+8860000,'Growth Data'!$A:$F,4,0)),"NO",VLOOKUP($A62+8860000,'Growth Data'!$A:$F,4,0)) -> NO | DV62: 0 | DX62: 0 | DY62: =IF(ISERROR(VLOOKUP($A62+8860000,'Growth Data'!$A:$Z,8,0)),0,VLOOKUP($A62+8860000,'Growth Data'!$A:$Z,8,0)) -> 0 | DZ62: 0 | EB62: 0 | EC62: =IF(ISERROR(VLOOKUP($A62+8860000,'Growth Data'!$A:$Z,9,0)),0,VLOOKUP($A62+8860000,'Growth Data'!$A:$Z,9,0)) -> 0 | ED62: 0 | EF62: NO | EG62: =IF(ISERROR(VLOOKUP($A62+8860000,'Growth Data'!$A:$Z,5,0)),"NO",VLOOKUP($A62+8860000,'Growth Data'!$A:$Z,5,0)) -> NO | EH62: 0 | EJ62: 0 | EK62: =IF(ISERROR(VLOOKUP($A62+8860000,'Growth Data'!$A:$Z,10,0)),0,VLOOKUP($A62+8860000,'Growth Data'!$A:$Z,10,0)) -> 0 | EL62: 0 | EN62: 0 | EO62: =IF(ISERROR(VLOOKUP($A62+8860000,'Growth Data'!$A:$Z,11,0)),0,VLOOKUP($A62+8860000,'Growth Data'!$A:$Z,11,0)) -> 0 | EP62: 0
A63: 2259 | B63: Chartham Primary School | D63: Chartham Primary School | E63: Chartham Primary School | F63: 0 | H63: 951114.36 | I63: 951114.3564 | J63: 0 | L63: 51396.54 | M63: 51396.5363 | N63: 0 | P63: 6604.18 | Q63: 6604.183374 | R63: 0 | T63: 67953.53 | U63: 67953.52637 | V63: 0 | X63: 120082.8 | Y63: 120082.8 | Z63: 0 | AB63: 0 | AC63: 0 | AD63: 0 | AF63: 0 | AG63: 0 | AH63: 0 | AJ63: 0 | AK63: 0 | AL63: 0 | AN63: 28450 | AO63: 28450 | AP63: 0 | AR63: 0 | AS63: 0 | AT63: 0 | AV63: 0 | AW63: 0 | AX63: 0 | AZ63: 0 | BA63: 0 | BB63: 0 | BD63: 1225601.4 | BE63: 1225601.402 | BF63: 0 | BH63: 0 | BI63: 0 | BJ63: 0 | BL63: 1225601.4 | BM63: 1225601.402 | BN63: 0 | BP63: 0 | BR63: 0 | BT63: 1225601.4 | BU63: 1225601.402 | BV63: 0 | BX63: 0 | BZ63: 0 | CB63: 107091.94 | CD63: 107092 | CF63: 0 | CH63: 0 | CJ63: 0 | CL63: 0 | CN63: 0 | CP63: 0 | CR63: 0 | CT63: 0 | CV63: 0 | CX63: 0 | CZ63: 0 | DB63: 0 | DD63: 0 | DF63: 0 | DH63: NO | DI63: =IF(ISERROR(VLOOKUP($A63+8860000,'Growth Data'!$A:$F,3,0)),"NO",VLOOKUP($A63+8860000,'Growth Data'!$A:$F,3,0)) -> YES | DJ63: 1 | DL63: 0 | DM63: =IF(DI63="YES",IF(ISERROR(VLOOKUP($A63+8860000,'Growth Data'!$A:$F,6,0)),0,VLOOKUP($A63+8860000,'Growth Data'!$A:$F,6,0)),0) -> 45 | DN63: -45 | DP63: 0 | DQ63: =IF(ISERROR(VLOOKUP($A63+8860000,'Growth Data'!$A:$Z,7,0)),0,VLOOKUP($A63+8860000,'Growth Data'!$A:$Z,7,0)) -> 60 | DR63: 1 | DT63: YES | DU63: =IF(ISERROR(VLOOKUP($A63+8860000,'Growth Data'!$A:$F,4,0)),"NO",VLOOKUP($A63+8860000,'Growth Data'!$A:$F,4,0)) -> YES | DV63: 0 | DX63: 47 | DY63: =IF(ISERROR(VLOOKUP($A63+8860000,'Growth Data'!$A:$Z,8,0)),0,VLOOKUP($A63+8860000,'Growth Data'!$A:$Z,8,0)) -> 45 | DZ63: 1 | EB63: 60 | EC63: =IF(ISERROR(VLOOKUP($A63+8860000,'Growth Data'!$A:$Z,9,0)),0,VLOOKUP($A63+8860000,'Growth Data'!$A:$Z,9,0)) -> 60 | ED63: 0 | EF63: YES | EG63: =IF(ISERROR(VLOOKUP($A63+8860000,'Growth Data'!$A:$Z,5,0)),"NO",VLOOKUP($A63+8860000,'Growth Data'!$A:$Z,5,0)) -> YES | EH63: 0 | EJ63: 49 | EK63: =IF(ISERROR(VLOOKUP($A63+8860000,'Growth Data'!$A:$Z,10,0)),0,VLOOKUP($A63+8860000,'Growth Data'!$A:$Z,10,0)) -> 48 | EL63: 1 | EN63: 60 | EO63: =IF(ISERROR(VLOOKUP($A63+8860000,'Growth Data'!$A:$Z,11,0)),0,VLOOKUP($A63+8860000,'Growth Data'!$A:$Z,11,0)) -> 60 | EP63: 0
A64: 2263 | B64: Herne Bay Infant School | D64: Herne Bay Infant School | E64: Herne Bay Infant School | F64: 0 | H64: 962109.9 | I64: 962109.8981 | J64: 0 | L64: 99684.74 | M64: 99684.73504 | N64: 0 | P64: 7642.98 | Q64: 7642.981886 | R64: 0 | T64: 77277.85 | U64: 77277.85128 | V64: 0 | X64: 120082.8 | Y64: 120082.8 | Z64: 0 | AB64: 0 | AC64: 0 | AD64: 0 | AF64: 0 | AG64: 0 | AH64: 0 | AJ64: 0 | AK64: 0 | AL64: 0 | AN64: 15712 | AO64: 15712 | AP64: 0 | AR64: 0 | AS64: 0 | AT64: 0 | AV64: 0 | AW64: 0 | AX64: 0 | AZ64: 0 | BA64: 0 | BB64: 0 | BD64: 1282510.27 | BE64: 1282510.266 | BF64: 0 | BH64: 0 | BI64: 0 | BJ64: 0 | BL64: 1282510.27 | BM64: 1282510.266 | BN64: 0 | BP64: 0 | BR64: 0 | BT64: 1282510.27 | BU64: 1282510.266 | BV64: 0 | BX64: 4.9 | BZ64: 5 | CB64: 164862.66 | CD64: 164863 | CF64: 0 | CH64: 0 | CJ64: 0 | CL64: 0 | CN64: 0 | CP64: 0 | CR64: 0 | CT64: 0 | CV64: 0 | CX64: 0 | CZ64: 0 | DB64: 0 | DD64: 0 | DF64: 0 | DH64: NO | DI64: =IF(ISERROR(VLOOKUP($A64+8860000,'Growth Data'!$A:$F,3,0)),"NO",VLOOKUP($A64+8860000,'Growth Data'!$A:$F,3,0)) -> NO | DJ64: 0 | DL64: 0 | DM64: =IF(DI64="YES",IF(ISERROR(VLOOKUP($A64+8860000,'Growth Data'!$A:$F,6,0)),0,VLOOKUP($A64+8860000,'Growth Data'!$A:$F,6,0)),0) -> 0 | DN64: 0 | DP64: 0 | DQ64: =IF(ISERROR(VLOOKUP($A64+8860000,'Growth Data'!$A:$Z,7,0)),0,VLOOKUP($A64+8860000,'Growth Data'!$A:$Z,7,0)) -> 0 | DR64: 0 | DT64: NO | DU64: =IF(ISERROR(VLOOKUP($A64+8860000,'Growth Data'!$A:$F,4,0)),"NO",VLOOKUP($A64+8860000,'Growth Data'!$A:$F,4,0)) -> NO | DV64: 0 | DX64: 0 | DY64: =IF(ISERROR(VLOOKUP($A64+8860000,'Growth Data'!$A:$Z,8,0)),0,VLOOKUP($A64+8860000,'Growth Data'!$A:$Z,8,0)) -> 0 | DZ64: 0 | EB64: 0 | EC64: =IF(ISERROR(VLOOKUP($A64+8860000,'Growth Data'!$A:$Z,9,0)),0,VLOOKUP($A64+8860000,'Growth Data'!$A:$Z,9,0)) -> 0 | ED64: 0 | EF64: NO | EG64: =IF(ISERROR(VLOOKUP($A64+8860000,'Growth Data'!$A:$Z,5,0)),"NO",VLOOKUP($A64+8860000,'Growth Data'!$A:$Z,5,0)) -> NO | EH64: 0 | EJ64: 0 | EK64: =IF(ISERROR(VLOOKUP($A64+8860000,'Growth Data'!$A:$Z,10,0)),0,VLOOKUP($A64+8860000,'Growth Data'!$A:$Z,10,0)) -> 0 | EL64: 0 | EN64: 0 | EO64: =IF(ISERROR(VLOOKUP($A64+8860000,'Growth Data'!$A:$Z,11,0)),0,VLOOKUP($A64+8860000,'Growth Data'!$A:$Z,11,0)) -> 0 | EP64: 0
A65: 2265 | B65: Hoath Primary School | D65: Hoath Primary School | E65: Hoath Primary School | F65: 0 | H65: 241901.92 | I65: 241901.9172 | J65: 0 | L65: 14902.55 | M65: 14902.55474 | N65: 0 | P65: 621.25 | Q65: 621.2502849 | R65: 0 | T65: 14554.09 | U65: 14554.08657 | V65: 0 | X65: 120082.8 | Y65: 120082.8 | Z65: 0 | AB65: 0 | AC65: 0 | AD65: 0 | AF65: 0 | AG65: 0 | AH65: 0 | AJ65: 0 | AK65: 0 | AL65: 0 | AN65: 14116 | AO65: 14116 | AP65: 0 | AR65: 0 | AS65: 0 | AT65: 0 | AV65: 0 | AW65: 0 | AX65: 0 | AZ65: 0 | BA65: 0 | BB65: 0 | BD65: 406178.61 | BE65: 406178.6088 | BF65: 0 | BH65: 0 | BI65: 0 | BJ65: 0 | BL65: 406178.61 | BM65: 406178.6088 | BN65: 0 | BP65: 0 | BR65: 0 | BT65: 406178.61 | BU65: 406178.6088 | BV65: 0 | BX65: 0 | BZ65: 0 | CB65: 32790.46 | CD65: 32790 | CF65: 2720.95 | CH65: 2721 | CJ65: 0 | CL65: 0 | CN65: 0 | CP65: 0 | CR65: 0 | CT65: 0 | CV65: 0 | CX65: 0 | CZ65: 0 | DB65: 0 | DD65: 0 | DF65: 0 | DH65: NO | DI65: =IF(ISERROR(VLOOKUP($A65+8860000,'Growth Data'!$A:$F,3,0)),"NO",VLOOKUP($A65+8860000,'Growth Data'!$A:$F,3,0)) -> NO | DJ65: 0 | DL65: 0 | DM65: =IF(DI65="YES",IF(ISERROR(VLOOKUP($A65+8860000,'Growth Data'!$A:$F,6,0)),0,VLOOKUP($A65+8860000,'Growth Data'!$A:$F,6,0)),0) -> 0 | DN65: 0 | DP65: 0 | DQ65: =IF(ISERROR(VLOOKUP($A65+8860000,'Growth Data'!$A:$Z,7,0)),0,VLOOKUP($A65+8860000,'Growth Data'!$A:$Z,7,0)) -> 0 | DR65: 0 | DT65: NO | DU65: =IF(ISERROR(VLOOKUP($A65+8860000,'Growth Data'!$A:$F,4,0)),"NO",VLOOKUP($A65+8860000,'Growth Data'!$A:$F,4,0)) -> NO | DV65: 0 | DX65: 0 | DY65: =IF(ISERROR(VLOOKUP($A65+8860000,'Growth Data'!$A:$Z,8,0)),0,VLOOKUP($A65+8860000,'Growth Data'!$A:$Z,8,0)) -> 0 | DZ65: 0 | EB65: 0 | EC65: =IF(ISERROR(VLOOKUP($A65+8860000,'Growth Data'!$A:$Z,9,0)),0,VLOOKUP($A65+8860000,'Growth Data'!$A:$Z,9,0)) -> 0 | ED65: 0 | EF65: NO | EG65: =IF(ISERROR(VLOOKUP($A65+8860000,'Growth Data'!$A:$Z,5,0)),"NO",VLOOKUP($A65+8860000,'Growth Data'!$A:$Z,5,0)) -> NO | EH65: 0 | EJ65: 0 | EK65: =IF(ISERROR(VLOOKUP($A65+8860000,'Growth Data'!$A:$Z,10,0)),0,VLOOKUP($A65+8860000,'Growth Data'!$A:$Z,10,0)) -> 0 | EL65: 0 | EN65: 0 | EO65: =IF(ISERROR(VLOOKUP($A65+8860000,'Growth Data'!$A:$Z,11,0)),0,VLOOKUP($A65+8860000,'Growth Data'!$A:$Z,11,0)) -> 0 | EP65: 0
A66: 2268 | B66: Westmeads Community Infant School | D66: Westmeads Community Infant School | E66: Westmeads Community Infant School | F66: =IF(E66=D66,0,1) -> 0 | H66: 486552.72 | I66: 486552.7199 | J66: 0 | L66: 17444.03 | M66: 17444.02808 | N66: 0 | P66: 3898.2 | Q66: 3898.200724 | R66: 0 | T66: 33595.2 | U66: 33595.19604 | V66: 0 | X66: 120082.8 | Y66: 120082.8 | Z66: 0 | AB66: 0 | AC66: 0 | AD66: 0 | AF66: 0 | AG66: 0 | AH66: 0 | AJ66: 0 | AK66: 0 | AL66: 0 | AN66: 19395 | AO66: 19395 | AP66: 0 | AR66: 0 | AS66: 0 | AT66: 0 | AV66: 0 | AW66: 0 | AX66: 0 | AZ66: 0 | BA66: 0 | BB66: 0 | BD66: 680967.94 | BE66: 680967.9447 | BF66: 0 | BH66: 0 | BI66: 0 | BJ66: 0 | BL66: 680967.94 | BM66: 680967.9447 | BN66: 0 | BP66: 0 | BR66: 0 | BT66: 680967.94 | BU66: 680967.9447 | BV66: 0 | BX66: 0 | BZ66: =ROUND(BX66-BY66,0) -> 0 | CB66: 54127.57 | CD66: =ROUND(CB66-CC66,0) -> 54128 | CF66: 587.24 | CH66: =ROUND(CF66-CG66,0) -> 587 | CJ66: 0 | CL66: =ROUND(CJ66-CK66,0) -> 0 | CN66: 0 | CP66: =ROUND(CN66-CO66,0) -> 0 | CR66: 0 | CT66: =ROUND(CR66-CS66,0) -> 0 | CV66: 0 | CX66: =ROUND(CV66-CW66,0) -> 0 | CZ66: 0 | DB66: =ROUND(CZ66-DA66,0) -> 0 | DD66: 0 | DF66: =ROUND(DD66-DE66,0) -> 0 | DH66: NO | DI66: =IF(ISERROR(VLOOKUP($A66+8860000,'Growth Data'!$A:$F,3,0)),"NO",VLOOKUP($A66+8860000,'Growth Data'!$A:$F,3,0)) -> NO | DJ66: =IF(DH66=DI66,0,1) -> 0 | DL66: 0 | DM66: =IF(DI66="YES",IF(ISERROR(VLOOKUP($A66+8860000,'Growth Data'!$A:$F,6,0)),0,VLOOKUP($A66+8860000,'Growth Data'!$A:$F,6,0)),0) -> 0 | DN66: =ROUND(DL66-DM66,0) -> 0 | DP66: 0 | DQ66: =IF(ISERROR(VLOOKUP($A66+8860000,'Growth Data'!$A:$Z,7,0)),0,VLOOKUP($A66+8860000,'Growth Data'!$A:$Z,7,0)) -> 0 | DR66: =IF(DP66=DQ66,0,1) -> 0 | DT66: NO | DU66: =IF(ISERROR(VLOOKUP($A66+8860000,'Growth Data'!$A:$F,4,0)),"NO",VLOOKUP($A66+8860000,'Growth Data'!$A:$F,4,0)) -> NO | DV66: =IF(DT66=DU66,0,1) -> 0 | DX66: 0 | DY66: =IF(ISERROR(VLOOKUP($A66+8860000,'Growth Data'!$A:$Z,8,0)),0,VLOOKUP($A66+8860000,'Growth Data'!$A:$Z,8,0)) -> 0 | DZ66: =IF(DX66=DY66,0,1) -> 0 | EB66: 0 | EC66: =IF(ISERROR(VLOOKUP($A66+8860000,'Growth Data'!$A:$Z,9,0)),0,VLOOKUP($A66+8860000,'Growth Data'!$A:$Z,9,0)) -> 0 | ED66: =IF(EB66=EC66,0,1) -> 0 | EF66: NO | EG66: =IF(ISERROR(VLOOKUP($A66+8860000,'Growth Data'!$A:$Z,5,0)),"NO",VLOOKUP($A66+8860000,'Growth Data'!$A:$Z,5,0)) -> NO | EH66: =IF(EF66=EG66,0,1) -> 0 | EJ66: 0 | EK66: =IF(ISERROR(VLOOKUP($A66+8860000,'Growth Data'!$A:$Z,10,0)),0,VLOOKUP($A66+8860000,'Growth Data'!$A:$Z,10,0)) -> 0 | EL66: =IF(EJ66=EK66,0,1) -> 0 | EN66: 0 | EO66: =IF(ISERROR(VLOOKUP($A66+8860000,'Growth Data'!$A:$Z,11,0)),0,VLOOKUP($A66+8860000,'Growth Data'!$A:$Z,11,0)) -> 0 | EP66: =IF(EN66=EO66,0,1) -> 0
A67: 2269 | B67: Whitstable Junior School | D67: Whitstable Junior School | E67: Whitstable Junior School | F67: 0 | H67: 758692.38 | I67: 758692.3768 | J67: 0 | L67: 57000.79 | M67: 57000.78771 | N67: 0 | P67: 1546.07 | Q67: 1546.06605 | R67: 0 | T67: 67519.38 | U67: 67519.38459 | V67: 0 | X67: 120082.8 | Y67: 120082.8 | Z67: 0 | AB67: 0 | AC67: 0 | AD67: 0 | AF67: 0 | AG67: 0 | AH67: 0 | AJ67: 0 | AK67: 0 | AL67: 0 | AN67: 18535 | AO67: 18535 | AP67: 0 | AR67: 0 | AS67: 0 | AT67: 0 | AV67: 0 | AW67: 0 | AX67: 0 | AZ67: 0 | BA67: 0 | BB67: 0 | BD67: 1023376.42 | BE67: 1023376.415 | BF67: 0 | BH67: 0 | BI67: 0 | BJ67: 0 | BL67: 1023376.42 | BM67: 1023376.415 | BN67: 0 | BP67: 0 | BR67: 0 | BT67: 1023376.42 | BU67: 1023376.415 | BV67: 0 | BX67: 0 | BZ67: 0 | CB67: 119972.74 | CD67: 119973 | CF67: 0 | CH67: 0 | CJ67: 0 | CL67: 0 | CN67: 0 | CP67: 0 | CR67: 0 | CT67: 0 | CV67: 0 | CX67: 0 | CZ67: 0 | DB67: 0 | DD67: 0 | DF67: 0 | DH67: NO | DI67: =IF(ISERROR(VLOOKUP($A67+8860000,'Growth Data'!$A:$F,3,0)),"NO",VLOOKUP($A67+8860000,'Growth Data'!$A:$F,3,0)) -> NO | DJ67: 0 | DL67: 0 | DM67: =IF(DI67="YES",IF(ISERROR(VLOOKUP($A67+8860000,'Growth Data'!$A:$F,6,0)),0,VLOOKUP($A67+8860000,'Growth Data'!$A:$F,6,0)),0) -> 0 | DN67: 0 | DP67: 0 | DQ67: =IF(ISERROR(VLOOKUP($A67+8860000,'Growth Data'!$A:$Z,7,0)),0,VLOOKUP($A67+8860000,'Growth Data'!$A:$Z,7,0)) -> 0 | DR67: 0 | DT67: NO | DU67: =IF(ISERROR(VLOOKUP($A67+8860000,'Growth Data'!$A:$F,4,0)),"NO",VLOOKUP($A67+8860000,'Growth Data'!$A:$F,4,0)) -> NO | DV67: 0 | DX67: 0 | DY67: =IF(ISERROR(VLOOKUP($A67+8860000,'Growth Data'!$A:$Z,8,0)),0,VLOOKUP($A67+8860000,'Growth Data'!$A:$Z,8,0)) -> 0 | DZ67: 0 | EB67: 0 | EC67: =IF(ISERROR(VLOOKUP($A67+8860000,'Growth Data'!$A:$Z,9,0)),0,VLOOKUP($A67+8860000,'Growth Data'!$A:$Z,9,0)) -> 0 | ED67: 0 | EF67: NO | EG67: =IF(ISERROR(VLOOKUP($A67+8860000,'Growth Data'!$A:$Z,5,0)),"NO",VLOOKUP($A67+8860000,'Growth Data'!$A:$Z,5,0)) -> NO | EH67: 0 | EJ67: 0 | EK67: =IF(ISERROR(VLOOKUP($A67+8860000,'Growth Data'!$A:$Z,10,0)),0,VLOOKUP($A67+8860000,'Growth Data'!$A:$Z,10,0)) -> 0 | EL67: 0 | EN67: 0 | EO67: =IF(ISERROR(VLOOKUP($A67+8860000,'Growth Data'!$A:$Z,11,0)),0,VLOOKUP($A67+8860000,'Growth Data'!$A:$Z,11,0)) -> 0 | EP67: 0
A68: 2270 | B68: Aldington Primary School | D68: Aldington Primary School | E68: Aldington Primary School | F68: 0 | H68: 541530.43 | I68: 541530.4284 | J68: 0 | L68: 14073.75 | M68: 14073.75346 | N68: 0 | P68: 0 | Q68: 0 | R68: 0 | T68: 31236.32 | U68: 31236.32291 | V68: 0 | X68: 120082.8 | Y68: 120082.8 | Z68: 0 | AB68: 0 | AC68: 0 | AD68: 0 | AF68: 0 | AG68: 0 | AH68: 0 | AJ68: 0 | AK68: 0 | AL68: 0 | AN68: 29484 | AO68: 29484 | AP68: 0 | AR68: 0 | AS68: 0 | AT68: 0 | AV68: 0 | AW68: 0 | AX68: 0 | AZ68: 0 | BA68: 0 | BB68: 0 | BD68: 736407.3 | BE68: 736407.3047 | BF68: 0 | BH68: 0 | BI68: 0 | BJ68: 0 | BL68: 736407.3 | BM68: 736407.3047 | BN68: 0 | BP68: 0 | BR68: 0 | BT68: 736407.3 | BU68: 736407.3047 | BV68: 0 | BX68: 0 | BZ68: 0 | CB68: 49783.86 | CD68: 49784 | CF68: 1021.61 | CH68: 1022 | CJ68: 0 | CL68: 0 | CN68: 0 | CP68: 0 | CR68: 0 | CT68: 0 | CV68: 0 | CX68: 0 | CZ68: 0 | DB68: 0 | DD68: 0 | DF68: 0 | DH68: NO | DI68: =IF(ISERROR(VLOOKUP($A68+8860000,'Growth Data'!$A:$F,3,0)),"NO",VLOOKUP($A68+8860000,'Growth Data'!$A:$F,3,0)) -> NO | DJ68: 0 | DL68: 0 | DM68: =IF(DI68="YES",IF(ISERROR(VLOOKUP($A68+8860000,'Growth Data'!$A:$F,6,0)),0,VLOOKUP($A68+8860000,'Growth Data'!$A:$F,6,0)),0) -> 0 | DN68: 0 | DP68: 0 | DQ68: =IF(ISERROR(VLOOKUP($A68+8860000,'Growth Data'!$A:$Z,7,0)),0,VLOOKUP($A68+8860000,'Growth Data'!$A:$Z,7,0)) -> 0 | DR68: 0 | DT68: NO | DU68: =IF(ISERROR(VLOOKUP($A68+8860000,'Growth Data'!$A:$F,4,0)),"NO",VLOOKUP($A68+8860000,'Growth Data'!$A:$F,4,0)) -> NO | DV68: 0 | DX68: 0 | DY68: =IF(ISERROR(VLOOKUP($A68+8860000,'Growth Data'!$A:$Z,8,0)),0,VLOOKUP($A68+8860000,'Growth Data'!$A:$Z,8,0)) -> 0 | DZ68: 0 | EB68: 0 | EC68: =IF(ISERROR(VLOOKUP($A68+8860000,'Growth Data'!$A:$Z,9,0)),0,VLOOKUP($A68+8860000,'Growth Data'!$A:$Z,9,0)) -> 0 | ED68: 0 | EF68: NO | EG68: =IF(ISERROR(VLOOKUP($A68+8860000,'Growth Data'!$A:$Z,5,0)),"NO",VLOOKUP($A68+8860000,'Growth Data'!$A:$Z,5,0)) -> NO | EH68: 0 | EJ68: 0 | EK68: =IF(ISERROR(VLOOKUP($A68+8860000,'Growth Data'!$A:$Z,10,0)),0,VLOOKUP($A68+8860000,'Growth Data'!$A:$Z,10,0)) -> 0 | EL68: 0 | EN68: 0 | EO68: =IF(ISERROR(VLOOKUP($A68+8860000,'Growth Data'!$A:$Z,11,0)),0,VLOOKUP($A68+8860000,'Growth Data'!$A:$Z,11,0)) -> 0 | EP68: 0
A69: 2272 | B69: East Stour Primary School | D69: East Stour Primary School | E69: East Stour Primary School | F69: 0 | H69: 1140787.45 | I69: 1140787.451 | J69: 0 | L69: 142856.5 | M69: 142856.503 | N69: 0 | P69: 19714.5 | Q69: 19714.50145 | R69: 0 | T69: 99395.97 | U69: 99395.96986 | V69: 0 | X69: 120082.8 | Y69: 120082.8 | Z69: 0 | AB69: 0 | AC69: 0 | AD69: 0 | AF69: 0 | AG69: 0 | AH69: 0 | AJ69: 0 | AK69: 0 | AL69: 0 | AN69: 52920 | AO69: 52920 | AP69: 0 | AR69: 0 | AS69: 0 | AT69: 0 | AV69: 0 | AW69: 0 | AX69: 0 | AZ69: 0 | BA69: 0 | BB69: 0 | BD69: 1575757.22 | BE69: 1575757.225 | BF69: 0 | BH69: 0 | BI69: 0 | BJ69: 0 | BL69: 1575757.22 | BM69: 1575757.225 | BN69: 0 | BP69: 0 | BR69: 0 | BT69: 1575757.22 | BU69: 1575757.225 | BV69: 0 | BX69: 5.06 | BZ69: 5 | CB69: 235619.51 | CD69: 235620 | CF69: 0 | CH69: 0 | CJ69: 0 | CL69: 0 | CN69: 0 | CP69: 0 | CR69: 0 | CT69: 0 | CV69: 0 | CX69: 0 | CZ69: 0 | DB69: 0 | DD69: 0 | DF69: 0 | DH69: NO | DI69: =IF(ISERROR(VLOOKUP($A69+8860000,'Growth Data'!$A:$F,3,0)),"NO",VLOOKUP($A69+8860000,'Growth Data'!$A:$F,3,0)) -> NO | DJ69: 0 | DL69: 0 | DM69: =IF(DI69="YES",IF(ISERROR(VLOOKUP($A69+8860000,'Growth Data'!$A:$F,6,0)),0,VLOOKUP($A69+8860000,'Growth Data'!$A:$F,6,0)),0) -> 0 | DN69: 0 | DP69: 0 | DQ69: =IF(ISERROR(VLOOKUP($A69+8860000,'Growth Data'!$A:$Z,7,0)),0,VLOOKUP($A69+8860000,'Growth Data'!$A:$Z,7,0)) -> 0 | DR69: 0 | DT69: NO | DU69: =IF(ISERROR(VLOOKUP($A69+8860000,'Growth Data'!$A:$F,4,0)),"NO",VLOOKUP($A69+8860000,'Growth Data'!$A:$F,4,0)) -> NO | DV69: 0 | DX69: 0 | DY69: =IF(ISERROR(VLOOKUP($A69+8860000,'Growth Data'!$A:$Z,8,0)),0,VLOOKUP($A69+8860000,'Growth Data'!$A:$Z,8,0)) -> 0 | DZ69: 0 | EB69: 0 | EC69: =IF(ISERROR(VLOOKUP($A69+8860000,'Growth Data'!$A:$Z,9,0)),0,VLOOKUP($A69+8860000,'Growth Data'!$A:$Z,9,0)) -> 0 | ED69: 0 | EF69: NO | EG69: =IF(ISERROR(VLOOKUP($A69+8860000,'Growth Data'!$A:$Z,5,0)),"NO",VLOOKUP($A69+8860000,'Growth Data'!$A:$Z,5,0)) -> NO | EH69: 0 | EJ69: 0 | EK69: =IF(ISERROR(VLOOKUP($A69+8860000,'Growth Data'!$A:$Z,10,0)),0,VLOOKUP($A69+8860000,'Growth Data'!$A:$Z,10,0)) -> 0 | EL69: 0 | EN69: 0 | EO69: =IF(ISERROR(VLOOKUP($A69+8860000,'Growth Data'!$A:$Z,11,0)),0,VLOOKUP($A69+8860000,'Growth Data'!$A:$Z,11,0)) -> 0 | EP69: 0
A70: 2275 | B70: Victoria Road Primary School | D70: Victoria Road Primary School | E70: Victoria Road Primary School | F70: 0 | H70: 580014.82 | I70: 580014.8243 | J70: 0 | L70: 61263.24 | M70: 61263.24249 | N70: 0 | P70: 10813.92 | Q70: 10813.92055 | R70: 0 | T70: 41353.12 | U70: 41353.12111 | V70: 0 | X70: 120082.8 | Y70: 120082.8 | Z70: 0 | AB70: 0 | AC70: 0 | AD70: 0 | AF70: 0 | AG70: 0 | AH70: 0 | AJ70: 0 | AK70: 0 | AL70: 0 | AN70: 14853 | AO70: 14853 | AP70: 0 | AR70: 0 | AS70: 0 | AT70: 0 | AV70: 0 | AW70: 0 | AX70: 0 | AZ70: 0 | BA70: 0 | BB70: 0 | BD70: 828380.91 | BE70: 828380.9084 | BF70: 0 | BH70: 0 | BI70: 0 | BJ70: 0 | BL70: 828380.91 | BM70: 828380.9084 | BN70: 0 | BP70: 0 | BR70: 0 | BT70: 828380.91 | BU70: 828380.9084 | BV70: 0 | BX70: 0 | BZ70: 0 | CB70: 107777.09 | CD70: 107777 | CF70: 0 | CH70: 0 | CJ70: 0 | CL70: 0 | CN70: 0 | CP70: 0 | CR70: 0 | CT70: 0 | CV70: 0 | CX70: 0 | CZ70: 0 | DB70: 0 | DD70: 0 | DF70: 0 | DH70: NO | DI70: =IF(ISERROR(VLOOKUP($A70+8860000,'Growth Data'!$A:$F,3,0)),"NO",VLOOKUP($A70+8860000,'Growth Data'!$A:$F,3,0)) -> NO | DJ70: 0 | DL70: 0 | DM70: =IF(DI70="YES",IF(ISERROR(VLOOKUP($A70+8860000,'Growth Data'!$A:$F,6,0)),0,VLOOKUP($A70+8860000,'Growth Data'!$A:$F,6,0)),0) -> 0 | DN70: 0 | DP70: 0 | DQ70: =IF(ISERROR(VLOOKUP($A70+8860000,'Growth Data'!$A:$Z,7,0)),0,VLOOKUP($A70+8860000,'Growth Data'!$A:$Z,7,0)) -> 0 | DR70: 0 | DT70: NO | DU70: =IF(ISERROR(VLOOKUP($A70+8860000,'Growth Data'!$A:$F,4,0)),"NO",VLOOKUP($A70+8860000,'Growth Data'!$A:$F,4,0)) -> NO | DV70: 0 | DX70: 0 | DY70: =IF(ISERROR(VLOOKUP($A70+8860000,'Growth Data'!$A:$Z,8,0)),0,VLOOKUP($A70+8860000,'Growth Data'!$A:$Z,8,0)) -> 0 | DZ70: 0 | EB70: 0 | EC70: =IF(ISERROR(VLOOKUP($A70+8860000,'Growth Data'!$A:$Z,9,0)),0,VLOOKUP($A70+8860000,'Growth Data'!$A:$Z,9,0)) -> 0 | ED70: 0 | EF70: NO | EG70: =IF(ISERROR(VLOOKUP($A70+8860000,'Growth Data'!$A:$Z,5,0)),"NO",VLOOKUP($A70+8860000,'Growth Data'!$A:$Z,5,0)) -> NO | EH70: 0 | EJ70: 0 | EK70: =IF(ISERROR(VLOOKUP($A70+8860000,'Growth Data'!$A:$Z,10,0)),0,VLOOKUP($A70+8860000,'Growth Data'!$A:$Z,10,0)) -> 0 | EL70: 0 | EN70: 0 | EO70: =IF(ISERROR(VLOOKUP($A70+8860000,'Growth Data'!$A:$Z,11,0)),0,VLOOKUP($A70+8860000,'Growth Data'!$A:$Z,11,0)) -> 0 | EP70: 0
A71: 2276 | B71: Willesborough Infant School | D71: Willesborough Infant School | E71: Willesborough Infant School | F71: 0 | H71: 1008840.95 | I71: 1008840.95 | J71: 0 | L71: 64449.54 | M71: 64449.53612 | N71: 0 | P71: 39281.97 | Q71: 39281.97049 | R71: 0 | T71: 57037.48 | U71: 57037.47501 | V71: 0 | X71: 120082.8 | Y71: 120082.8 | Z71: 0 | AB71: 0 | AC71: 0 | AD71: 0 | AF71: 0 | AG71: 0 | AH71: 0 | AJ71: 0 | AK71: 0 | AL71: 0 | AN71: 22709 | AO71: 22709 | AP71: 0 | AR71: 0 | AS71: 0 | AT71: 0 | AV71: 0 | AW71: 0 | AX71: 0 | AZ71: 0 | BA71: 0 | BB71: 0 | BD71: 1312401.73 | BE71: 1312401.732 | BF71: 0 | BH71: 0 | BI71: 0 | BJ71: 0 | BL71: 1312401.73 | BM71: 1312401.732 | BN71: 0 | BP71: 0 | BR71: 0 | BT71: 1312401.73 | BU71: 1312401.732 | BV71: 0 | BX71: 0 | BZ71: 0 | CB71: 152914.27 | CD71: 152914 | CF71: 0 | CH71: 0 | CJ71: 0 | CL71: 0 | CN71: 0 | CP71: 0 | CR71: 0 | CT71: 0 | CV71: 0 | CX71: 0 | CZ71: 0 | DB71: 0 | DD71: 0 | DF71: 0 | DH71: NO | DI71: =IF(ISERROR(VLOOKUP($A71+8860000,'Growth Data'!$A:$F,3,0)),"NO",VLOOKUP($A71+8860000,'Growth Data'!$A:$F,3,0)) -> NO | DJ71: 0 | DL71: 0 | DM71: =IF(DI71="YES",IF(ISERROR(VLOOKUP($A71+8860000,'Growth Data'!$A:$F,6,0)),0,VLOOKUP($A71+8860000,'Growth Data'!$A:$F,6,0)),0) -> 0 | DN71: 0 | DP71: 0 | DQ71: =IF(ISERROR(VLOOKUP($A71+8860000,'Growth Data'!$A:$Z,7,0)),0,VLOOKUP($A71+8860000,'Growth Data'!$A:$Z,7,0)) -> 0 | DR71: 0 | DT71: NO | DU71: =IF(ISERROR(VLOOKUP($A71+8860000,'Growth Data'!$A:$F,4,0)),"NO",VLOOKUP($A71+8860000,'Growth Data'!$A:$F,4,0)) -> NO | DV71: 0 | DX71: 0 | DY71: =IF(ISERROR(VLOOKUP($A71+8860000,'Growth Data'!$A:$Z,8,0)),0,VLOOKUP($A71+8860000,'Growth Data'!$A:$Z,8,0)) -> 0 | DZ71: 0 | EB71: 0 | EC71: =IF(ISERROR(VLOOKUP($A71+8860000,'Growth Data'!$A:$Z,9,0)),0,VLOOKUP($A71+8860000,'Growth Data'!$A:$Z,9,0)) -> 0 | ED71: 0 | EF71: NO | EG71: =IF(ISERROR(VLOOKUP($A71+8860000,'Growth Data'!$A:$Z,5,0)),"NO",VLOOKUP($A71+8860000,'Growth Data'!$A:$Z,5,0)) -> NO | EH71: 0 | EJ71: 0 | EK71: =IF(ISERROR(VLOOKUP($A71+8860000,'Growth Data'!$A:$Z,10,0)),0,VLOOKUP($A71+8860000,'Growth Data'!$A:$Z,10,0)) -> 0 | EL71: 0 | EN71: 0 | EO71: =IF(ISERROR(VLOOKUP($A71+8860000,'Growth Data'!$A:$Z,11,0)),0,VLOOKUP($A71+8860000,'Growth Data'!$A:$Z,11,0)) -> 0 | EP71: 0
A72: 2278 | B72: Bethersden Primary School | D72: Bethersden Primary School | E72: Bethersden Primary School | F72: 0 | H72: 354606.22 | I72: 354606.2196 | J72: 0 | L72: 22815.09 | M72: 22815.08589 | N72: 0 | P72: 588.33 | Q72: 588.326019 | R72: 0 | T72: 28402.18 | U72: 28402.17591 | V72: 0 | X72: 120082.8 | Y72: 120082.8 | Z72: 0 | AB72: 6947.38 | AC72: 6947.380507 | AD72: 0 | AF72: 0 | AG72: 0 | AH72: 0 | AJ72: 0 | AK72: 0 | AL72: 0 | AN72: 10802 | AO72: 10802 | AP72: 0 | AR72: 0 | AS72: 0 | AT72: 0 | AV72: 0 | AW72: 0 | AX72: 0 | AZ72: 0 | BA72: 0 | BB72: 0 | BD72: 544243.99 | BE72: 544243.9879 | BF72: 0 | BH72: 0 | BI72: 0 | BJ72: 0 | BL72: 544243.99 | BM72: 544243.9879 | BN72: 0 | BP72: 0 | BR72: 0 | BT72: 544243.99 | BU72: 544243.9879 | BV72: 0 | BX72: 0 | BZ72: 0 | CB72: 48353.91 | CD72: 48354 | CF72: 1164.61 | CH72: 1165 | CJ72: 0 | CL72: 0 | CN72: 0 | CP72: 0 | CR72: 0 | CT72: 0 | CV72: 0 | CX72: 0 | CZ72: 0 | DB72: 0 | DD72: 0 | DF72: 0 | DH72: NO | DI72: =IF(ISERROR(VLOOKUP($A72+8860000,'Growth Data'!$A:$F,3,0)),"NO",VLOOKUP($A72+8860000,'Growth Data'!$A:$F,3,0)) -> NO | DJ72: 0 | DL72: 0 | DM72: =IF(DI72="YES",IF(ISERROR(VLOOKUP($A72+8860000,'Growth Data'!$A:$F,6,0)),0,VLOOKUP($A72+8860000,'Growth Data'!$A:$F,6,0)),0) -> 0 | DN72: 0 | DP72: 0 | DQ72: =IF(ISERROR(VLOOKUP($A72+8860000,'Growth Data'!$A:$Z,7,0)),0,VLOOKUP($A72+8860000,'Growth Data'!$A:$Z,7,0)) -> 0 | DR72: 0 | DT72: NO | DU72: =IF(ISERROR(VLOOKUP($A72+8860000,'Growth Data'!$A:$F,4,0)),"NO",VLOOKUP($A72+8860000,'Growth Data'!$A:$F,4,0)) -> NO | DV72: 0 | DX72: 0 | DY72: =IF(ISERROR(VLOOKUP($A72+8860000,'Growth Data'!$A:$Z,8,0)),0,VLOOKUP($A72+8860000,'Growth Data'!$A:$Z,8,0)) -> 0 | DZ72: 0 | EB72: 0 | EC72: =IF(ISERROR(VLOOKUP($A72+8860000,'Growth Data'!$A:$Z,9,0)),0,VLOOKUP($A72+8860000,'Growth Data'!$A:$Z,9,0)) -> 0 | ED72: 0 | EF72: NO | EG72: =IF(ISERROR(VLOOKUP($A72+8860000,'Growth Data'!$A:$Z,5,0)),"NO",VLOOKUP($A72+8860000,'Growth Data'!$A:$Z,5,0)) -> NO | EH72: 0 | EJ72: 0 | EK72: =IF(ISERROR(VLOOKUP($A72+8860000,'Growth Data'!$A:$Z,10,0)),0,VLOOKUP($A72+8860000,'Growth Data'!$A:$Z,10,0)) -> 0 | EL72: 0 | EN72: 0 | EO72: =IF(ISERROR(VLOOKUP($A72+8860000,'Growth Data'!$A:$Z,11,0)),0,VLOOKUP($A72+8860000,'Growth Data'!$A:$Z,11,0)) -> 0 | EP72: 0
A73: 2279 | B73: Brook Community Primary School | D73: Brook Community Primary School | E73: Brook Community Primary School | F73: 0 | H73: 266641.89 | I73: 266641.886 | J73: 0 | L73: 16466.95 | M73: 16466.95436 | N73: 0 | P73: 2940.56 | Q73: 2940.556997 | R73: 0 | T73: 14792.5 | U73: 14792.5021 | V73: 0 | X73: 120082.8 | Y73: 120082.8 | Z73: 0 | AB73: 0 | AC73: 0 | AD73: 0 | AF73: 0 | AG73: 0 | AH73: 0 | AJ73: 0 | AK73: 0 | AL73: 0 | AN73: 8470 | AO73: 8470 | AP73: 0 | AR73: 0 | AS73: 0 | AT73: 0 | AV73: 0 | AW73: 0 | AX73: 0 | AZ73: 0 | BA73: 0 | BB73: 0 | BD73: 429394.7 | BE73: 429394.6995 | BF73: 0 | BH73: 0 | BI73: 0 | BJ73: 0 | BL73: 429394.7 | BM73: 429394.6995 | BN73: 0 | BP73: 0 | BR73: 0 | BT73: 429394.7 | BU73: 429394.6995 | BV73: 0 | BX73: 0 | BZ73: 0 | CB73: 35591.67 | CD73: 35592 | CF73: 2440.83 | CH73: 2441 | CJ73: 0 | CL73: 0 | CN73: 0 | CP73: 0 | CR73: 0 | CT73: 0 | CV73: 0 | CX73: 0 | CZ73: 0 | DB73: 0 | DD73: 0 | DF73: 0 | DH73: NO | DI73: =IF(ISERROR(VLOOKUP($A73+8860000,'Growth Data'!$A:$F,3,0)),"NO",VLOOKUP($A73+8860000,'Growth Data'!$A:$F,3,0)) -> NO | DJ73: 0 | DL73: 0 | DM73: =IF(DI73="YES",IF(ISERROR(VLOOKUP($A73+8860000,'Growth Data'!$A:$F,6,0)),0,VLOOKUP($A73+8860000,'Growth Data'!$A:$F,6,0)),0) -> 0 | DN73: 0 | DP73: 0 | DQ73: =IF(ISERROR(VLOOKUP($A73+8860000,'Growth Data'!$A:$Z,7,0)),0,VLOOKUP($A73+8860000,'Growth Data'!$A:$Z,7,0)) -> 0 | DR73: 0 | DT73: NO | DU73: =IF(ISERROR(VLOOKUP($A73+8860000,'Growth Data'!$A:$F,4,0)),"NO",VLOOKUP($A73+8860000,'Growth Data'!$A:$F,4,0)) -> NO | DV73: 0 | DX73: 0 | DY73: =IF(ISERROR(VLOOKUP($A73+8860000,'Growth Data'!$A:$Z,8,0)),0,VLOOKUP($A73+8860000,'Growth Data'!$A:$Z,8,0)) -> 0 | DZ73: 0 | EB73: 0 | EC73: =IF(ISERROR(VLOOKUP($A73+8860000,'Growth Data'!$A:$Z,9,0)),0,VLOOKUP($A73+8860000,'Growth Data'!$A:$Z,9,0)) -> 0 | ED73: 0 | EF73: NO | EG73: =IF(ISERROR(VLOOKUP($A73+8860000,'Growth Data'!$A:$Z,5,0)),"NO",VLOOKUP($A73+8860000,'Growth Data'!$A:$Z,5,0)) -> NO | EH73: 0 | EJ73: 0 | EK73: =IF(ISERROR(VLOOKUP($A73+8860000,'Growth Data'!$A:$Z,10,0)),0,VLOOKUP($A73+8860000,'Growth Data'!$A:$Z,10,0)) -> 0 | EL73: 0 | EN73: 0 | EO73: =IF(ISERROR(VLOOKUP($A73+8860000,'Growth Data'!$A:$Z,11,0)),0,VLOOKUP($A73+8860000,'Growth Data'!$A:$Z,11,0)) -> 0 | EP73: 0
A74: 2280 | B74: Challock Primary School | D74: Challock Primary School | E74: Challock Primary School | F74: 0 | H74: 582763.71 | I74: 582763.7097 | J74: 0 | L74: 8426.7 | M74: 8426.70141 | N74: 0 | P74: 1800.91 | Q74: 1800.912102 | R74: 0 | T74: 39114.34 | U74: 39114.33865 | V74: 0 | X74: 120082.8 | Y74: 120082.8 | Z74: 0 | AB74: 0 | AC74: 0 | AD74: 0 | AF74: 0 | AG74: 0 | AH74: 0 | AJ74: 0 | AK74: 0 | AL74: 0 | AN74: 19395 | AO74: 19395 | AP74: 0 | AR74: 0 | AS74: 0 | AT74: 0 | AV74: 0 | AW74: 0 | AX74: 0 | AZ74: 0 | BA74: 0 | BB74: 0 | BD74: 771583.46 | BE74: 771583.4619 | BF74: 0 | BH74: 0 | BI74: 0 | BJ74: 0 | BL74: 771583.46 | BM74: 771583.4619 | BN74: 0 | BP74: 0 | BR74: 0 | BT74: 771583.46 | BU74: 771583.4619 | BV74: 0 | BX74: 0 | BZ74: 0 | CB74: 53375.43 | CD74: 53375 | CF74: 662.46 | CH74: 662 | CJ74: 0 | CL74: 0 | CN74: 0 | CP74: 0 | CR74: 0 | CT74: 0 | CV74: 0 | CX74: 0 | CZ74: 0 | DB74: 0 | DD74: 0 | DF74: 0 | DH74: NO | DI74: =IF(ISERROR(VLOOKUP($A74+8860000,'Growth Data'!$A:$F,3,0)),"NO",VLOOKUP($A74+8860000,'Growth Data'!$A:$F,3,0)) -> NO | DJ74: 0 | DL74: 0 | DM74: =IF(DI74="YES",IF(ISERROR(VLOOKUP($A74+8860000,'Growth Data'!$A:$F,6,0)),0,VLOOKUP($A74+8860000,'Growth Data'!$A:$F,6,0)),0) -> 0 | DN74: 0 | DP74: 0 | DQ74: =IF(ISERROR(VLOOKUP($A74+8860000,'Growth Data'!$A:$Z,7,0)),0,VLOOKUP($A74+8860000,'Growth Data'!$A:$Z,7,0)) -> 0 | DR74: 0 | DT74: NO | DU74: =IF(ISERROR(VLOOKUP($A74+8860000,'Growth Data'!$A:$F,4,0)),"NO",VLOOKUP($A74+8860000,'Growth Data'!$A:$F,4,0)) -> NO | DV74: 0 | DX74: 0 | DY74: =IF(ISERROR(VLOOKUP($A74+8860000,'Growth Data'!$A:$Z,8,0)),0,VLOOKUP($A74+8860000,'Growth Data'!$A:$Z,8,0)) -> 0 | DZ74: 0 | EB74: 0 | EC74: =IF(ISERROR(VLOOKUP($A74+8860000,'Growth Data'!$A:$Z,9,0)),0,VLOOKUP($A74+8860000,'Growth Data'!$A:$Z,9,0)) -> 0 | ED74: 0 | EF74: NO | EG74: =IF(ISERROR(VLOOKUP($A74+8860000,'Growth Data'!$A:$Z,5,0)),"NO",VLOOKUP($A74+8860000,'Growth Data'!$A:$Z,5,0)) -> NO | EH74: 0 | EJ74: 0 | EK74: =IF(ISERROR(VLOOKUP($A74+8860000,'Growth Data'!$A:$Z,10,0)),0,VLOOKUP($A74+8860000,'Growth Data'!$A:$Z,10,0)) -> 0 | EL74: 0 | EN74: 0 | EO74: =IF(ISERROR(VLOOKUP($A74+8860000,'Growth Data'!$A:$Z,11,0)),0,VLOOKUP($A74+8860000,'Growth Data'!$A:$Z,11,0)) -> 0 | EP74: 0
A75: 2282 | B75: Great Chart Primary School | D75: Great Chart Primary School | E75: Great Chart Primary School | F75: 0 | H75: 1327711.66 | I75: 1327711.659 | J75: 0 | L75: 70745.17 | M75: 70745.1672 | N75: 0 | P75: 18242.12 | Q75: 18242.11739 | R75: 0 | T75: 62604.49 | U75: 62604.48905 | V75: 0 | X75: 120082.8 | Y75: 120082.8 | Z75: 0 | AB75: 0 | AC75: 0 | AD75: 0 | AF75: 0 | AG75: 0 | AH75: 0 | AJ75: 0 | AK75: 0 | AL75: 0 | AN75: 38052 | AO75: 38052 | AP75: 0 | AR75: 0 | AS75: 0 | AT75: 0 | AV75: 0 | AW75: 0 | AX75: 0 | AZ75: 42813.77 | BA75: 42813.767 | BB75: 0 | BD75: 1680252 | BE75: 1680252 | BF75: 0 | BH75: 0 | BI75: 0 | BJ75: 0 | BL75: 1680252 | BM75: 1680252 | BN75: 0 | BP75: 0 | BR75: 0 | BT75: 1680252 | BU75: 1680252 | BV75: 0 | BX75: 0 | BZ75: 0 | CB75: 137132.5 | CD75: 137133 | CF75: 0 | CH75: 0 | CJ75: 0 | CL75: 0 | CN75: 0 | CP75: 0 | CR75: 0 | CT75: 0 | CV75: 0 | CX75: 0 | CZ75: 0 | DB75: 0 | DD75: 0 | DF75: 0 | DH75: NO | DI75: =IF(ISERROR(VLOOKUP($A75+8860000,'Growth Data'!$A:$F,3,0)),"NO",VLOOKUP($A75+8860000,'Growth Data'!$A:$F,3,0)) -> NO | DJ75: 0 | DL75: 0 | DM75: =IF(DI75="YES",IF(ISERROR(VLOOKUP($A75+8860000,'Growth Data'!$A:$F,6,0)),0,VLOOKUP($A75+8860000,'Growth Data'!$A:$F,6,0)),0) -> 0 | DN75: 0 | DP75: 0 | DQ75: =IF(ISERROR(VLOOKUP($A75+8860000,'Growth Data'!$A:$Z,7,0)),0,VLOOKUP($A75+8860000,'Growth Data'!$A:$Z,7,0)) -> 0 | DR75: 0 | DT75: NO | DU75: =IF(ISERROR(VLOOKUP($A75+8860000,'Growth Data'!$A:$F,4,0)),"NO",VLOOKUP($A75+8860000,'Growth Data'!$A:$F,4,0)) -> NO | DV75: 0 | DX75: 0 | DY75: =IF(ISERROR(VLOOKUP($A75+8860000,'Growth Data'!$A:$Z,8,0)),0,VLOOKUP($A75+8860000,'Growth Data'!$A:$Z,8,0)) -> 0 | DZ75: 0 | EB75: 0 | EC75: =IF(ISERROR(VLOOKUP($A75+8860000,'Growth Data'!$A:$Z,9,0)),0,VLOOKUP($A75+8860000,'Growth Data'!$A:$Z,9,0)) -> 0 | ED75: 0 | EF75: NO | EG75: =IF(ISERROR(VLOOKUP($A75+8860000,'Growth Data'!$A:$Z,5,0)),"NO",VLOOKUP($A75+8860000,'Growth Data'!$A:$Z,5,0)) -> NO | EH75: 0 | EJ75: 0 | EK75: =IF(ISERROR(VLOOKUP($A75+8860000,'Growth Data'!$A:$Z,10,0)),0,VLOOKUP($A75+8860000,'Growth Data'!$A:$Z,10,0)) -> 0 | EL75: 0 | EN75: 0 | EO75: =IF(ISERROR(VLOOKUP($A75+8860000,'Growth Data'!$A:$Z,11,0)),0,VLOOKUP($A75+8860000,'Growth Data'!$A:$Z,11,0)) -> 0 | EP75: 0
A76: 2285 | B76: Mersham Primary School | D76: Mersham Primary School | E76: Mersham Primary School | F76: 0 | H76: 538781.54 | I76: 538781.5429 | J76: 0 | L76: 21326.91 | M76: 21326.91232 | N76: 0 | P76: 1174.53 | Q76: 1174.530798 | R76: 0 | T76: 28595.82 | U76: 28595.82108 | V76: 0 | X76: 120082.8 | Y76: 120082.8 | Z76: 0 | AB76: 0 | AC76: 0 | AD76: 0 | AF76: 0 | AG76: 0 | AH76: 0 | AJ76: 0 | AK76: 0 | AL76: 0 | AN76: 7105 | AO76: 7105 | AP76: 0 | AR76: 0 | AS76: 0 | AT76: 0 | AV76: 0 | AW76: 0 | AX76: 0 | AZ76: 0 | BA76: 0 | BB76: 0 | BD76: 717066.61 | BE76: 717066.6071 | BF76: 0 | BH76: 0 | BI76: 0 | BJ76: 0 | BL76: 717066.61 | BM76: 717066.6071 | BN76: 0 | BP76: 0 | BR76: 0 | BT76: 717066.61 | BU76: 717066.6071 | BV76: 0 | BX76: 0 | BZ76: 0 | CB76: 53809.84 | CD76: 53810 | CF76: 619.02 | CH76: 619 | CJ76: 0 | CL76: 0 | CN76: 0 | CP76: 0 | CR76: 0 | CT76: 0 | CV76: 0 | CX76: 0 | CZ76: 0 | DB76: 0 | DD76: 0 | DF76: 0 | DH76: NO | DI76: =IF(ISERROR(VLOOKUP($A76+8860000,'Growth Data'!$A:$F,3,0)),"NO",VLOOKUP($A76+8860000,'Growth Data'!$A:$F,3,0)) -> NO | DJ76: 0 | DL76: 0 | DM76: =IF(DI76="YES",IF(ISERROR(VLOOKUP($A76+8860000,'Growth Data'!$A:$F,6,0)),0,VLOOKUP($A76+8860000,'Growth Data'!$A:$F,6,0)),0) -> 0 | DN76: 0 | DP76: 0 | DQ76: =IF(ISERROR(VLOOKUP($A76+8860000,'Growth Data'!$A:$Z,7,0)),0,VLOOKUP($A76+8860000,'Growth Data'!$A:$Z,7,0)) -> 0 | DR76: 0 | DT76: NO | DU76: =IF(ISERROR(VLOOKUP($A76+8860000,'Growth Data'!$A:$F,4,0)),"NO",VLOOKUP($A76+8860000,'Growth Data'!$A:$F,4,0)) -> NO | DV76: 0 | DX76: 0 | DY76: =IF(ISERROR(VLOOKUP($A76+8860000,'Growth Data'!$A:$Z,8,0)),0,VLOOKUP($A76+8860000,'Growth Data'!$A:$Z,8,0)) -> 0 | DZ76: 0 | EB76: 0 | EC76: =IF(ISERROR(VLOOKUP($A76+8860000,'Growth Data'!$A:$Z,9,0)),0,VLOOKUP($A76+8860000,'Growth Data'!$A:$Z,9,0)) -> 0 | ED76: 0 | EF76: NO | EG76: =IF(ISERROR(VLOOKUP($A76+8860000,'Growth Data'!$A:$Z,5,0)),"NO",VLOOKUP($A76+8860000,'Growth Data'!$A:$Z,5,0)) -> NO | EH76: 0 | EJ76: 0 | EK76: =IF(ISERROR(VLOOKUP($A76+8860000,'Growth Data'!$A:$Z,10,0)),0,VLOOKUP($A76+8860000,'Growth Data'!$A:$Z,10,0)) -> 0 | EL76: 0 | EN76: 0 | EO76: =IF(ISERROR(VLOOKUP($A76+8860000,'Growth Data'!$A:$Z,11,0)),0,VLOOKUP($A76+8860000,'Growth Data'!$A:$Z,11,0)) -> 0 | EP76: 0
A77: 2287 | B77: Rolvenden Primary School | D77: Rolvenden Primary School | E77: Rolvenden Primary School | F77: 0 | H77: 285884.08 | I77: 285884.084 | J77: 0 | L77: 21343.84 | M77: 21343.84102 | N77: 0 | P77: 1766.93 | Q77: 1766.932629 | R77: 0 | T77: 25442.09 | U77: 25442.08695 | V77: 0 | X77: 120082.8 | Y77: 120082.8 | Z77: 0 | AB77: 15297.6 | AC77: 15297.59746 | AD77: 0 | AF77: 0 | AG77: 0 | AH77: 0 | AJ77: 0 | AK77: 0 | AL77: 0 | AN77: 11552 | AO77: 11552 | AP77: 0 | AR77: 0 | AS77: 0 | AT77: 0 | AV77: 0 | AW77: 0 | AX77: 0 | AZ77: 0 | BA77: 0 | BB77: 0 | BD77: 481369.34 | BE77: 481369.3421 | BF77: 0 | BH77: 0 | BI77: 0 | BJ77: 0 | BL77: 481369.34 | BM77: 481369.3421 | BN77: 0 | BP77: 0 | BR77: 0 | BT77: 481369.34 | BU77: 481369.3421 | BV77: 0 | BX77: 0 | BZ77: 0 | CB77: 51265.43 | CD77: 51265 | CF77: 873.46 | CH77: 873 | CJ77: 0 | CL77: 0 | CN77: 0 | CP77: 0 | CR77: 0 | CT77: 0 | CV77: 0 | CX77: 0 | CZ77: 0 | DB77: 0 | DD77: 0 | DF77: 0 | DH77: NO | DI77: =IF(ISERROR(VLOOKUP($A77+8860000,'Growth Data'!$A:$F,3,0)),"NO",VLOOKUP($A77+8860000,'Growth Data'!$A:$F,3,0)) -> NO | DJ77: 0 | DL77: 0 | DM77: =IF(DI77="YES",IF(ISERROR(VLOOKUP($A77+8860000,'Growth Data'!$A:$F,6,0)),0,VLOOKUP($A77+8860000,'Growth Data'!$A:$F,6,0)),0) -> 0 | DN77: 0 | DP77: 0 | DQ77: =IF(ISERROR(VLOOKUP($A77+8860000,'Growth Data'!$A:$Z,7,0)),0,VLOOKUP($A77+8860000,'Growth Data'!$A:$Z,7,0)) -> 0 | DR77: 0 | DT77: NO | DU77: =IF(ISERROR(VLOOKUP($A77+8860000,'Growth Data'!$A:$F,4,0)),"NO",VLOOKUP($A77+8860000,'Growth Data'!$A:$F,4,0)) -> NO | DV77: 0 | DX77: 0 | DY77: =IF(ISERROR(VLOOKUP($A77+8860000,'Growth Data'!$A:$Z,8,0)),0,VLOOKUP($A77+8860000,'Growth Data'!$A:$Z,8,0)) -> 0 | DZ77: 0 | EB77: 0 | EC77: =IF(ISERROR(VLOOKUP($A77+8860000,'Growth Data'!$A:$Z,9,0)),0,VLOOKUP($A77+8860000,'Growth Data'!$A:$Z,9,0)) -> 0 | ED77: 0 | EF77: NO | EG77: =IF(ISERROR(VLOOKUP($A77+8860000,'Growth Data'!$A:$Z,5,0)),"NO",VLOOKUP($A77+8860000,'Growth Data'!$A:$Z,5,0)) -> NO | EH77: 0 | EJ77: 0 | EK77: =IF(ISERROR(VLOOKUP($A77+8860000,'Growth Data'!$A:$Z,10,0)),0,VLOOKUP($A77+8860000,'Growth Data'!$A:$Z,10,0)) -> 0 | EL77: 0 | EN77: 0 | EO77: =IF(ISERROR(VLOOKUP($A77+8860000,'Growth Data'!$A:$Z,11,0)),0,VLOOKUP($A77+8860000,'Growth Data'!$A:$Z,11,0)) -> 0 | EP77: 0
A78: 2289 | B78: Smeeth Community Primary School | D78: Smeeth Community Primary School | E78: Smeeth Community Primary School | F78: 0 | H78: 362852.88 | I78: 362852.8758 | J78: 0 | L78: 9588.9 | M78: 9588.897491 | N78: 0 | P78: 0 | Q78: 0 | R78: 0 | T78: 26813.79 | U78: 26813.79287 | V78: 0 | X78: 120082.8 | Y78: 120082.8 | Z78: 0 | AB78: 0 | AC78: 0 | AD78: 0 | AF78: 0 | AG78: 0 | AH78: 0 | AJ78: 0 | AK78: 0 | AL78: 0 | AN78: 14607 | AO78: 14607 | AP78: 0 | AR78: 0 | AS78: 0 | AT78: 0 | AV78: 0 | AW78: 0 | AX78: 0 | AZ78: 0 | BA78: 0 | BB78: 0 | BD78: 533945.37 | BE78: 533945.3662 | BF78: 0 | BH78: 0 | BI78: 0 | BJ78: 0 | BL78: 533945.37 | BM78: 533945.3662 | BN78: 0 | BP78: 0 | BR78: 0 | BT78: 533945.37 | BU78: 533945.3662 | BV78: 0 | BX78: 0 | BZ78: 0 | CB78: 41316.78 | CD78: 41317 | CF78: 1868.32 | CH78: 1868 | CJ78: 0 | CL78: 0 | CN78: 0 | CP78: 0 | CR78: 0 | CT78: 0 | CV78: 0 | CX78: 0 | CZ78: 0 | DB78: 0 | DD78: 0 | DF78: 0 | DH78: NO | DI78: =IF(ISERROR(VLOOKUP($A78+8860000,'Growth Data'!$A:$F,3,0)),"NO",VLOOKUP($A78+8860000,'Growth Data'!$A:$F,3,0)) -> NO | DJ78: 0 | DL78: 0 | DM78: =IF(DI78="YES",IF(ISERROR(VLOOKUP($A78+8860000,'Growth Data'!$A:$F,6,0)),0,VLOOKUP($A78+8860000,'Growth Data'!$A:$F,6,0)),0) -> 0 | DN78: 0 | DP78: 0 | DQ78: =IF(ISERROR(VLOOKUP($A78+8860000,'Growth Data'!$A:$Z,7,0)),0,VLOOKUP($A78+8860000,'Growth Data'!$A:$Z,7,0)) -> 0 | DR78: 0 | DT78: NO | DU78: =IF(ISERROR(VLOOKUP($A78+8860000,'Growth Data'!$A:$F,4,0)),"NO",VLOOKUP($A78+8860000,'Growth Data'!$A:$F,4,0)) -> NO | DV78: 0 | DX78: 0 | DY78: =IF(ISERROR(VLOOKUP($A78+8860000,'Growth Data'!$A:$Z,8,0)),0,VLOOKUP($A78+8860000,'Growth Data'!$A:$Z,8,0)) -> 0 | DZ78: 0 | EB78: 0 | EC78: =IF(ISERROR(VLOOKUP($A78+8860000,'Growth Data'!$A:$Z,9,0)),0,VLOOKUP($A78+8860000,'Growth Data'!$A:$Z,9,0)) -> 0 | ED78: 0 | EF78: NO | EG78: =IF(ISERROR(VLOOKUP($A78+8860000,'Growth Data'!$A:$Z,5,0)),"NO",VLOOKUP($A78+8860000,'Growth Data'!$A:$Z,5,0)) -> NO | EH78: 0 | EJ78: 0 | EK78: =IF(ISERROR(VLOOKUP($A78+8860000,'Growth Data'!$A:$Z,10,0)),0,VLOOKUP($A78+8860000,'Growth Data'!$A:$Z,10,0)) -> 0 | EL78: 0 | EN78: 0 | EO78: =IF(ISERROR(VLOOKUP($A78+8860000,'Growth Data'!$A:$Z,11,0)),0,VLOOKUP($A78+8860000,'Growth Data'!$A:$Z,11,0)) -> 0 | EP78: 0
A79: 2296 | B79: Mundella Primary School | D79: Mundella Primary School | E79: Mundella Primary School | F79: 0 | H79: 569019.28 | I79: 569019.2826 | J79: 0 | L79: 146266.16 | M79: 146266.1608 | N79: 0 | P79: 10245.96 | Q79: 10245.96314 | R79: 0 | T79: 59079.46 | U79: 59079.46151 | V79: 0 | X79: 120082.8 | Y79: 120082.8 | Z79: 0 | AB79: 0 | AC79: 0 | AD79: 0 | AF79: 0 | AG79: 0 | AH79: 0 | AJ79: 0 | AK79: 0 | AL79: 0 | AN79: 16744 | AO79: 16744 | AP79: 0 | AR79: 0 | AS79: 0 | AT79: 0 | AV79: 0 | AW79: 0 | AX79: 0 | AZ79: 0 | BA79: 0 | BB79: 0 | BD79: 921437.67 | BE79: 921437.668 | BF79: 0 | BH79: 0 | BI79: 0 | BJ79: 0 | BL79: 921437.67 | BM79: 921437.668 | BN79: 0 | BP79: 0 | BR79: 0 | BT79: 921437.67 | BU79: 921437.668 | BV79: 0 | BX79: 0 | BZ79: 0 | CB79: 191445.64 | CD79: 191446 | CF79: 0 | CH79: 0 | CJ79: 0 | CL79: 0 | CN79: 0 | CP79: 0 | CR79: 0 | CT79: 0 | CV79: 0 | CX79: 0 | CZ79: 0 | DB79: 0 | DD79: 0 | DF79: 0 | DH79: NO | DI79: =IF(ISERROR(VLOOKUP($A79+8860000,'Growth Data'!$A:$F,3,0)),"NO",VLOOKUP($A79+8860000,'Growth Data'!$A:$F,3,0)) -> NO | DJ79: 0 | DL79: 0 | DM79: =IF(DI79="YES",IF(ISERROR(VLOOKUP($A79+8860000,'Growth Data'!$A:$F,6,0)),0,VLOOKUP($A79+8860000,'Growth Data'!$A:$F,6,0)),0) -> 0 | DN79: 0 | DP79: 0 | DQ79: =IF(ISERROR(VLOOKUP($A79+8860000,'Growth Data'!$A:$Z,7,0)),0,VLOOKUP($A79+8860000,'Growth Data'!$A:$Z,7,0)) -> 0 | DR79: 0 | DT79: NO | DU79: =IF(ISERROR(VLOOKUP($A79+8860000,'Growth Data'!$A:$F,4,0)),"NO",VLOOKUP($A79+8860000,'Growth Data'!$A:$F,4,0)) -> NO | DV79: 0 | DX79: 0 | DY79: =IF(ISERROR(VLOOKUP($A79+8860000,'Growth Data'!$A:$Z,8,0)),0,VLOOKUP($A79+8860000,'Growth Data'!$A:$Z,8,0)) -> 0 | DZ79: 0 | EB79: 0 | EC79: =IF(ISERROR(VLOOKUP($A79+8860000,'Growth Data'!$A:$Z,9,0)),0,VLOOKUP($A79+8860000,'Growth Data'!$A:$Z,9,0)) -> 0 | ED79: 0 | EF79: NO | EG79: =IF(ISERROR(VLOOKUP($A79+8860000,'Growth Data'!$A:$Z,5,0)),"NO",VLOOKUP($A79+8860000,'Growth Data'!$A:$Z,5,0)) -> NO | EH79: 0 | EJ79: 0 | EK79: =IF(ISERROR(VLOOKUP($A79+8860000,'Growth Data'!$A:$Z,10,0)),0,VLOOKUP($A79+8860000,'Growth Data'!$A:$Z,10,0)) -> 0 | EL79: 0 | EN79: 0 | EO79: =IF(ISERROR(VLOOKUP($A79+8860000,'Growth Data'!$A:$Z,11,0)),0,VLOOKUP($A79+8860000,'Growth Data'!$A:$Z,11,0)) -> 0 | EP79: 0
